Workbook

Sheet VKL
A1: Tel. +49 (0)711 8201-0 | O1: Email: | P1: info@LTG.de | AB1: =IF(AND(IF(OR(B36<B42,B37<B42,B38<B42,B39<B42,B36>B43,B37>B43,B38>B43,B39>B43),,),COUNT(B36:B39)=4),"Grenzwerte","") ->  | AE1: Volumenstrom | AF1: Drehzahl | AL1: Auslegung | AM1: 1 | AN1: 2 | AO1: 3 | AP1: 4 | AU1: y = | AV1: x = | AW1: y = | AX1: x = | BB1: Passwort eingeben, um Adminbereich einzublenden | BC1: Raumluft | BF1: =IF(BG1=BH1,1,IF(BG2=BH1,2,IF(BG3=BH1,3,IF(BG4=BH1,4,0)))) -> 1 | BG1: Deutsch | BH1: Deutsch | BJ1: Akustik-Zielwertsuche ausführen | BK1: Volumenströme zurücksetzen | CA1: Vergleich, ob für Enthalphieberechnung Taupunkttemperatur Ansaug genommen werden kann
A2: LTG Aktiengesellschaft | AE2: [m³/h] | AF2: [1/min] | AI2: Sollwert Schallleistungspegel LWA [dB(A)] | AM2: 35 | AN2: 40 | AO2: 45 | AP2: 50 | AR2: 3D-Strömung | AS2: Schalldämpfer (30-35mm Polyestervlies) | AU2: L_WA | AV2: Drehzahl | AW2: Druck/rho | AX2: Drehzahl | BB2: Dialogaufforderung | BC2: In Inputbox eingetragener Text | BG2: Englisch | BJ2: calculate: target value (acoustic) | BK2: reset flow rates | CA2: Wasservorlauf | CB2: 5
A3: =S3 -> Auslegetool: VKL-Deckengerät, 4L (3,2mm), mit Filter | S3: =CONCATENATE(S5,": ",S6,", ",S7,", ", S8,S9,S10) -> Auslegetool: VKL-Deckengerät, 4L (3,2mm), mit Filter | BG3: Franzoesisch | BJ3: calculate: target value (acoustic) | BK3: réinitialiser le volume des flux | CA3: rF | CB3: 50
BG4: Italienisch | BJ4: calculate: target value (acoustic) | BK4: ripristino del volume dei flussi
G5: Kühlfall: | L5: Heizfall: | S5: Auslegetool | T5: mit Filter | AU5: m | AV5: b | AW5: m | AX5: b | AY5: Messung | CA5: Torr | CB5: 760
A6: Projekt: | H6: Ansaugtemperatur: | I6: 26 | J6: °C | M6: Ansaugtemperatur: | N6: 22 | O6: °C | S6: VKL-Deckengerät | T6: ohne Filter | V6: Auslegungsgrenzen | AE6: Auslegetool | AF6: Abfrage | AI6: Tabellenblatt | AR6: Nein | AS6: Ja | AT6: 1 | AU6: 27.42696177 | AV6: -136.9123184 | AW6: 8.767392823e-08 | AX6: 2.694091046 | AY6: M3: Prototyp, ohne Schalldämpfer, mit Filter, Mit Schlitzschiene LDB12/M/3, mit 3-3,5 cm Polyestervlies
H7: Kühlwasservorlauf¹: | I7: 16 | J7: °C | M7: Heizwasservorlauf: | N7: 55 | O7: °C | S7: 4L (3,2mm) | T7: mit 3D-Strömung | W7: T_Ansaug | X7: T_Vorlauf | Y7: T_Vorlauf2 | Z7: rF [%] | AD7: 1 | AE7: Volumenstrom vorgeben | AF7: 1 | AI7: =MID(CELL("dateiname",A1),FIND("]",CELL("dateiname",A1))+1,255) -> VKL | AR7: Nein | AS7: Nein | AT7: 2 | AU7: 26.32915214 | AV7: -129.5329557 | AW7: 3.708668313e-08 | AX7: 2.827143496 | AY7: M4: Prototyp, ohne Schalldämpfer, mit Filter, Mit Schlitzschiene LDB12/M/3 | CA7: Volumenstrom | CB7: Taupunkt Ansaug | CC7: Taupunkt im Kasten
A8: Datum: | B8: =TODAY() -> 2026-06-23 | G8: Kühlwasservorlauf kondensierender Betrieb²: | I8: 6 | J8: °C | S8: =IF(AB8=TRUE,L_mitFilter,L_ohneFilter) -> mit Filter | T8: ohne 3D-Strömung | U8: Taupunkt Ansaugbed. | V8: Kühlfall | AB8: TRUE | AC8: =IF(AB8=TRUE,1,2) -> 1 | AD8: 2 | AE8: Drehzahl vorgeben | AR8: Ja | AS8: Nein | AT8: 3 | AU8: 26.40002087 | AV8: -130.214113 | AW8: 2.109535702e-05 | AX8: 1.928705131 | AY8: M5: Prototyp, ohne Schalldämpfer, mit Filter, Mit Schlitzschiene LDB12/M/3, mit 3D-Strömung | CA8: [m³/h] | CB8: [°C] | CC8: [°C]
A9: Bearbeiter: | H9: relative Feuchte²: | I9: 50 | J9: % | S9: =IF(AB9=TRUE,L_mit3D,"") ->  | T9: mit Schalldämmung | U9: [°C] | V9: Minimal | W9: =Auslegung_BG800_kondensierend!O74 -> 21 | X9: 16 | Y9: =Auslegung_BG800_kondensierend!Q74 -> 3 | Z9: =Auslegung_BG800_kondensierend!R74 -> 1 | AB9: FALSE | AC9: =IF(AB9=TRUE,1,2) -> 2 | AE9: ='Master-Auswertung_V52-V67'!A136 -> BG | AF9: ='Master-Auswertung_V52-V67'!B136 -> WT bzw. Laufradlänge | AG9: ='Master-Auswertung_V52-V67'!C136 -> Verhältnis | AR9: Ja | AS9: Ja | AT9: 4 | AU9: 26.77436534 | AV9: -132.3430743 | AW9: 9.449876657e-07 | AX9: 2.347615202 | AY9: M6: Prototyp, ohne Schalldämpfer, mit Filter, Mit Schlitzschiene LDB12/M/3, mit 3-3,5cm Polyestervlies, mit 3D-Strömung | CA9: 55.342685 | CB9: 7.232929224 | CC9: 7.288735573
H10: projektierte Leistung: | I10: -800 | J10: W | M10: projektierte Leistung: | N10: 1000 | O10: W | S10: =IF(AB10=TRUE,L_mitSchalld,"") ->  | T10: ohne Schalldämmung | U10: =BD32 ->  | V10: Maximal | W10: =Auslegung_BG800_kondensierend!O75 -> 27 | X10: 24 | Y10: =Auslegung_BG800_kondensierend!Q75 -> 16 | Z10: =Auslegung_BG800_kondensierend!R75 -> 99 | AB10: FALSE | AC10: =IF(AB10=TRUE,1,2) -> 2 | AE10: ='Master-Auswertung_V52-V67'!A137 -> Baugröße 800 | AF10: ='Master-Auswertung_V52-V67'!B137 -> 820 | AG10: ='Master-Auswertung_V52-V67'!C137 -> 1 | AR10: =IF($AC$9=2,"Nein","Ja") -> Nein | AS10: =IF($AC$10=2,"Nein","Ja") -> Nein | AT10: =IF(AND(AR10="Nein", AS10="JA"),1,IF(AND(AR10="Nein",AS10="Nein"),2,IF(AND(AR10="Ja",AS10="Nein"),3,4))) -> 2 | AU10: =VLOOKUP($AT$10,$AT$6:$AY$9,2,0) -> 26.32915214 | AV10: =VLOOKUP($AT$10,$AT$6:$AY$9,3,0) -> -129.5329557 | AW10: =VLOOKUP($AT$10,$AT$6:$AY$9,4,0) -> 3.708668313e-08 | AX10: =VLOOKUP($AT$10,$AT$6:$AY$9,5,0) -> 2.827143496 | AY10: =VLOOKUP($AT$10,$AT$6:$AY$9,6,0) -> M4: Prototyp, ohne Schalldämpfer, mit Filter, Mit Schlitzschiene LDB12/M/3 | CA10: 109.5249661 | CB10: 9.0297887 | CC10: 9.05981947
CA11: 163.2600707 | CB11: 10.20861136 | CC11: 10.22649143
H12: Nennwassermenge: | I12: 200 | J12: kg/h | M12: Nennwassermenge: | N12: 120 | O12: kg/h | V12: Heizfall | AE12: ='Master-Auswertung_V52-V67'!A139 -> Baugröße 630 | AF12: ='Master-Auswertung_V52-V67'!B139 -> 590 | AG12: ='Master-Auswertung_V52-V67'!C139 -> 0.7195121951 | CA12: 216.72807 | CB12: 11.02820352 | CC12: 11.03964151
H13: Wassermenge Kühlen: | I13: 200 | J13: kg/h | M13: Wassermenge Heizen: | N13: 120 | O13: kg/h | V13: Minimal | W13: 19 | X13: 30 | AE13: ='Master-Auswertung_V52-V67'!A137 -> Baugröße 800 | AF13: ='Master-Auswertung_V52-V67'!B140 -> 820 | AG13: ='Master-Auswertung_V52-V67'!C140 -> 1 | AR13: \\file\Daten\E\cer\Projekte\Cer-Projekte\2016\2016-05-23 LHG_LVC\Messungen\2017-03-06 Akustik_ISH-Prototyp.xlsm
V14: Maximal | W14: 27 | X14: 80 | AE14: ='Master-Auswertung_V52-V67'!A141 -> Baugröße 1000 | AF14: ='Master-Auswertung_V52-V67'!B141 -> 1020 | AG14: ='Master-Auswertung_V52-V67'!C141 -> 1.243902439
AR15: y = | AS15: mLN(x) + b
A18: Baugröße 630 | S18: lt. Wikipedia 15-20ml / Tropfen | AE18: ='Master-Auswertung_V52-V67'!A142 -> Baugröße 1200 | AF18: ='Master-Auswertung_V52-V67'!B142 -> 1200 | AG18: ='Master-Auswertung_V52-V67'!C142 -> 1.463414634 | BG18: =Torr_in_Pa(760) -> 
A20: Auslegung | B20: =IF($AF$7=1,$AE$1,$AF$1) -> Volumenstrom | C20: =IF($AF$7=2,$AE$1,$AF$1) -> Drehzahl | D20: =L_Volumenstrom -> Volumenstrom | E20: =L_Drehzahl -> Drehzahl | F20: Steuerspannung (mit Filter) | G20: LWA | H20: LA18 | I20: QSK1) | J20: QTotal2) | K20: QSensibel,K2) | L20: QSH | M20: tKWRL | N20: tKWRL2) | O20: tWWRL | P20: Kondensat² | Q20: Zulufttemp.² | S20: Tropfen | T20: Zulufttemp. | U20: Taupunkt nach WT | V20: qSK1) | W20: qSH1) | X20: qSK2) | Y20: qtotal2) | Z20: Steuerspannung (mit Filter) | AA20: dp / rho | BC20: Randparameter: | BH20: Wassermenge Gesamt in der Luft | BI20: latente Leistung | BJ20: Verdampfungsenthalpie | BM20: Kondensatmenge | BN20: Volumenstrom Wasser (Ansaug) | BO20: Volumenstrom Luft (Ansaug) | BP20: Masse Luft | BQ20: Masse Wasser (im Volumenstrom) - Kasten | BR20: Zulufttemperatur | BS20: Dichte Luft (Kasten) | BT20: Dichte Wasser (Kasten) | BU20: Volumenstrom Luft | BV20: Volumenstrom Wasser | BW20: Massenstrom Kasten | BX20: Volumenstrom Kasten | BY20: Dichte Misch(Kasten) | BZ20: phi_x (kg_H20/kg_Gesamt Wassergehalt) | CA20: Feuchte nach WT (Kasten) | CB20: Taupunkt im Kasten
B21: =IF($AF$7=1,$AE$2,$AF$2) -> [m³/h] | C21: =IF($AF$7=2,$AE$2,$AF$2) -> [1/min] | D21: [m³/h] | E21: [1/min] | F21: [V] | G21: [dB(A)] | H21: [dB(A)] | I21: [W] | J21: [W] | K21: [W] | L21: [W] | M21: [°C] | N21: [°C] | O21: [°C] | P21: [kg/h] bzw. [l / h] | Q21: [°C] | S21: [Anzahl / min] | T21: =BR21 -> [°C] | U21: [°C] | V21: [W] | W21: [W] | X21: [W] | Y21: [W] | Z21: [V] | AA21: [(Pa*m³)/kg] | AB21: Grenzen der Auslegung | AE21: Abhängig von Abfrage | AH21: heizen | BC21: rel. Feuchte | BD21: =I9 -> 50 | BE21: % | BH21: kg H20 / h | BI21: W bzw. J / s | BJ21: kJ/mol | BK21: kJ/g | BL21: J/kg | BM21: kg / h bzw.l / h | BN21: [m³/h] | BO21: [m³/h] | BP21: [kg/h] | BQ21: [kg/h] | BR21: [°C] | BS21: [kg/m³] | BT21: [kg/m³] | BU21: [m³/h] | BV21: [m³/h] | BW21: [kg/h] | BX21: [m³/h] | BY21: [kg/m³] | CA21: rF [%] | CB21: [°C]
A22: =IF(B22="","",1) -> 1 | B22: 107.1530558 | C22: =IF(B22="","",'Master-Auswertung_V52-V67'!C252) -> 546.4144784 | D22: =IF(B22="","",IF($AF$7=1,B22,C22)) -> 107.1530558 | E22: =IF(B22="","",IF($AF$7=1,C22,B22)) -> 546.4144784 | F22: =Z22 -> 3.912383944 | G22: =IFERROR(IF(OR(B22="",B22=0,$AU$10*LN(E22)+$AV$10+10*LOG($AF$12/$AF$10)<20),"<20",$AU$10*LN(E22)+$AV$10+10*LOG($AF$12/$AF$10)),"") -> 35.00001914 | H22: =IFERROR(IF(B22="","",G22-6.5),"") -> 28.50001914 | I22: =IF(OR(B22<$AE$23,B22>$AE$24),"",IF(B22="","",IF(B22=0,,IFERROR((V22*($I$7-$I$6)),"")))) -> -269.6001826 | J22: =IF(OR(B22<$AE$23,B22>$AE$24),"",IFERROR(Y22*($I$8-$I$6),"")) -> -767.1315168 | K22: =IF(OR(B22<$AE$23,B22>$AE$24),"",IFERROR(X22*($I$8-$I$6),"")) -> -501.5500772 | L22: =IF(OR(B22<$AE$23,B22>$AE$24),"",IF(D22=0,,IFERROR((W22*($N$7-$N$6)),""))) -> 785.4384074 | M22: =IF(OR(B22<$AE$23,B22>$AE$24),"",IF(IFERROR(IF(I22=0,,$I$7-((I22/(4.2*$I$13/3.6)))),)=0,"",IFERROR(IF(I22=0,,$I$7-((I22/(4.2*$I$13/3.6)))),))) -> 17.15542935 | N22: =IF(OR(B22<$AE$23,B22>$AE$24),"",IF(IFERROR(IF(J22=0,,$I$8-((J22/(4.2*$I$13/3.6)))),)=0,"",IFERROR(IF(J22=0,,$I$8-((J22/(4.2*$I$13/3.6)))),))) -> 9.287706501 | O22: =IF(OR(B22<$AE$23,B22>$AE$24),"",IF(B22="","",IFERROR(IF(L22=0,,($N$7-((L22/(4.2*$N$13/3.6))))),))) -> 49.38972566 | P22: =IFERROR(BM22,"") -> 0.3849965069 | Q22: =T22 -> 11.95793446 | S22: =IFERROR(P22*1000/15/60,"") -> 0.4277738966 | T22: =IFERROR(BR22,"") -> 11.95793446 | U22: =IFERROR(CB22,"") ->  | V22: ='Master-Auswertung_V52-V67'!M252 -> 26.96001826 | W22: ='Heizen_Auswertung_V78-V85'!M252 -> 23.80116386 | X22: ='Master-Auswertung_V52-V67'!N252 -> 25.07750386 | Y22: ='Master-Auswertung_V52-V67'!O252 -> 38.35657584 | Z22: ='Master-Auswertung_V52-V67'!Q252 -> 3.912383944 | AA22: =IF(B22="","",$AW$10*E22^$AX$10) -> 2.035101492 | AB22: =$AB$72 -> Drehzahl [1/min] | AC22: =$AC$72 -> Volumenstrom [m³/h] | AD22: =$AD$72 -> Wasser-Massenstrom [kg/h] kühlen | AE22: =IF($AF$7=1,AC22,AB22) -> Volumenstrom [m³/h] | AF22: Einheit | AH22: =$AD$72 -> Wasser-Massenstrom [kg/h] kühlen | BC22: Druck | BD22: 760 | BE22: Torr | BH22: =$BD$34*(D22*$BD$24) ->  | BI22: =J22-K22 -> -265.5814395 | BJ22: =50.09-0.9298*(273.15+$I$8)/1000-65.19*((273.15+$I$8)/1000)^2 -> 44.75053367 | BK22: =BJ22/$BD$27 -> 2.483381447 | BL22: =BK22*1000000 -> 2483381.447 | BM22: =ABS(BI22)/BL22*3600 -> 0.3849965069 | BN22: =BH22/$BD$39 ->  | BO22: =D22-BN22 ->  | BP22: =BO22*$BD$38 ->  | BQ22: =BH22-BM22 ->  | BR22: =K22*3/D22+$BD$23 -> 11.95793446 | BS22: =dichteLuft(0,Torr_in_Pa($BD$22),BR22) ->  | BT22: =999.972-7*10^(-3)*(BR22-4)^2 -> 999.528699 | BU22: =BP22/BS22*$BD$38 ->  | BV22: =BQ22/BT22*$BD$38 ->  | BW22: =BQ22+BP22 ->  | BX22: =BU22+BV22 ->  | BY22: =BW22/BX22 ->  | BZ22: =BQ22/BX22/BY22 ->  | CA22: =rf_prozent_von_T_grad_x_hf_gH2O_kg_trLuft(BR22,BZ22*1000) ->  | CB22: =td_T_grad_rf_prozent(BR22,CA22) -> 
A23: =IF(B23="","",2) -> 2 | B23: 134.0351798 | C23: =IF(B23="","",'Master-Auswertung_V52-V67'!C253) -> 660.6880387 | D23: =IF(B23="","",IF($AF$7=1,B23,C23)) -> 134.0351798 | E23: =IF(B23="","",IF($AF$7=1,C23,B23)) -> 660.6880387 | F23: =Z23 -> 4.910914639 | G23: =IFERROR(IF(OR(B23="",B23=0,$AU$10*LN(E23)+$AV$10+10*LOG($AF$12/$AF$10)<20),"<20",$AU$10*LN(E23)+$AV$10+10*LOG($AF$12/$AF$10)),"") -> 40.00002964 | H23: =IFERROR(IF(B23="","",G23-6.5),"") -> 33.50002964 | I23: =IF(OR(B23<$AE$23,B23>$AE$24),"",IF(B23="","",IF(B23=0,,IFERROR((V23*($I$7-$I$6)),"")))) -> -322.7304363 | J23: =IF(OR(B23<$AE$23,B23>$AE$24),"",IFERROR(Y23*($I$8-$I$6),"")) -> -889.3607743 | K23: =IF(OR(B23<$AE$23,B23>$AE$24),"",IFERROR(X23*($I$8-$I$6),"")) -> -592.5422093 | L23: =IF(OR(B23<$AE$23,B23>$AE$24),"",IF(D23=0,,IFERROR((W23*($N$7-$N$6)),""))) -> 910.579684 | M23: =IF(OR(B23<$AE$23,B23>$AE$24),"",IF(IFERROR(IF(I23=0,,$I$7-((I23/(4.2*$I$13/3.6)))),)=0,"",IFERROR(IF(I23=0,,$I$7-((I23/(4.2*$I$13/3.6)))),))) -> 17.38313044 | N23: =IF(OR(B23<$AE$23,B23>$AE$24),"",IF(IFERROR(IF(J23=0,,$I$8-((J23/(4.2*$I$13/3.6)))),)=0,"",IFERROR(IF(J23=0,,$I$8-((J23/(4.2*$I$13/3.6)))),))) -> 9.811546176 | O23: =IF(OR(B23<$AE$23,B23>$AE$24),"",IF(B23="","",IFERROR(IF(L23=0,,($N$7-((L23/(4.2*$N$13/3.6))))),))) -> 48.4958594 | P23: =IFERROR(BM23,"") -> 0.4302789793 | Q23: =T23 -> 12.73761149 | S23: =IFERROR(P23*1000/15/60,"") -> 0.4780877548 | T23: =IFERROR(BR23,"") -> 12.73761149 | U23: =IFERROR(CB23,"") ->  | V23: ='Master-Auswertung_V52-V67'!M253 -> 32.27304363 | W23: ='Heizen_Auswertung_V78-V85'!M253 -> 27.59332376 | X23: ='Master-Auswertung_V52-V67'!N253 -> 29.62711046 | Y23: ='Master-Auswertung_V52-V67'!O253 -> 44.46803871 | Z23: ='Master-Auswertung_V52-V67'!Q253 -> 4.910914639 | AA23: =IF(B23="","",$AW$10*E23^$AX$10) -> 3.481389385 | AB23: =AB73 -> 304.104786 | AC23: =AC73*$AG$12 -> 53.74488048 | AD23: =AD73 -> 62.16736767 | AE23: =IF($AF$7=1,AC23,AB23) -> 53.74488048 | AF23: =IF($AF$7=1,"m³/h","1/min") -> m³/h | AH23: =AH73 -> 61.56286733 | BC23: (Ansaug) Temperatur | BD23: =I6 -> 26 | BE23: °C | BH23: =$BD$34*(D23*$BD$24) ->  | BI23: =J23-K23 -> -296.818565 | BJ23: =50.09-0.9298*(273.15+$I$8)/1000-65.19*((273.15+$I$8)/1000)^2 -> 44.75053367 | BK23: =BJ23/$BD$27 -> 2.483381447 | BL23: =BK23*1000000 -> 2483381.447 | BM23: =ABS(BI23)/BL23*3600 -> 0.4302789793 | BN23: =BH23/$BD$39 ->  | BO23: =D23-BN23 ->  | BP23: =BO23*$BD$38 ->  | BQ23: =BH23-BM23 ->  | BR23: =K23*3/D23+$BD$23 -> 12.73761149 | BS23: =dichteLuft(0,Torr_in_Pa($BD$22),BR23) ->  | BT23: =999.972-7*10^(-3)*(BR23-4)^2 -> 999.437579 | BU23: =BP23/BS23*$BD$38 ->  | BV23: =BQ23/BT23*$BD$38 ->  | BW23: =BQ23+BP23 ->  | BX23: =BU23+BV23 ->  | BY23: =BW23/BX23 ->  | BZ23: =BQ23/BX23/BY23 ->  | CA23: =rf_prozent_von_T_grad_x_hf_gH2O_kg_trLuft(BR23,BZ23*1000) ->  | CB23: =td_T_grad_rf_prozent(BR23,CA23) -> 
A24: =IF(B24="","",3) -> 3 | B24: 167.6607084 | C24: =IF(B24="","",'Master-Auswertung_V52-V67'!C254) -> 798.8573033 | D24: =IF(B24="","",IF($AF$7=1,B24,C24)) -> 167.6607084 | E24: =IF(B24="","",IF($AF$7=1,C24,B24)) -> 798.8573033 | F24: 6.164268269 | G24: =IFERROR(IF(OR(B24="",B24=0,$AU$10*LN(E24)+$AV$10+10*LOG($AF$12/$AF$10)<20),"<20",$AU$10*LN(E24)+$AV$10+10*LOG($AF$12/$AF$10)),"") -> 44.99995039 | H24: =IFERROR(IF(B24="","",G24-6.5),"") -> 38.49995039 | I24: =IF(OR(B24<$AE$23,B24>$AE$24),"",IF(B24="","",IF(B24=0,,IFERROR((V24*($I$7-$I$6)),"")))) -> -382.5111661 | J24: =IF(OR(B24<$AE$23,B24>$AE$24),"",IFERROR(Y24*($I$8-$I$6),"")) -> -1022.003218 | K24: =IF(OR(B24<$AE$23,B24>$AE$24),"",IFERROR(X24*($I$8-$I$6),"")) -> -694.9828254 | L24: =IF(OR(B24<$AE$23,B24>$AE$24),"",IF(D24=0,,IFERROR((W24*($N$7-$N$6)),""))) -> 1034.084536 | M24: =IF(OR(B24<$AE$23,B24>$AE$24),"",IF(IFERROR(IF(I24=0,,$I$7-((I24/(4.2*$I$13/3.6)))),)=0,"",IFERROR(IF(I24=0,,$I$7-((I24/(4.2*$I$13/3.6)))),))) -> 17.63933357 | N24: 10.38001379 | O24: =IF(OR(B24<$AE$23,B24>$AE$24),"",IF(B24="","",IFERROR(IF(L24=0,,($N$7-((L24/(4.2*$N$13/3.6))))),))) -> 47.61368189 | P24: =IFERROR(BM24,"") -> 0.474060646 | Q24: 13.56447771 | S24: =IFERROR(P24*1000/15/60,"") -> 0.5267340511 | T24: =IFERROR(BR24,"") -> 13.56447771 | U24: =IFERROR(CB24,"") ->  | V24: ='Master-Auswertung_V52-V67'!M254 -> 38.25111661 | W24: ='Heizen_Auswertung_V78-V85'!M254 -> 31.33589502 | X24: ='Master-Auswertung_V52-V67'!N254 -> 34.74914127 | Y24: ='Master-Auswertung_V52-V67'!O254 -> 51.10016089 | Z24: ='Master-Auswertung_V52-V67'!Q254 -> 6.164268269 | AA24: 5.95545495 | AB24: =AB74 -> 1205.754442 | AC24: =AC74*$AG$12 -> 272.3301058 | AD24: =AD74 -> 307.1907027 | AE24: =IF($AF$7=1,AC24,AB24) -> 272.3301058 | AF24: =IF($AF$7=1,"m³/h","1/min") -> m³/h | AH24: =AH74 -> 231.008269 | BC24: Dichte | BD24: =dichteLuft(BD21,Torr_in_Pa(BD22),BD23) ->  | BE24: kg/m³ | BI24: -327.0203925 | BJ24: 44.75053367 | BK24: 2.483381447 | BL24: 2483381.447 | BM24: 0.474060646 | BR24: 13.56447771 | BS24: =dichteLuft(0,Torr_in_Pa($BD$22),BR24) ->  | BT24: 999.3316454
A25: =IF(B25="","",4) -> 4 | B25: 209.7212936 | C25: =IF(B25="","",'Master-Auswertung_V52-V67'!C255) -> 965.9194312 | D25: =IF(B25="","",IF($AF$7=1,B25,C25)) -> 209.7212936 | E25: =IF(B25="","",IF($AF$7=1,C25,B25)) -> 965.9194312 | F25: 7.73747738 | G25: =IFERROR(IF(OR(B25="",B25=0,$AU$10*LN(E25)+$AV$10+10*LOG($AF$12/$AF$10)<20),"<20",$AU$10*LN(E25)+$AV$10+10*LOG($AF$12/$AF$10)),"") -> 49.99980611 | H25: =IFERROR(IF(B25="","",G25-6.5),"") -> 43.49980611 | I25: =IF(OR(B25<$AE$23,B25>$AE$24),"",IF(B25="","",IF(B25=0,,IFERROR((V25*($I$7-$I$6)),"")))) -> -447.5887268 | J25: =IF(OR(B25<$AE$23,B25>$AE$24),"",IFERROR(Y25*($I$8-$I$6),"")) -> -1161.646293 | K25: =IF(OR(B25<$AE$23,B25>$AE$24),"",IFERROR(X25*($I$8-$I$6),"")) -> -807.9582645 | L25: =IF(OR(B25<$AE$23,B25>$AE$24),"",IF(D25=0,,IFERROR((W25*($N$7-$N$6)),""))) -> 1161.962253 | M25: =IF(OR(B25<$AE$23,B25>$AE$24),"",IF(IFERROR(IF(I25=0,,$I$7-((I25/(4.2*$I$13/3.6)))),)=0,"",IFERROR(IF(I25=0,,$I$7-((I25/(4.2*$I$13/3.6)))),))) -> 17.9182374 | N25: 10.97848411 | O25: =IF(OR(B25<$AE$23,B25>$AE$24),"",IF(B25="","",IFERROR(IF(L25=0,,($N$7-((L25/(4.2*$N$13/3.6))))),))) -> 46.70026962 | P25: =IFERROR(BM25,"") -> 0.5127190209 | Q25: 14.44240014 | S25: =IFERROR(P25*1000/15/60,"") -> 0.569687801 | T25: =IFERROR(BR25,"") -> 14.44240014 | U25: =IFERROR(CB25,"") ->  | V25: ='Master-Auswertung_V52-V67'!M255 -> 44.75887268 | W25: ='Heizen_Auswertung_V78-V85'!M255 -> 35.21097738 | X25: ='Master-Auswertung_V52-V67'!N255 -> 40.39791322 | Y25: ='Master-Auswertung_V52-V67'!O255 -> 58.08231467 | Z25: ='Master-Auswertung_V52-V67'!Q255 -> 7.73747738 | AA25: 10.18765557 | AE25: =AVERAGE(AE23:AE24) -> 163.0374931 | BC25: Verdampfungsenthalpie | BD25: =50.09-0.9298*(273.15+BD32)/1000-65.19*((273.15+BD32)/1000)^2 ->  | BE25: kJ/mol | BI25: -353.6880289 | BJ25: 44.75053367 | BK25: 2.483381447 | BL25: 2483381.447 | BM25: 0.5127190209 | BR25: =K25*3/D25+$BD$23 -> 14.44240014 | BS25: =dichteLuft(0,Torr_in_Pa($BD$22),BR25) ->  | BT25: 999.208694
A27: =IF(OR(B22<B28,B23<B28,B24<B28,B25<B28,B22>B29,B23>B29,B24>B29,B25>B29),"Grenzwerte","") ->  | J27: DpK = | K27: ='Master-Auswertung_V52-V67'!D247 -> 19.53333204 | L27: [kPa] | M27: DpH = | N27: ='Heizen_Auswertung_V78-V85'!D247 -> 4.135467802 | O27: [kPa] | BC27: molare Masse Wasser | BD27: 18.02 | BE27: g/mol
A28: Minimal | B28: =AE23 -> 53.74488048 | C28: =AF23 -> m³/h | BC28: Verdampfungsenthalpie | BD28: =BD25/BD27 ->  | BE28: kJ/g
A29: Maximal | B29: =AE24 -> 272.3301058 | C29: =AF24 -> m³/h | BC29: Verdampfungsenthalpie | BD29: =BD28*1000000 ->  | BE29: J/kg
A32: Baugröße 800 | BC32: Taupunkttemperatur | BD32: =td_T_grad_rf_prozent(BD23,BD21) ->  | BE32: °C
A34: =L_Auslegung -> Auslegung | B34: =IF($AF$7=1,$AE$1,$AF$1) -> Volumenstrom | C34: =IF($AF$7=2,$AE$1,$AF$1) -> Drehzahl | D34: =L_Volumenstrom -> Volumenstrom | E34: =L_Drehzahl -> Drehzahl | F34: =L_Steuerspannung -> Steuerspannung (mit Filter) | G34: LWA | H34: LA18 | I34: QSK1) | J34: QTotal2) | K34: QSensibel,K2) | L34: QSH | M34: tKWRL | N34: tKWRL2) | O34: tWWRL | P34: =P20 -> Kondensat² | Q34: =Q20 -> Zulufttemp.² | S34: Tropfen | T34: Zulufttemp. | U34: Taupunkt nach WT | V34: qSK1) | W34: qSH1) | X34: qSK2) | Y34: qtotal2) | Z34: Steuerspannung (mit Filter) | AA34: dp / rho | BC34: phi_x (kg_H20/kg_Gesamt Wassergehalt) | BD34: =phi_x($BD$21,Torr_in_Pa($BD$22),$BD$23) ->  | BE34: kg_H20/kg_Gesamt | BH34: Wassermenge Gesamt in der Luft | BI34: latente Leistung | BM34: Kondensatmenge | BR34: Zulufttemperatur | CB34: Taupunkt im Kasten
B35: =IF($AF$7=1,$AE$2,$AF$2) -> [m³/h] | C35: =IF($AF$7=2,$AE$2,$AF$2) -> [1/min] | D35: [m³/h] | E35: [1/min] | F35: [V] | G35: [dB(A)] | H35: [dB(A)] | I35: [W] | J35: [W] | K35: [W] | L35: [W] | M35: [°C] | N35: [°C] | O35: [°C] | P35: [kg/h] bzw. [l / h] | Q35: [°C] | S35: [Anzahl / min] | T35: =BR35 -> [°C] | U35: [°C] | V35: [W] | W35: [W] | X35: [W] | Y35: [W] | Z35: [V] | AA35: [(Pa*m³)/kg] | AB35: Grenzen der Auslegung | AE35: Abhängig von Abfrage | AH35: heizen | BH35: kg H20 / h | BI35: W bzw. J / s | BM35: kg / h bzw.l / h | BR35: [°C] | CB35: [°C]
A36: =IF(B36="","",1) -> 1 | B36: 139.6940228 | C36: =IF(B36="","",'Master-Auswertung_V52-V67'!C238) -> 517.5437059 | D36: =IF(B36="","",IF($AF$7=1,B36,C36)) -> 139.6940228 | E36: =IF(B36="","",IF($AF$7=1,C36,B36)) -> 517.5437059 | F36: =Z36 -> 3.666251121 | G36: =IFERROR(IF(OR(B36="",B36=0,$AU$10*LN(E36)+$AV$10+10*LOG($AF$13/$AF$10)<20),"<20",$AU$10*LN(E36)+$AV$10+10*LOG($AF$13/$AF$10)),"") -> 35.00039037 | H36: =IFERROR(IF(B36="","",G36-6.5),"") -> 28.50039037 | I36: =IF(OR(B36<$AE$73,B36>$AE$74),"",IF(B36="","",IF(B36=0,,IFERROR((V36*($I$7-$I$6)),"")))) -> -352.1877488 | J36: =IF(OR(B36<$AE$73,B36>$AE$74),"",IFERROR(Y36*($I$8-$I$6),"")) -> -1011.279692 | K36: =IF(OR(B36<$AE$73,B36>$AE$74),"",IFERROR(X36*($I$8-$I$6),"")) -> -657.8312461 | L36: =IF(OR(B36<$AE$73,B36>$AE$74),"",IF(D36=0,,IFERROR((W36*($N$7-$N$6)),""))) -> 994.8605057 | M36: =IF(OR(B36<$AE$73,B36>$AE$74),"",IF(IFERROR(IF(I36=0,,$I$7-((I36/(4.2*$I$13/3.6)))),)=0,"",IFERROR(IF(I36=0,,$I$7-((I36/(4.2*$I$13/3.6)))),))) -> 17.50937607 | N36: =IF(OR(B36<$AE$37,B36>$AE$38),"",IF(IFERROR(IF(J36=0,,$I$8-((J36/(4.2*$I$13/3.6)))),)=0,"",IFERROR(IF(J36=0,,$I$8-((J36/(4.2*$I$13/3.6)))),))) -> 10.33405582 | O36: =IF(OR(B36<$AE$73,B36>$AE$74),"",IF(B36="","",IFERROR(IF(L36=0,,($N$7-((L36/(4.2*$N$13/3.6))))),))) -> 47.89385353 | P36: =IFERROR(BM36,"") -> 0.5123717123 | Q36: =T36 -> 11.87274031 | S36: =IFERROR(P36*1000/15/60,"") -> 0.5693019025 | T36: =IFERROR(BR36,"") -> 11.87274031 | U36: =IFERROR(CB36,"") ->  | V36: ='Master-Auswertung_V52-V67'!M238 -> 35.21877488 | W36: ='Heizen_Auswertung_V78-V85'!M266 -> 30.14728805 | X36: ='Master-Auswertung_V52-V67'!N238 -> 32.8915623 | Y36: ='Master-Auswertung_V52-V67'!O238 -> 50.56398458 | Z36: ='Master-Auswertung_V52-V67'!Q238 -> 3.666251121 | AA36: =IF(B36="","",$AW$10*E36^$AX$10) -> 1.745563662 | AB36: =$AB$72 -> Drehzahl [1/min] | AC36: =$AC$72 -> Volumenstrom [m³/h] | AD36: =$AD$72 -> Wasser-Massenstrom [kg/h] kühlen | AE36: =IF($AF$7=1,AC36,AB36) -> Volumenstrom [m³/h] | AF36: Einheit | AH36: =$AD$72 -> Wasser-Massenstrom [kg/h] kühlen | BC36: universelle Gaskonstante | BD36: 8.3144598 | BE36: J/ mol K | BH36: =$BD$34*(D36*$BD$24) ->  | BI36: =J36-K36 -> -353.4484456 | BJ36: =50.09-0.9298*(273.15+$I$8)/1000-65.19*((273.15+$I$8)/1000)^2 -> 44.75053367 | BK36: =BJ36/$BD$27 -> 2.483381447 | BL36: =BK36*1000000 -> 2483381.447 | BM36: =ABS(BI36)/BL36*3600 -> 0.5123717123 | BN36: =BH36/$BD$39 ->  | BO36: =D36-BN36 ->  | BP36: =BO36*$BD$38 ->  | BQ36: =BH36-BM36 ->  | BR36: =K36*3/D36+$BD$23 -> 11.87274031 | BS36: =dichteLuft(0,Torr_in_Pa($BD$22),BR36) ->  | BT36: =999.972-7*10^(-3)*(BR36-4)^2 -> 999.5381397 | BU36: =BP36/BS36*$BD$38 ->  | BV36: =BQ36/BT36*$BD$38 ->  | BW36: =BQ36+BP36 ->  | BX36: =BU36+BV36 ->  | BY36: =BW36/BX36 ->  | BZ36: =BQ36/BX36/BY36 ->  | CA36: =rf_prozent_von_T_grad_x_hf_gH2O_kg_trLuft(BR36,BZ36*1000) ->  | CB36: =td_T_grad_rf_prozent(BR36,CA36) -> 
A37: =IF(B37="","",2) -> 2 | B37: 174.7395212 | C37: =IF(B37="","",'Master-Auswertung_V52-V67'!C239) -> 625.7782926 | D37: =IF(B37="","",IF($AF$7=1,B37,C37)) -> 174.7395212 | E37: =IF(B37="","",IF($AF$7=1,C37,B37)) -> 625.7782926 | F37: 4.601953103 | G37: =IFERROR(IF(OR(B37="",B37=0,$AU$10*LN(E37)+$AV$10+10*LOG($AF$13/$AF$10)<20),"<20",$AU$10*LN(E37)+$AV$10+10*LOG($AF$13/$AF$10)),"") -> 40.00035338 | H37: =IFERROR(IF(B37="","",G37-6.5),"") -> 33.50035338 | I37: =IF(OR(B37<$AE$73,B37>$AE$74),"",IF(B37="","",IF(B37=0,,IFERROR((V37*($I$7-$I$6)),"")))) -> -421.3366989 | J37: =IF(OR(B37<$AE$73,B37>$AE$74),"",IFERROR(Y37*($I$8-$I$6),"")) -> -1171.738575 | K37: =IF(OR(B37<$AE$73,B37>$AE$74),"",IFERROR(X37*($I$8-$I$6),"")) -> -776.3463219 | L37: =IF(OR(B37<$AE$73,B37>$AE$74),"",IF(D37=0,,IFERROR((W37*($N$7-$N$6)),""))) -> 1151.267919 | M37: =IF(OR(B37<$AE$73,B37>$AE$74),"",IF(IFERROR(IF(I37=0,,$I$7-((I37/(4.2*$I$13/3.6)))),)=0,"",IFERROR(IF(I37=0,,$I$7-((I37/(4.2*$I$13/3.6)))),))) -> 17.80572871 | N37: =IF(OR(B37<$AE$37,B37>$AE$38),"",IF(IFERROR(IF(J37=0,,$I$8-((J37/(4.2*$I$13/3.6)))),)=0,"",IFERROR(IF(J37=0,,$I$8-((J37/(4.2*$I$13/3.6)))),))) -> 11.02173675 | O37: =IF(OR(B37<$AE$73,B37>$AE$74),"",IF(B37="","",IFERROR(IF(L37=0,,($N$7-((L37/(4.2*$N$13/3.6))))),))) -> 46.77665772 | P37: =IFERROR(BM37,"") -> 0.5731749801 | Q37: =T37 -> 12.6713669 | S37: =IFERROR(P37*1000/15/60,"") -> 0.636861089 | T37: =IFERROR(BR37,"") -> 12.6713669 | U37: =IFERROR(CB37,"") ->  | V37: ='Master-Auswertung_V52-V67'!M239 -> 42.13366989 | W37: ='Heizen_Auswertung_V78-V85'!M267 -> 34.88690664 | X37: ='Master-Auswertung_V52-V67'!N239 -> 38.8173161 | Y37: ='Master-Auswertung_V52-V67'!O239 -> 58.58692875 | Z37: ='Master-Auswertung_V52-V67'!Q239 -> 4.601953103 | AA37: =IF(B37="","",$AW$10*E37^$AX$10) -> 2.98607015 | AB37: =AB73 -> 304.104786 | AC37: =AC73*$AG$13 -> 74.69627457 | AD37: =AD73 -> 62.16736767 | AE37: =IF($AF$7=1,AC37,AB37) -> 74.69627457 | AF37: =IF($AF$7=1,"m³/h","1/min") -> m³/h | AH37: =AH73 -> 61.56286733 | BH37: =$BD$34*(D37*$BD$24) ->  | BI37: =J37-K37 -> -395.3922531 | BJ37: =50.09-0.9298*(273.15+$I$8)/1000-65.19*((273.15+$I$8)/1000)^2 -> 44.75053367 | BK37: =BJ37/$BD$27 -> 2.483381447 | BL37: =BK37*1000000 -> 2483381.447 | BM37: =ABS(BI37)/BL37*3600 -> 0.5731749801 | BN37: =BH37/$BD$39 ->  | BO37: =D37-BN37 ->  | BP37: =BO37*$BD$38 ->  | BQ37: =BH37-BM37 ->  | BR37: =K37*3/D37+$BD$23 -> 12.6713669 | BS37: =dichteLuft(0,Torr_in_Pa($BD$22),BR37) ->  | BT37: =999.972-7*10^(-3)*(BR37-4)^2 -> 999.4456518 | BU37: =BP37/BS37*$BD$38 ->  | BV37: =BQ37/BT37*$BD$38 ->  | BW37: =BQ37+BP37 ->  | BX37: =BU37+BV37 ->  | BY37: =BW37/BX37 ->  | BZ37: =BQ37/BX37/BY37 ->  | CA37: =rf_prozent_von_T_grad_x_hf_gH2O_kg_trLuft(BR37,BZ37*1000) ->  | CB37: =td_T_grad_rf_prozent(BR37,CA37) -> 
A38: =IF(B38="","",3) -> 3 | B38: 218.5752724 | C38: =IF(B38="","",'Master-Auswertung_V52-V67'!C240) -> 756.6430487 | D38: =IF(B38="","",IF($AF$7=1,B38,C38)) -> 218.5752724 | E38: =IF(B38="","",IF($AF$7=1,C38,B38)) -> 756.6430487 | F38: 5.776418965 | G38: =IFERROR(IF(OR(B38="",B38=0,$AU$10*LN(E38)+$AV$10+10*LOG($AF$13/$AF$10)<20),"<20",$AU$10*LN(E38)+$AV$10+10*LOG($AF$13/$AF$10)),"") -> 45.00013997 | H38: =IFERROR(IF(B38="","",G38-6.5),"") -> 38.50013997 | I38: =IF(OR(B38<$AE$73,B38>$AE$74),"",IF(B38="","",IF(B38=0,,IFERROR((V38*($I$7-$I$6)),"")))) -> -498.2856338 | J38: =IF(OR(B38<$AE$73,B38>$AE$74),"",IFERROR(Y38*($I$8-$I$6),"")) -> -1342.874568 | K38: =IF(OR(B38<$AE$73,B38>$AE$74),"",IFERROR(X38*($I$8-$I$6),"")) -> -907.7135053 | L38: =IF(OR(B38<$AE$73,B38>$AE$74),"",IF(D38=0,,IFERROR((W38*($N$7-$N$6)),""))) -> 1309.96768 | M38: =IF(OR(B38<$AE$73,B38>$AE$74),"",IF(IFERROR(IF(I38=0,,$I$7-((I38/(4.2*$I$13/3.6)))),)=0,"",IFERROR(IF(I38=0,,$I$7-((I38/(4.2*$I$13/3.6)))),))) -> 18.13550986 | N38: 11.75517672 | O38: =IF(OR(B38<$AE$73,B38>$AE$74),"",IF(B38="","",IFERROR(IF(L38=0,,($N$7-((L38/(4.2*$N$13/3.6))))),))) -> 45.643088 | P38: =IFERROR(BM38,"") -> 0.6308252913 | Q38: 13.54140628 | S38: =IFERROR(P38*1000/15/60,"") -> 0.7009169903 | T38: =IFERROR(BR38,"") -> 13.54140628 | U38: =IFERROR(CB38,"") ->  | V38: ='Master-Auswertung_V52-V67'!M240 -> 49.82856338 | W38: ='Heizen_Auswertung_V78-V85'!M268 -> 39.6959903 | X38: ='Master-Auswertung_V52-V67'!N240 -> 45.38567527 | Y38: ='Master-Auswertung_V52-V67'!O240 -> 67.14372838 | Z38: ='Master-Auswertung_V52-V67'!Q240 -> 5.776418965 | AA38: 5.108061206 | AB38: =AB74 -> 1205.754442 | AC38: =AC74*$AG$13 -> 378.4926894 | AD38: =AD74 -> 307.1907027 | AE38: =IF($AF$7=1,AC38,AB38) -> 378.4926894 | AF38: =IF($AF$7=1,"m³/h","1/min") -> m³/h | AH38: =AH74 -> 231.008269 | BC38: Dichte Luft_Trocken (T_Anszaug_Druck) | BD38: =dichteLuft(0,Torr_in_Pa(BD22),BD23) ->  | BE38: kg/m³ | BI38: -435.1610623 | BJ38: 44.75053367 | BK38: 2.483381447 | BL38: 2483381.447 | BM38: 0.6308252913 | BR38: 13.54140628 | BS38: =dichteLuft(0,Torr_in_Pa($BD$22),BR38) ->  | BT38: 999.334731
A39: =IF(B39="","",4) -> 4 | B39: 273.4084508 | C39: =IF(B39="","",'Master-Auswertung_V52-V67'!C241) -> 914.8764813 | D39: =IF(B39="","",IF($AF$7=1,B39,C39)) -> 273.4084508 | E39: =IF(B39="","",IF($AF$7=1,C39,B39)) -> 914.8764813 | F39: 7.250637889 | G39: =IFERROR(IF(OR(B39="",B39=0,$AU$10*LN(E39)+$AV$10+10*LOG($AF$13/$AF$10)<20),"<20",$AU$10*LN(E39)+$AV$10+10*LOG($AF$13/$AF$10)),"") -> 49.99997895 | H39: =IFERROR(IF(B39="","",G39-6.5),"") -> 43.49997895 | I39: =IF(OR(B39<$AE$73,B39>$AE$74),"",IF(B39="","",IF(B39=0,,IFERROR((V39*($I$7-$I$6)),"")))) -> -580.8503397 | J39: =IF(OR(B39<$AE$73,B39>$AE$74),"",IFERROR(Y39*($I$8-$I$6),"")) -> -1519.939146 | K39: =IF(OR(B39<$AE$73,B39>$AE$74),"",IFERROR(X39*($I$8-$I$6),"")) -> -1050.017025 | L39: =IF(OR(B39<$AE$73,B39>$AE$74),"",IF(D39=0,,IFERROR((W39*($N$7-$N$6)),""))) -> 1465.68819 | M39: =IF(OR(B39<$AE$73,B39>$AE$74),"",IF(IFERROR(IF(I39=0,,$I$7-((I39/(4.2*$I$13/3.6)))),)=0,"",IFERROR(IF(I39=0,,$I$7-((I39/(4.2*$I$13/3.6)))),))) -> 18.4893586 | N39: 12.51402491 | O39: =IF(OR(B39<$AE$73,B39>$AE$74),"",IF(B39="","",IFERROR(IF(L39=0,,($N$7-((L39/(4.2*$N$13/3.6))))),))) -> 44.53079864 | P39: =IFERROR(BM39,"") -> 0.681216186 | Q39: 14.47858921 | S39: =IFERROR(P39*1000/15/60,"") -> 0.7569068733 | T39: =IFERROR(BR39,"") -> 14.47858921 | U39: =IFERROR(CB39,"") ->  | V39: ='Master-Auswertung_V52-V67'!M241 -> 58.08503397 | W39: ='Heizen_Auswertung_V78-V85'!M269 -> 44.41479363 | X39: ='Master-Auswertung_V52-V67'!N241 -> 52.50085124 | Y39: ='Master-Auswertung_V52-V67'!O241 -> 75.99695732 | Z39: ='Master-Auswertung_V52-V67'!Q241 -> 7.250637889 | AA39: 8.738051943 | AE39: =AVERAGE(AE37:AE38) -> 226.594482 | BC39: Dichte Wasser (T_Ansuag_Druck) | BD39: =999.972-7*10^(-3)*(BD23-4)^2 -> 996.584 | BE39: kg/m³ | BI39: -469.9221215 | BJ39: 44.75053367 | BK39: 2.483381447 | BL39: 2483381.447 | BM39: 0.681216186 | BR39: 14.47858921 | BS39: =dichteLuft(0,Torr_in_Pa($BD$22),BR39) ->  | BT39: 999.2033942
A41: =IF(OR(B36<B42,B37<B42,B38<B42,B39<B42,B36>B43,B37>B43,B38>B43,B39>B43),"Grenzwerte","") ->  | J41: DpK = | K41: ='Master-Auswertung_V52-V67'!D233 -> 24.16450138 | L41: [kPa] | M41: DpH = | N41: ='Heizen_Auswertung_V78-V85'!D261 -> 5.115948329 | O41: [kPa]
A42: Minimal | B42: =AE73 -> 74.69627457 | C42: =AF73 -> m³/h
A43: Maximal | B43: =AE74 -> 378.4926894 | C43: =AF74 -> m³/h
A46: Baugröße 1000
A48: =L_Auslegung -> Auslegung | B48: =IF($AF$7=1,$AE$1,$AF$1) -> Volumenstrom | C48: =IF($AF$7=2,$AE$1,$AF$1) -> Drehzahl | D48: =L_Volumenstrom -> Volumenstrom | E48: =L_Drehzahl -> Drehzahl | F48: =F34 -> Steuerspannung (mit Filter) | G48: LWA | H48: LA18 | I48: QSK1) | J48: QTotal2) | K48: QSensibel,K2) | L48: QSH | M48: tKWRL | N48: tKWRL2) | O48: tWWRL | P48: =P20 -> Kondensat² | Q48: =Q20 -> Zulufttemp.² | S48: Tropfen | T48: Zulufttemp. | U48: Taupunkt nach WT | V48: qSK1) | W48: qSH1) | X48: qSK2) | Y48: qtotal2) | Z48: Steuerspannung (mit Filter) | AA48: dp / rho | BH48: Wassermenge Gesamt in der Luft | BI48: latente Leistung | BM48: Kondensatmenge | BR48: Zulufttemperatur | CB48: Taupunkt im Kasten
B49: =IF($AF$7=1,$AE$2,$AF$2) -> [m³/h] | C49: =IF($AF$7=2,$AE$2,$AF$2) -> [1/min] | D49: [m³/h] | E49: [1/min] | F49: [V] | G49: [dB(A)] | H49: [dB(A)] | I49: [W] | J49: [W] | K49: [W] | L49: [W] | M49: [°C] | N49: [°C] | O49: [°C] | P49: [kg/h] bzw. [l / h] | Q49: [°C] | S49: [Anzahl / min] | T49: =BR49 -> [°C] | U49: [°C] | V49: [W] | W49: [W] | X49: [W] | Y49: [W] | Z49: [V] | AA49: [(Pa*m³)/kg] | AB49: Grenzen der Auslegung | AE49: Abhängig von Abfrage | AH49: heizen | BH49: kg H20 / h | BI49: W bzw. J / s | BM49: kg / h bzw.l / h | BR49: [°C] | CB49: [°C]
A50: =IF(B50="","",1) -> 1 | B50: 166.543386 | C50: =IF(B50="","",'Master-Auswertung_V52-V67'!C280) -> 499.2358091 | D50: =IF(B50="","",IF($AF$7=1,B50,C50)) -> 166.543386 | E50: =IF(B50="","",IF($AF$7=1,C50,B50)) -> 499.2358091 | F50: =Z50 -> 3.511556923 | G50: =IFERROR(IF(OR(B50="",B50=0,$AU$10*LN(E50)+$AV$10+10*LOG($AF$14/$AF$10)<20),"<20",$AU$10*LN(E50)+$AV$10+10*LOG($AF$14/$AF$10)),"") -> 34.99999783 | H50: =IFERROR(IF(B50="","",G50-6.5),"") -> 28.49999783 | I50: =IF(OR(B50<$AE$51,B50>$AE$52),"",IF(B50="","",IF(B50=0,,IFERROR((V50*($I$7-$I$6)),"")))) -> -417.1163211 | J50: =IF(OR(B50<$AE$51,B50>$AE$52),"",IFERROR(Y50*($I$8-$I$6),"")) -> -1204.891431 | K50: =IF(OR(B50<$AE$51,B50>$AE$52),"",IFERROR(X50*($I$8-$I$6),"")) -> -781.2118526 | L50: =IF(OR(B50<$AE$51,B50>$AE$52),"",IF(D50=0,,IFERROR((W50*($N$7-$N$6)),""))) -> 1160.665428 | M50: =IF(OR(B50<$AE$51,B50>$AE$52),"",IF(IFERROR(IF(I50=0,,$I$7-((I50/(4.2*$I$13/3.6)))),)=0,"",IFERROR(IF(I50=0,,$I$7-((I50/(4.2*$I$13/3.6)))),))) -> 17.78764138 | N50: =IF(OR(B50<$AE$51,B50>$AE$52),"",IF(IFERROR(IF(J50=0,,$I$8-((J50/(4.2*$I$13/3.6)))),)=0,"",IFERROR(IF(J50=0,,$I$8-((J50/(4.2*$I$13/3.6)))),))) -> 11.16382042 | O50: =IF(OR(B50<$AE$51,B50>$AE$52),"",IF(B50="","",IFERROR(IF(L50=0,,($N$7-((L50/(4.2*$N$13/3.6))))),))) -> 46.70953265 | P50: =IFERROR(BM50,"") -> 0.6141813141 | Q50: =T50 -> 11.92777765 | S50: =IFERROR(P50*1000/15/60,"") -> 0.6824236824 | T50: =IFERROR(BR50,"") -> 11.92777765 | U50: =IFERROR(CB50,"") ->  | V50: ='Master-Auswertung_V52-V67'!M280 -> 41.71163211 | W50: ='Heizen_Auswertung_V78-V85'!M280 -> 35.17167965 | X50: ='Master-Auswertung_V52-V67'!N280 -> 39.06059263 | Y50: ='Master-Auswertung_V52-V67'!O280 -> 60.24457153 | Z50: ='Master-Auswertung_V52-V67'!Q280 -> 3.511556923 | AA50: =IF(B50="","",$AW$10*E50^$AX$10) -> 1.576578087 | AB50: =$AB$72 -> Drehzahl [1/min] | AC50: =$AC$72 -> Volumenstrom [m³/h] | AD50: =$AD$72 -> Wasser-Massenstrom [kg/h] kühlen | AE50: =IF($AF$7=1,AC50,AB50) -> Volumenstrom [m³/h] | AF50: Einheit | AH50: =AH72 -> Wasser-Massenstrom [kg/h] heizen | BH50: =$BD$34*(D50*$BD$24) ->  | BI50: =J50-K50 -> -423.6795779 | BJ50: =50.09-0.9298*(273.15+$I$8)/1000-65.19*((273.15+$I$8)/1000)^2 -> 44.75053367 | BK50: =BJ50/$BD$27 -> 2.483381447 | BL50: =BK50*1000000 -> 2483381.447 | BM50: =ABS(BI50)/BL50*3600 -> 0.6141813141 | BN50: =BH50/$BD$39 ->  | BO50: =D50-BN50 ->  | BP50: =BO50*$BD$38 ->  | BQ50: =BH50-BM50 ->  | BR50: =K50*3/D50+$BD$23 -> 11.92777765 | BS50: =dichteLuft(0,Torr_in_Pa($BD$22),BR50) ->  | BT50: =999.972-7*10^(-3)*(BR50-4)^2 -> 999.5320524 | BU50: =BP50/BS50*$BD$38 ->  | BV50: =BQ50/BT50*$BD$38 ->  | BW50: =BQ50+BP50 ->  | BX50: =BU50+BV50 ->  | BY50: =BW50/BX50 ->  | BZ50: =BQ50/BX50/BY50 ->  | CA50: =rf_prozent_von_T_grad_x_hf_gH2O_kg_trLuft(BR50,BZ50*1000) ->  | CB50: =td_T_grad_rf_prozent(BR50,CA50) -> 
A51: =IF(B51="","",2) -> 2 | B51: 208.3250206 | C51: =IF(B51="","",'Master-Auswertung_V52-V67'!C281) -> 603.642498 | D51: =IF(B51="","",IF($AF$7=1,B51,C51)) -> 208.3250206 | E51: =IF(B51="","",IF($AF$7=1,C51,B51)) -> 603.642498 | F51: 4.40778528 | G51: =IFERROR(IF(OR(B51="",B51=0,$AU$10*LN(E51)+$AV$10+10*LOG($AF$14/$AF$10)<20),"<20",$AU$10*LN(E51)+$AV$10+10*LOG($AF$14/$AF$10)),"") -> 39.9999982 | H51: =IFERROR(IF(B51="","",G51-6.5),"") -> 33.4999982 | I51: =IF(OR(B51<$AE$51,B51>$AE$52),"",IF(B51="","",IF(B51=0,,IFERROR((V51*($I$7-$I$6)),"")))) -> -499.0413901 | J51: =IF(OR(B51<$AE$51,B51>$AE$52),"",IFERROR(Y51*($I$8-$I$6),"")) -> -1396.305056 | K51: =IF(OR(B51<$AE$51,B51>$AE$52),"",IFERROR(X51*($I$8-$I$6),"")) -> -921.7924152 | L51: =IF(OR(B51<$AE$51,B51>$AE$52),"",IF(D51=0,,IFERROR((W51*($N$7-$N$6)),""))) -> 1340.887675 | M51: =IF(OR(B51<$AE$51,B51>$AE$52),"",IF(IFERROR(IF(I51=0,,$I$7-((I51/(4.2*$I$13/3.6)))),)=0,"",IFERROR(IF(I51=0,,$I$7-((I51/(4.2*$I$13/3.6)))),))) -> 18.13874881 | N51: =IF(OR(B51<$AE$51,B51>$AE$52),"",IF(IFERROR(IF(J51=0,,$I$8-((J51/(4.2*$I$13/3.6)))),)=0,"",IFERROR(IF(J51=0,,$I$8-((J51/(4.2*$I$13/3.6)))),))) -> 11.98416453 | O51: =IF(OR(B51<$AE$51,B51>$AE$52),"",IF(B51="","",IFERROR(IF(L51=0,,($N$7-((L51/(4.2*$N$13/3.6))))),))) -> 45.42223089 | P51: =IFERROR(BM51,"") -> 0.6878707697 | Q51: =T51 -> 12.72565956 | S51: =IFERROR(P51*1000/15/60,"") -> 0.7643008552 | T51: =IFERROR(BR51,"") -> 12.72565956 | U51: =IFERROR(CB51,"") ->  | V51: ='Master-Auswertung_V52-V67'!M281 -> 49.90413901 | W51: ='Heizen_Auswertung_V78-V85'!M281 -> 40.63295986 | X51: ='Master-Auswertung_V52-V67'!N281 -> 46.08962076 | Y51: ='Master-Auswertung_V52-V67'!O281 -> 69.8152528 | Z51: ='Master-Auswertung_V52-V67'!Q281 -> 4.40778528 | AA51: =IF(B51="","",$AW$10*E51^$AX$10) -> 2.697003695 | AB51: =AB73 -> 304.104786 | AC51: =AC73*$AG$14 -> 92.91487813 | AD51: =AD73 -> 62.16736767 | AE51: =IF($AF$7=1,AC51,AB51) -> 92.91487813 | AF51: =IF($AF$7=1,"m³/h","1/min") -> m³/h | AH51: =AH73 -> 61.56286733 | BH51: =$BD$34*(D51*$BD$24) ->  | BI51: =J51-K51 -> -474.5126409 | BJ51: =50.09-0.9298*(273.15+$I$8)/1000-65.19*((273.15+$I$8)/1000)^2 -> 44.75053367 | BK51: =BJ51/$BD$27 -> 2.483381447 | BL51: =BK51*1000000 -> 2483381.447 | BM51: =ABS(BI51)/BL51*3600 -> 0.6878707697 | BN51: =BH51/$BD$39 ->  | BO51: =D51-BN51 ->  | BP51: =BO51*$BD$38 ->  | BQ51: =BH51-BM51 ->  | BR51: =K51*3/D51+$BD$23 -> 12.72565956 | BS51: =dichteLuft(0,Torr_in_Pa($BD$22),BR51) ->  | BT51: =999.972-7*10^(-3)*(BR51-4)^2 -> 999.4390401 | BU51: =BP51/BS51*$BD$38 ->  | BV51: =BQ51/BT51*$BD$38 ->  | BW51: =BQ51+BP51 ->  | BX51: =BU51+BV51 ->  | BY51: =BW51/BX51 ->  | BZ51: =BQ51/BX51/BY51 ->  | CA51: =rf_prozent_von_T_grad_x_hf_gH2O_kg_trLuft(BR51,BZ51*1000) ->  | CB51: =td_T_grad_rf_prozent(BR51,CA51) -> 
A52: =IF(B52="","",3) -> 3 | B52: 260.5886916 | C52: =IF(B52="","",'Master-Auswertung_V52-V67'!C282) -> 729.8841983 | D52: =IF(B52="","",IF($AF$7=1,B52,C52)) -> 260.5886916 | E52: =IF(B52="","",IF($AF$7=1,C52,B52)) -> 729.8841983 | F52: 5.532752428 | G52: =IFERROR(IF(OR(B52="",B52=0,$AU$10*LN(E52)+$AV$10+10*LOG($AF$14/$AF$10)<20),"<20",$AU$10*LN(E52)+$AV$10+10*LOG($AF$14/$AF$10)),"") -> 45.00000311 | H52: 38.50000311 | I52: =IF(OR(B52<$AE$51,B52>$AE$52),"",IF(B52="","",IF(B52=0,,IFERROR((V52*($I$7-$I$6)),"")))) -> -589.3734768 | J52: =IF(OR(B52<$AE$51,B52>$AE$52),"",IFERROR(Y52*($I$8-$I$6),"")) -> -1597.63537 | K52: =IF(OR(B52<$AE$51,B52>$AE$52),"",IFERROR(X52*($I$8-$I$6),"")) -> -1075.704708 | L52: =IF(OR(B52<$AE$51,B52>$AE$52),"",IF(D52=0,,IFERROR((W52*($N$7-$N$6)),""))) -> 1522.902396 | M52: =IF(OR(B52<$AE$51,B52>$AE$52),"",IF(IFERROR(IF(I52=0,,$I$7-((I52/(4.2*$I$13/3.6)))),)=0,"",IFERROR(IF(I52=0,,$I$7-((I52/(4.2*$I$13/3.6)))),))) -> 18.52588633 | N52: 12.84700873 | O52: =IF(OR(B52<$AE$51,B52>$AE$52),"",IF(B52="","",IFERROR(IF(L52=0,,($N$7-((L52/(4.2*$N$13/3.6))))),))) -> 44.12212574 | P52: =IFERROR(BM52,"") -> 0.7566096564 | Q52: 13.6160623 | S52: =IFERROR(P52*1000/15/60,"") -> 0.840677396 | T52: =IFERROR(BR52,"") -> 13.6160623 | U52: =IFERROR(CB52,"") ->  | V52: ='Master-Auswertung_V52-V67'!M282 -> 58.93734768 | W52: ='Heizen_Auswertung_V78-V85'!M282 -> 46.14855746 | X52: ='Master-Auswertung_V52-V67'!N282 -> 53.78523538 | Y52: ='Master-Auswertung_V52-V67'!O282 -> 79.88176848 | Z52: ='Master-Auswertung_V52-V67'!Q282 -> 5.532752428 | AA52: 4.613683611 | AB52: =AB74 -> 1205.754442 | AC52: =AC74*$AG$14 -> 470.8079795 | AD52: =AD74 -> 307.1907027 | AE52: =IF($AF$7=1,AC52,AB52) -> 470.8079795 | AF52: =IF($AF$7=1,"m³/h","1/min") -> m³/h | AH52: =AH74 -> 231.008269 | BI52: -521.930662 | BJ52: 44.75053367 | BK52: 2.483381447 | BL52: 2483381.447 | BM52: 0.7566096564 | BR52: 13.6160623 | BS52: =dichteLuft(0,Torr_in_Pa($BD$22),BR52) ->  | BT52: 999.3247194
A53: =IF(B53="","",4) -> 4 | B53: 325.9639044 | C53: =IF(B53="","",'Master-Auswertung_V52-V67'!C283) -> 882.5269111 | D53: =IF(B53="","",IF($AF$7=1,B53,C53)) -> 325.9639044 | E53: =IF(B53="","",IF($AF$7=1,C53,B53)) -> 882.5269111 | F53: 6.944833778 | G53: =IFERROR(IF(OR(B53="",B53=0,$AU$10*LN(E53)+$AV$10+10*LOG($AF$14/$AF$10)<20),"<20",$AU$10*LN(E53)+$AV$10+10*LOG($AF$14/$AF$10)),"") -> 49.99999845 | H53: 43.49999845 | I53: =IF(OR(B53<$AE$51,B53>$AE$52),"",IF(B53="","",IF(B53=0,,IFERROR((V53*($I$7-$I$6)),"")))) -> -685.2662125 | J53: =IF(OR(B53<$AE$51,B53>$AE$52),"",IFERROR(Y53*($I$8-$I$6),"")) -> -1802.972372 | K53: =IF(OR(B53<$AE$51,B53>$AE$52),"",IFERROR(X53*($I$8-$I$6),"")) -> -1240.174048 | L53: =IF(OR(B53<$AE$51,B53>$AE$52),"",IF(D53=0,,IFERROR((W53*($N$7-$N$6)),""))) -> 1692.924595 | M53: =IF(OR(B53<$AE$51,B53>$AE$52),"",IF(IFERROR(IF(I53=0,,$I$7-((I53/(4.2*$I$13/3.6)))),)=0,"",IFERROR(IF(I53=0,,$I$7-((I53/(4.2*$I$13/3.6)))),))) -> 18.9368552 | N53: 13.72702445 | O53: =IF(OR(B53<$AE$51,B53>$AE$52),"",IF(B53="","",IFERROR(IF(L53=0,,($N$7-((L53/(4.2*$N$13/3.6))))),))) -> 42.90768146 | P53: =IFERROR(BM53,"") -> 0.8158529043 | Q53: 14.58609161 | S53: =IFERROR(P53*1000/15/60,"") -> 0.906503227 | T53: =IFERROR(BR53,"") -> 14.58609161 | U53: =IFERROR(CB53,"") ->  | V53: ='Master-Auswertung_V52-V67'!M283 -> 68.52662125 | W53: ='Heizen_Auswertung_V78-V85'!M283 -> 51.30074531 | X53: ='Master-Auswertung_V52-V67'!N283 -> 62.0087024 | Y53: ='Master-Auswertung_V52-V67'!O283 -> 90.14861859 | Z53: ='Master-Auswertung_V52-V67'!Q283 -> 6.944833778 | AA53: 7.892482543 | AE53: =AVERAGE(AE51:AE52) -> 281.8614288 | BI53: -562.7983239 | BJ53: 44.75053367 | BK53: 2.483381447 | BL53: 2483381.447 | BM53: 0.8158529043 | BR53: 14.58609161 | BS53: =dichteLuft(0,Torr_in_Pa($BD$22),BR53) ->  | BT53: 999.1875427
A55: =IF(OR(B50<B56,B51<B56,B52<B56,B53<B56,B50>B57,B51>B57,B52>B57,B53>B57),"Grenzwerte","") ->  | J55: DpK = | K55: ='Master-Auswertung_V52-V67'!D275 -> 28.31758797 | L55: [kPa] | M55: DpH = | N55: ='Heizen_Auswertung_V78-V85'!D275 -> 5.99521234 | O55: [kPa]
A56: Minimal | B56: =AE51 -> 92.91487813 | C56: =AF51 -> m³/h
A57: Maximal | B57: =AE52 -> 470.8079795 | C57: =AF52 -> m³/h
A60: Baugröße 1200
A62: Auslegung | B62: =IF($AF$7=1,$AE$1,$AF$1) -> Volumenstrom | C62: =IF($AF$7=2,$AE$1,$AF$1) -> Drehzahl | D62: Volumenstrom | E62: Drehzahl | F62: dp / rho | G62: LWA | H62: LA18 | I62: QSK1) | J62: QTotal2) | K62: QSensibel,K2) | L62: QSH | M62: tKWRL | N62: tKWRL2) | O62: tWWRL | V62: qSK1) | W62: qSH1) | X62: qSK2) | Y62: qtotal2) | Z62: Steuer-spannung
B63: =IF($AF$7=1,$AE$2,$AF$2) -> [m³/h] | C63: =IF($AF$7=2,$AE$2,$AF$2) -> [1/min] | D63: [m³/h] | E63: [1/min] | F63: [(Pa*m³)/kg] | G63: [dB(A)] | H63: [dB(A)] | I63: [W] | J63: [W] | K63: [W] | L63: [W] | M63: [°C] | N63: [°C] | O63: [°C] | V63: [W] | W63: [W] | X63: [W] | Y63: [W] | Z63: [V] | AB63: Grenzen der Auslegung | AE63: Abhängig von Abfrage | AH63: heizen
A64: =IF(B64="","",1) -> 1 | B64: 161.3632361 | C64: =IF(B64="","",'Master-Auswertung_V52-V67'!C294) -> 486.0306263 | D64: =IF(B64="","",IF($AF$7=1,B64,C64)) -> 161.3632361 | E64: =IF(B64="","",IF($AF$7=1,C64,B64)) -> 486.0306263 | F64: =IF(B64="","",$AW$10*E64^$AX$10) -> 1.461509424 | G64: =IFERROR(IF(OR(B64="",B64=0,$AU$10*LN(E64)+$AV$10+10*LOG($AF$18/$AF$10)<20),"<20",$AU$10*LN(E64)+$AV$10+10*LOG($AF$18/$AF$10)),"") -> 35.0000054 | H64: =IFERROR(IF(B64="","",G64-6.5),"") -> 28.5000054 | I64: =IF(OR(B64<$AE$51,B64>$AE$52),"",IF(B64="","",IF(B64=0,,IFERROR((V64*($I$7-$I$6)),"")))) -> -484.4911261 | J64: =IF(OR(B64<$AE$51,B64>$AE$52),"",IFERROR(Y64*($I$8-$I$6),"")) -> -1405.693279 | K64: =IF(OR(B64<$AE$51,B64>$AE$52),"",IFERROR(X64*($I$8-$I$6),"")) -> -909.2288565 | L64: =IF(OR(B64<$AE$51,B64>$AE$52),"",IF(D64=0,,IFERROR((W64*($N$7-$N$6)),""))) -> 1314.467981 | M64: =IF(OR(B64<$AE$51,B64>$AE$52),"",IF(IFERROR(IF(I64=0,,$I$7-((I64/(4.2*$I$13/3.6)))),)=0,"",IFERROR(IF(I64=0,,$I$7-((I64/(4.2*$I$13/3.6)))),))) -> 18.07639054 | N64: =IF(OR(B64<$AE$51,B64>$AE$52),"",IF(IFERROR(IF(K64=0,,$I$8-((K64/(4.2*$I$13/3.6)))),)=0,"",IFERROR(IF(K64=0,,$I$8-((K64/(4.2*$I$13/3.6)))),))) -> 9.896695099 | O64: =IF(OR(B64<$AE$51,B64>$AE$52),"",IF(B64="","",IFERROR(IF(L64=0,,($N$7-((L64/(4.2*$N$13/3.6))))),))) -> 45.61094299 | V64: ='Master-Auswertung_V52-V67'!M294 -> 48.44911261 | W64: ='Heizen_Auswertung_V78-V85'!M294 -> 39.83236307 | X64: ='Master-Auswertung_V52-V67'!N294 -> 45.46144283 | Y64: ='Master-Auswertung_V52-V67'!O294 -> 70.28466393 | Z64: ='Master-Auswertung_V52-V67'!Q294 -> 3.400668 | AB64: =$AB$72 -> Drehzahl [1/min] | AC64: =$AC$72 -> Volumenstrom [m³/h] | AD64: =$AD$72 -> Wasser-Massenstrom [kg/h] kühlen | AE64: =IF($AF$7=1,AC64,AB64) -> Volumenstrom [m³/h] | AF64: Einheit | AH64: =AH50 -> Wasser-Massenstrom [kg/h] heizen
A65: =IF(B65="","",2) -> 2 | B65: 201.8451914 | C65: =IF(B65="","",'Master-Auswertung_V52-V67'!C295) -> 587.6754105 | D65: =IF(B65="","",IF($AF$7=1,B65,C65)) -> 201.8451914 | E65: =IF(B65="","",IF($AF$7=1,C65,B65)) -> 587.6754105 | F65: =IF(B65="","",$AW$10*E65^$AX$10) -> 2.500156081 | G65: =IFERROR(IF(OR(B65="",B65=0,$AU$10*LN(E65)+$AV$10+10*LOG($AF$18/$AF$10)<20),"<20",$AU$10*LN(E65)+$AV$10+10*LOG($AF$18/$AF$10)),"") -> 39.9999939 | H65: =IF(B65="","",G65-6.5) -> 33.4999939 | I65: =IF(OR(B65<$AE$51,B65>$AE$52),"",IF(B65="","",IF(B65=0,,IFERROR((V65*($I$7-$I$6)),"")))) -> -578.7979405 | J65: =IF(OR(B65<$AE$51,B65>$AE$52),"",IFERROR(Y65*($I$8-$I$6),"")) -> -1626.821628 | K65: =IF(OR(B65<$AE$51,B65>$AE$52),"",IFERROR(X65*($I$8-$I$6),"")) -> -1071.123473 | L65: =IF(OR(B65<$AE$51,B65>$AE$52),"",IF(D65=0,,IFERROR((W65*($N$7-$N$6)),""))) -> 1514.270281 | M65: =IF(OR(B65<$AE$51,B65>$AE$52),"",IF(IFERROR(IF(I65=0,,$I$7-((I65/(4.2*$I$13/3.6)))),)=0,"",IFERROR(IF(I65=0,,$I$7-((I65/(4.2*$I$13/3.6)))),))) -> 18.4805626 | N65: =IF(OR(B65<$AE$51,B65>$AE$52),"",IF(IFERROR(IF(K65=0,,$I$8-((K65/(4.2*$I$13/3.6)))),)=0,"",IFERROR(IF(K65=0,,$I$8-((K65/(4.2*$I$13/3.6)))),))) -> 10.59052917 | O65: =IF(OR(B65<$AE$51,B65>$AE$52),"",IF(B65="","",IFERROR(IF(L65=0,,($N$7-((L65/(4.2*$N$13/3.6))))),))) -> 44.18378371 | V65: ='Master-Auswertung_V52-V67'!M295 -> 57.87979405 | W65: ='Heizen_Auswertung_V78-V85'!M295 -> 45.88697822 | X65: ='Master-Auswertung_V52-V67'!N295 -> 53.55617367 | Y65: ='Master-Auswertung_V52-V67'!O295 -> 81.34108139 | Z65: ='Master-Auswertung_V52-V67'!Q295 -> 4.268592704 | AB65: =AB51 -> 304.104786 | AC65: =AC51*$AG$14 -> 115.5770435 | AD65: =AD51 -> 62.16736767 | AE65: =IF($AF$7=1,AC65,AB65) -> 115.5770435 | AF65: =IF($AF$7=1,"m³/h","1/min") -> m³/h | AH65: =AH51 -> 61.56286733
A66: =IF(B66="","",3) -> 3 | B66: 252.4831901 | C66: =IF(B66="","",'Master-Auswertung_V52-V67'!C296) -> 710.5777642 | D66: =IF(B66="","",IF($AF$7=1,B66,C66)) -> 252.4831901 | E66: =IF(B66="","",IF($AF$7=1,C66,B66)) -> 710.5777642 | F66: =IF(B66="","",$AW$10*E66^$AX$10) -> 4.276940612 | G66: =IFERROR(IF(OR(B66="",B66=0,$AU$10*LN(E66)+$AV$10+10*LOG($AF$18/$AF$10)<20),"<20",$AU$10*LN(E66)+$AV$10+10*LOG($AF$18/$AF$10)),"") -> 44.99999517 | H66: =IF(B66="","",G66-6.5) -> 38.49999517 | I66: =IF(OR(B66<$AE$51,B66>$AE$52),"",IF(B66="","",IF(B66=0,,IFERROR((V66*($I$7-$I$6)),"")))) -> -681.4028422 | J66: =IF(OR(B66<$AE$51,B66>$AE$52),"",IFERROR(Y66*($I$8-$I$6),"")) -> -1855.220431 | K66: =IF(OR(B66<$AE$51,B66>$AE$52),"",IFERROR(X66*($I$8-$I$6),"")) -> -1245.553142 | L66: =IF(OR(B66<$AE$51,B66>$AE$52),"",IF(D66=0,,IFERROR((W66*($N$7-$N$6)),""))) -> 1716.8671 | M66: =IF(OR(B66<$AE$51,B66>$AE$52),"",IF(IFERROR(IF(I66=0,,$I$7-((I66/(4.2*$I$13/3.6)))),)=0,"",IFERROR(IF(I66=0,,$I$7-((I66/(4.2*$I$13/3.6)))),))) -> 18.9202979 | N66: =IF(OR(B66<$AE$51,B66>$AE$52),"",IF(IFERROR(IF(K66=0,,$I$8-((K66/(4.2*$I$13/3.6)))),)=0,"",IFERROR(IF(K66=0,,$I$8-((K66/(4.2*$I$13/3.6)))),))) -> 11.33808489 | O66: =IF(OR(B66<$AE$51,B66>$AE$52),"",IF(B66="","",IFERROR(IF(L66=0,,($N$7-((L66/(4.2*$N$13/3.6))))),))) -> 42.73666357 | V66: ='Master-Auswertung_V52-V67'!M296 -> 68.14028422 | W66: ='Heizen_Auswertung_V78-V85'!M296 -> 52.02627575 | X66: ='Master-Auswertung_V52-V67'!N296 -> 62.27765708 | Y66: ='Master-Auswertung_V52-V67'!O296 -> 92.76102157 | Z66: ='Master-Auswertung_V52-V67'!Q296 -> 5.358033852 | AB66: =AB52 -> 1205.754442 | AC66: =AC52*$AG$14 -> 585.6391941 | AD66: =AD52 -> 307.1907027 | AE66: =IF($AF$7=1,AC66,AB66) -> 585.6391941 | AF66: =IF($AF$7=1,"m³/h","1/min") -> m³/h | AH66: =AH52 -> 231.008269
A67: =IF(B67="","",4) -> 4 | B67: 315.8252828 | C67: =IF(B67="","",'Master-Auswertung_V52-V67'!C297) -> 859.1836731 | D67: =IF(B67="","",IF($AF$7=1,B67,C67)) -> 315.8252828 | E67: =IF(B67="","",IF($AF$7=1,C67,B67)) -> 859.1836731 | F67: =IF(B67="","",$AW$10*E67^$AX$10) -> 7.316446315 | G67: =IFERROR(IF(OR(B67="",B67=0,$AU$10*LN(E67)+$AV$10+10*LOG($AF$18/$AF$10)<20),"<20",$AU$10*LN(E67)+$AV$10+10*LOG($AF$18/$AF$10)),"") -> 50.00001516 | H67: =IF(B67="","",G67-6.5) -> 43.50001516 | I67: =IF(OR(B67<$AE$51,B67>$AE$52),"",IF(B67="","",IF(B67=0,,IFERROR((V67*($I$7-$I$6)),"")))) -> -788.4448307 | J67: =IF(OR(B67<$AE$51,B67>$AE$52),"",IFERROR(Y67*($I$8-$I$6),"")) -> -2082.937526 | K67: =IF(OR(B67<$AE$51,B67>$AE$52),"",IFERROR(X67*($I$8-$I$6),"")) -> -1428.247529 | L67: =IF(OR(B67<$AE$51,B67>$AE$52),"",IF(D67=0,,IFERROR((W67*($N$7-$N$6)),""))) -> 1899.819813 | M67: =IF(OR(B67<$AE$51,B67>$AE$52),"",IF(IFERROR(IF(I67=0,,$I$7-((I67/(4.2*$I$13/3.6)))),)=0,"",IFERROR(IF(I67=0,,$I$7-((I67/(4.2*$I$13/3.6)))),))) -> 19.37904927 | N67: =IF(OR(B67<$AE$51,B67>$AE$52),"",IF(IFERROR(IF(K67=0,,$I$8-((K67/(4.2*$I$13/3.6)))),)=0,"",IFERROR(IF(K67=0,,$I$8-((K67/(4.2*$I$13/3.6)))),))) -> 12.12106084 | O67: =IF(OR(B67<$AE$51,B67>$AE$52),"",IF(B67="","",IFERROR(IF(L67=0,,($N$7-((L67/(4.2*$N$13/3.6))))),))) -> 41.42985848 | V67: ='Master-Auswertung_V52-V67'!M297 -> 78.84448307 | W67: ='Heizen_Auswertung_V78-V85'!M297 -> 57.57029736 | X67: ='Master-Auswertung_V52-V67'!N297 -> 71.41237646 | Y67: ='Master-Auswertung_V52-V67'!O297 -> 104.1468763 | Z67: ='Master-Auswertung_V52-V67'!Q297 -> 6.725530676 | AE67: =AVERAGE(AE65:AE66) -> 350.6081188
A69: =IF(OR(B64<B70,B65<B70,B66<B70,B67<B70,B64>B71,B65>B71,B66>B71,B67>B71),"Grenzwerte","") ->  | J69: DpK = | K69: ='Master-Auswertung_V52-V67'!D289 -> 32.44439597 | L69: [kPa] | M69: DpH = | N69: ='Heizen_Auswertung_V78-V85'!D289 -> 6.868912821 | O69: [kPa]
A70: Minimal | B70: =AE51 -> 92.91487813 | C70: =AF51 -> m³/h
A71: Maximal | B71: =AE52 -> 470.8079795 | C71: =AF52 -> m³/h | AB71: Grenzen der Auslegung | AE71: Abhängig von Abfrage | AH71: heizen
AB72: ='Master-Auswertung_V52-V67'!A218 -> Drehzahl [1/min] | AC72: ='Master-Auswertung_V52-V67'!B218 -> Volumenstrom [m³/h] | AD72: ='Master-Auswertung_V52-V67'!C218 -> Wasser-Massenstrom [kg/h] kühlen | AE72: =IF($AF$7=1,AC72,AB72) -> Volumenstrom [m³/h] | AF72: Einheit | AH72: ='Master-Auswertung_V52-V67'!D218 -> Wasser-Massenstrom [kg/h] heizen
A73: © LTG Aktiengesellschaft - 18.02.2020, TT/EI, V2.5 | AB73: ='Master-Auswertung_V52-V67'!A219 -> 304.104786 | AC73: ='Master-Auswertung_V52-V67'!B219 -> 74.69627457 | AD73: ='Master-Auswertung_V52-V67'!C219 -> 62.16736767 | AE73: =IF($AF$7=1,AC73,AB73) -> 74.69627457 | AF73: =IF($AF$7=1,"m³/h","1/min") -> m³/h | AH73: ='Master-Auswertung_V52-V67'!D219 -> 61.56286733
A74: Angaben zu Toleranzen sowie weitere Spezifikationen sind der aktuellen Technischen Dokumentation zu entnehmen. Diese finden Sie auf www.LTG.de. | S74: FALSE | AB74: ='Master-Auswertung_V52-V67'!A220 -> 1205.754442 | AC74: ='Master-Auswertung_V52-V67'!B220 -> 378.4926894 | AD74: ='Master-Auswertung_V52-V67'!C220 -> 307.1907027 | AE74: =IF($AF$7=1,AC74,AB74) -> 378.4926894 | AF74: =IF($AF$7=1,"m³/h","1/min") -> m³/h | AH74: ='Master-Auswertung_V52-V67'!D220 -> 231.008269
A75: Eine Fehlerfreiheit des Programms kann nicht zugesichert werden. | AE75: =AVERAGE(AE73:AE74) -> 226.594482
A76: Aus Programmierfehlern entstandener Schaden geht nicht zu Lasten der LTG Aktiengesellschaft. Technische Änderungen im Rahmen der Weiterentwicklung vorbehalten.

Sheet Rohdaten (hidden)
B2: Kalorischer Prüfstand | Z2: LTG Aktiengesellschaft
H4: VKL800, Holz-Prototyp bzw. ISH-Prototyp, 4L | Q4: Prüfling: | R4: Gerät: | S4: VKL800, Prototyp, 4L | V4: Wärmetauscher: | X4: 4 L | Z4: Ausblashals:
R5: Baugröße: | S5: 800 | V5: Lamellenabstand: | X5: 3.2 | Z5: MQ Gitter: | AB5: nein
R6: Filter: | V6: Verrohrung: | X6: fluchtend | Z6: Sonstiges: | AB6: LDB12/M/3
A7: 1 | B7: 2 | C7: 3 | D7: 4 | E7: 5 | F7: 6 | H7: 8 | I7: 9 | J7: 10 | K7: 11 | L7: 12 | M7: 13 | N7: 14 | O7: 15 | P7: 16 | Q7: 17 | R7: 18 | S7: 19 | T7: 20 | U7: 21 | V7: 22 | W7: 23 | X7: 24 | Y7: 25 | Z7: 26 | AA7: 27 | AB7: 28 | AC7: 29 | AD7: 30 | AE7: 31 | AF7: 32 | AG7: 33
B8: Bemerkung | C8: Dp - Wasserseitig [kPa] | D8: Drehzahl [1/min] | E8: Dp - Kasten [Pa] | F8: Spannung [V] | G8: L wa | H8: Date | I8: Time | J8: Name | K8: Projekt | L8: Wassermenge [kg/h] | M8: T Wasser Vorlauf [°C] | N8: T Wasser Rücklauf [°C] | O8: T Wasser Spreizung [°C] | P8: Q Sek [W] | Q8: q Sek [W/K] | R8: V Sek [m³/h] | S8: i [-] | T8: T Ansaug mean [°C] | U8: T Ausblas mean [°C] | V8: T WT in [°C] | W8: T WT out [°C] | X8: Mess-strecke | Y8: Wirkdruck | Z8: V Prim [m³/h] | AA8: T Ansaug 1 | AB8: T Ansaug 2 | AC8: T Ansaug 3 | AD8: T Ausblas 1 | AE8: T Ausblas 2 | AF8: T Ausblas 3 | AG8: Halle
B10: VKL 800, Prototyp Holz - Vorstudie
B11: Drehzahlvariation
B13: Prototyp Holz, 3,2mm Lamellenabstand | C13: 22.7 | D13: 529 | E13: 3 | F13: 3.4 | H13: 2016-09-19 | I13: 11:24:13 | J13: TT | K13: LVC-neu, 800, 4L, LDB 12/M/3 1000 | L13: 197.804027 | M13: 15.911 | N13: 17.621 | O13: -1.71 | P13: -392.739896 | Q13: 35.597912 | R13: 146.617682 | S13: 0 | T13: 26.943667 | U13: 18.943667 | V13: 26.943667 | W13: 18.943667 | X13: - | Y13: 0 | Z13: 0 | AA13: 27 | AB13: 26.95 | AC13: 26.89 | AD13: 18.98 | AE13: 18.79 | AF13: 19.06 | AG13: 28.52 | AH13: 27.49
B14: =CONCATENATE("mit ",ROUND(L16,0)," kg/h wasserseitig, ",ROUND(D16,0)," 1/min Drehzahl") -> mit 198 kg/h wasserseitig, 529 1/min Drehzahl | C14: 22.7 | D14: 529 | E14: 3 | F14: 3.4 | H14: 2016-09-19 | I14: 11:36:03 | J14: TT | K14: LVC-neu, 800, 4L, LDB 12/M/3 1000 | L14: 196.874816 | M14: 15.903 | N14: 17.625 | O14: -1.722 | P14: -393.63807 | Q14: 35.517285 | R14: 146.391819 | S14: 0 | T14: 26.986 | U14: 18.955333 | V14: 26.986 | W14: 18.955333 | X14: - | Y14: 0 | Z14: 0 | AA14: 27.04 | AB14: 27 | AC14: 26.92 | AD14: 18.98 | AE14: 18.81 | AF14: 19.07 | AG14: 28.48 | AH14: 27.51
C15: 22.7 | D15: 529 | E15: 3 | F15: 3.4 | H15: 2016-09-19 | I15: 11:36:18 | J15: TT | K15: LVC-neu, 800, 4L, LDB 12/M/3 1000 | L15: 200.05263 | M15: 15.902 | N15: 17.624 | O15: -1.722 | P15: -399.991898 | Q15: 36.069968 | R15: 148.674548 | S15: 0 | T15: 26.991333 | U15: 18.956333 | V15: 26.991333 | W15: 18.956333 | X15: - | Y15: 0 | Z15: 0 | AA15: 27.04 | AB15: 27.01 | AC15: 26.92 | AD15: 18.99 | AE15: 18.81 | AF15: 19.07 | AG15: 28.45 | AH15: 27.49
A16: V1 | C16: =AVERAGE(C13:C15) -> 22.7 | D16: =AVERAGE(D13:D15) -> 529 | E16: =AVERAGE(E13:E15) -> 3 | F16: =AVERAGE(F13:F15) -> 3.4 | H16: =H15 -> 2016-09-19 | J16: =J15 -> TT | L16: =AVERAGE(L13:L15) -> 198.2438243 | M16: 15.90533333 | N16: 17.62333333 | O16: -1.718 | P16: -395.4566213 | Q16: 35.72838833 | R16: 147.2280163 | S16: 0 | T16: 26.97366667 | U16: 18.95177767 | Z16: =AVERAGE(Z13:Z15) -> 0 | AA16: 27.02666667 | AB16: 26.98666667 | AC16: 26.91 | AD16: 18.98333333 | AE16: 18.80333333 | AF16: 19.06666667
B18: Prototyp Holz, 3,2mm Lamellenabstand | C18: 22.5 | D18: 907 | E18: 11.3 | F18: 6 | H18: 2016-09-19 | I18: 11:51:02 | J18: TT | K18: LVC-neu, 800, 4L, LDB 12/M/3 1000 | L18: 197.803666 | M18: 15.921 | N18: 18.457 | O18: -2.536 | P18: -582.448278 | Q18: 52.312581 | R18: 260.888418 | S18: 0 | T18: 27.055 | U18: 20.387333 | V18: 27.055 | W18: 20.387333 | X18: - | Y18: 0 | Z18: 0 | AA18: 27.14 | AB18: 27.05 | AC18: 26.98 | AD18: 20.57 | AE18: 20.34 | AF18: 20.25 | AG18: 28.41 | AH18: 27.52
B19: =CONCATENATE("mit ",ROUND(L21,0)," kg/h wasserseitig, ",ROUND(D21,0)," 1/min Drehzahl") -> mit 199 kg/h wasserseitig, 908 1/min Drehzahl | C19: 22.5 | D19: 908 | E19: 11.3 | F19: 6 | H19: 2016-09-19 | I19: 11:51:31 | J19: TT | K19: LVC-neu, 800, 4L, LDB 12/M/3 1000 | L19: 199.127251 | M19: 15.929 | N19: 18.464 | O19: -2.535 | P19: -586.11447 | Q19: 52.652894 | R19: 262.307639 | S19: 0 | T19: 27.060667 | U19: 20.387333 | V19: 27.060667 | W19: 20.387333 | X19: - | Y19: 0 | Z19: 0 | AA19: 27.15 | AB19: 27.05 | AC19: 26.98 | AD19: 20.57 | AE19: 20.34 | AF19: 20.25 | AG19: 28.46 | AH19: 27.54
C20: 22.5 | D20: 908 | E20: 11.3 | F20: 6 | H20: 2016-09-19 | I20: 11:52:00 | J20: TT | K20: LVC-neu, 800, 4L, LDB 12/M/3 1000 | L20: 199.125804 | M20: 15.926 | N20: 18.47 | O20: -2.544 | P20: -588.191075 | Q20: 52.779386 | R20: 263.079306 | S20: 0 | T20: 27.070333 | U20: 20.393 | V20: 27.070333 | W20: 20.393 | X20: - | Y20: 0 | Z20: 0 | AA20: 27.16 | AB20: 27.07 | AC20: 26.98 | AD20: 20.58 | AE20: 20.34 | AF20: 20.25 | AG20: 28.55 | AH20: 27.54
A21: V2 | C21: =AVERAGE(C18:C20) -> 22.5 | D21: =AVERAGE(D18:D20) -> 907.6666667 | E21: =AVERAGE(E18:E20) -> 11.3 | F21: =AVERAGE(F18:F20) -> 6 | H21: =H20 -> 2016-09-19 | J21: =J20 -> TT | L21: =AVERAGE(L18:L20) -> 198.6855737 | M21: 15.92533333 | N21: 18.46366667 | O21: -2.538333333 | P21: -585.5846077 | Q21: 52.58162033 | R21: 262.0917877 | S21: 0 | T21: 27.062 | U21: 20.389222 | Z21: =AVERAGE(Z18:Z20) -> 0 | AA21: 27.15 | AB21: 27.05666667 | AC21: 26.98 | AD21: 20.57333333 | AE21: 20.34 | AF21: 20.25
B23: Prototyp Holz, 3,2mm Lamellenabstand | C23: 22.4 | D23: 1210 | E23: 20.6 | F23: 8 | H23: 2016-09-19 | I23: 12:43:49 | J23: TT | K23: LVC-neu, 800, 4L, LDB 12/M/3 1000 | L23: 198.594437 | M23: 15.924 | N23: 18.913 | O23: -2.989 | P23: -689.23413 | Q23: 61.469243 | R23: 354.251849 | S23: 0 | T23: 27.136667 | U23: 21.326 | V23: 27.136667 | W23: 21.326 | X23: - | Y23: 0 | Z23: 0 | AA23: 27.18 | AB23: 27.2 | AC23: 27.03 | AD23: 21.5 | AE23: 21.35 | AF23: 21.12 | AG23: 28.34 | AH23: 27.55
B24: =CONCATENATE("mit ",ROUND(L26,0)," kg/h wasserseitig, ",ROUND(D26,0)," 1/min Drehzahl") -> mit 199 kg/h wasserseitig, 1210 1/min Drehzahl | C24: 22.4 | D24: 1210 | E24: 20.6 | F24: 8 | H24: 2016-09-19 | I24: 12:44:03 | J24: TT | K24: LVC-neu, 800, 4L, LDB 12/M/3 1000 | L24: 199.124776 | M24: 15.93 | N24: 18.915 | O24: -2.985 | P24: -690.149878 | Q24: 61.63887 | R24: 355.272798 | S24: 0 | T24: 27.126667 | U24: 21.325 | V24: 27.126667 | W24: 21.325 | X24: - | Y24: 0 | Z24: 0 | AA24: 27.18 | AB24: 27.18 | AC24: 27.02 | AD24: 21.5 | AE24: 21.36 | AF24: 21.12 | AG24: 28.35 | AH24: 27.55
C25: 22.4 | D25: 1210 | E25: 20.6 | F25: 8 | H25: 2016-09-19 | I25: 12:44:18 | J25: TT | K25: LVC-neu, 800, 4L, LDB 12/M/3 1000 | L25: 198.796428 | M25: 15.933 | N25: 18.914 | O25: -2.981 | P25: -688.088555 | Q25: 61.430993 | R25: 353.683337 | S25: 0 | T25: 27.134 | U25: 21.323667 | V25: 27.134 | W25: 21.323667 | X25: - | Y25: 0 | Z25: 0 | AA25: 27.19 | AB25: 27.2 | AC25: 27.02 | AD25: 21.49 | AE25: 21.36 | AF25: 21.12 | AG25: 28.39 | AH25: 27.56
A26: V3 | C26: =AVERAGE(C23:C25) -> 22.4 | D26: =AVERAGE(D23:D25) -> 1210 | E26: =AVERAGE(E23:E25) -> 20.6 | F26: =AVERAGE(F23:F25) -> 8 | H26: =H25 -> 2016-09-19 | J26: =J25 -> TT | L26: =AVERAGE(L23:L25) -> 198.838547 | M26: 15.929 | N26: 18.914 | O26: -2.985 | P26: -689.157521 | Q26: 61.51303533 | R26: 354.4026613 | S26: 0 | T26: 27.13244467 | U26: 21.324889 | Z26: =AVERAGE(Z23:Z25) -> 0 | AA26: 27.18333333 | AB26: 27.19333333 | AC26: 27.02333333 | AD26: 21.49666667 | AE26: 21.35666667 | AF26: 21.12
B28: Prototyp Holz, 3,2mm Lamellenabstand | C28: 22.4 | D28: 1507 | E28: 32.5 | F28: 10 | H28: 2016-09-19 | I28: 12:59:46 | J28: TT | K28: LVC-neu, 800, 4L, LDB 12/M/3 1000 | L28: 198.593148 | M28: 15.924 | N28: 19.301 | O28: -3.377 | P28: -778.698078 | Q28: 69.742484 | R28: 453.958404 | S28: 0 | T28: 27.089333 | U28: 21.966333 | V28: 27.089333 | W28: 21.966333 | X28: - | Y28: 0 | Z28: 0 | AA28: 27.18 | AB28: 27.14 | AC28: 26.95 | AD28: 22.15 | AE28: 22.01 | AF28: 21.73 | AG28: 28.77 | AH28: 27.77
B29: =CONCATENATE("mit ",ROUND(L31,0)," kg/h wasserseitig, ",ROUND(D31,0)," 1/min Drehzahl") -> mit 199 kg/h wasserseitig, 1507 1/min Drehzahl | C29: 22.4 | D29: 1507 | E29: 32.5 | F29: 10 | H29: 2016-09-19 | I29: 13:00:15 | J29: TT | K29: LVC-neu, 800, 4L, LDB 12/M/3 1000 | L29: 199.12438 | M29: 15.929 | N29: 19.314 | O29: -3.385 | P29: -782.630719 | Q29: 70.044515 | R29: 455.450891 | S29: 0 | T29: 27.102333 | U29: 21.970333 | V29: 27.102333 | W29: 21.970333 | X29: - | Y29: 0 | Z29: 0 | AA29: 27.21 | AB29: 27.14 | AC29: 26.96 | AD29: 22.15 | AE29: 22.02 | AF29: 21.73 | AG29: 28.72 | AH29: 27.81
C30: 22.4 | D30: 1507 | E30: 32.5 | F30: 10 | H30: 2016-09-19 | I30: 13:00:58 | J30: TT | K30: LVC-neu, 800, 4L, LDB 12/M/3 1000 | L30: 198.593182 | M30: 15.939 | N30: 19.302 | O30: -3.363 | P30: -775.469968 | Q30: 69.418133 | R30: 450.376864 | S30: 0 | T30: 27.11 | U30: 21.967667 | V30: 27.11 | W30: 21.967667 | X30: - | Y30: 0 | Z30: 0 | AA30: 27.21 | AB30: 27.15 | AC30: 26.97 | AD30: 22.15 | AE30: 22.02 | AF30: 21.73 | AG30: 28.8 | AH30: 27.78
A31: V4 | C31: =AVERAGE(C28:C30) -> 22.4 | D31: =AVERAGE(D28:D30) -> 1507 | E31: =AVERAGE(E28:E30) -> 32.5 | F31: =AVERAGE(F28:F30) -> 10 | H31: =H30 -> 2016-09-19 | J31: =J30 -> TT | L31: =AVERAGE(L28:L30) -> 198.7702367 | M31: 15.93066667 | N31: 19.30566667 | O31: -3.375 | P31: -778.9329217 | Q31: 69.735044 | R31: 453.262053 | S31: 0 | T31: 27.10055533 | U31: 21.968111 | Z31: =AVERAGE(Z28:Z30) -> 0 | AA31: 27.2 | AB31: 27.14333333 | AC31: 26.96 | AD31: 22.15 | AE31: 22.01666667 | AF31: 21.73
B34: Wassermengenvariation
B35: Variation 1
B36: Prototyp Holz, 3,2mm Lamellenabstand | C36: 50 | D36: 1507 | E36: 32.5 | F36: 10 | H36: 2016-09-19 | I36: 13:13:14 | J36: TT | K36: LVC-neu, 800, 4L, LDB 12/M/3 1000 | L36: 310.612996 | M36: 15.885 | N36: 18.268 | O36: -2.383 | P36: -859.443728 | Q36: 76.410846 | R36: 459.557293 | S36: 0 | T36: 27.132667 | U36: 21.547333 | V36: 27.132667 | W36: 21.547333 | X36: - | Y36: 0 | Z36: 0 | AA36: 27.22 | AB36: 27.18 | AC36: 27 | AD36: 21.73 | AE36: 21.6 | AF36: 21.31 | AG36: 27.73
B37: =CONCATENATE("mit ",ROUND(L39,0)," kg/h wasserseitig, ",ROUND(D39,0)," 1/min Drehzahl ; ", ROUND(F39,0), " V Spannung") -> mit 310 kg/h wasserseitig, 1507 1/min Drehzahl ; 10 V Spannung | C37: 50 | D37: 1507 | E37: 32.5 | F37: 10 | H37: 2016-09-19 | I37: 13:13:43 | J37: TT | K37: LVC-neu, 800, 4L, LDB 12/M/3 1000 | L37: 310.300463 | M37: 15.882 | N37: 18.25 | O37: -2.368 | P37: -853.174572 | Q37: 75.878208 | R37: 456.668401 | S37: 0 | T37: 27.126 | U37: 21.546333 | V37: 27.126 | W37: 21.546333 | X37: - | Y37: 0 | Z37: 0 | AA37: 27.21 | AB37: 27.17 | AC37: 27 | AD37: 21.74 | AE37: 21.59 | AF37: 21.31 | AG37: 27.71
C38: 50 | D38: 1507 | E38: 32.5 | F38: 10 | H38: 2016-09-19 | I38: 13:14:41 | J38: TT | K38: LVC-neu, 800, 4L, LDB 12/M/3 1000 | L38: 309.988541 | M38: 15.883 | N38: 18.246 | O38: -2.363 | P38: -850.517281 | Q38: 75.702473 | R38: 455.191679 | S38: 0 | T38: 27.118 | U38: 21.537667 | V38: 27.118 | W38: 21.537667 | X38: - | Y38: 0 | Z38: 0 | AA38: 27.19 | AB38: 27.14 | AC38: 27.03 | AD38: 21.73 | AE38: 21.57 | AF38: 21.31 | AG38: 27.7
A39: V5 | C39: =AVERAGE(C36:C38) -> 50 | D39: =AVERAGE(D36:D38) -> 1507 | E39: =AVERAGE(E36:E38) -> 32.5 | F39: =AVERAGE(F36:F38) -> 10 | H39: =H38 -> 2016-09-19 | J39: =J38 -> TT | L39: =AVERAGE(L36:L38) -> 310.3006667 | M39: 15.88333333 | N39: 18.25466667 | O39: -2.371333333 | P39: -854.378527 | Q39: 75.99717567 | R39: 457.1391243 | S39: 0 | T39: 27.12555567 | U39: 21.54377767 | Z39: =AVERAGE(Z36:Z38) -> 0 | AA39: 27.20666667 | AB39: 27.16333333 | AC39: 27.01 | AD39: 21.73333333 | AE39: 21.58666667 | AF39: 21.31
B41: Prototyp Holz, 3,2mm Lamellenabstand | C41: 22.4 | D41: 1507 | E41: 32.5 | F41: 10 | H41: 2016-09-19 | I41: 12:59:46 | J41: TT | K41: LVC-neu, 800, 4L, LDB 12/M/3 1000 | L41: 198.593148 | M41: 15.924 | N41: 19.301 | O41: -3.377 | P41: -778.698078 | Q41: 69.742484 | R41: 453.958404 | S41: 0 | T41: 27.089333 | U41: 21.966333 | V41: 27.089333 | W41: 21.966333 | X41: - | Y41: 0 | Z41: 0 | AA41: 27.18 | AB41: 27.14 | AC41: 26.95 | AD41: 22.15 | AE41: 22.01 | AF41: 21.73 | AG41: 27.77
B42: =CONCATENATE("mit ",ROUND(L44,0)," kg/h wasserseitig, ",ROUND(D44,0)," 1/min Drehzahl ; ", ROUND(F44,0), " V Spannung") -> mit 199 kg/h wasserseitig, 1507 1/min Drehzahl ; 10 V Spannung | C42: 22.4 | D42: 1507 | E42: 32.5 | F42: 10 | H42: 2016-09-19 | I42: 13:00:15 | J42: TT | K42: LVC-neu, 800, 4L, LDB 12/M/3 1000 | L42: 199.12438 | M42: 15.929 | N42: 19.314 | O42: -3.385 | P42: -782.630719 | Q42: 70.044515 | R42: 455.450891 | S42: 0 | T42: 27.102333 | U42: 21.970333 | V42: 27.102333 | W42: 21.970333 | X42: - | Y42: 0 | Z42: 0 | AA42: 27.21 | AB42: 27.14 | AC42: 26.96 | AD42: 22.15 | AE42: 22.02 | AF42: 21.73 | AG42: 27.81
C43: 22.4 | D43: 1507 | E43: 32.5 | F43: 10 | H43: 2016-09-19 | I43: 13:00:58 | J43: TT | K43: LVC-neu, 800, 4L, LDB 12/M/3 1000 | L43: 198.593182 | M43: 15.939 | N43: 19.302 | O43: -3.363 | P43: -775.469968 | Q43: 69.418133 | R43: 450.376864 | S43: 0 | T43: 27.11 | U43: 21.967667 | V43: 27.11 | W43: 21.967667 | X43: - | Y43: 0 | Z43: 0 | AA43: 27.21 | AB43: 27.15 | AC43: 26.97 | AD43: 22.15 | AE43: 22.02 | AF43: 21.73 | AG43: 27.78
A44: V6 | C44: =AVERAGE(C41:C43) -> 22.4 | D44: =AVERAGE(D41:D43) -> 1507 | E44: =AVERAGE(E41:E43) -> 32.5 | F44: =AVERAGE(F41:F43) -> 10 | H44: =H43 -> 2016-09-19 | J44: =J43 -> TT | L44: =AVERAGE(L41:L43) -> 198.7702367 | M44: 15.93066667 | N44: 19.30566667 | O44: -3.375 | P44: -778.9329217 | Q44: 69.735044 | R44: 453.262053 | S44: 0 | T44: 27.10055533 | U44: 21.968111 | Z44: =AVERAGE(Z41:Z43) -> 0 | AA44: 27.2 | AB44: 27.14333333 | AC44: 26.96 | AD44: 22.15 | AE44: 22.01666667 | AF44: 21.73
B46: Prototyp Holz, 3,2mm Lamellenabstand | C46: 16.6 | D46: 1507 | E46: 32.5 | F46: 10 | H46: 2016-09-19 | I46: 13:29:25 | J46: TT | K46: LVC-neu, 800, 4L, LDB 12/M/3 1000 | L46: 167.624586 | M46: 15.964 | N46: 19.798 | O46: -3.834 | P46: -746.214368 | Q46: 66.6243 | R46: 450.376761 | S46: 0 | T46: 27.164333 | U46: 22.216 | V46: 27.164333 | W46: 22.216 | X46: - | Y46: 0 | Z46: 0 | AA46: 27.22 | AB46: 27.21 | AC46: 27.07 | AD46: 22.39 | AE46: 22.26 | AF46: 22 | AG46: 27.87
B47: =CONCATENATE("mit ",ROUND(L49,0)," kg/h wasserseitig, ",ROUND(D49,0)," 1/min Drehzahl ; ", ROUND(F49,0), " V Spannung") -> mit 168 kg/h wasserseitig, 1507 1/min Drehzahl ; 10 V Spannung | C47: 16.6 | D47: 1507 | E47: 32.5 | F47: 10 | H47: 2016-09-19 | I47: 13:30:09 | J47: TT | K47: LVC-neu, 800, 4L, LDB 12/M/3 1000 | L47: 167.624868 | M47: 15.943 | N47: 19.801 | O47: -3.858 | P47: -750.886772 | Q47: 66.81478 | R47: 452.861219 | S47: 0 | T47: 27.181333 | U47: 22.229333 | V47: 27.181333 | W47: 22.229333 | X47: - | Y47: 0 | Z47: 0 | AA47: 27.23 | AB47: 27.23 | AC47: 27.07 | AD47: 22.4 | AE47: 22.29 | AF47: 22 | AG47: 27.89
C48: 16.6 | D48: 1507 | E48: 32.5 | F48: 10 | H48: 2016-09-19 | I48: 13:30:38 | J48: TT | K48: LVC-neu, 800, 4L, LDB 12/M/3 1000 | L48: 167.29348 | M48: 15.934 | N48: 19.792 | O48: -3.858 | P48: -749.402297 | Q48: 66.751986 | R48: 454.10563 | S48: 0 | T48: 27.160667 | U48: 22.232 | V48: 27.160667 | W48: 22.232 | X48: - | Y48: 0 | Z48: 0 | AA48: 27.23 | AB48: 27.18 | AC48: 27.07 | AD48: 22.4 | AE48: 22.29 | AF48: 22.01 | AG48: 27.88
A49: V7 | C49: =AVERAGE(C46:C48) -> 16.6 | D49: =AVERAGE(D46:D48) -> 1507 | E49: =AVERAGE(E46:E48) -> 32.5 | F49: =AVERAGE(F46:F48) -> 10 | H49: =H48 -> 2016-09-19 | J49: =J48 -> TT | L49: =AVERAGE(L46:L48) -> 167.5143113 | M49: 15.947 | N49: 19.797 | O49: -3.85 | P49: -748.834479 | Q49: 66.73035533 | R49: 452.44787 | S49: 0 | T49: 27.16877767 | U49: 22.22577767 | Z49: =AVERAGE(Z46:Z48) -> 0 | AA49: 27.22666667 | AB49: 27.20666667 | AC49: 27.07 | AD49: 22.39666667 | AE49: 22.28 | AF49: 22.00333333
B51: Prototyp Holz, 3,2mm Lamellenabstand | C51: 6.6 | D51: 1507 | E51: 32.4 | F51: 10 | H51: 2016-09-19 | I51: 13:43:28 | J51: TT | K51: LVC-neu, 800, 4L, LDB 12/M/3 1000 | L51: 101.553014 | M51: 16.044 | N51: 21.375 | O51: -5.331 | P51: -628.60131 | Q51: 56.763709 | R51: 451.215149 | S51: 0 | T51: 27.118 | U51: 22.957333 | V51: 27.118 | W51: 22.957333 | X51: - | Y51: 0 | Z51: 0 | AA51: 27.17 | AB51: 27.14 | AC51: 27.05 | AD51: 23.12 | AE51: 23 | AF51: 22.75 | AG51: 27.81
B52: =CONCATENATE("mit ",ROUND(L54,0)," kg/h wasserseitig, ",ROUND(D54,0)," 1/min Drehzahl ; ", ROUND(F54,0), " V Spannung") -> mit 102 kg/h wasserseitig, 1507 1/min Drehzahl ; 10 V Spannung | C52: 6.6 | D52: 1507 | E52: 32.4 | F52: 10 | H52: 2016-09-19 | I52: 13:43:57 | J52: TT | K52: LVC-neu, 800, 4L, LDB 12/M/3 1000 | L52: 102.579308 | M52: 16.045 | N52: 21.371 | O52: -5.326 | P52: -634.358418 | Q52: 57.257732 | R52: 454.983136 | S52: 0 | T52: 27.124 | U52: 22.96 | V52: 27.124 | W52: 22.96 | X52: - | Y52: 0 | Z52: 0 | AA52: 27.16 | AB52: 27.15 | AC52: 27.06 | AD52: 23.12 | AE52: 23.01 | AF52: 22.75 | AG52: 27.8
C53: 6.6 | D53: 1507 | E53: 32.4 | F53: 10 | H53: 2016-09-19 | I53: 13:44:26 | J53: TT | K53: LVC-neu, 800, 4L, LDB 12/M/3 1000 | L53: 102.274744 | M53: 16.045 | N53: 21.382 | O53: -5.337 | P53: -633.781248 | Q53: 57.262491 | R53: 456.285904 | S53: 0 | T53: 27.113 | U53: 22.964667 | V53: 27.113 | W53: 22.964667 | X53: - | Y53: 0 | Z53: 0 | AA53: 27.16 | AB53: 27.13 | AC53: 27.05 | AD53: 23.12 | AE53: 23.01 | AF53: 22.76 | AG53: 27.78
A54: V8 | C54: =AVERAGE(C51:C53) -> 6.6 | D54: =AVERAGE(D51:D53) -> 1507 | E54: =AVERAGE(E51:E53) -> 32.4 | F54: =AVERAGE(F51:F53) -> 10 | H54: =H53 -> 2016-09-19 | J54: =J53 -> TT | L54: =AVERAGE(L51:L53) -> 102.1356887 | M54: 16.04466667 | N54: 21.376 | O54: -5.331333333 | P54: -632.246992 | Q54: 57.094644 | R54: 454.1613963 | S54: 0 | T54: 27.11833333 | U54: 22.96066667 | Z54: =AVERAGE(Z51:Z53) -> 0 | AA54: 27.16333333 | AB54: 27.14 | AC54: 27.05333333 | AD54: 23.12 | AE54: 23.00666667 | AF54: 22.75333333
B56: Prototyp Holz, 3,2mm Lamellenabstand | C56: 2.5 | D56: 1507 | E56: 32.3 | F56: 10 | H56: 2016-09-19 | I56: 13:57:02 | J56: TT | K56: LVC-neu, 800, 4L, LDB 12/M/3 1000 | L56: 61.93682 | M56: 16.193 | N56: 22.881 | O56: -6.688 | P56: -480.971066 | Q56: 43.849547 | R56: 451.146098 | S56: 0 | T56: 27.161667 | U56: 23.977667 | V56: 27.161667 | W56: 23.977667 | X56: - | Y56: 0 | Z56: 0 | AA56: 27.18 | AB56: 27.18 | AC56: 27.12 | AD56: 24.05 | AE56: 24.11 | AF56: 23.78 | AG56: 27.73
B57: =CONCATENATE("mit ",ROUND(L59,0)," kg/h wasserseitig, ",ROUND(D59,0)," 1/min Drehzahl ; ", ROUND(F59,0), " V Spannung") -> mit 62 kg/h wasserseitig, 1507 1/min Drehzahl ; 10 V Spannung | C57: 2.5 | D57: 1507 | E57: 32.3 | F57: 10 | H57: 2016-09-19 | I57: 13:58:15 | J57: TT | K57: LVC-neu, 800, 4L, LDB 12/M/3 1000 | L57: 61.998297 | M57: 16.182 | N57: 22.875 | O57: -6.693 | P57: -481.808399 | Q57: 43.949927 | R57: 454.836136 | S57: 0 | T57: 27.144667 | U57: 23.981 | V57: 27.144667 | W57: 23.981 | X57: - | Y57: 0 | Z57: 0 | AA57: 27.17 | AB57: 27.15 | AC57: 27.12 | AD57: 24.05 | AE57: 24.09 | AF57: 23.8 | AG57: 27.73
C58: 2.5 | D58: 1507 | E58: 32.3 | F58: 10 | H58: 2016-09-19 | I58: 13:58:44 | J58: TT | K58: LVC-neu, 800, 4L, LDB 12/M/3 1000 | L58: 61.507417 | M58: 16.19 | N58: 22.87 | O58: -6.68 | P58: -477.065198 | Q58: 43.492132 | R58: 449.364193 | S58: 0 | T58: 27.159 | U58: 23.988333 | V58: 27.159 | W58: 23.988333 | X58: - | Y58: 0 | Z58: 0 | AA58: 27.17 | AB58: 27.19 | AC58: 27.12 | AD58: 24.05 | AE58: 24.11 | AF58: 23.81 | AG58: 27.71
A59: V9 | C59: =AVERAGE(C56:C58) -> 2.5 | D59: =AVERAGE(D56:D58) -> 1507 | E59: =AVERAGE(E56:E58) -> 32.3 | F59: =AVERAGE(F56:F58) -> 10 | H59: =H58 -> 2016-09-19 | J59: =J58 -> TT | L59: =AVERAGE(L56:L58) -> 61.814178 | M59: 16.18833333 | N59: 22.87533333 | O59: -6.687 | P59: -479.948221 | Q59: 43.76386867 | R59: 451.7821423 | S59: 0 | T59: 27.15511133 | U59: 23.98233333 | Z59: =AVERAGE(Z56:Z58) -> 0 | AA59: 27.17333333 | AB59: 27.17333333 | AC59: 27.12 | AD59: 24.05 | AE59: 24.10333333 | AF59: 23.79666667
B63: Variation 2
B64: Prototyp Holz, 3,2mm Lamellenabstand | C64: 2.5 | D64: 922 | E64: 11.5 | F64: 6 | H64: 2016-09-19 | I64: 14:19:02 | J64: TT | K64: LVC-neu, 800, 4L, LDB 12/M/3 1000 | L64: 61.874993 | M64: 16.185 | N64: 21.816 | O64: -5.631 | P64: -404.552111 | Q64: 36.970158 | R64: 268.373911 | S64: 0 | T64: 27.127667 | U64: 22.625667 | V64: 27.127667 | W64: 22.625667 | X64: - | Y64: 0 | Z64: 0 | AA64: 27.17 | AB64: 27.13 | AC64: 27.08 | AD64: 22.73 | AE64: 22.67 | AF64: 22.48 | AG64: 27.78
B65: =CONCATENATE("mit ",ROUND(L67,0)," kg/h wasserseitig, ",ROUND(D67,0)," 1/min Drehzahl ; ", ROUND(F67,0), " V Spannung") -> mit 62 kg/h wasserseitig, 922 1/min Drehzahl ; 6 V Spannung | C65: 2.5 | D65: 922 | E65: 11.5 | F65: 6 | H65: 2016-09-19 | I65: 14:19:16 | J65: TT | K65: LVC-neu, 800, 4L, LDB 12/M/3 1000 | L65: 61.691291 | M65: 16.183 | N65: 21.813 | O65: -5.63 | P65: -403.279394 | Q65: 36.869573 | R65: 267.628687 | S65: 0 | T65: 27.121 | U65: 22.620667 | V65: 27.121 | W65: 22.620667 | X65: - | Y65: 0 | Z65: 0 | AA65: 27.17 | AB65: 27.11 | AC65: 27.08 | AD65: 22.73 | AE65: 22.66 | AF65: 22.47 | AG65: 27.78
C66: 2.5 | D66: 922 | E66: 11.5 | F66: 6 | H66: 2016-09-19 | I66: 14:19:31 | J66: TT | K66: LVC-neu, 800, 4L, LDB 12/M/3 1000 | L66: 61.691148 | M66: 16.178 | N66: 21.809 | O66: -5.631 | P66: -403.350093 | Q66: 36.85582 | R66: 267.398323 | S66: 0 | T66: 27.122 | U66: 22.617 | V66: 27.122 | W66: 22.617 | X66: - | Y66: 0 | Z66: 0 | AA66: 27.18 | AB66: 27.11 | AC66: 27.08 | AD66: 22.72 | AE66: 22.65 | AF66: 22.47 | AG66: 27.76
A67: V10 | C67: =AVERAGE(C64:C66) -> 2.5 | D67: =AVERAGE(D64:D66) -> 922 | E67: =AVERAGE(E64:E66) -> 11.5 | F67: =AVERAGE(F64:F66) -> 6 | H67: =H66 -> 2016-09-19 | J67: =J66 -> TT | L67: =AVERAGE(L64:L66) -> 61.75247733 | M67: 16.182 | N67: 21.81266667 | O67: -5.630666667 | P67: -403.7271993 | Q67: 36.898517 | R67: 267.800307 | S67: 0 | T67: 27.12355567 | U67: 22.62111133 | Z67: =AVERAGE(Z64:Z66) -> 0 | AA67: 27.17333333 | AB67: 27.11666667 | AC67: 27.08 | AD67: 22.72666667 | AE67: 22.66 | AF67: 22.47333333
B69: Prototyp Holz, 3,2mm Lamellenabstand | C69: 10.4 | D69: 922 | E69: 11.5 | F69: 6 | H69: 2016-09-19 | I69: 14:47:49 | J69: TT | K69: LVC-neu, 800, 4L, LDB 12/M/3 1000 | L69: 130.629951 | M69: 16.001 | N69: 19.545 | O69: -3.544 | P69: -537.539345 | Q69: 48.432786 | R69: 265.164416 | S69: 0 | T69: 27.099667 | U69: 21.045333 | V69: 27.099667 | W69: 21.045333 | X69: - | Y69: 0 | Z69: 0 | AA69: 27.17 | AB69: 27.1 | AC69: 27.03 | AD69: 21.23 | AE69: 21 | AF69: 20.9 | AG69: 27.81
B70: =CONCATENATE("mit ",ROUND(L72,0)," kg/h wasserseitig, ",ROUND(D72,0)," 1/min Drehzahl ; ", ROUND(F72,0), " V Spannung") -> mit 131 kg/h wasserseitig, 922 1/min Drehzahl ; 6 V Spannung | C70: 10.4 | D70: 922 | E70: 11.5 | F70: 6 | H70: 2016-09-19 | I70: 14:48:18 | J70: TT | K70: LVC-neu, 800, 4L, LDB 12/M/3 1000 | L70: 130.500068 | M70: 15.996 | N70: 19.569 | O70: -3.573 | P70: -541.399107 | Q70: 48.776159 | R70: 267.112529 | S70: 0 | T70: 27.095667 | U70: 21.042333 | V70: 27.095667 | W70: 21.042333 | X70: - | Y70: 0 | Z70: 0 | AA70: 27.18 | AB70: 27.09 | AC70: 27.02 | AD70: 21.23 | AE70: 20.99 | AF70: 20.91 | AG70: 27.82
C71: 10.4 | D71: 922 | E71: 11.5 | F71: 6 | H71: 2016-09-19 | I71: 14:50:29 | J71: TT | K71: LVC-neu, 800, 4L, LDB 12/M/3 1000 | L71: 130.370298 | M71: 15.999 | N71: 19.588 | O71: -3.589 | P71: -543.282727 | Q71: 48.876872 | R71: 268.189541 | S71: 0 | T71: 27.114333 | U71: 21.064333 | V71: 27.114333 | W71: 21.064333 | X71: - | Y71: 0 | Z71: 0 | AA71: 27.19 | AB71: 27.1 | AC71: 27.05 | AD71: 21.24 | AE71: 21.03 | AF71: 20.92 | AG71: 27.82
A72: V11 | C72: =AVERAGE(C69:C71) -> 10.4 | D72: =AVERAGE(D69:D71) -> 922 | E72: =AVERAGE(E69:E71) -> 11.5 | F72: =AVERAGE(F69:F71) -> 6 | H72: =H71 -> 2016-09-19 | J72: =J71 -> TT | L72: =AVERAGE(L69:L71) -> 130.5001057 | M72: 15.99866667 | N72: 19.56733333 | O72: -3.568666667 | P72: -540.740393 | Q72: 48.69527233 | R72: 266.822162 | S72: 0 | T72: 27.10322233 | U72: 21.05066633 | Z72: =AVERAGE(Z69:Z71) -> 0 | AA72: 27.18 | AB72: 27.09666667 | AC72: 27.03333333 | AD72: 21.23333333 | AE72: 21.00666667 | AF72: 20.91
B74: Prototyp Holz, 3,2mm Lamellenabstand | C74: 22 | D74: 922 | E74: 11.5 | F74: 6 | H74: 2016-09-19 | I74: 15:11:10 | J74: TT | K74: LVC-neu, 800, 4L, LDB 12/M/3 1000 | L74: 196.874579 | M74: 15.93 | N74: 18.533 | O74: -2.603 | P74: -595.028258 | Q74: 52.98717 | R74: 267.150914 | S74: 0 | T74: 27.159667 | U74: 20.507667 | V74: 27.159667 | W74: 20.507667 | X74: - | Y74: 0 | Z74: 0 | AA74: 27.25 | AB74: 27.16 | AC74: 27.07 | AD74: 20.7 | AE74: 20.45 | AF74: 20.37 | AG74: 27.83
B75: =CONCATENATE("mit ",ROUND(L77,0)," kg/h wasserseitig, ",ROUND(D77,0)," 1/min Drehzahl ; ", ROUND(F77,0), " V Spannung") -> mit 197 kg/h wasserseitig, 922 1/min Drehzahl ; 6 V Spannung | C75: 22 | D75: 922 | E75: 11.5 | F75: 6 | H75: 2016-09-19 | I75: 15:11:24 | J75: TT | K75: LVC-neu, 800, 4L, LDB 12/M/3 1000 | L75: 195.40498 | M75: 15.933 | N75: 18.526 | O75: -2.593 | P75: -588.317713 | Q75: 52.411378 | R75: 264.018998 | S75: 0 | T75: 27.158 | U75: 20.503 | V75: 27.158 | W75: 20.503 | X75: - | Y75: 0 | Z75: 0 | AA75: 27.26 | AB75: 27.15 | AC75: 27.07 | AD75: 20.7 | AE75: 20.45 | AF75: 20.36 | AG75: 27.83
C76: 22 | D76: 922 | E76: 11.5 | F76: 6 | H76: 2016-09-19 | I76: 15:11:39 | J76: TT | K76: LVC-neu, 800, 4L, LDB 12/M/3 1000 | L76: 197.268613 | M76: 15.938 | N76: 18.528 | O76: -2.59 | P76: -593.241518 | Q76: 52.894004 | R76: 266.175322 | S76: 0 | T76: 27.153667 | U76: 20.497333 | V76: 27.153667 | W76: 20.497333 | X76: - | Y76: 0 | Z76: 0 | AA76: 27.26 | AB76: 27.14 | AC76: 27.06 | AD76: 20.69 | AE76: 20.45 | AF76: 20.35 | AG76: 27.85
A77: V12 | C77: =AVERAGE(C74:C76) -> 22 | D77: =AVERAGE(D74:D76) -> 922 | E77: =AVERAGE(E74:E76) -> 11.5 | F77: =AVERAGE(F74:F76) -> 6 | H77: =H76 -> 2016-09-19 | J77: =J76 -> TT | L77: =AVERAGE(L74:L76) -> 196.5160573 | M77: 15.93366667 | N77: 18.529 | O77: -2.595333333 | P77: -592.1958297 | Q77: 52.764184 | R77: 265.7817447 | S77: 0 | T77: 27.15711133 | U77: 20.50266667 | Z77: =AVERAGE(Z74:Z76) -> 0 | AA77: 27.25666667 | AB77: 27.15 | AC77: 27.06666667 | AD77: 20.69666667 | AE77: 20.45 | AF77: 20.36
B79: Prototyp Holz, 3,2mm Lamellenabstand | C79: 51.3 | D79: 922 | E79: 11.5 | F79: 6 | H79: 2016-09-19 | I79: 15:22:33 | J79: TT | K79: LVC-neu, 800, 4L, LDB 12/M/3 1000 | L79: 314.188338 | M79: 15.904 | N79: 17.655 | O79: -1.751 | P79: -638.778056 | Q79: 56.682861 | R79: 268.067817 | S79: 0 | T79: 27.173333 | U79: 20.056667 | V79: 27.173333 | W79: 20.056667 | X79: - | Y79: 0 | Z79: 0 | AA79: 27.25 | AB79: 27.19 | AC79: 27.08 | AD79: 20.24 | AE79: 20.01 | AF79: 19.93 | AG79: 27.84
B80: =CONCATENATE("mit ",ROUND(L82,0)," kg/h wasserseitig, ",ROUND(D82,0)," 1/min Drehzahl ; ", ROUND(F82,0), " V Spannung") -> mit 314 kg/h wasserseitig, 922 1/min Drehzahl ; 6 V Spannung | C80: 51.3 | D80: 922 | E80: 11.5 | F80: 6 | H80: 2016-09-19 | I80: 15:22:48 | J80: TT | K80: LVC-neu, 800, 4L, LDB 12/M/3 1000 | L80: 313.997583 | M80: 15.901 | N80: 17.655 | O80: -1.754 | P80: -639.48399 | Q80: 56.732079 | R80: 268.439507 | S80: 0 | T80: 27.173 | U80: 20.058333 | V80: 27.173 | W80: 20.058333 | X80: - | Y80: 0 | Z80: 0 | AA80: 27.25 | AB80: 27.19 | AC80: 27.08 | AD80: 20.24 | AE80: 20.01 | AF80: 19.93 | AG80: 27.82
C81: 51.3 | D81: 922 | E81: 11.5 | F81: 6 | H81: 2016-09-19 | I81: 15:23:17 | J81: TT | K81: LVC-neu, 800, 4L, LDB 12/M/3 1000 | L81: 314.189164 | M81: 15.886 | N81: 17.643 | O81: -1.757 | P81: -640.968585 | Q81: 56.766421 | R81: 268.898925 | S81: 0 | T81: 27.177333 | U81: 20.058333 | V81: 27.177333 | W81: 20.058333 | X81: - | Y81: 0 | Z81: 0 | AA81: 27.27 | AB81: 27.19 | AC81: 27.07 | AD81: 20.24 | AE81: 20.01 | AF81: 19.93 | AG81: 27.85
A82: V13 | C82: =AVERAGE(C79:C81) -> 51.3 | D82: =AVERAGE(D79:D81) -> 922 | E82: =AVERAGE(E79:E81) -> 11.5 | F82: =AVERAGE(F79:F81) -> 6 | H82: =H81 -> 2016-09-19 | J82: =J81 -> TT | L82: =AVERAGE(L79:L81) -> 314.1250283 | M82: 15.897 | N82: 17.651 | O82: -1.754 | P82: -639.7435437 | Q82: 56.72712033 | R82: 268.4687497 | S82: 0 | T82: 27.17455533 | U82: 20.05777767 | Z82: =AVERAGE(Z79:Z81) -> 0 | AA82: 27.25666667 | AB82: 27.19 | AC82: 27.07666667 | AD82: 20.24 | AE82: 20.01 | AF82: 19.93
B86: Variation 3
B87: Prototyp Holz, 3,2mm Lamellenabstand | C87: 51.3 | D87: 547 | E87: 3.6 | F87: 3.5 | H87: 2016-09-19 | I87: 15:36:20 | J87: TT | K87: LVC-neu, 800, 4L, LDB 12/M/3 1000 | L87: 314.200129 | M87: 15.891 | N87: 17.085 | O87: -1.194 | P87: -435.596585 | Q87: 38.838225 | R87: 155.83799 | S87: 0 | T87: 27.106667 | U87: 18.758667 | V87: 27.106667 | W87: 18.758667 | X87: - | Y87: 0 | Z87: 0 | AA87: 27.21 | AB87: 27.09 | AC87: 27.02 | AD87: 18.79 | AE87: 18.59 | AF87: 18.9 | AG87: 27.79
B88: =CONCATENATE("mit ",ROUND(L90,0)," kg/h wasserseitig, ",ROUND(D90,0)," 1/min Drehzahl ; ", ROUND(F90,0), " V Spannung") -> mit 314 kg/h wasserseitig, 547 1/min Drehzahl ; 4 V Spannung | C88: 51.3 | D88: 547 | E88: 3.6 | F88: 3.5 | H88: 2016-09-19 | I88: 15:36:34 | J88: TT | K88: LVC-neu, 800, 4L, LDB 12/M/3 1000 | L88: 313.062675 | M88: 15.89 | N88: 17.084 | O88: -1.194 | P88: -434.019657 | Q88: 38.665448 | R88: 155.118986 | S88: 0 | T88: 27.115 | U88: 18.758667 | V88: 27.115 | W88: 18.758667 | X88: - | Y88: 0 | Z88: 0 | AA88: 27.22 | AB88: 27.11 | AC88: 27.02 | AD88: 18.79 | AE88: 18.59 | AF88: 18.89 | AG88: 27.78
C89: 51.3 | D89: 547 | E89: 3.6 | F89: 3.5 | H89: 2016-09-19 | I89: 15:37:03 | J89: TT | K89: LVC-neu, 800, 4L, LDB 12/M/3 1000 | L89: 314.504421 | M89: 15.884 | N89: 17.078 | O89: -1.194 | P89: -436.018446 | Q89: 38.805486 | R89: 155.647092 | S89: 0 | T89: 27.12 | U89: 18.753667 | V89: 27.12 | W89: 18.753667 | X89: - | Y89: 0 | Z89: 0 | AA89: 27.22 | AB89: 27.12 | AC89: 27.02 | AD89: 18.79 | AE89: 18.59 | AF89: 18.88 | AG89: 27.78
A90: V14 | C90: =AVERAGE(C87:C89) -> 51.3 | D90: =AVERAGE(D87:D89) -> 547 | E90: =AVERAGE(E87:E89) -> 3.6 | F90: =AVERAGE(F87:F89) -> 3.5 | H90: =H89 -> 2016-09-19 | J90: =J89 -> TT | L90: =AVERAGE(L87:L89) -> 313.9224083 | M90: 15.88833333 | N90: 17.08233333 | O90: -1.194 | P90: -435.2115627 | Q90: 38.76971967 | R90: 155.5346893 | S90: 0 | T90: 27.113889 | U90: 18.75700033 | Z90: =AVERAGE(Z87:Z89) -> 0 | AA90: 27.21666667 | AB90: 27.10666667 | AC90: 27.02 | AD90: 18.79 | AE90: 18.59 | AF90: 18.89
B92: Prototyp Holz, 3,2mm Lamellenabstand | C92: 22.6 | D92: 547 | E92: 3.6 | F92: 3.5 | H92: 2016-09-19 | I92: 15:44:43 | J92: TT | K92: LVC-neu, 800, 4L, LDB 12/M/3 1000 | L92: 200.250643 | M92: 15.926 | N92: 17.682 | O92: -1.756 | P92: -408.29326 | Q92: 36.489507 | R92: 150.753216 | S92: 0 | T92: 27.115333 | U92: 19.026667 | V92: 27.115333 | W92: 19.026667 | X92: - | Y92: 0 | Z92: 0 | AA92: 27.18 | AB92: 27.09 | AC92: 27.08 | AD92: 19.07 | AE92: 18.86 | AF92: 19.14 | AG92: 27.73
B93: =CONCATENATE("mit ",ROUND(L95,0)," kg/h wasserseitig, ",ROUND(D95,0)," 1/min Drehzahl ; ", ROUND(F95,0), " V Spannung") -> mit 201 kg/h wasserseitig, 547 1/min Drehzahl ; 4 V Spannung | C93: 22.6 | D93: 547 | E93: 3.6 | F93: 3.5 | H93: 2016-09-19 | I93: 15:45:12 | J93: TT | K93: LVC-neu, 800, 4L, LDB 12/M/3 1000 | L93: 201.051893 | M93: 15.932 | N93: 17.691 | O93: -1.759 | P93: -410.627269 | Q93: 36.721072 | R93: 151.596255 | S93: 0 | T93: 27.114333 | U93: 19.024667 | V93: 27.114333 | W93: 19.024667 | X93: - | Y93: 0 | Z93: 0 | AA93: 27.19 | AB93: 27.08 | AC93: 27.08 | AD93: 19.07 | AE93: 18.86 | AF93: 19.14 | AG93: 27.73
C94: 22.6 | D94: 547 | E94: 3.6 | F94: 3.5 | H94: 2016-09-19 | I94: 15:45:26 | J94: TT | K94: LVC-neu, 800, 4L, LDB 12/M/3 1000 | L94: 200.249241 | M94: 15.931 | N94: 17.696 | O94: -1.765 | P94: -410.383007 | Q94: 36.692666 | R94: 151.543544 | S94: 0 | T94: 27.115333 | U94: 19.027667 | V94: 27.115333 | W94: 19.027667 | X94: - | Y94: 0 | Z94: 0 | AA94: 27.19 | AB94: 27.08 | AC94: 27.08 | AD94: 19.07 | AE94: 18.86 | AF94: 19.15 | AG94: 27.73
A95: V15 | C95: =AVERAGE(C92:C94) -> 22.6 | D95: =AVERAGE(D92:D94) -> 547 | E95: =AVERAGE(E92:E94) -> 3.6 | F95: =AVERAGE(F92:F94) -> 3.5 | H95: =H94 -> 2016-09-19 | J95: =J94 -> TT | L95: =AVERAGE(L92:L94) -> 200.517259 | M95: 15.92966667 | N95: 17.68966667 | O95: -1.76 | P95: -409.7678453 | Q95: 36.634415 | R95: 151.2976717 | S95: 0 | T95: 27.11499967 | U95: 19.02633367 | Z95: =AVERAGE(Z92:Z94) -> 0 | AA95: 27.18666667 | AB95: 27.08333333 | AC95: 27.08 | AD95: 19.07 | AE95: 18.86 | AF95: 19.14333333
B97: Prototyp Holz, 3,2mm Lamellenabstand | C97: 9.2 | D97: 547 | E97: 3.6 | F97: 3.5 | H97: 2016-09-19 | I97: 15:53:43 | J97: TT | K97: LVC-neu, 800, 4L, LDB 12/M/3 1000 | L97: 120.735842 | M97: 15.996 | N97: 18.712 | O97: -2.716 | P97: -380.749869 | Q97: 34.141846 | R97: 150.39446 | S97: 0 | T97: 27.148 | U97: 19.587 | V97: 27.148 | W97: 19.587 | X97: - | Y97: 0 | Z97: 0 | AA97: 27.23 | AB97: 27.15 | AC97: 27.06 | AD97: 19.64 | AE97: 19.45 | AF97: 19.67 | AG97: 27.81
B98: =CONCATENATE("mit ",ROUND(L100,0)," kg/h wasserseitig, ",ROUND(D100,0)," 1/min Drehzahl ; ", ROUND(F100,0), " V Spannung") -> mit 121 kg/h wasserseitig, 547 1/min Drehzahl ; 4 V Spannung | C98: 9.2 | D98: 547 | E98: 3.6 | F98: 3.5 | H98: 2016-09-19 | I98: 15:54:12 | J98: TT | K98: LVC-neu, 800, 4L, LDB 12/M/3 1000 | L98: 121.138898 | M98: 15.997 | N98: 18.719 | O98: -2.722 | P98: -382.86487 | Q98: 34.351007 | R98: 151.430154 | S98: 0 | T98: 27.142667 | U98: 19.591667 | V98: 27.142667 | W98: 19.591667 | X98: - | Y98: 0 | Z98: 0 | AA98: 27.22 | AB98: 27.14 | AC98: 27.06 | AD98: 19.64 | AE98: 19.46 | AF98: 19.67 | AG98: 27.78
C99: 9.2 | D99: 547 | E99: 3.6 | F99: 3.5 | H99: 2016-09-19 | I99: 15:54:56 | J99: TT | K99: LVC-neu, 800, 4L, LDB 12/M/3 1000 | L99: 120.898789 | M99: 16.006 | N99: 18.717 | O99: -2.711 | P99: -380.561851 | Q99: 34.145399 | R99: 150.373228 | S99: 0 | T99: 27.151333 | U99: 19.593 | V99: 27.151333 | W99: 19.593 | X99: - | Y99: 0 | Z99: 0 | AA99: 27.24 | AB99: 27.15 | AC99: 27.06 | AD99: 19.64 | AE99: 19.45 | AF99: 19.68 | AG99: 27.76
A100: V16 | C100: =AVERAGE(C97:C99) -> 9.2 | D100: =AVERAGE(D97:D99) -> 547 | E100: =AVERAGE(E97:E99) -> 3.6 | F100: =AVERAGE(F97:F99) -> 3.5 | H100: =H99 -> 2016-09-19 | J100: =J99 -> TT | L100: =AVERAGE(L97:L99) -> 120.9245097 | M100: 15.99966667 | N100: 18.716 | O100: -2.716333333 | P100: -381.3921967 | Q100: 34.21275067 | R100: 150.732614 | S100: 0 | T100: 27.14733333 | U100: 19.59055567 | Z100: =AVERAGE(Z97:Z99) -> 0 | AA100: 27.23 | AB100: 27.14666667 | AC100: 27.06 | AD100: 19.64 | AE100: 19.45333333 | AF100: 19.67333333
B102: Prototyp Holz, 3,2mm Lamellenabstand | C102: 2.5 | D102: 547 | E102: 3.6 | F102: 3.5 | H102: 2016-09-19 | I102: 16:11:24 | J102: TT | K102: LVC-neu, 800, 4L, LDB 12/M/3 1000 | L102: 62.060278 | M102: 16.181 | N102: 20.51 | O102: -4.329 | P102: -311.942885 | Q102: 28.423042 | R102: 148.728654 | S102: 0 | T102: 27.156 | U102: 20.892 | V102: 27.156 | W102: 20.892 | X102: - | Y102: 0 | Z102: 0 | AA102: 27.23 | AB102: 27.16 | AC102: 27.09 | AD102: 20.92 | AE102: 20.84 | AF102: 20.92 | AG102: 27.69
B103: =CONCATENATE("mit ",ROUND(L105,0)," kg/h wasserseitig, ",ROUND(D105,0)," 1/min Drehzahl ; ", ROUND(F105,0), " V Spannung") -> mit 62 kg/h wasserseitig, 547 1/min Drehzahl ; 4 V Spannung | C103: 2.5 | D103: 547 | E103: 3.6 | F103: 3.5 | H103: 2016-09-19 | I103: 16:12:07 | J103: TT | K103: LVC-neu, 800, 4L, LDB 12/M/3 1000 | L103: 62.564261 | M103: 16.176 | N103: 20.496 | O103: -4.32 | P103: -313.822334 | Q103: 28.582137 | R103: 149.784154 | S103: 0 | T103: 27.155667 | U103: 20.898333 | V103: 27.155667 | W103: 20.898333 | X103: - | Y103: 0 | Z103: 0 | AA103: 27.23 | AB103: 27.15 | AC103: 27.09 | AD103: 20.93 | AE103: 20.85 | AF103: 20.92 | AG103: 27.68
C104: 2.5 | D104: 547 | E104: 3.6 | F104: 3.5 | H104: 2016-09-19 | I104: 16:12:22 | J104: TT | K104: LVC-neu, 800, 4L, LDB 12/M/3 1000 | L104: 62.565158 | M104: 16.174 | N104: 20.508 | O104: -4.334 | P104: -314.843862 | Q104: 28.683883 | R104: 150.391891 | S104: 0 | T104: 27.150333 | U104: 20.898 | V104: 27.150333 | W104: 20.898 | X104: - | Y104: 0 | Z104: 0 | AA104: 27.23 | AB104: 27.13 | AC104: 27.09 | AD104: 20.93 | AE104: 20.85 | AF104: 20.92 | AG104: 27.68
A105: V17 | C105: =AVERAGE(C102:C104) -> 2.5 | D105: =AVERAGE(D102:D104) -> 547 | E105: =AVERAGE(E102:E104) -> 3.6 | F105: =AVERAGE(F102:F104) -> 3.5 | H105: =H104 -> 2016-09-19 | J105: =J104 -> TT | L105: =AVERAGE(L102:L104) -> 62.39656567 | M105: 16.177 | N105: 20.50466667 | O105: -4.327666667 | P105: -313.5363603 | Q105: 28.56302067 | R105: 149.6348997 | S105: 0 | T105: 27.154 | U105: 20.896111 | Z105: =AVERAGE(Z102:Z104) -> 0 | AA105: 27.23 | AB105: 27.14666667 | AC105: 27.09 | AD105: 20.92666667 | AE105: 20.84666667 | AF105: 20.92
B110: VKL 800, ISH-Prototyp
AE111: Nur 1 Zulufttemperaturfühler innerhalb des Kastens (Ausblas 1 und 2 nicht korrekt --> außerhalb des Schlitzes nicht messbar)
B113: VKL800; ISH Prototyp; 3,2mm Lamellenabstand, ohne Filter, ohne Isolierung Kondensatwanne | C113: 25 | D113: 723 | E113: 8.2 | F113: 5.6 | G113: 45 | H113: 2017-02-17 | I113: 10:51:21 | J113: TT | K113: VKL 800, Prototyp, kühlen | L113: 200.85119 | M113: 13.661 | N113: 15.663 | O113: -2.002 | P113: -466.887518 | Q113: 55.266041 | R113: =P113*3/(AF113-T113) -> 249.272567 | S113: 0 | T113: 22.109 | U113: 18.150333 | V113: 22.109 | W113: 18.150333 | X113: - | Y113: 0 | Z113: 0 | AA113: 22.11 | AB113: 22.2 | AC113: 22.02 | AD113: 18.2 | AE113: 19.76 | AF113: 16.49 | AG113: 22.3
B114: =CONCATENATE("mit ",ROUND(L116,0)," kg/h wasserseitig, ",ROUND(D116,0)," 1/min Drehzahl") -> mit 201 kg/h wasserseitig, 723 1/min Drehzahl | C114: 25 | D114: 723 | E114: 8.2 | F114: 5.6 | G114: 45 | H114: 2017-02-17 | I114: 10:52:03 | J114: TT | K114: VKL 800, Prototyp, kühlen | L114: 200.648091 | M114: 13.661 | N114: 15.662 | O114: -2.001 | P114: -466.182431 | Q114: 55.276364 | R114: =P114*3/(AF114-T114) -> 249.0881994 | S114: 0 | T114: 22.094667 | U114: 18.147333 | V114: 22.094667 | W114: 18.147333 | X114: - | Y114: 0 | Z114: 0 | AA114: 22.11 | AB114: 22.15 | AC114: 22.02 | AD114: 18.19 | AE114: 19.77 | AF114: 16.48 | AG114: 22.32
C115: 25 | D115: 723 | E115: 8.2 | F115: 5.6 | G115: 45 | H115: 2017-02-17 | I115: 10:52:45 | J115: TT | K115: VKL 800, Prototyp, kühlen | L115: 201.052062 | M115: 13.676 | N115: 15.665 | O115: -1.989 | P115: -464.319685 | Q115: 55.322255 | R115: =P115*3/(AF115-T115) -> 248.7871147 | S115: 0 | T115: 22.069 | U115: 18.134667 | V115: 22.069 | W115: 18.134667 | X115: - | Y115: 0 | Z115: 0 | AA115: 22.13 | AB115: 22.07 | AC115: 22.02 | AD115: 18.18 | AE115: 19.75 | AF115: 16.47 | AG115: 22.32
A116: V18 | B116: =B113 -> VKL800; ISH Prototyp; 3,2mm Lamellenabstand, ohne Filter, ohne Isolierung Kondensatwanne | C116: =AVERAGE(C113:C115) -> 25 | D116: =AVERAGE(D113:D115) -> 723 | E116: =AVERAGE(E113:E115) -> 8.2 | F116: =AVERAGE(F113:F115) -> 5.6 | H116: =H115 -> 2017-02-17 | J116: =J115 -> TT | L116: =AVERAGE(L113:L115) -> 200.8504477 | M116: 13.666 | N116: 15.66333333 | O116: -1.997333333 | P116: -465.7965447 | Q116: 55.28822 | R116: 249.0492937 | S116: 0 | T116: 22.090889 | U116: 18.144111 | Z116: =AVERAGE(Z113:Z115) -> 0 | AA116: 22.11666667 | AB116: 22.14 | AC116: 22.02 | AD116: 18.19 | AE116: 19.76 | AF116: 16.48
R118: =P116*3/(T116-AF116) -> -249.0495952
B120: VKL800; ISH Prototyp; 3,2mm Lamellenabstand, ohne Filter, mit Isolierung der Kondensatwanne | C120: 25 | D120: 728 | E120: 10 | F120: 5.6 | G120: ca. 45 | H120: 2017-02-17 | I120: 14:12:34 | J120: TT | K120: VKL 800, Prototyp, kühlen | L120: 201.375639 | M120: 13.717 | N120: 15.903 | O120: -2.186 | P120: -511.12941 | Q120: 54.543742 | R120: =P120*3/(AF120-T120) -> 243.0862762 | S120: 0 | T120: 23.088 | U120: 18.496667 | V120: 23.088 | W120: 18.496667 | X120: - | Y120: 0 | Z120: 0 | AA120: 23.11 | AB120: 23.09 | AC120: 23.06 | AD120: 18.13 | AE120: 20.58 | AF120: 16.78 | AG120: 23.4
B121: =CONCATENATE("mit ",ROUND(L123,0)," kg/h wasserseitig, ",ROUND(D123,0)," 1/min Drehzahl") -> mit 201 kg/h wasserseitig, 728 1/min Drehzahl | C121: 25 | D121: 728 | E121: 10 | F121: 5.6 | G121: ca. 45 | H121: 2017-02-17 | I121: 14:13:44 | J121: TT | K121: VKL 800, Prototyp, kühlen | L121: 201.049044 | M121: 13.699 | N121: 15.892 | O121: -2.193 | P121: -511.934532 | Q121: 54.443745 | R121: =P121*3/(AF121-T121) -> 242.9300215 | S121: 0 | T121: 23.102 | U121: 18.502 | V121: 23.102 | W121: 18.502 | X121: - | Y121: 0 | Z121: 0 | AA121: 23.13 | AB121: 23.11 | AC121: 23.07 | AD121: 18.14 | AE121: 20.58 | AF121: 16.78 | AG121: 23.4
C122: 25 | D122: 728 | E122: 10 | F122: 5.6 | G122: ca. 45 | H122: 2017-02-17 | I122: 14:15:50 | J122: TT | K122: VKL 800, Prototyp, kühlen | L122: 201.575991 | M122: 13.709 | N122: 15.892 | O122: -2.183 | P122: -510.935785 | Q122: 54.318273 | R122: =P122*3/(AF122-T122) -> 241.1844281 | S122: 0 | T122: 23.115333 | U122: 18.550333 | V122: 23.115333 | W122: 18.550333 | X122: - | Y122: 0 | Z122: 0 | AA122: 23.16 | AB122: 23.12 | AC122: 23.07 | AD122: 18.16 | AE122: 20.73 | AF122: 16.76 | AG122: 23.41
A123: V19 | B123: =B120 -> VKL800; ISH Prototyp; 3,2mm Lamellenabstand, ohne Filter, mit Isolierung der Kondensatwanne | C123: =AVERAGE(C120:C122) -> 25 | D123: =AVERAGE(D120:D122) -> 728 | E123: =AVERAGE(E120:E122) -> 10 | F123: =AVERAGE(F120:F122) -> 5.6 | H123: =H122 -> 2017-02-17 | J123: =J122 -> TT | L123: =AVERAGE(L120:L122) -> 201.333558 | M123: 13.70833333 | N123: 15.89566667 | O123: -2.187333333 | P123: -511.3332423 | Q123: 54.43525333 | R123: 242.4002419 | S123: 0 | T123: 23.10177767 | U123: 18.51633333 | Z123: =AVERAGE(Z120:Z122) -> 0 | AA123: 23.13333333 | AB123: 23.10666667 | AC123: 23.06666667 | AD123: 18.14333333 | AE123: 20.63 | AF123: 16.77333333
B126: VKL800; ISH Prototyp; 3,2mm Lamellenabstand, mit Filter, mit Isolierung der Kondensatwanne | C126: 25 | D126: 728 | E126: 8 | F126: 5.5 | G126: ca. 45 | H126: 2017-02-17 | I126: 14:49:26 | J126: TT | K126: VKL 800, Prototyp, kühlen | L126: 202.179173 | M126: 13.706 | N126: 15.683 | O126: -1.977 | P126: -464.105661 | Q126: 48.825816 | R126: =P126*3/(AF126-T126) -> 206.8411982 | S126: 0 | T126: 23.211333 | U126: 18.529 | V126: 23.211333 | W126: 18.529 | X126: - | Y126: 0 | Z126: 0 | AA126: 23.18 | AB126: 23.14 | AC126: 23.32 | AD126: 17.61 | AE126: 21.5 | AF126: 16.48 | AG126: 23.55
B127: =CONCATENATE("mit ",ROUND(L129,0)," kg/h wasserseitig, ",ROUND(D129,0)," 1/min Drehzahl") -> mit 202 kg/h wasserseitig, 728 1/min Drehzahl | C127: 25 | D127: 728 | E127: 8 | F127: 5.5 | G127: ca. 45 | H127: 2017-02-17 | I127: 14:49:40 | J127: TT | K127: VKL 800, Prototyp, kühlen | L127: 201.175852 | M127: 13.709 | N127: 15.678 | O127: -1.969 | P127: -459.933822 | Q127: 48.381832 | R127: =P127*3/(AF127-T127) -> 204.8601704 | S127: 0 | T127: 23.215333 | U127: 18.522 | V127: 23.215333 | W127: 18.522 | X127: - | Y127: 0 | Z127: 0 | AA127: 23.18 | AB127: 23.14 | AC127: 23.32 | AD127: 17.61 | AE127: 21.48 | AF127: 16.48 | AG127: 23.55
C128: 25 | D128: 728 | E128: 8 | F128: 5.5 | G128: ca. 45 | H128: 2017-02-17 | I128: 14:49:54 | J128: TT | K128: VKL 800, Prototyp, kühlen | L128: 201.576229 | M128: 13.714 | N128: 15.679 | O128: -1.965 | P128: -459.912964 | Q128: 48.430583 | R128: =P128*3/(AF128-T128) -> 204.698921 | S128: 0 | T128: 23.210333 | U128: 18.517 | V128: 23.210333 | W128: 18.517 | X128: - | Y128: 0 | Z128: 0 | AA128: 23.17 | AB128: 23.14 | AC128: 23.32 | AD128: 17.62 | AE128: 21.46 | AF128: 16.47 | AG128: 23.56
A129: V20 | B129: =B126 -> VKL800; ISH Prototyp; 3,2mm Lamellenabstand, mit Filter, mit Isolierung der Kondensatwanne | C129: =AVERAGE(C126:C128) -> 25 | D129: =AVERAGE(D126:D128) -> 728 | E129: =AVERAGE(E126:E128) -> 8 | F129: =AVERAGE(F126:F128) -> 5.5 | H129: =H128 -> 2017-02-17 | J129: =J128 -> TT | L129: =AVERAGE(L126:L128) -> 201.6437513 | M129: 13.70966667 | N129: 15.68 | O129: -1.970333333 | P129: -461.3174823 | Q129: 48.546077 | R129: 205.4667632 | S129: 0 | T129: 23.212333 | U129: 18.52266667 | Z129: =AVERAGE(Z126:Z128) -> 0 | AA129: 23.17666667 | AB129: 23.14 | AC129: 23.32 | AD129: 17.61333333 | AE129: 21.48 | AF129: 16.47666667
S131: =1/Q123*Q129 -> 0.8918131914 | T131: =1/R123*R129 -> 0.8476343156
B133: VKL800; ISH Prototyp; 3,2mm Lamellenabstand, mit Filter, mit Isolierung der Kondensatwanne | C133: 25 | D133: 751 | E133: 8 | F133: 5.5 | G133: ca. 45 | H133: 2017-02-17 | I133: 15:13:00 | J133: TT | K133: VKL 800, Prototyp, kühlen | L133: 201.176056 | M133: 13.711 | N133: 15.748 | O133: -2.037 | P133: -475.818254 | Q133: 49.829119 | R133: =P133*3/(AF133-T133) -> 213.0529496 | S133: 0 | T133: 23.26 | U133: 18.585333 | V133: 23.26 | W133: 18.585333 | X133: - | Y133: 0 | Z133: 0 | AA133: 23.21 | AB133: 23.17 | AC133: 23.4 | AD133: 17.68 | AE133: 21.51 | AF133: 16.56 | AG133: 23.64
B134: =CONCATENATE("mit ",ROUND(L136,0)," kg/h wasserseitig, ",ROUND(D136,0)," 1/min Drehzahl") -> mit 201 kg/h wasserseitig, 751 1/min Drehzahl | C134: 25 | D134: 751 | E134: 8 | F134: 5.5 | G134: ca. 45 | H134: 2017-02-17 | I134: 15:13:14 | J134: TT | K134: VKL 800, Prototyp, kühlen | L134: 201.576161 | M134: 13.707 | N134: 15.746 | O134: -2.039 | P134: -477.232681 | Q134: 49.980731 | R134: =P134*3/(AF134-T134) -> 213.5163225 | S134: 0 | T134: 23.255333 | U134: 18.590667 | V134: 23.255333 | W134: 18.590667 | X134: - | Y134: 0 | Z134: 0 | AA134: 23.2 | AB134: 23.16 | AC134: 23.4 | AD134: 17.69 | AE134: 21.54 | AF134: 16.55 | AG134: 23.64
C135: 25 | D135: 751 | E135: 8 | F135: 5.5 | G135: ca. 45 | H135: 2017-02-17 | I135: 15:13:28 | J135: TT | K135: VKL 800, Prototyp, kühlen | L135: 200.849755 | M135: 13.706 | N135: 15.754 | O135: -2.048 | P135: -477.61179 | Q135: 50.034409 | R135: =P135*3/(AF135-T135) -> 213.80283 | S135: 0 | T135: 23.251667 | U135: 18.590667 | V135: 23.251667 | W135: 18.590667 | X135: - | Y135: 0 | Z135: 0 | AA135: 23.19 | AB135: 23.16 | AC135: 23.4 | AD135: 17.68 | AE135: 21.54 | AF135: 16.55 | AG135: 23.64
A136: V21 | B136: =B133 -> VKL800; ISH Prototyp; 3,2mm Lamellenabstand, mit Filter, mit Isolierung der Kondensatwanne | C136: =AVERAGE(C133:C135) -> 25 | D136: =AVERAGE(D133:D135) -> 751 | E136: =AVERAGE(E133:E135) -> 8 | F136: =AVERAGE(F133:F135) -> 5.5 | H136: =H135 -> 2017-02-17 | J136: =J135 -> TT | L136: =AVERAGE(L133:L135) -> 201.2006573 | M136: 13.708 | N136: 15.74933333 | O136: -2.041333333 | P136: -476.887575 | Q136: 49.94808633 | R136: 213.4573673 | S136: 0 | T136: 23.25566667 | U136: 18.588889 | Z136: =AVERAGE(Z133:Z135) -> 0 | AA136: 23.2 | AB136: 23.16333333 | AC136: 23.4 | AD136: 17.68333333 | AE136: 21.53 | AF136: 16.55333333
B140: Drehzahlvariation
B142: 2017-02-20
B143: Druck = 990,3 mbar
B144: Feuchtigkeit = 24,6%
B145: Taupunkt = 2,9 °C
B147: VKL800; ISH Prototyp; 3,2mm Lamellenabstand, mit Filter, mit Isolierung der Kondensatwanne | C147: 24.9 | D147: 488 | E147: 3 | F147: 3.5 | H147: 2017-02-20 | I147: 08:15:37 | J147: TT | K147: VKL800, 4L, ISH-Prototyp | L147: 199.922454 | M147: 13.607 | N147: 14.795 | O147: -1.188 | P147: -275.773032 | Q147: 34.256101 | R147: 136.224419 | S147: 0 | T147: 21.657333 | U147: 15.611333 | V147: 21.657333 | W147: 15.611333 | X147: - | Y147: 0 | Z147: 0 | AA147: 21.65 | AB147: 21.62 | AC147: 21.7 | AD147: 15.74 | AE147: 15.57 | AF147: 15.53 | AG147: 21.21
B148: =CONCATENATE("mit ",ROUND(L150,0)," kg/h wasserseitig, ",ROUND(D150,0)," 1/min Drehzahl") -> mit 200 kg/h wasserseitig, 488 1/min Drehzahl | C148: 24.9 | D148: 488 | E148: 3 | F148: 3.5 | H148: 2017-02-20 | I148: 08:16:33 | J148: TT | K148: VKL800, 4L, ISH-Prototyp | L148: 200.252892 | M148: 13.616 | N148: 14.808 | O148: -1.192 | P148: -277.158903 | Q148: 34.423976 | R148: 136.465103 | S148: 0 | T148: 21.667333 | U148: 15.601667 | V148: 21.667333 | W148: 15.601667 | X148: - | Y148: 0 | Z148: 0 | AA148: 21.66 | AB148: 21.64 | AC148: 21.71 | AD148: 15.72 | AE148: 15.56 | AF148: 15.52 | AG148: 21.23
C149: 24.9 | D149: 488 | E149: 3 | F149: 3.5 | H149: 2017-02-20 | I149: 08:17:15 | J149: TT | K149: VKL800, 4L, ISH-Prototyp | L149: 199.723243 | M149: 13.614 | N149: 14.81 | O149: -1.196 | P149: -277.353449 | Q149: 34.389764 | R149: 136.201619 | S149: 0 | T149: 21.679 | U149: 15.597333 | V149: 21.679 | W149: 15.597333 | X149: - | Y149: 0 | Z149: 0 | AA149: 21.68 | AB149: 21.65 | AC149: 21.71 | AD149: 15.72 | AE149: 15.56 | AF149: 15.52 | AG149: 21.24
A150: V22 | B150: =B147 -> VKL800; ISH Prototyp; 3,2mm Lamellenabstand, mit Filter, mit Isolierung der Kondensatwanne | C150: =AVERAGE(C147:C149) -> 24.9 | D150: =AVERAGE(D147:D149) -> 488 | E150: =AVERAGE(E147:E149) -> 3 | F150: =AVERAGE(F147:F149) -> 3.5 | H150: =H149 -> 2017-02-20 | J150: =J149 -> TT | L150: =AVERAGE(L147:L149) -> 199.9661963 | M150: 13.61233333 | N150: 14.80433333 | O150: -1.192 | P150: -276.7617947 | Q150: 34.35661367 | R150: 136.297047 | S150: 0 | T150: 21.66788867 | U150: 15.60344433 | Z150: =AVERAGE(Z147:Z149) -> 0 | AA150: 21.66333333 | AB150: 21.63666667 | AC150: 21.70666667 | AD150: 15.72666667 | AE150: 15.56333333 | AF150: 15.52333333 | AG150: 21.22666667
B153: VKL800; ISH Prototyp; 3,2mm Lamellenabstand, mit Filter, mit Isolierung der Kondensatwanne | C153: 24.9 | D153: 800 | E153: 9 | F153: 6 | H153: 2017-02-20 | I153: 08:28:13 | J153: TT | K153: VKL800, 4L, ISH-Prototyp | L153: 199.324642 | M153: 13.634 | N153: 15.454 | O153: -1.82 | P153: -421.217262 | Q153: 51.207675 | R153: 223.934758 | S153: 0 | T153: 21.859667 | U153: 16.242 | V153: 21.859667 | W153: 16.242 | X153: - | Y153: 0 | Z153: 0 | AA153: 21.84 | AB153: 21.86 | AC153: 21.88 | AD153: 16.32 | AE153: 16.25 | AF153: 16.17 | AG153: 21.41
B154: =CONCATENATE("mit ",ROUND(L156,0)," kg/h wasserseitig, ",ROUND(D156,0)," 1/min Drehzahl") -> mit 199 kg/h wasserseitig, 800 1/min Drehzahl | C154: 24.9 | D154: 800 | E154: 9 | F154: 6 | H154: 2017-02-20 | I154: 08:28:55 | J154: TT | K154: VKL800, 4L, ISH-Prototyp | L154: 199.12854 | M154: 13.644 | N154: 15.452 | O154: -1.808 | P154: -418.028331 | Q154: 50.797351 | R154: 221.818222 | S154: 0 | T154: 21.873333 | U154: 16.245 | V154: 21.873333 | W154: 16.245 | X154: - | Y154: 0 | Z154: 0 | AA154: 21.86 | AB154: 21.88 | AC154: 21.88 | AD154: 16.32 | AE154: 16.25 | AF154: 16.17 | AG154: 21.43
C155: 24.9 | D155: 800 | E155: 9 | F155: 6 | H155: 2017-02-20 | I155: 08:29:09 | J155: TT | K155: VKL800, 4L, ISH-Prototyp | L155: 199.72209 | M155: 13.636 | N155: 15.457 | O155: -1.821 | P155: -422.289059 | Q155: 51.263188 | R155: 224.07909 | S155: 0 | T155: 21.873667 | U155: 16.245333 | V155: 21.873667 | W155: 16.245333 | X155: - | Y155: 0 | Z155: 0 | AA155: 21.86 | AB155: 21.88 | AC155: 21.88 | AD155: 16.32 | AE155: 16.25 | AF155: 16.17 | AG155: 21.43
A156: V23 | B156: =B153 -> VKL800; ISH Prototyp; 3,2mm Lamellenabstand, mit Filter, mit Isolierung der Kondensatwanne | C156: =AVERAGE(C153:C155) -> 24.9 | D156: =AVERAGE(D153:D155) -> 800 | E156: =AVERAGE(E153:E155) -> 9 | F156: =AVERAGE(F153:F155) -> 6 | H156: =H155 -> 2017-02-20 | J156: =J155 -> TT | L156: =AVERAGE(L153:L155) -> 199.3917573 | M156: 13.638 | N156: 15.45433333 | O156: -1.816333333 | P156: -420.5115507 | Q156: 51.08940467 | R156: 223.2773567 | S156: 0 | T156: 21.868889 | U156: 16.244111 | Z156: =AVERAGE(Z153:Z155) -> 0 | AA156: 21.85333333 | AB156: 21.87333333 | AC156: 21.88 | AD156: 16.32 | AE156: 16.25 | AF156: 16.17 | AG156: 21.42333333
B159: VKL800; ISH Prototyp; 3,2mm Lamellenabstand, mit Filter, mit Isolierung der Kondensatwanne | C159: 24.5 | D159: 1050 | E159: 16 | F159: 8 | H159: 2017-02-20 | I159: 08:40:07 | J159: TT | K159: VKL800, 4L, ISH-Prototyp | L159: 198.793772 | M159: 13.629 | N159: 15.828 | O159: -2.199 | P159: -507.576824 | Q159: 62.545407 | R159: 307.258067 | S159: 0 | T159: 21.744333 | U159: 16.810667 | V159: 21.744333 | W159: 16.810667 | X159: - | Y159: 0 | Z159: 0 | AA159: 21.7 | AB159: 21.73 | AC159: 21.8 | AD159: 16.87 | AE159: 16.82 | AF159: 16.75 | AG159: 21.51
B160: =CONCATENATE("mit ",ROUND(L162,0)," kg/h wasserseitig, ",ROUND(D162,0)," 1/min Drehzahl") -> mit 199 kg/h wasserseitig, 1050 1/min Drehzahl | C160: 24.5 | D160: 1050 | E160: 16 | F160: 8 | H160: 2017-02-20 | I160: 08:39:39 | J160: TT | K160: VKL800, 4L, ISH-Prototyp | L160: 199.723187 | M160: 13.639 | N160: 15.851 | O160: -2.212 | P160: -512.964594 | Q160: 63.318539 | R160: 310.540497 | S160: 0 | T160: 21.740333 | U160: 16.807 | V160: 21.740333 | W160: 16.807 | X160: - | Y160: 0 | Z160: 0 | AA160: 21.7 | AB160: 21.72 | AC160: 21.8 | AD160: 16.87 | AE160: 16.81 | AF160: 16.74 | AG160: 21.52
C161: 24.5 | D161: 1050 | E161: 16 | F161: 8 | H161: 2017-02-20 | I161: 08:40:35 | J161: TT | K161: VKL800, 4L, ISH-Prototyp | L161: 199.521388 | M161: 13.63 | N161: 15.832 | O161: -2.202 | P161: -510.129633 | Q161: 62.744 | R161: 308.365875 | S161: 0 | T161: 21.760333 | U161: 16.819667 | V161: 21.760333 | W161: 16.819667 | X161: - | Y161: 0 | Z161: 0 | AA161: 21.68 | AB161: 21.79 | AC161: 21.81 | AD161: 16.88 | AE161: 16.82 | AF161: 16.75 | AG161: 21.52
A162: V24 | B162: =B159 -> VKL800; ISH Prototyp; 3,2mm Lamellenabstand, mit Filter, mit Isolierung der Kondensatwanne | C162: =AVERAGE(C159:C161) -> 24.5 | D162: =AVERAGE(D159:D161) -> 1050 | E162: =AVERAGE(E159:E161) -> 16 | F162: =AVERAGE(F159:F161) -> 8 | H162: =H161 -> 2017-02-20 | J162: =J161 -> TT | L162: =AVERAGE(L159:L161) -> 199.3461157 | M162: 13.63266667 | N162: 15.837 | O162: -2.204333333 | P162: -510.2236837 | Q162: 62.86931533 | R162: 308.7214797 | S162: 0 | T162: 21.748333 | U162: 16.81244467 | Z162: =AVERAGE(Z159:Z161) -> 0 | AA162: 21.69333333 | AB162: 21.74666667 | AC162: 21.80333333 | AD162: 16.87333333 | AE162: 16.81666667 | AF162: 16.74666667 | AG162: 21.51666667
B165: VKL800; ISH Prototyp; 3,2mm Lamellenabstand, mit Filter, mit Isolierung der Kondensatwanne | C165: 24.5 | D165: 1146 | E165: 19 | F165: 10 | H165: 2017-02-20 | I165: 08:48:46 | J165: TT | K165: VKL800, 4L, ISH-Prototyp | L165: 199.725278 | M165: 13.631 | N165: 15.96 | O165: -2.329 | P165: -540.102644 | Q165: 66.70679 | R165: 340.665092 | S165: 0 | T165: 21.727667 | U165: 16.992667 | V165: 21.727667 | W165: 16.992667 | X165: - | Y165: 0 | Z165: 0 | AA165: 21.7 | AB165: 21.76 | AC165: 21.73 | AD165: 17.06 | AE165: 17 | AF165: 16.92 | AG165: 21.57
B166: =CONCATENATE("mit ",ROUND(L168,0)," kg/h wasserseitig, ",ROUND(D168,0)," 1/min Drehzahl") -> mit 199 kg/h wasserseitig, 1146 1/min Drehzahl | C166: 24.5 | D166: 1146 | E166: 19 | F166: 10 | H166: 2017-02-20 | I166: 08:49:14 | J166: TT | K166: VKL800, 4L, ISH-Prototyp | L166: 198.79133 | M166: 13.645 | N166: 15.961 | O166: -2.316 | P166: -534.576392 | Q166: 65.915708 | R166: 335.24422 | S166: 0 | T166: 21.755 | U166: 16.992667 | V166: 21.755 | W166: 16.992667 | X166: - | Y166: 0 | Z166: 0 | AA166: 21.73 | AB166: 21.8 | AC166: 21.73 | AD166: 17.05 | AE166: 17 | AF166: 16.93 | AG166: 21.56
C167: 24.5 | D167: 1146 | E167: 19 | F167: 10 | H167: 2017-02-20 | I167: 08:49:56 | J167: TT | K167: VKL800, 4L, ISH-Prototyp | L167: 198.793376 | M167: 13.648 | N167: 15.979 | O167: -2.331 | P167: -538.044212 | Q167: 66.231695 | R167: 336.523891 | S167: 0 | T167: 21.771667 | U167: 16.996667 | V167: 21.771667 | W167: 16.996667 | X167: - | Y167: 0 | Z167: 0 | AA167: 21.76 | AB167: 21.8 | AC167: 21.76 | AD167: 17.05 | AE167: 17 | AF167: 16.93 | AG167: 21.56
A168: V25 | B168: =B165 -> VKL800; ISH Prototyp; 3,2mm Lamellenabstand, mit Filter, mit Isolierung der Kondensatwanne | C168: =AVERAGE(C165:C167) -> 24.5 | D168: =AVERAGE(D165:D167) -> 1146 | E168: =AVERAGE(E165:E167) -> 19 | F168: =AVERAGE(F165:F167) -> 10 | H168: =H167 -> 2017-02-20 | J168: =J167 -> TT | L168: =AVERAGE(L165:L167) -> 199.103328 | M168: 13.64133333 | N168: 15.96666667 | O168: -2.325333333 | P168: -537.574416 | Q168: 66.284731 | R168: 337.4777343 | S168: 0 | T168: 21.75144467 | U168: 16.99400033 | Z168: =AVERAGE(Z165:Z167) -> 0 | AA168: 21.73 | AB168: 21.78666667 | AC168: 21.74 | AD168: 17.05333333 | AE168: 17 | AF168: 16.92666667 | AG168: 21.56333333
B172: Wassermengenvariation
B175: VKL800; ISH Prototyp; 3,2mm Lamellenabstand, mit Filter, mit Isolierung der Kondensatwanne | C175: 2.8 | D175: 748 | E175: 8 | F175: 5.6 | H175: 2017-02-20 | I175: 09:51:41 | J175: TT | K175: VKL800, 4L, ISH-Prototyp | L175: 62.135165 | M175: 13.814 | N175: 17.716 | O175: -3.902 | P175: -281.51303 | Q175: 34.970563 | R175: 212.50881 | S175: 0 | T175: 21.864 | U175: 17.907667 | V175: 21.864 | W175: 17.907667 | X175: - | Y175: 0 | Z175: 0 | AA175: 21.75 | AB175: 21.84 | AC175: 22 | AD175: 17.95 | AE175: 17.93 | AF175: 17.84 | AG175: 22.11
B176: =CONCATENATE("mit ",ROUND(L178,0)," kg/h wasserseitig, ",ROUND(D178,0)," 1/min Drehzahl") -> mit 62 kg/h wasserseitig, 748 1/min Drehzahl | C176: 2.8 | D176: 748 | E176: 8 | F176: 5.6 | H176: 2017-02-20 | I176: 09:52:09 | J176: TT | K176: VKL800, 4L, ISH-Prototyp | L176: 61.999256 | M176: 13.812 | N176: 17.735 | O176: -3.923 | P176: -282.409021 | Q176: 34.96748 | R176: 212.469129 | S176: 0 | T176: 21.888333 | U176: 17.918667 | V176: 21.888333 | W176: 17.918667 | X176: - | Y176: 0 | Z176: 0 | AA176: 21.78 | AB176: 21.88 | AC176: 22.01 | AD176: 17.96 | AE176: 17.94 | AF176: 17.85 | AG176: 22.11
C177: 2.8 | D177: 748 | E177: 8 | F177: 5.6 | H177: 2017-02-20 | I177: 09:52:23 | J177: TT | K177: VKL800, 4L, ISH-Prototyp | L177: 61.999111 | M177: 13.816 | N177: 17.742 | O177: -3.926 | P177: -282.624325 | Q177: 34.94366 | R177: 212.008031 | S177: 0 | T177: 21.904 | U177: 17.922667 | V177: 21.904 | W177: 17.922667 | X177: - | Y177: 0 | Z177: 0 | AA177: 21.8 | AB177: 21.9 | AC177: 22.01 | AD177: 17.97 | AE177: 17.94 | AF177: 17.85 | AG177: 22.12
A178: V26 | B178: =B175 -> VKL800; ISH Prototyp; 3,2mm Lamellenabstand, mit Filter, mit Isolierung der Kondensatwanne | C178: =AVERAGE(C175:C177) -> 2.8 | D178: =AVERAGE(D175:D177) -> 748 | E178: =AVERAGE(E175:E177) -> 8 | F178: =AVERAGE(F175:F177) -> 5.6 | H178: =H177 -> 2017-02-20 | J178: =J177 -> TT | L178: =AVERAGE(L175:L177) -> 62.04451067 | M178: 13.814 | N178: 17.731 | O178: -3.917 | P178: -282.1821253 | Q178: 34.96056767 | R178: 212.3286567 | S178: 0 | T178: 21.88544433 | U178: 17.91633367 | Z178: =AVERAGE(Z175:Z177) -> 0 | AA178: 21.77666667 | AB178: 21.87333333 | AC178: 22.00666667 | AD178: 17.96 | AE178: 17.93666667 | AF178: 17.84666667 | AG178: 22.11333333
B181: VKL800; ISH Prototyp; 3,2mm Lamellenabstand, mit Filter, mit Isolierung der Kondensatwanne | C181: 8.7 | D181: 748 | E181: 8 | F181: 5.6 | H181: 2017-02-20 | I181: 09:24:55 | J181: TT | K181: VKL800, 4L, ISH-Prototyp | L181: 111.944007 | M181: 13.696 | N181: 16.397 | O181: -2.701 | P181: -351.074442 | Q181: 43.702213 | R181: 212.621006 | S181: 0 | T181: 21.729333 | U181: 16.798 | V181: 21.729333 | W181: 16.798 | X181: - | Y181: 0 | Z181: 0 | AA181: 21.71 | AB181: 21.71 | AC181: 21.77 | AD181: 16.87 | AE181: 16.8 | AF181: 16.73 | AG181: 21.85
B182: =CONCATENATE("mit ",ROUND(L184,0)," kg/h wasserseitig, ",ROUND(D184,0)," 1/min Drehzahl") -> mit 112 kg/h wasserseitig, 748 1/min Drehzahl | C182: 8.7 | D182: 748 | E182: 8 | F182: 5.6 | H182: 2017-02-20 | I182: 09:25:51 | J182: TT | K182: VKL800, 4L, ISH-Prototyp | L182: 111.81206 | M182: 13.705 | N182: 16.388 | O182: -2.683 | P182: -348.323762 | Q182: 43.430086 | R182: 211.069251 | S182: 0 | T182: 21.725333 | U182: 16.796667 | V182: 21.725333 | W182: 16.796667 | X182: - | Y182: 0 | Z182: 0 | AA182: 21.73 | AB182: 21.7 | AC182: 21.74 | AD182: 16.87 | AE182: 16.79 | AF182: 16.73 | AG182: 21.87
C183: 8.7 | D183: 748 | E183: 8 | F183: 5.6 | H183: 2017-02-20 | I183: 09:26:33 | J183: TT | K183: VKL800, 4L, ISH-Prototyp | L183: 112.05444 | M183: 13.705 | N183: 16.456 | O183: -2.751 | P183: -357.926161 | Q183: 44.464718 | R183: 215.982245 | S183: 0 | T183: 21.754667 | U183: 16.805333 | V183: 21.754667 | W183: 16.805333 | X183: - | Y183: 0 | Z183: 0 | AA183: 21.76 | AB183: 21.74 | AC183: 21.77 | AD183: 16.88 | AE183: 16.8 | AF183: 16.74 | AG183: 21.87
A184: V27 | B184: =B181 -> VKL800; ISH Prototyp; 3,2mm Lamellenabstand, mit Filter, mit Isolierung der Kondensatwanne | C184: =AVERAGE(C181:C183) -> 8.7 | D184: =AVERAGE(D181:D183) -> 748 | E184: =AVERAGE(E181:E183) -> 8 | F184: =AVERAGE(F181:F183) -> 5.6 | H184: =H183 -> 2017-02-20 | J184: =J183 -> TT | L184: =AVERAGE(L181:L183) -> 111.9368357 | M184: 13.702 | N184: 16.41366667 | O184: -2.711666667 | P184: -352.441455 | Q184: 43.86567233 | R184: 213.2241673 | S184: 0 | T184: 21.73644433 | U184: 16.8 | Z184: =AVERAGE(Z181:Z183) -> 0 | AA184: 21.73333333 | AB184: 21.71666667 | AC184: 21.76 | AD184: 16.87333333 | AE184: 16.79666667 | AF184: 16.73333333 | AG184: 21.86333333
B187: VKL800; ISH Prototyp; 3,2mm Lamellenabstand, mit Filter, mit Isolierung der Kondensatwanne | C187: 39.2 | D187: 748 | E187: 8 | F187: 5.6 | H187: 2017-02-20 | I187: 10:09:42 | J187: TT | K187: VKL800, 4L, ISH-Prototyp | L187: 257.525343 | M187: 13.63 | N187: 15.069 | O187: -1.439 | P187: -430.283358 | Q187: 50.941203 | R187: 213.112317 | S187: 0 | T187: 22.076667 | U187: 16.046667 | V187: 22.076667 | W187: 16.046667 | X187: - | Y187: 0 | Z187: 0 | AA187: 22.07 | AB187: 22.04 | AC187: 22.12 | AD187: 16.13 | AE187: 16.04 | AF187: 15.97 | AG187: 22.26
B188: =CONCATENATE("mit ",ROUND(L190,0)," kg/h wasserseitig, ",ROUND(D190,0)," 1/min Drehzahl") -> mit 258 kg/h wasserseitig, 748 1/min Drehzahl | C188: 39.2 | D188: 748 | E188: 8 | F188: 5.6 | H188: 2017-02-20 | I188: 10:10:24 | J188: TT | K188: VKL800, 4L, ISH-Prototyp | L188: 257.526632 | M188: 13.631 | N188: 15.046 | O188: -1.415 | P188: -423.109102 | Q188: 50.30625 | R188: 210.419781 | S188: 0 | T188: 22.041667 | U188: 16.036333 | V188: 22.041667 | W188: 16.036333 | X188: - | Y188: 0 | Z188: 0 | AA188: 22.01 | AB188: 22.01 | AC188: 22.11 | AD188: 16.13 | AE188: 16.02 | AF188: 15.96 | AG188: 22.26
C189: 39.2 | D189: 748 | E189: 8 | F189: 5.6 | H189: 2017-02-20 | I189: 10:12:16 | J189: TT | K189: VKL800, 4L, ISH-Prototyp | L189: 260.39492 | M189: 13.637 | N189: 15.049 | O189: -1.412 | P189: -426.914578 | Q189: 51.009389 | R189: 212.99803 | S189: 0 | T189: 22.006333 | U189: 16.020333 | V189: 22.006333 | W189: 16.020333 | X189: - | Y189: 0 | Z189: 0 | AA189: 21.87 | AB189: 22.07 | AC189: 22.08 | AD189: 16.11 | AE189: 16.01 | AF189: 15.94 | AG189: 22.25
A190: V28 | B190: =B187 -> VKL800; ISH Prototyp; 3,2mm Lamellenabstand, mit Filter, mit Isolierung der Kondensatwanne | C190: =AVERAGE(C187:C189) -> 39.2 | D190: =AVERAGE(D187:D189) -> 748 | E190: =AVERAGE(E187:E189) -> 8 | F190: =AVERAGE(F187:F189) -> 5.6 | H190: =H189 -> 2017-02-20 | J190: =J189 -> TT | L190: =AVERAGE(L187:L189) -> 258.4822983 | M190: 13.63266667 | N190: 15.05466667 | O190: -1.422 | P190: -426.7690127 | Q190: 50.75228067 | R190: 212.1767093 | S190: 0 | T190: 22.04155567 | U190: 16.03444433 | Z190: =AVERAGE(Z187:Z189) -> 0 | AA190: 21.98333333 | AB190: 22.04 | AC190: 22.10333333 | AD190: 16.12333333 | AE190: 16.02333333 | AF190: 15.95666667 | AG190: 22.25666667
B193: VKL800; ISH Prototyp; 3,2mm Lamellenabstand, mit Filter, mit Isolierung der Kondensatwanne | C193: 55.8 | D193: 748 | E193: 8 | F193: 5.6 | H193: 2017-02-20 | I193: 10:29:17 | J193: TT | K193: VKL800, 4L, ISH-Prototyp | L193: 314.814648 | M193: 13.639 | N193: 14.858 | O193: -1.219 | P193: -445.586904 | Q193: 53.769386 | R193: 220.083611 | S193: 0 | T193: 21.926 | U193: 15.879333 | V193: 21.926 | W193: 15.879333 | X193: - | Y193: 0 | Z193: 0 | AA193: 21.89 | AB193: 21.88 | AC193: 22 | AD193: 15.97 | AE193: 15.87 | AF193: 15.8 | AG193: 22.27
B194: =CONCATENATE("mit ",ROUND(L196,0)," kg/h wasserseitig, ",ROUND(D196,0)," 1/min Drehzahl") -> mit 314 kg/h wasserseitig, 748 1/min Drehzahl | C194: 55.8 | D194: 748 | E194: 8 | F194: 5.6 | H194: 2017-02-20 | I194: 10:29:31 | J194: TT | K194: VKL800, 4L, ISH-Prototyp | L194: 313.998216 | M194: 13.64 | N194: 14.865 | O194: -1.225 | P194: -446.618852 | Q194: 53.815984 | R194: 220.144283 | S194: 0 | T194: 21.939 | U194: 15.88 | V194: 21.939 | W194: 15.88 | X194: - | Y194: 0 | Z194: 0 | AA194: 21.91 | AB194: 21.9 | AC194: 22.01 | AD194: 15.97 | AE194: 15.87 | AF194: 15.8 | AG194: 22.27
C195: 55.8 | D195: 748 | E195: 8 | F195: 5.6 | H195: 2017-02-20 | I195: 10:29:59 | J195: TT | K195: VKL800, 4L, ISH-Prototyp | L195: 313.373207 | M195: 13.65 | N195: 14.862 | O195: -1.212 | P195: -440.999668 | Q195: 53.013264 | R195: 216.576219 | S195: 0 | T195: 21.968667 | U195: 15.887333 | V195: 21.968667 | W195: 15.887333 | X195: - | Y195: 0 | Z195: 0 | AA195: 21.94 | AB195: 21.93 | AC195: 22.03 | AD195: 15.97 | AE195: 15.88 | AF195: 15.81 | AG195: 22.29
A196: V29 | B196: =B193 -> VKL800; ISH Prototyp; 3,2mm Lamellenabstand, mit Filter, mit Isolierung der Kondensatwanne | C196: =AVERAGE(C193:C195) -> 55.8 | D196: =AVERAGE(D193:D195) -> 748 | E196: =AVERAGE(E193:E195) -> 8 | F196: =AVERAGE(F193:F195) -> 5.6 | H196: =H195 -> 2017-02-20 | J196: =J195 -> TT | L196: =AVERAGE(L193:L195) -> 314.0620237 | M196: 13.643 | N196: 14.86166667 | O196: -1.218666667 | P196: -444.401808 | Q196: 53.532878 | R196: 218.9347043 | S196: 0 | T196: 21.94455567 | U196: 15.882222 | Z196: =AVERAGE(Z193:Z195) -> 0 | AA196: 21.91333333 | AB196: 21.90333333 | AC196: 22.01333333 | AD196: 15.97 | AE196: 15.87333333 | AF196: 15.80333333 | AG196: 22.27666667
B200: Messungen mit Schalldämmung
B202: VKL800; ISH Prototyp; 3,2mm Lamellenabstand, mit Filter, mit Isolierung der Kondensatwanne | C202: 25.5 | D202: 755 | E202: 9 | F202: 5.6 | H202: 2017-02-20 | I202: 13:10:31 | J202: TT | K202: VKL800, 4L, ISH-Prototyp | L202: 203.107819 | M202: 13.683 | N202: 15.623 | O202: -1.94 | P202: -457.511646 | Q202: 50.42562 | R202: 217.565872 | S202: 0 | T202: 22.756 | U202: 16.475667 | V202: 22.756 | W202: 16.475667 | X202: - | Y202: 0 | Z202: 0 | AA202: 22.71 | AB202: 22.73 | AC202: 22.82 | AD202: 16.56 | AE202: 16.48 | AF202: 16.39 | AG202: 22.97
B203: =CONCATENATE("mit ",ROUND(L205,0)," kg/h wasserseitig, ",ROUND(D205,0)," 1/min Drehzahl") -> mit 204 kg/h wasserseitig, 755 1/min Drehzahl | C203: 25.5 | D203: 755 | E203: 9 | F203: 5.6 | H203: 2017-02-20 | I203: 13:10:45 | J203: TT | K203: VKL800, 4L, ISH-Prototyp | L203: 204.441431 | M203: 13.684 | N203: 15.614 | O203: -1.93 | P203: -458.141889 | Q203: 50.433938 | R203: 217.530757 | S203: 0 | T203: 22.768 | U203: 16.478 | V203: 22.768 | W203: 16.478 | X203: - | Y203: 0 | Z203: 0 | AA203: 22.73 | AB203: 22.74 | AC203: 22.83 | AD203: 16.57 | AE203: 16.47 | AF203: 16.4 | AG203: 22.97
C204: 25.5 | D204: 755 | E204: 9 | F204: 5.6 | H204: 2017-02-20 | I204: 13:14:29 | J204: TT | K204: VKL800, 4L, ISH-Prototyp | L204: 203.828709 | M204: 13.681 | N204: 15.575 | O204: -1.894 | P204: -448.248773 | Q204: 49.339436 | R204: 212.450604 | S204: 0 | T204: 22.766 | U204: 16.464667 | V204: 22.766 | W204: 16.464667 | X204: - | Y204: 0 | Z204: 0 | AA204: 22.73 | AB204: 22.76 | AC204: 22.81 | AD204: 16.55 | AE204: 16.46 | AF204: 16.38 | AG204: 22.99
A205: V30 | B205: =B202 -> VKL800; ISH Prototyp; 3,2mm Lamellenabstand, mit Filter, mit Isolierung der Kondensatwanne | C205: =AVERAGE(C202:C204) -> 25.5 | D205: =AVERAGE(D202:D204) -> 755 | E205: =AVERAGE(E202:E204) -> 9 | F205: =AVERAGE(F202:F204) -> 5.6 | H205: =H204 -> 2017-02-20 | J205: =J204 -> TT | L205: =AVERAGE(L202:L204) -> 203.792653 | M205: 13.68266667 | N205: 15.604 | O205: -1.921333333 | P205: -454.6341027 | Q205: 50.06633133 | R205: 215.8490777 | S205: 0 | T205: 22.76333333 | U205: 16.472778 | Z205: =AVERAGE(Z202:Z204) -> 0 | AA205: 22.72333333 | AB205: 22.74333333 | AC205: 22.82 | AD205: 16.56 | AE205: 16.47 | AF205: 16.39 | AG205: 22.97666667
B208: VKL800; ISH Prototyp; 3,2mm Lamellenabstand, mit Filter, mit Isolierung der Kondensatwanne, mit 1cm Schalldämmung | C208: 26.1 | D208: 755 | E208: 9 | F208: 5.6 | H208: 2017-02-20 | I208: 14:09:20 | J208: TT | K208: VKL800, 4L, ISH-Prototyp | L208: 206.49105 | M208: 13.678 | N208: 15.58 | O208: -1.902 | P208: -456.021717 | Q208: 49.953085 | R208: 215.496272 | S208: 0 | T208: 22.807 | U208: 16.487 | V208: 22.807 | W208: 16.487 | X208: - | Y208: 0 | Z208: 0 | AA208: 22.77 | AB208: 22.75 | AC208: 22.9 | AD208: 16.45 | AE208: 16.59 | AF208: 16.42 | AG208: 23.19
B209: =CONCATENATE("mit ",ROUND(L211,0)," kg/h wasserseitig, ",ROUND(D211,0)," 1/min Drehzahl") -> mit 206 kg/h wasserseitig, 755 1/min Drehzahl | C209: 26.1 | D209: 755 | E209: 9 | F209: 5.6 | H209: 2017-02-20 | I209: 14:10:02 | J209: TT | K209: VKL800, 4L, ISH-Prototyp | L209: 205.570768 | M209: 13.685 | N209: 15.6 | O209: -1.915 | P209: -457.092314 | Q209: 50.35905 | R209: 217.481893 | S209: 0 | T209: 22.761667 | U209: 16.484667 | V209: 22.761667 | W209: 16.484667 | X209: - | Y209: 0 | Z209: 0 | AA209: 22.74 | AB209: 22.65 | AC209: 22.89 | AD209: 16.45 | AE209: 16.58 | AF209: 16.42 | AG209: 23.17
C210: 26.1 | D210: 755 | E210: 9 | F210: 5.6 | H210: 2017-02-20 | I210: 14:16:48 | J210: TT | K210: VKL800, 4L, ISH-Prototyp | L210: 206.794879 | M210: 13.686 | N210: 15.602 | O210: -1.916 | P210: -460.054269 | Q210: 50.468527 | R210: 217.654435 | S210: 0 | T210: 22.801667 | U210: 16.489 | V210: 22.801667 | W210: 16.489 | X210: - | Y210: 0 | Z210: 0 | AA210: 22.75 | AB210: 22.78 | AC210: 22.88 | AD210: 16.46 | AE210: 16.57 | AF210: 16.43 | AG210: 23.19
A211: V31 | B211: =B208 -> VKL800; ISH Prototyp; 3,2mm Lamellenabstand, mit Filter, mit Isolierung der Kondensatwanne, mit 1cm Schalldämmung | C211: =AVERAGE(C208:C210) -> 26.1 | D211: =AVERAGE(D208:D210) -> 755 | E211: =AVERAGE(E208:E210) -> 9 | F211: =AVERAGE(F208:F210) -> 5.6 | H211: =H210 -> 2017-02-20 | J211: =J210 -> TT | L211: =AVERAGE(L208:L210) -> 206.2855657 | M211: 13.683 | N211: 15.594 | O211: -1.911 | P211: -457.7227667 | Q211: 50.26022067 | R211: 216.8775333 | S211: 0 | T211: 22.79011133 | U211: 16.486889 | Z211: =AVERAGE(Z208:Z210) -> 0 | AA211: 22.75333333 | AB211: 22.72666667 | AC211: 22.89 | AD211: 16.45333333 | AE211: 16.58 | AF211: 16.42333333 | AG211: 23.18333333
B214: Drehzahlvariation - mit 2-2,5cm Schalldämmung, 3,2mm Lamellenabstand, mit Isolierung der Kondensatwanne, mit Filter
B215: immer mit 3,2mm Lamellenabstand und Isolierung der Kondensatwanne
B217: VKL800; ISH Prototyp; mit Filter, mit 2-2,5cm Schalldämmung | C217: 26.1 | D217: 748 | E217: 9 | F217: 5.6 | H217: 2017-02-20 | I217: 14:42:14 | J217: TT | K217: VKL800, 4L, ISH-Prototyp | L217: 206.700479 | M217: 13.678 | N217: 15.545 | O217: -1.867 | P217: -448.08415 | Q217: 48.738351 | R217: 213.479275 | S217: 0 | T217: 22.871667 | U217: 16.603 | V217: 22.871667 | W217: 16.603 | X217: - | Y217: 0 | Z217: 0 | AA217: 22.85 | AB217: 22.86 | AC217: 22.9 | AD217: 16.68 | AE217: 16.62 | AF217: 16.5 | AG217: 23.27
B218: =CONCATENATE("mit ",ROUND(L220,0)," kg/h wasserseitig, ",ROUND(D220,0)," 1/min Drehzahl") -> mit 206 kg/h wasserseitig, 748 1/min Drehzahl | C218: 26.1 | D218: 748 | E218: 9 | F218: 5.6 | H218: 2017-02-20 | I218: 14:42:42 | J218: TT | K218: VKL800, 4L, ISH-Prototyp | L218: 205.573504 | M218: 13.682 | N218: 15.531 | O218: -1.849 | P218: -441.344614 | Q218: 48.047097 | R218: 210.357865 | S218: 0 | T218: 22.867667 | U218: 16.601667 | V218: 22.867667 | W218: 16.601667 | X218: - | Y218: 0 | Z218: 0 | AA218: 22.86 | AB218: 22.85 | AC218: 22.89 | AD218: 16.68 | AE218: 16.63 | AF218: 16.5 | AG218: 23.29
C219: 26.1 | D219: 748 | E219: 9 | F219: 5.6 | H219: 2017-02-20 | I219: 14:46:26 | J219: TT | K219: VKL800, 4L, ISH-Prototyp | L219: 206.490473 | M219: 13.681 | N219: 15.538 | O219: -1.857 | P219: -445.231317 | Q219: 48.872812 | R219: 213.45948 | S219: 0 | T219: 22.791 | U219: 16.561667 | V219: 22.791 | W219: 16.561667 | X219: - | Y219: 0 | Z219: 0 | AA219: 22.77 | AB219: 22.77 | AC219: 22.84 | AD219: 16.64 | AE219: 16.58 | AF219: 16.46 | AG219: 23.28
A220: V32 | B220: =B217 -> VKL800; ISH Prototyp; mit Filter, mit 2-2,5cm Schalldämmung | C220: =AVERAGE(C217:C219) -> 26.1 | D220: =AVERAGE(D217:D219) -> 748 | E220: =AVERAGE(E217:E219) -> 9 | F220: =AVERAGE(F217:F219) -> 5.6 | H220: =H219 -> 2017-02-20 | J220: =J219 -> TT | L220: =AVERAGE(L217:L219) -> 206.2548187 | M220: 13.68033333 | N220: 15.538 | O220: -1.857666667 | P220: -444.8866937 | Q220: 48.55275333 | R220: 212.4322067 | S220: 0 | T220: 22.84344467 | U220: 16.588778 | Z220: =AVERAGE(Z217:Z219) -> 0 | AA220: 22.82666667 | AB220: 22.82666667 | AC220: 22.87666667 | AD220: 16.66666667 | AE220: 16.61 | AF220: 16.48666667 | AG220: 23.28
B223: VKL800; ISH Prototyp; mit Filter, mit 2-2,5cm Schalldämmung | C223: 26.1 | D223: 488 | E223: 3.5 | F223: 3.5 | H223: 2017-02-20 | I223: 15:03:28 | J223: TT | K223: VKL800, 4L, ISH-Prototyp | L223: 207.208842 | M223: 13.691 | N223: 14.926 | O223: -1.235 | P223: -297.131724 | Q223: 33.014636 | R223: 133.210187 | S223: 0 | T223: 22.691 | U223: 16.029333 | V223: 22.691 | W223: 16.029333 | X223: - | Y223: 0 | Z223: 0 | AA223: 22.68 | AB223: 22.66 | AC223: 22.73 | AD223: 16.14 | AE223: 16.04 | AF223: 15.91 | AG223: 23.32
B224: =CONCATENATE("mit ",ROUND(L226,0)," kg/h wasserseitig, ",ROUND(D226,0)," 1/min Drehzahl") -> mit 206 kg/h wasserseitig, 488 1/min Drehzahl | C224: 26.1 | D224: 488 | E224: 3.5 | F224: 3.5 | H224: 2017-02-20 | I224: 15:03:56 | J224: TT | K224: VKL800, 4L, ISH-Prototyp | L224: 205.360435 | M224: 13.678 | N224: 14.932 | O224: -1.254 | P224: -299.011639 | Q224: 33.152299 | R224: 133.8922 | S224: 0 | T224: 22.697333 | U224: 16.027667 | V224: 22.697333 | W224: 16.027667 | X224: - | Y224: 0 | Z224: 0 | AA224: 22.69 | AB224: 22.67 | AC224: 22.73 | AD224: 16.14 | AE224: 16.04 | AF224: 15.91 | AG224: 23.33
C225: 26.1 | D225: 488 | E225: 3.5 | F225: 3.5 | H225: 2017-02-20 | I225: 15:06:02 | J225: TT | K225: VKL800, 4L, ISH-Prototyp | L225: 206.083631 | M225: 13.684 | N225: 14.903 | O225: -1.219 | P225: -291.689626 | Q225: 32.547381 | R225: 130.783472 | S225: 0 | T225: 22.646 | U225: 15.985 | V225: 22.646 | W225: 15.985 | X225: - | Y225: 0 | Z225: 0 | AA225: 22.61 | AB225: 22.62 | AC225: 22.71 | AD225: 16.09 | AE225: 15.99 | AF225: 15.87 | AG225: 23.33
A226: V33 | B226: =B223 -> VKL800; ISH Prototyp; mit Filter, mit 2-2,5cm Schalldämmung | C226: =AVERAGE(C223:C225) -> 26.1 | D226: =AVERAGE(D223:D225) -> 488 | E226: =AVERAGE(E223:E225) -> 3.5 | F226: =AVERAGE(F223:F225) -> 3.5 | H226: =H225 -> 2017-02-20 | J226: =J225 -> TT | L226: =AVERAGE(L223:L225) -> 206.217636 | M226: 13.68433333 | N226: 14.92033333 | O226: -1.236 | P226: -295.9443297 | Q226: 32.904772 | R226: 132.6286197 | S226: 0 | T226: 22.678111 | U226: 16.014 | Z226: =AVERAGE(Z223:Z225) -> 0 | AA226: 22.66 | AB226: 22.65 | AC226: 22.72333333 | AD226: 16.12333333 | AE226: 16.02333333 | AF226: 15.89666667 | AG226: 23.32666667
B229: VKL800; ISH Prototyp; mit Filter, mit 2-2,5cm Schalldämmung | C229: 25.2 | D229: 1037 | E229: 16 | F229: 8 | H229: 2017-02-20 | I229: 16:19:19 | J229: TT | K229: VKL800, 4L, ISH-Prototyp | L229: 201.777542 | M229: 13.688 | N229: 16.026 | O229: -2.338 | P229: -547.761009 | Q229: 62.644214 | R229: 309.20893 | S229: 0 | T229: 22.432 | U229: 17.141333 | V229: 22.432 | W229: 17.141333 | X229: - | Y229: 0 | Z229: 0 | AA229: 22.37 | AB229: 22.39 | AC229: 22.54 | AD229: 17.15 | AE229: 17.19 | AF229: 17.08 | AG229: 22.99
B230: =CONCATENATE("mit ",ROUND(L232,0)," kg/h wasserseitig, ",ROUND(D232,0)," 1/min Drehzahl") -> mit 202 kg/h wasserseitig, 1037 1/min Drehzahl | C230: 25.2 | D230: 1037 | E230: 16 | F230: 8 | H230: 2017-02-20 | I230: 16:19:47 | J230: TT | K230: VKL800, 4L, ISH-Prototyp | L230: 202.502128 | M230: 13.69 | N230: 16.032 | O230: -2.342 | P230: -550.668537 | Q230: 62.849747 | R230: 310.010347 | S230: 0 | T230: 22.451667 | U230: 17.146667 | V230: 22.451667 | W230: 17.146667 | X230: - | Y230: 0 | Z230: 0 | AA230: 22.38 | AB230: 22.4 | AC230: 22.58 | AD230: 17.15 | AE230: 17.19 | AF230: 17.09 | AG230: 23
B231: -> Ventilator läuft instabil (pumpt) | C231: 25.2 | D231: 1037 | E231: 16 | F231: 8 | H231: 2017-02-20 | I231: 16:20:15 | J231: TT | K231: VKL800, 4L, ISH-Prototyp | L231: 201.978629 | M231: 13.69 | N231: 16.019 | O231: -2.329 | P231: -546.196218 | Q231: 62.209136 | R231: 306.664 | S231: 0 | T231: 22.47 | U231: 17.150667 | V231: 22.47 | W231: 17.150667 | X231: - | Y231: 0 | Z231: 0 | AA231: 22.35 | AB231: 22.46 | AC231: 22.6 | AD231: 17.16 | AE231: 17.2 | AF231: 17.1 | AG231: 22.97
A232: V34 | B232: =B229 -> VKL800; ISH Prototyp; mit Filter, mit 2-2,5cm Schalldämmung | C232: =AVERAGE(C229:C231) -> 25.2 | D232: =AVERAGE(D229:D231) -> 1037 | E232: =AVERAGE(E229:E231) -> 16 | F232: =AVERAGE(F229:F231) -> 8 | H232: =H231 -> 2017-02-20 | J232: =J231 -> TT | L232: =AVERAGE(L229:L231) -> 202.0860997 | M232: 13.68933333 | N232: 16.02566667 | O232: -2.336333333 | P232: -548.208588 | Q232: 62.567699 | R232: 308.627759 | S232: 0 | T232: 22.45122233 | U232: 17.14622233 | Z232: =AVERAGE(Z229:Z231) -> 0 | AA232: 22.36666667 | AB232: 22.41666667 | AC232: 22.57333333 | AD232: 17.15333333 | AE232: 17.19333333 | AF232: 17.09 | AG232: 22.98666667
B235: VKL800; ISH Prototyp; mit Filter, mit 2-2,5cm Schalldämmung | C235: 26.1 | D235: 1146 | E235: 23 | F235: 10 | H235: 2017-02-20 | I235: 16:34:00 | J235: TT | K235: VKL800, 4L, ISH-Prototyp | L235: 201.575596 | M235: 13.679 | N235: 16.209 | O235: -2.53 | P235: -592.15071 | Q235: 67.119512 | R235: 347.285574 | S235: 0 | T235: 22.501333 | U235: 17.409 | V235: 22.501333 | W235: 17.409 | X235: - | Y235: 0 | Z235: 0 | AA235: 22.42 | AB235: 22.46 | AC235: 22.63 | AD235: 17.42 | AE235: 17.45 | AF235: 17.36 | AG235: 22.89
B236: =CONCATENATE("mit ",ROUND(L238,0)," kg/h wasserseitig, ",ROUND(D238,0)," 1/min Drehzahl") -> mit 202 kg/h wasserseitig, 1146 1/min Drehzahl | C236: 26.1 | D236: 1146 | E236: 23 | F236: 10 | H236: 2017-02-20 | I236: 16:34:14 | J236: TT | K236: VKL800, 4L, ISH-Prototyp | L236: 201.775869 | M236: 13.68 | N236: 16.209 | O236: -2.529 | P236: -592.50475 | Q236: 66.992585 | R236: 346.246661 | S236: 0 | T236: 22.524333 | U236: 17.413667 | V236: 22.524333 | W236: 17.413667 | X236: - | Y236: 0 | Z236: 0 | AA236: 22.46 | AB236: 22.48 | AC236: 22.64 | AD236: 17.42 | AE236: 17.46 | AF236: 17.36 | AG236: 22.89
B237: -> Ventilator läuft instabil (pumpt) | C237: 26.1 | D237: 1146 | E237: 23 | F237: 10 | H237: 2017-02-20 | I237: 16:34:28 | J237: TT | K237: VKL800, 4L, ISH-Prototyp | L237: 202.29921 | M237: 13.681 | N237: 16.221 | O237: -2.54 | P237: -596.625326 | Q237: 67.258229 | R237: 347.002457 | S237: 0 | T237: 22.551667 | U237: 17.416667 | V237: 22.551667 | W237: 17.416667 | X237: - | Y237: 0 | Z237: 0 | AA237: 22.51 | AB237: 22.5 | AC237: 22.65 | AD237: 17.43 | AE237: 17.46 | AF237: 17.36 | AG237: 22.89
A238: V35 | B238: =B235 -> VKL800; ISH Prototyp; mit Filter, mit 2-2,5cm Schalldämmung | C238: =AVERAGE(C235:C237) -> 26.1 | D238: =AVERAGE(D235:D237) -> 1146 | E238: =AVERAGE(E235:E237) -> 23 | F238: =AVERAGE(F235:F237) -> 10 | H238: =H237 -> 2017-02-20 | J238: =J237 -> TT | L238: =AVERAGE(L235:L237) -> 201.8835583 | M238: 13.68 | N238: 16.213 | O238: -2.533 | P238: -593.760262 | Q238: 67.123442 | R238: 346.8448973 | S238: 0 | T238: 22.52577767 | U238: 17.41311133 | Z238: =AVERAGE(Z235:Z237) -> 0 | AA238: 22.46333333 | AB238: 22.48 | AC238: 22.64 | AD238: 17.42333333 | AE238: 17.45666667 | AF238: 17.36 | AG238: 22.89
B242: VKL800; ISH Prototyp; mit Filter, mit 2-2,5cm Schalldämmung | C242: 25.9 | D242: 737 | E242: 6 | F242: 5.6 | H242: 2017-02-21 | I242: 09:08:47 | J242: TT | K242: VKL800, 4L, ISH-Prototyp | L242: 204.956441 | M242: 13.617 | N242: 15.209 | O242: -1.592 | P242: -378.859704 | Q242: 48.484733 | R242: 210.849261 | S242: 0 | T242: 21.431 | U242: 16.064667 | V242: 21.431 | W242: 16.064667 | X242: - | Y242: 0 | Z242: 0 | AA242: 21.41 | AB242: 21.42 | AC242: 21.46 | AD242: 16.08 | AE242: 16.12 | AF242: 16 | AG242: 21.07
B243: =CONCATENATE("mit ",ROUND(L245,0)," kg/h wasserseitig, ",ROUND(D245,0)," 1/min Drehzahl") -> mit 205 kg/h wasserseitig, 737 1/min Drehzahl | C243: 25.9 | D243: 737 | E243: 6 | F243: 5.6 | H243: 2017-02-21 | I243: 09:09:01 | J243: TT | K243: VKL800, 4L, ISH-Prototyp | L243: 204.954497 | M243: 13.609 | N243: 15.222 | O243: -1.613 | P243: -383.853584 | Q243: 49.029708 | R243: 213.31054 | S243: 0 | T243: 21.438 | U243: 16.063667 | V243: 21.438 | W243: 16.063667 | X243: - | Y243: 0 | Z243: 0 | AA243: 21.43 | AB243: 21.43 | AC243: 21.46 | AD243: 16.08 | AE243: 16.11 | AF243: 16 | AG243: 21.07
C244: 25.9 | D244: 737 | E244: 6 | F244: 5.6 | H244: 2017-02-21 | I244: 09:09:15 | J244: TT | K244: VKL800, 4L, ISH-Prototyp | L244: 204.547689 | M244: 13.604 | N244: 15.209 | O244: -1.605 | P244: -381.191663 | Q244: 48.642067 | R244: 211.686864 | S244: 0 | T244: 21.440667 | U244: 16.062667 | V244: 21.440667 | W244: 16.062667 | X244: - | Y244: 0 | Z244: 0 | AA244: 21.42 | AB244: 21.43 | AC244: 21.47 | AD244: 16.08 | AE244: 16.11 | AF244: 15.99 | AG244: 21.07
A245: V36 | B245: =B242 -> VKL800; ISH Prototyp; mit Filter, mit 2-2,5cm Schalldämmung | C245: =AVERAGE(C242:C244) -> 25.9 | D245: =AVERAGE(D242:D244) -> 737 | E245: =AVERAGE(E242:E244) -> 6 | F245: =AVERAGE(F242:F244) -> 5.6 | H245: =H244 -> 2017-02-21 | J245: =J244 -> TT | L245: =AVERAGE(L242:L244) -> 204.8195423 | M245: 13.61 | N245: 15.21333333 | O245: -1.603333333 | P245: -381.3016503 | Q245: 48.718836 | R245: 211.9488883 | S245: 0 | T245: 21.43655567 | U245: 16.063667 | Z245: =AVERAGE(Z242:Z244) -> 0 | AA245: 21.42 | AB245: 21.42666667 | AC245: 21.46333333 | AD245: 16.08 | AE245: 16.11333333 | AF245: 15.99666667 | AG245: 21.07
B248: VKL800; ISH Prototyp; mit Filter, mit 2-2,5cm Schalldämmung | C248: 25.9 | D248: 1036 | E248: 14 | F248: 8 | H248: 2017-02-21 | I248: 09:15:33 | J248: TT | K248: VKL800, 4L, ISH-Prototyp | L248: 205.364222 | M248: 13.623 | N248: 15.695 | O248: -2.072 | P248: -494.069808 | Q248: 61.561217 | R248: 296.47767 | S248: 0 | T248: 21.648667 | U248: 16.671667 | V248: 21.648667 | W248: 16.671667 | X248: - | Y248: 0 | Z248: 0 | AA248: 21.64 | AB248: 21.62 | AC248: 21.69 | AD248: 16.68 | AE248: 16.71 | AF248: 16.63 | AG248: 21.17
B249: =CONCATENATE("mit ",ROUND(L251,0)," kg/h wasserseitig, ",ROUND(D251,0)," 1/min Drehzahl") -> mit 206 kg/h wasserseitig, 1036 1/min Drehzahl | C249: 25.9 | D249: 1036 | E249: 14 | F249: 8 | H249: 2017-02-21 | I249: 09:16:01 | J249: TT | K249: VKL800, 4L, ISH-Prototyp | L249: 205.362617 | M249: 13.628 | N249: 15.692 | O249: -2.064 | P249: -492.158356 | Q249: 61.338335 | R249: 295.845829 | S249: 0 | T249: 21.651667 | U249: 16.683333 | V249: 21.651667 | W249: 16.683333 | X249: - | Y249: 0 | Z249: 0 | AA249: 21.64 | AB249: 21.61 | AC249: 21.7 | AD249: 16.69 | AE249: 16.72 | AF249: 16.64 | AG249: 21.17
C250: 25.9 | D250: 1036 | E250: 14 | F250: 8 | H250: 2017-02-21 | I250: 09:16:15 | J250: TT | K250: VKL800, 4L, ISH-Prototyp | L250: 205.874021 | M250: 13.638 | N250: 15.687 | O250: -2.049 | P250: -489.798314 | Q250: 61.145809 | R250: 294.664397 | S250: 0 | T250: 21.648333 | U250: 16.684 | V250: 21.648333 | W250: 16.684 | X250: - | Y250: 0 | Z250: 0 | AA250: 21.63 | AB250: 21.61 | AC250: 21.71 | AD250: 16.69 | AE250: 16.72 | AF250: 16.64 | AG250: 21.17
A251: V37 | B251: =B248 -> VKL800; ISH Prototyp; mit Filter, mit 2-2,5cm Schalldämmung | C251: =AVERAGE(C248:C250) -> 25.9 | D251: =AVERAGE(D248:D250) -> 1036 | E251: =AVERAGE(E248:E250) -> 14 | F251: =AVERAGE(F248:F250) -> 8 | H251: =H250 -> 2017-02-21 | J251: =J250 -> TT | L251: =AVERAGE(L248:L250) -> 205.53362 | M251: 13.62966667 | N251: 15.69133333 | O251: -2.061666667 | P251: -492.008826 | Q251: 61.34845367 | R251: 295.662632 | S251: 0 | T251: 21.64955567 | U251: 16.67966667 | Z251: =AVERAGE(Z248:Z250) -> 0 | AA251: 21.63666667 | AB251: 21.61333333 | AC251: 21.7 | AD251: 16.68666667 | AE251: 16.71666667 | AF251: 16.63666667 | AG251: 21.17
B254: 4-4,5cm Schalldämmung, 3,2mm Lamellenabstand, mit Isolierung der Kondensatwanne, mit Filter
B256: VKL800; ISH Prototyp; mit Filter, mit 4-4,5cm Schalldämmung | C256: 25.8 | D256: 737 | E256: 4.5 | F256: 5.6 | H256: 2017-02-21 | I256: 09:48:13 | J256: TT | K256: VKL800, 4L, ISH-Prototyp | L256: 204.438198 | M256: 13.659 | N256: 15.183 | O256: -1.524 | P256: -361.760206 | Q256: 43.547092 | R256: 183.640578 | S256: 0 | T256: 21.966333 | U256: 16.083 | V256: 21.966333 | W256: 16.083 | X256: - | Y256: 0 | Z256: 0 | AA256: 21.97 | AB256: 21.96 | AC256: 21.97 | AD256: 16.07 | AE256: 16.14 | AF256: 16.04 | AG256: 21.63
B257: =CONCATENATE("mit ",ROUND(L259,0)," kg/h wasserseitig, ",ROUND(D259,0)," 1/min Drehzahl") -> mit 205 kg/h wasserseitig, 737 1/min Drehzahl | C257: 25.8 | D257: 737 | E257: 4.5 | F257: 5.6 | H257: 2017-02-21 | I257: 09:48:41 | J257: TT | K257: VKL800, 4L, ISH-Prototyp | L257: 205.164141 | M257: 13.65 | N257: 15.174 | O257: -1.524 | P257: -363.044786 | Q257: 43.565374 | R257: 184.000771 | S257: 0 | T257: 21.983333 | U257: 16.090667 | V257: 21.983333 | W257: 16.090667 | X257: - | Y257: 0 | Z257: 0 | AA257: 21.98 | AB257: 21.98 | AC257: 21.98 | AD257: 16.08 | AE257: 16.14 | AF257: 16.05 | AG257: 21.64
C258: 25.8 | D258: 737 | E258: 4.5 | F258: 5.6 | H258: 2017-02-21 | I258: 09:48:55 | J258: TT | K258: VKL800, 4L, ISH-Prototyp | L258: 204.547553 | M258: 13.641 | N258: 15.168 | O258: -1.527 | P258: -362.666221 | Q258: 43.420947 | R258: 183.621937 | S258: 0 | T258: 21.993333 | U258: 16.094667 | V258: 21.993333 | W258: 16.094667 | X258: - | Y258: 0 | Z258: 0 | AA258: 22 | AB258: 21.99 | AC258: 21.99 | AD258: 16.08 | AE258: 16.15 | AF258: 16.05 | AG258: 21.64
A259: V38 | B259: =B256 -> VKL800; ISH Prototyp; mit Filter, mit 4-4,5cm Schalldämmung | C259: =AVERAGE(C256:C258) -> 25.8 | D259: =AVERAGE(D256:D258) -> 737 | E259: =AVERAGE(E256:E258) -> 4.5 | F259: =AVERAGE(F256:F258) -> 5.6 | H259: =H258 -> 2017-02-21 | J259: =J258 -> TT | L259: =AVERAGE(L256:L258) -> 204.7166307 | M259: 13.65 | N259: 15.175 | O259: -1.525 | P259: -362.4904043 | Q259: 43.51113767 | R259: 183.7544287 | S259: 0 | T259: 21.98099967 | U259: 16.08944467 | Z259: =AVERAGE(Z256:Z258) -> 0 | AA259: 21.98333333 | AB259: 21.97666667 | AC259: 21.98 | AD259: 16.07666667 | AE259: 16.14333333 | AF259: 16.04666667 | AG259: 21.63666667
B262: 3-3,5cm Schalldämmung, 3,2mm Lamellenabstand, mit Isolierung der Kondensatwanne, mit Filter
B264: VKL800; ISH Prototyp; mit Filter, mit 3-3,5cm Schalldämmung | C264: 25.8 | D264: 725 | E264: 5 | F264: 5.6 | H264: 2017-02-21 | I264: 10:06:11 | J264: TT | K264: VKL800, 4L, ISH-Prototyp | L264: 204.955514 | M264: 13.658 | N264: 15.368 | O264: -1.71 | P264: -406.939174 | Q264: 47.647238 | R264: 206.131013 | S264: 0 | T264: 22.198667 | U264: 16.302667 | V264: 22.198667 | W264: 16.302667 | X264: - | Y264: 0 | Z264: 0 | AA264: 22.22 | AB264: 22.18 | AC264: 22.2 | AD264: 16.29 | AE264: 16.35 | AF264: 16.27 | AG264: 21.92
B265: =CONCATENATE("mit ",ROUND(L267,0)," kg/h wasserseitig, ",ROUND(D267,0)," 1/min Drehzahl") -> mit 205 kg/h wasserseitig, 725 1/min Drehzahl | C265: 25.8 | D265: 725 | E265: 5 | F265: 5.6 | H265: 2017-02-21 | I265: 10:06:25 | J265: TT | K265: VKL800, 4L, ISH-Prototyp | L265: 204.033164 | M265: 13.658 | N265: 15.367 | O265: -1.709 | P265: -404.870943 | Q265: 47.360712 | R265: 205.013828 | S265: 0 | T265: 22.206667 | U265: 16.308667 | V265: 22.206667 | W265: 16.308667 | X265: - | Y265: 0 | Z265: 0 | AA265: 22.24 | AB265: 22.18 | AC265: 22.2 | AD265: 16.3 | AE265: 16.36 | AF265: 16.27 | AG265: 21.93
C266: 25.8 | D266: 725 | E266: 5 | F266: 5.6 | H266: 2017-02-21 | I266: 10:06:39 | J266: TT | K266: VKL800, 4L, ISH-Prototyp | L266: 204.749669 | M266: 13.651 | N266: 15.381 | O266: -1.73 | P266: -411.285209 | Q266: 48.039855 | R266: 208.097157 | S266: 0 | T266: 22.212333 | U266: 16.309667 | V266: 22.212333 | W266: 16.309667 | X266: - | Y266: 0 | Z266: 0 | AA266: 22.25 | AB266: 22.18 | AC266: 22.2 | AD266: 16.29 | AE266: 16.36 | AF266: 16.28 | AG266: 21.93
A267: V39 | B267: =B264 -> VKL800; ISH Prototyp; mit Filter, mit 3-3,5cm Schalldämmung | C267: =AVERAGE(C264:C266) -> 25.8 | D267: =AVERAGE(D264:D266) -> 725 | E267: =AVERAGE(E264:E266) -> 5 | F267: =AVERAGE(F264:F266) -> 5.6 | H267: =H266 -> 2017-02-21 | J267: =J266 -> TT | L267: =AVERAGE(L264:L266) -> 204.579449 | M267: 13.65566667 | N267: 15.372 | O267: -1.716333333 | P267: -407.698442 | Q267: 47.68260167 | R267: 206.4139993 | S267: 0 | T267: 22.205889 | U267: 16.30700033 | Z267: =AVERAGE(Z264:Z266) -> 0 | AA267: 22.23666667 | AB267: 22.18 | AC267: 22.2 | AD267: 16.29333333 | AE267: 16.35666667 | AF267: 16.27333333 | AG267: 21.92666667
B270: Drehzahlvariation - mit 3-3,5cm Schalldämmung, 3,2mm Lamellenabstand, mit Isolierung der Kondensatwanne, mit Filter, mit 3D-Strömung
B271: immer mit 3,2mm Lamellenabstand und Isolierung der Kondensatwanne
B274: VKL800; ISH Prototyp; mit Filter, mit 3-3,5cm Schalldämmung, mit 3D-Strömung | C274: 25.8 | D274: 725 | E274: 6 | F274: 5.6 | H274: 2017-02-21 | I274: 13:12:47 | J274: TT | K274: VKL800, 4L, ISH-Prototyp | L274: 204.031876 | M274: 13.698 | N274: 15.521 | O274: -1.823 | P274: -431.875405 | Q274: 47.058921 | R274: 201.377364 | S274: 0 | T274: 22.875333 | U274: 16.470333 | V274: 22.875333 | W274: 16.470333 | X274: - | Y274: 0 | Z274: 0 | AA274: 22.8 | AB274: 22.9 | AC274: 22.92 | AD274: 16.52 | AE274: 16.56 | AF274: 16.33 | AG274: 23.21
B275: =CONCATENATE("mit ",ROUND(L277,0)," kg/h wasserseitig, ",ROUND(D277,0)," 1/min Drehzahl") -> mit 204 kg/h wasserseitig, 725 1/min Drehzahl | C275: 25.8 | D275: 725 | E275: 6 | F275: 5.6 | H275: 2017-02-21 | I275: 13:13:01 | J275: TT | K275: VKL800, 4L, ISH-Prototyp | L275: 204.44099 | M275: 13.698 | N275: 15.516 | O275: -1.818 | P275: -431.554486 | Q275: 47.070113 | R275: 201.626465 | S275: 0 | T275: 22.866333 | U275: 16.474 | V275: 22.866333 | W275: 16.474 | X275: - | Y275: 0 | Z275: 0 | AA275: 22.81 | AB275: 22.87 | AC275: 22.92 | AD275: 16.52 | AE275: 16.56 | AF275: 16.34 | AG275: 23.2
C276: 25.8 | D276: 725 | E276: 6 | F276: 5.6 | H276: 2017-02-21 | I276: 13:13:15 | J276: TT | K276: VKL800, 4L, ISH-Prototyp | L276: 204.031401 | M276: 13.697 | N276: 15.534 | O276: -1.837 | P276: -435.191044 | Q276: 47.47884 | R276: 203.505904 | S276: 0 | T276: 22.863 | U276: 16.476333 | V276: 22.863 | W276: 16.476333 | X276: - | Y276: 0 | Z276: 0 | AA276: 22.8 | AB276: 22.85 | AC276: 22.93 | AD276: 16.52 | AE276: 16.56 | AF276: 16.34 | AG276: 23.22
A277: V40 | B277: =B274 -> VKL800; ISH Prototyp; mit Filter, mit 3-3,5cm Schalldämmung, mit 3D-Strömung | C277: =AVERAGE(C274:C276) -> 25.8 | D277: =AVERAGE(D274:D276) -> 725 | E277: =AVERAGE(E274:E276) -> 6 | F277: =AVERAGE(F274:F276) -> 5.6 | H277: =H276 -> 2017-02-21 | J277: =J276 -> TT | L277: =AVERAGE(L274:L276) -> 204.168089 | M277: 13.69766667 | N277: 15.52366667 | O277: -1.826 | P277: -432.873645 | Q277: 47.20262467 | R277: 202.169911 | S277: 0 | T277: 22.868222 | U277: 16.47355533 | Z277: =AVERAGE(Z274:Z276) -> 0 | AA277: 22.80333333 | AB277: 22.87333333 | AC277: 22.92333333 | AD277: 16.52 | AE277: 16.56 | AF277: 16.33666667 | AG277: 23.21
B280: VKL800; ISH Prototyp; mit Filter, mit 3-3,5cm Schalldämmung, mit 3D-Strömung | C280: 25.8 | D280: 477 | E280: 2.5 | F280: 3.5 | H280: 2017-02-21 | I280: 13:31:27 | J280: TT | K280: VKL800, 4L, ISH-Prototyp | L280: 204.032961 | M280: 13.688 | N280: 14.927 | O280: -1.239 | P280: -293.525218 | Q280: 32.137798 | R280: 128.550809 | S280: 0 | T280: 22.821333 | U280: 16.002 | V280: 22.821333 | W280: 16.002 | X280: - | Y280: 0 | Z280: 0 | AA280: 22.82 | AB280: 22.82 | AC280: 22.83 | AD280: 16.08 | AE280: 16.13 | AF280: 15.79 | AG280: 23.28
B281: =CONCATENATE("mit ",ROUND(L283,0)," kg/h wasserseitig, ",ROUND(D283,0)," 1/min Drehzahl") -> mit 204 kg/h wasserseitig, 477 1/min Drehzahl | C281: 25.8 | D281: 477 | E281: 2.5 | F281: 3.5 | H281: 2017-02-21 | I281: 13:31:41 | J281: TT | K281: VKL800, 4L, ISH-Prototyp | L281: 204.232556 | M281: 13.694 | N281: 14.922 | O281: -1.228 | P281: -291.203855 | Q281: 31.895274 | R281: 127.546626 | S281: 0 | T281: 22.824 | U281: 16.005333 | V281: 22.824 | W281: 16.005333 | X281: - | Y281: 0 | Z281: 0 | AA281: 22.82 | AB281: 22.82 | AC281: 22.84 | AD281: 16.08 | AE281: 16.14 | AF281: 15.8 | AG281: 23.28
C282: 25.8 | D282: 477 | E282: 2.5 | F282: 3.5 | H282: 2017-02-21 | I282: 13:31:55 | J282: TT | K282: VKL800, 4L, ISH-Prototyp | L282: 204.74916 | M282: 13.697 | N282: 14.934 | O282: -1.237 | P282: -294.080081 | Q282: 32.216186 | R282: 128.743469 | S282: 0 | T282: 22.825333 | U282: 16.003333 | V282: 22.825333 | W282: 16.003333 | X282: - | Y282: 0 | Z282: 0 | AA282: 22.81 | AB282: 22.83 | AC282: 22.84 | AD282: 16.08 | AE282: 16.13 | AF282: 15.79 | AG282: 23.28
A283: V41 | B283: =B280 -> VKL800; ISH Prototyp; mit Filter, mit 3-3,5cm Schalldämmung, mit 3D-Strömung | C283: =AVERAGE(C280:C282) -> 25.8 | D283: =AVERAGE(D280:D282) -> 477 | E283: =AVERAGE(E280:E282) -> 2.5 | F283: =AVERAGE(F280:F282) -> 3.5 | H283: =H282 -> 2017-02-21 | J283: =J282 -> TT | L283: =AVERAGE(L280:L282) -> 204.3382257 | M283: 13.693 | N283: 14.92766667 | O283: -1.234666667 | P283: -292.9363847 | Q283: 32.083086 | R283: 128.2803013 | S283: 0 | T283: 22.82355533 | U283: 16.00355533 | Z283: =AVERAGE(Z280:Z282) -> 0 | AA283: 22.81666667 | AB283: 22.82333333 | AC283: 22.83666667 | AD283: 16.08 | AE283: 16.13333333 | AF283: 15.79333333 | AG283: 23.28
B286: VKL800; ISH Prototyp; mit Filter, mit 3-3,5cm Schalldämmung, mit 3D-Strömung | C286: 25.2 | D286: 1037 | E286: 15 | F286: 8 | H286: 2017-02-21 | I286: 14:15:48 | J286: TT | K286: VKL800, 4L, ISH-Prototyp | L286: 201.376917 | M286: 13.714 | N286: 16.194 | O286: -2.48 | P286: -579.876019 | Q286: 62.171761 | R286: 302.680128 | S286: 0 | T286: 23.041 | U286: 17.319333 | V286: 23.041 | W286: 17.319333 | X286: - | Y286: 0 | Z286: 0 | AA286: 22.99 | AB286: 23.09 | AC286: 23.04 | AD286: 17.36 | AE286: 17.37 | AF286: 17.23 | AG286: 23.27
B287: =CONCATENATE("mit ",ROUND(L289,0)," kg/h wasserseitig, ",ROUND(D289,0)," 1/min Drehzahl") -> mit 202 kg/h wasserseitig, 1037 1/min Drehzahl | C287: 25.2 | D287: 1037 | E287: 15 | F287: 8 | H287: 2017-02-21 | I287: 14:16:02 | J287: TT | K287: VKL800, 4L, ISH-Prototyp | L287: 201.776536 | M287: 13.715 | N287: 16.201 | O287: -2.486 | P287: -582.432454 | Q287: 62.365612 | R287: 303.484108 | S287: 0 | T287: 23.054 | U287: 17.322333 | V287: 23.054 | W287: 17.322333 | X287: - | Y287: 0 | Z287: 0 | AA287: 23.01 | AB287: 23.1 | AC287: 23.05 | AD287: 17.36 | AE287: 17.38 | AF287: 17.23 | AG287: 23.27
C288: 25.2 | D288: 1037 | E288: 15 | F288: 8 | H288: 2017-02-21 | I288: 14:16:16 | J288: TT | K288: VKL800, 4L, ISH-Prototyp | L288: 202.702989 | M288: 13.719 | N288: 16.194 | O288: -2.475 | P288: -582.517714 | Q288: 62.330247 | R288: 303.158292 | S288: 0 | T288: 23.064667 | U288: 17.326 | V288: 23.064667 | W288: 17.326 | X288: - | Y288: 0 | Z288: 0 | AA288: 23.03 | AB288: 23.11 | AC288: 23.06 | AD288: 17.36 | AE288: 17.38 | AF288: 17.23 | AG288: 23.28
A289: V42 | B289: =B286 -> VKL800; ISH Prototyp; mit Filter, mit 3-3,5cm Schalldämmung, mit 3D-Strömung | C289: =AVERAGE(C286:C288) -> 25.2 | D289: =AVERAGE(D286:D288) -> 1037 | E289: =AVERAGE(E286:E288) -> 15 | F289: =AVERAGE(F286:F288) -> 8 | H289: =H288 -> 2017-02-21 | J289: =J288 -> TT | L289: =AVERAGE(L286:L288) -> 201.9521473 | M289: 13.716 | N289: 16.19633333 | O289: -2.480333333 | P289: -581.608729 | Q289: 62.28920667 | R289: 303.1075093 | S289: 0 | T289: 23.05322233 | U289: 17.32255533 | Z289: =AVERAGE(Z286:Z288) -> 0 | AA289: 23.01 | AB289: 23.1 | AC289: 23.05 | AD289: 17.36 | AE289: 17.37666667 | AF289: 17.23 | AG289: 23.27333333
B292: VKL800; ISH Prototyp; mit Filter, mit 3-3,5cm Schalldämmung, mit 3D-Strömung | C292: 25.2 | D292: 1145 | E292: 19 | F292: 10 | H292: 2017-02-21 | I292: 14:26:32 | J292: TT | K292: VKL800, 4L, ISH-Prototyp | L292: 204.438266 | M292: 13.721 | N292: 16.347 | O292: -2.626 | P292: -623.348174 | Q292: 66.507025 | R292: 337.972833 | S292: 0 | T292: 23.093667 | U292: 17.585333 | V292: 23.093667 | W292: 17.585333 | X292: - | Y292: 0 | Z292: 0 | AA292: 22.91 | AB292: 23.18 | AC292: 23.2 | AD292: 17.62 | AE292: 17.64 | AF292: 17.49 | AG292: 23.3
B293: =CONCATENATE("mit ",ROUND(L295,0)," kg/h wasserseitig, ",ROUND(D295,0)," 1/min Drehzahl") -> mit 204 kg/h wasserseitig, 1145 1/min Drehzahl | C293: 25.2 | D293: 1145 | E293: 19 | F293: 10 | H293: 2017-02-21 | I293: 14:26:46 | J293: TT | K293: VKL800, 4L, ISH-Prototyp | L293: 204.030078 | M293: 13.726 | N293: 16.365 | O293: -2.639 | P293: -625.183299 | Q293: 66.707565 | R293: 338.701366 | S293: 0 | T293: 23.098 | U293: 17.585333 | V293: 23.098 | W293: 17.585333 | X293: - | Y293: 0 | Z293: 0 | AA293: 22.92 | AB293: 23.18 | AC293: 23.2 | AD293: 17.62 | AE293: 17.64 | AF293: 17.49 | AG293: 23.3
C294: 25.2 | D294: 1145 | E294: 19 | F294: 10 | H294: 2017-02-21 | I294: 14:27:00 | J294: TT | K294: VKL800, 4L, ISH-Prototyp | L294: 203.423189 | M294: 13.726 | N294: 16.369 | O294: -2.643 | P294: -624.268474 | Q294: 66.550777 | R294: 338.083091 | S294: 0 | T294: 23.106333 | U294: 17.591667 | V294: 23.106333 | W294: 17.591667 | X294: - | Y294: 0 | Z294: 0 | AA294: 22.94 | AB294: 23.18 | AC294: 23.2 | AD294: 17.63 | AE294: 17.65 | AF294: 17.5 | AG294: 23.3
... 213 more rows

Sheet Plau_kuehlen (hidden)
A1: Kühlen | J1: von Zeile | K1: 7 | W1: 4 | X1: Drehzahl [1/min] | XFB1: 1
J2: bis Zeile | K2: 28 | W2: 18 | X2: V Sek [m³/h]
J3: =VKL!A3 -> Auslegetool: VKL-Deckengerät, 4L (3,2mm), mit Filter
B4: 1 | D4: 2 | H4: 12 | J4: 13 | N4: 16 | O4: 17 | R4: 20 | X4: =IF(VKL!AF7=2,Plau_kuehlen!W1,Plau_kuehlen!W2) -> 18 | Y4: 6
A5: Messung | B5: Letzte Zeile Messung | C5: Messung (Tabellenblatt) NAMEN EINFÜGEN !!! | D5: Messpunkt (z.B. Spannung, Wassermenge, Vorlauftemepratur, …) | E5: T Halle [°C] | F5: rF Halle [%] | G5: Hallendruck [Pa] | H5: Wassermenge [kg/h] | I5: dP Wasser [kPa] | J5: T Wasser Vorlauf [°C] | K5: T Wasser Rücklauf [°C] | M5: T Wasser Spreizung [K] | N5: Q Sek [W] | O5: q Sek [W/K] | P5: V Sek [m³/h] | Q5: i [-] | R5: T Ansaug mean [°C] | S5: T Ausblas mean [°C] | T5: T WT in [°C] | U5: T WT out [°C] | V5: dP Luft [Pa] | W5: dP V_Prim [Pa] | X5: =IF(X4=W1,X1,X2) -> V Sek [m³/h] | Y5: Spannung [V] | Z5: Messstrecke | AA5: Wirkdruck | AB5: V Prim [m³/h] | AC5: T Ansaug 1 | AD5: T Ansaug 2 | AE5: T Ansaug 3 | AF5: T Ausblas 1 | AG5: T Ausblas 2 | AH5: T Ausblas 3 | AI5: T Primärluft | AJ5: T frei | AK5: T Ansaug 1 Rot. [°C] | AL5: rF Ansaug 1 Rot. [%] | AM5: T Ansaug 2 Rot. [°C] | AN5: rF Ansaug 2 Rot. [%] | AO5: T Ausblas 1 Rot. [°C] | AP5: rF Ausblas 1 Rot. [%] | AQ5: T Ausblas 2 Rot. [°C] | AR5: rF Ausblas 2 Rot. [%] | AS5: T Primärluft Rot. [°C] | AT5: rF Primärluft Rot. [%] | AU5: T Frei Rot. [°C] | AV5: rF Frei Rot. [%] | AW5: Beharrungszustand [min] | AX5: Beharrungszustand (1=T) | AZ5: ΔΘ (T_Ansaug_mean - T_W_Mittel) [K] | BA5: ΔΘ (T_Ansaugs_mean - T_W_Vorlauf) [K] | BB5: T_W_Mittel [°C] | BD5: q_Sek_Mittel [W/K] | BE5: q_Sek_Vorlauf [W/K] | BG5: Datum | BH5: Start Messwert | BI5: Ende Messwert | BK5: Erste Zeile | BL5: Letzte Zeile | BN5: Diagramm-Überschrift
A6: 1 | B6: 2 | C6: 3 | D6: 4 | E6: 5 | F6: 6 | G6: 7 | H6: 8 | I6: 9 | J6: 10 | K6: 11 | M6: 12 | N6: 13 | O6: 14 | P6: 15 | Q6: 16 | R6: 17 | S6: 18 | T6: 19 | U6: 20 | V6: 21 | W6: 22 | X6: 23 | Y6: 24 | Z6: 25 | AA6: 26 | AB6: 27 | AC6: 28 | AD6: 29 | AE6: 30 | AF6: 31 | AG6: 32 | AH6: 33 | AI6: 34 | AJ6: 35 | AK6: 36 | AL6: 37 | AM6: 38 | AN6: 39 | AO6: 40 | AP6: 41 | AQ6: 42 | AR6: 43 | AS6: 44 | AT6: 45 | AU6: 46 | AV6: 47 | AW6: 48 | AX6: 49 | AY6: 50 | AZ6: 51 | BA6: 52 | BB6: 53 | BC6: 54 | BD6: 55 | BE6: 56 | BF6: 57 | BG6: 58 | BH6: 59 | BI6: 60 | BJ6: 61 | BK6: 62 | BL6: 63 | BM6: 64 | BN6: 65 | BO6: 66 | BP6: 67 | BQ6: 68 | BR6: 69 | BS6: 70 | BT6: 71 | BU6: 72 | BV6: 73 | BW6: 74 | BX6: 75 | BY6: 76 | BZ6: 77 | CA6: 78 | CB6: 79 | CC6: 80 | CD6: 81 | CE6: 82 | CF6: 83 | CG6: 84 | CH6: 85 | CI6: 86 | CJ6: 87 | CK6: 88 | CL6: 89 | CM6: 90 | CN6: 91 | CO6: 92 | CP6: 93 | CQ6: 94 | CR6: 95 | CS6: 96 | CT6: 97 | CU6: 98 | CV6: 99 | CW6: 100 | CX6: 101 | CY6: 102 | CZ6: 103 | DA6: 104 | DB6: 105 | DC6: 106 | DD6: 107 | DE6: 108 | DF6: 109 | DG6: 110 | DH6: 111 | DI6: 112 | DJ6: 113 | DK6: 114 | DL6: 115 | DM6: 116 | DN6: 117 | DO6: 118 | DP6: 119 | DQ6: 120 | DR6: 121 | DS6: 122 | DT6: 123 | DU6: 124 | DV6: 125 | DW6: 126 | DX6: 127 | DY6: 128 | DZ6: 129 | EA6: 130 | EB6: 131 | EC6: 132 | ED6: 133 | EE6: 134 | EF6: 135 | EG6: 136 | EH6: 137 | EI6: 138 | EJ6: 139 | EK6: 140 | EL6: 141 | EM6: 142
A7: V53 | B7: =VLOOKUP($A7,Matrix_Rohdaten,B$4,0) -> V53 | D7: =VLOOKUP($A7,Matrix_Rohdaten,D$4,0) -> VKL800; ISH Prototyp; mit Filter, Schlitzelemente umgebaut (Steg & Versperrung untereinander), mit 3-3,5cm Schalldämm. | H7: =VLOOKUP($A7,Matrix_Rohdaten,H$4,0) -> 202.2867227 | J7: =VLOOKUP($A7,Matrix_Rohdaten,J$4,0) -> 13.621 | N7: =(VLOOKUP($A7,Matrix_Rohdaten,N$4,0)) -> -264.866124 | O7: =VLOOKUP($A7,Matrix_Rohdaten,O$4,0) -> 33.573953 | R7: =VLOOKUP($A7,Matrix_Rohdaten,R$4,0) -> 21.51 | X7: =VLOOKUP($A7,Matrix_Rohdaten,X$4,0) -> 131.915397 | Y7: 3.5
A8: V52 | B8: V52 | D8: VKL800; ISH Prototyp; mit Filter, Schlitzelemente umgebaut (Steg & Versperrung untereinander), mit 3-3,5cm Schalldämm. | H8: 202.5344763 | J8: 13.63 | N8: -381.5957537 | O8: 49.29967367 | R8: 21.37033333 | X8: 214.4287927 | Y8: 5.6
A9: V54 | B9: V54 | D9: VKL800; ISH Prototyp; mit Filter, Schlitzelemente umgebaut (Steg & Versperrung untereinander), mit 3-3,5cm Schalldämm. | H9: 202.50096 | J9: 13.638 | N9: -497.9198247 | O9: 63.649177 | R9: 21.460889 | X9: 316.4055997 | Y9: 8
A10: V55 | B10: V55 | D10: VKL800; ISH Prototyp; mit Filter, Schlitzelemente umgebaut (Steg & Versperrung untereinander), mit 3-3,5cm Schalldämm. | H10: 202.2211897 | J10: 13.63533333 | N10: -539.5730987 | O10: 68.33108233 | R10: 21.53177767 | X10: 357.291802 | Y10: 10
A11: V56 | B11: V56 | D11: VKL800; ISH Prototyp; mit Filter, Schlitzelemente umgebaut (Steg & Versperrung untereinander), mit 3-3,5cm Schalldämm. | H11: 62.16736767 | J11: 13.83133333 | N11: -283.6306827 | O11: 34.97469567 | R11: 21.94088867 | X11: 215.5661803 | Y11: 5.7
A12: V57 | B12: V57 | D12: VKL800; ISH Prototyp; mit Filter, Schlitzelemente umgebaut (Steg & Versperrung untereinander), mit 3-3,5cm Schalldämm. | H12: 127.5852337 | J12: 13.69933333 | N12: -384.083802 | O12: 45.73635067 | R12: 22.097111 | X12: 220.1936033 | Y12: 5.7
A13: V58 | B13: V58 | D13: VKL800; ISH Prototyp; mit Filter, Schlitzelemente umgebaut (Steg & Versperrung untereinander), mit 3-3,5cm Schalldämm. | H13: 237.2534953 | J13: 13.638 | N13: -438.010526 | O13: 51.616887 | R13: 22.12377767 | X13: 220.201253 | Y13: 5.7
A14: V59 | B14: V59 | D14: VKL800; ISH Prototyp; mit Filter, Schlitzelemente umgebaut (Steg & Versperrung untereinander), mit 3-3,5cm Schalldämm. | H14: 307.1907027 | J14: 13.63866667 | N14: -456.318844 | O14: 52.78139767 | R14: 22.28411133 | X14: 219.0876993 | Y14: 5.7
A15: V60 | B15: V60 | D15: VKL800; ISH Prototyp; mit Filter, Schlitzelemente umgebaut (Steg & Versperrung untereinander), mit 3-3,5cm Schalldämm. | H15: 51.86594433 | J15: 13.896 | N15: -203.170736 | O15: 23.99926367 | R15: 22.36166667 | X15: 124.7774853 | Y15: 3.5
A16: V61 | B16: V61 | D16: VKL800; ISH Prototyp; mit Filter, Schlitzelemente umgebaut (Steg & Versperrung untereinander), mit 3-3,5cm Schalldämm. | H16: 127.2533103 | J16: 13.722 | N16: -265.6647943 | O16: 30.894434 | R16: 22.321111 | X16: 128.0288493 | Y16: 3.5
A17: V62 | B17: V62 | D17: VKL800; ISH Prototyp; mit Filter, Schlitzelemente umgebaut (Steg & Versperrung untereinander), mit 3-3,5cm Schalldämm. | H17: 237.474217 | J17: 13.66 | N17: -289.4283627 | O17: 33.36005 | R17: 22.335889 | X17: 129.757027 | Y17: 3.5
A18: V63 | B18: V63 | D18: VKL800; ISH Prototyp; mit Filter, Schlitzelemente umgebaut (Steg & Versperrung untereinander), mit 3-3,5cm Schalldämm. | H18: 307.018671 | J18: 13.65833333 | N18: -297.794384 | O18: 34.11268933 | R18: 22.388 | X18: 129.6057313 | Y18: 3.5
A19: V64 | B19: V64 | D19: VKL800; ISH Prototyp; mit Filter, Schlitzelemente umgebaut (Steg & Versperrung untereinander), mit 3-3,5cm Schalldämm. | H19: 60.093256 | J19: 13.88333333 | N19: -364.3649143 | O19: 42.15506633 | R19: 22.52677767 | X19: 357.410967 | Y19: 10
A20: V65 | B20: V65 | D20: VKL800; ISH Prototyp; mit Filter, Schlitzelemente umgebaut (Steg & Versperrung untereinander), mit 3-3,5cm Schalldämm. | H20: 127.6208263 | J20: 13.739 | N20: -527.722793 | O20: 60.16213433 | R20: 22.51066667 | X20: 355.0783103 | Y20: 10
A21: V66 | B21: V66 | D21: VKL800; ISH Prototyp; mit Filter, Schlitzelemente umgebaut (Steg & Versperrung untereinander), mit 3-3,5cm Schalldämm. | H21: 238.6808817 | J21: 13.674 | N21: -621.986769 | O21: 70.41572567 | R21: 22.507111 | X21: 351.954835 | Y21: 10
A22: V67 | B22: V67 | D22: VKL800; ISH Prototyp; mit Filter, Schlitzelemente umgebaut (Steg & Versperrung untereinander), mit 3-3,5cm Schalldämm. | H22: 308.2145287 | J22: 13.677 | N22: -641.89592 | O22: 73.49867267 | R22: 22.41044433 | X22: 353.556565 | Y22: 10
A23: V71 | B23: V71 | D23: VKL800; ISH Prototyp; mit Filter, 2MR, mit 3-3,5cm Schalldämm., mit 3D-Strömung | H23: 201.0265493 | J23: 13.667 | N23: -292.469918 | O23: 32.01288767 | R23: 22.803 | X23: 124.165886 | Y23: 3.5
A24: V70 | B24: V70 | D24: VKL800; ISH Prototyp; mit Filter, 2MR, mit 3-3,5cm Schalldämm., mit 3D-Strömung | H24: 205.2275413 | J24: 13.67366667 | N24: -423.2070953 | O24: 47.23117433 | R24: 22.634 | X24: =VLOOKUP($A24,Matrix_Rohdaten,X$4,0) -> 199.2992107 | Y24: 5.6
A25: V72 | B25: V72 | D25: VKL800; ISH Prototyp; mit Filter, 2MR, mit 3-3,5cm Schalldämm., mit 3D-Strömung | H25: 201.1336133 | J25: 13.71633333 | N25: -548.1921433 | O25: 60.46388567 | R25: 22.78277767 | X25: 287.061498 | Y25: 8
A26: V73 | B26: V73 | D26: VKL800; ISH Prototyp; mit Filter, 2MR, mit 3-3,5cm Schalldämm., mit 3D-Strömung | H26: 201.1999377 | J26: 13.70433333 | N26: -612.7744437 | O26: 65.427913 | R26: 23.07 | X26: 325.3430097 | Y26: 10
A27: V19 | B27: V19 | D27: VKL800; ISH Prototyp; 3,2mm Lamellenabstand, ohne Filter, mit Isolierung der Kondensatwanne | H27: 201.333558 | J27: 13.70833333 | N27: -511.3332423 | O27: 54.43525333 | R27: 23.10177767 | X27: 242.4002419 | Y27: 5.6
A28: V20 | B28: V20 | D28: VKL800; ISH Prototyp; 3,2mm Lamellenabstand, mit Filter, mit Isolierung der Kondensatwanne | H28: 201.6437513 | J28: 13.70966667 | N28: -461.3174823 | O28: 48.546077 | R28: 23.212333 | X28: 205.4667632 | Y28: 5.5
C30: Gültig für gemessene Baugröße 800
D33: =CONCATENATE(X5," als Parameter vorgegeben") -> V Sek [m³/h] als Parameter vorgegeben
A34: MIT DOPPELKILICK die richtige Kombination AUSWÄHLEN | L34: Messwerte | N34: Auslegungstool | W34: Messwerte | X34: Auslegetool | AC34: Für das Makro "Starten der Plausibilität" notwendig
A35: Parametereinsttelung | C35: Zeile | F35: Wassermenge [kg/h] | G35: T Wasser Vorlauf [°C] | H35: T Ansaug mean [°C] | I35: =X5 -> V Sek [m³/h] | J35: Abweichung Auslegetool | L35: Q Sek [W] | M35: q Sek [W/K] | N35: Q Sek [W] | O35: q Sek [W/K] | W35: Spannung [V] | X35: Spannung [V]
A36: Filter | B36: 3D-Strömung | AC36: Filter | AD36: 3D-Strömung
A37: x | C37: =ROW(A7) -> 7 | D37: =D7 -> VKL800; ISH Prototyp; mit Filter, Schlitzelemente umgebaut (Steg & Versperrung untereinander), mit 3-3,5cm Schalldämm. | E37: V53 | F37: 202.2867227 | G37: 13.621 | H37: 21.51 | I37: 131.915397 | J37: =1/M37*O37-1 -> 0.001288701516 | L37: -264.866124 | M37: 33.573953 | N37: -265.206247 | O37: 33.6172198 | P37: Auslegetool: VKL, 4L, mit Filter | W37: =Y7 -> 3.5 | X37: 3.459029246 | AC37: =IF(A37="x",TRUE,FALSE) -> TRUE | AD37: =IF(B37="x",TRUE,FALSE) -> FALSE
A38: x | C38: =ROW(A8) -> 8 | D38: VKL800; ISH Prototyp; mit Filter, Schlitzelemente umgebaut (Steg & Versperrung untereinander), mit 3-3,5cm Schalldämm. | E38: V52 | F38: 202.5344763 | G38: 13.63 | H38: 21.37033333 | I38: 214.4287927 | J38: =1/M38*O38-1 -> -0.001490648528 | L38: -381.5957537 | M38: 49.29967367 | N38: -381.027082 | O38: 49.22618518 | P38: Auslegetool: VKL, 4L, mit Filter | W38: =Y8 -> 5.6 | X38: 5.665155584 | AC38: =IF(A38="x",TRUE,FALSE) -> TRUE | AD38: FALSE
A39: x | C39: 9 | D39: VKL800; ISH Prototyp; mit Filter, Schlitzelemente umgebaut (Steg & Versperrung untereinander), mit 3-3,5cm Schalldämm. | E39: V54 | F39: 202.50096 | G39: 13.638 | H39: 21.460889 | I39: 316.4055997 | J39: 0.001401122231 | L39: -497.9198247 | M39: 63.649177 | N39: -498.618094 | O39: 63.73835728 | P39: Auslegetool: VKL, 4L, mit Filter | W39: 8 | X39: 8.409913884 | AC39: TRUE | AD39: FALSE
A40: x | C40: 10 | D40: VKL800; ISH Prototyp; mit Filter, Schlitzelemente umgebaut (Steg & Versperrung untereinander), mit 3-3,5cm Schalldämm. | E40: V55 | F40: 202.2211897 | G40: 13.63533333 | H40: 21.53177767 | I40: 357.291802 | J40: -0.0007773919799 | L40: -539.5730987 | M40: 68.33108233 | N40: -539.1531285 | O40: 68.2779623 | P40: Auslegetool: VKL, 4L, mit Filter | W40: 10 | X40: 9.514553973 | AC40: TRUE | AD40: FALSE
A41: x | C41: 11 | D41: VKL800; ISH Prototyp; mit Filter, Schlitzelemente umgebaut (Steg & Versperrung untereinander), mit 3-3,5cm Schalldämm. | E41: V56 | F41: 62.16736767 | G41: 13.83133333 | H41: 21.94088867 | I41: 215.5661803 | J41: -0.02209019966 | L41: -283.6306827 | M41: 34.97469567 | N41: -277.3638035 | O41: 34.20209766 | P41: Auslegetool: VKL, 4L, mit Filter | W41: 5.7 | X41: 5.695672059 | AC41: TRUE | AD41: FALSE
A42: x | C42: 12 | D42: VKL800; ISH Prototyp; mit Filter, Schlitzelemente umgebaut (Steg & Versperrung untereinander), mit 3-3,5cm Schalldämm. | E42: V57 | F42: 127.5852337 | G42: 13.69933333 | H42: 22.097111 | I42: 220.1936033 | J42: -0.01149264829 | L42: -384.083802 | M42: 45.73635067 | N42: -379.6695653 | O42: 45.21071887 | P42: Auslegetool: VKL, 4L, mit Filter | W42: 5.7 | X42: 5.819852896 | AC42: TRUE | AD42: FALSE
A43: x | C43: 13 | D43: VKL800; ISH Prototyp; mit Filter, Schlitzelemente umgebaut (Steg & Versperrung untereinander), mit 3-3,5cm Schalldämm. | E43: V58 | F43: 237.2534953 | G43: 13.638 | H43: 22.12377767 | I43: 220.201253 | J43: -0.01150418757 | L43: -438.010526 | M43: 51.616887 | N43: -432.9704843 | O43: 51.02307665 | P43: Auslegetool: VKL, 4L, mit Filter | W43: 5.7 | X43: 5.820058215 | AC43: TRUE | AD43: FALSE
A44: x | C44: 14 | D44: VKL800; ISH Prototyp; mit Filter, Schlitzelemente umgebaut (Steg & Versperrung untereinander), mit 3-3,5cm Schalldämm. | E44: V59 | F44: 307.1907027 | G44: 13.63866667 | H44: 22.28411133 | I44: 219.0876993 | J44: -0.01489447597 | L44: -456.318844 | M44: 52.78139767 | N44: -449.5220257 | O44: 51.99524641 | P44: Auslegetool: VKL, 4L, mit Filter | W44: 5.7 | X44: 5.79017131 | AC44: TRUE | AD44: FALSE
A45: x | C45: 15 | D45: VKL800; ISH Prototyp; mit Filter, Schlitzelemente umgebaut (Steg & Versperrung untereinander), mit 3-3,5cm Schalldämm. | E45: V60 | F45: 51.86594433 | G45: 13.896 | H45: 22.36166667 | I45: 124.7774853 | J45: -0.03216384168 | L45: -203.170736 | M45: 23.99926367 | N45: -196.6350462 | O45: 23.22735515 | P45: Auslegetool: VKL, 4L, mit Filter | W45: 3.5 | X45: 3.269042309 | AC45: TRUE | AD45: FALSE
A46: x | C46: 16 | D46: VKL800; ISH Prototyp; mit Filter, Schlitzelemente umgebaut (Steg & Versperrung untereinander), mit 3-3,5cm Schalldämm. | E46: V61 | F46: 127.2533103 | G46: 13.722 | H46: 22.321111 | I46: 128.0288493 | J46: -0.01088845711 | L46: -265.6647943 | M46: 30.894434 | N46: -262.7719889 | O46: 30.55804128 | P46: Auslegetool: VKL, 4L, mit Filter | W46: 3.5 | X46: 3.355562236 | AC46: TRUE | AD46: FALSE
A47: x | C47: 17 | D47: VKL800; ISH Prototyp; mit Filter, Schlitzelemente umgebaut (Steg & Versperrung untereinander), mit 3-3,5cm Schalldämm. | E47: V62 | F47: 237.474217 | G47: 13.66 | H47: 22.335889 | I47: 129.757027 | J47: 0.003032799382 | L47: -289.4283627 | M47: 33.36005 | N47: -290.3058682 | O47: 33.46122434 | P47: Auslegetool: VKL, 4L, mit Filter | W47: 3.5 | X47: 3.401563564 | AC47: TRUE | AD47: FALSE
A48: x | C48: 18 | D48: VKL800; ISH Prototyp; mit Filter, Schlitzelemente umgebaut (Steg & Versperrung untereinander), mit 3-3,5cm Schalldämm. | E48: V63 | F48: 307.018671 | G48: 13.65833333 | H48: 22.388 | I48: 129.6057313 | J48: 0.001440983142 | L48: -297.794384 | M48: 34.11268933 | N48: -298.2215208 | O48: 34.16184514 | P48: Auslegetool: VKL, 4L, mit Filter | W48: 3.5 | X48: 3.397535934 | AC48: TRUE | AD48: FALSE
A49: x | C49: 19 | D49: VKL800; ISH Prototyp; mit Filter, Schlitzelemente umgebaut (Steg & Versperrung untereinander), mit 3-3,5cm Schalldämm. | E49: V64 | F49: 60.093256 | G49: 13.88333333 | H49: 22.52677767 | I49: 357.410967 | J49: -0.003864964681 | L49: -364.3649143 | M49: 42.15506633 | N49: -362.9567115 | O49: 41.99213849 | P49: Auslegetool: VKL, 4L, mit Filter | W49: 10 | X49: 9.517776485 | AC49: TRUE | AD49: FALSE
A50: x | C50: 20 | D50: VKL800; ISH Prototyp; mit Filter, Schlitzelemente umgebaut (Steg & Versperrung untereinander), mit 3-3,5cm Schalldämm. | E50: V65 | F50: 127.6208263 | G50: 13.739 | H50: 22.51066667 | I50: 355.0783103 | J50: -0.007700462215 | L50: -527.722793 | M50: 60.16213433 | N50: -523.6584836 | O50: 59.69885809 | P50: Auslegetool: VKL, 4L, mit Filter | W50: 10 | X50: 9.454698802 | AC50: TRUE | AD50: FALSE
A51: x | C51: 21 | D51: VKL800; ISH Prototyp; mit Filter, Schlitzelemente umgebaut (Steg & Versperrung untereinander), mit 3-3,5cm Schalldämm. | E51: V66 | F51: 238.6808817 | G51: 13.674 | H51: 22.507111 | I51: 351.954835 | J51: -0.01306488939 | L51: -621.986769 | M51: 70.41572567 | N51: -613.8636914 | O51: 69.495752 | P51: Auslegetool: VKL, 4L, mit Filter | W51: 10 | X51: 9.370246549 | AC51: TRUE | AD51: FALSE
A52: x | C52: 22 | D52: VKL800; ISH Prototyp; mit Filter, Schlitzelemente umgebaut (Steg & Versperrung untereinander), mit 3-3,5cm Schalldämm. | E52: V67 | F52: 308.2145287 | G52: 13.677 | H52: 22.41044433 | I52: 353.556565 | J52: -0.01136448432 | L52: -641.89592 | M52: 73.49867267 | N52: -634.6017428 | O52: 72.66339815 | P52: Auslegetool: VKL, 4L, mit Filter | W52: 10 | X52: 9.41355254 | AC52: TRUE | AD52: FALSE
A53: x | B53: x | C53: =ROW(A23) -> 23 | D53: VKL800; ISH Prototyp; mit Filter, 2MR, mit 3-3,5cm Schalldämm., mit 3D-Strömung | E53: V71 | F53: 201.0265493 | G53: 13.667 | H53: 22.803 | I53: 124.165886 | J53: =1/M53*O53-1 -> -0.002354466963 | L53: -292.469918 | M53: 32.01288767 | N53: -291.7811314 | O53: 31.93751438 | P53: Auslegetool: VKL, 4L, mit Filter mit 3D-Strömung | W53: =Y23 -> 3.5 | X53: 3.40701433 | AC53: =IF(A53="x",TRUE,FALSE) -> TRUE | AD53: =IF(B53="x",TRUE,FALSE) -> TRUE
A54: x | B54: x | C54: 24 | D54: VKL800; ISH Prototyp; mit Filter, 2MR, mit 3-3,5cm Schalldämm., mit 3D-Strömung | E54: V70 | F54: 205.2275413 | G54: 13.67366667 | H54: 22.634 | I54: 199.2992107 | J54: -0.01089506708 | L54: -423.2070953 | M54: 47.23117433 | N54: -418.5961964 | O54: 46.71658752 | P54: Auslegetool: VKL, 4L, mit Filter mit 3D-Strömung | W54: 5.6 | X54: 5.64769402 | AC54: TRUE | AD54: TRUE
A55: x | B55: x | C55: 25 | D55: VKL800; ISH Prototyp; mit Filter, 2MR, mit 3-3,5cm Schalldämm., mit 3D-Strömung | E55: V72 | F55: 201.1336133 | G55: 13.71633333 | H55: 22.78277767 | I55: 287.061498 | J55: -0.008007046893 | L55: -548.1921433 | M55: 60.46388567 | N55: -543.8030509 | O55: 59.9797485 | P55: Auslegetool: VKL, 4L, mit Filter mit 3D-Strömung | W55: 8 | X55: 8.339338979 | AC55: TRUE | AD55: TRUE
A56: x | B56: x | C56: 26 | D56: VKL800; ISH Prototyp; mit Filter, 2MR, mit 3-3,5cm Schalldämm., mit 3D-Strömung | E56: V73 | F56: 201.1999377 | G56: 13.70433333 | H56: 23.07 | I56: 325.3430097 | J56: -0.01087949377 | L56: -612.7744437 | M56: 65.427913 | N56: -606.1093309 | O56: 64.71609043 | P56: Auslegetool: VKL, 4L, mit Filter mit 3D-Strömung | W56: 10 | X56: 9.532356883 | AC56: TRUE | AD56: TRUE
C57: 27 | D57: VKL800; ISH Prototyp; 3,2mm Lamellenabstand, ohne Filter, mit Isolierung der Kondensatwanne | E57: V19 | F57: 201.333558 | G57: 13.70833333 | H57: 23.10177767 | I57: 242.4002419 | J57: -0.01447226759 | L57: -511.3332423 | M57: 54.43525333 | N57: -503.9343519 | O57: 53.64745178 | P57: Auslegetool: VKL, 4L, ohne Filter | W57: 5.6 | X57: 5.424790294 | AC57: =IF(A57="x",TRUE,FALSE) -> FALSE | AD57: =IF(B57="x",TRUE,FALSE) -> FALSE
A58: x | C58: 28 | D58: VKL800; ISH Prototyp; 3,2mm Lamellenabstand, mit Filter, mit Isolierung der Kondensatwanne | E58: V20 | F58: 201.6437513 | G58: 13.70966667 | H58: 23.212333 | I58: 205.4667632 | J58: -0.0177543014 | L58: -461.3174823 | M58: 48.546077 | N58: -453.1268074 | O58: 47.68417532 | P58: Auslegetool: VKL, 4L, mit Filter | W58: 5.5 | X58: 5.424790294 | AC58: TRUE | AD58: FALSE
A65: Plausibilitätstabelle manuell kopiert
C67: Plausibilitätsbetrachtung des Auslegetools, Vergleich zwischen gemessener und ausgelegter Leistung bei gleichen Randbedingungen
C68: VKL800; 4L; Wandgerät; 3,2mm; Nullseriengerät; kühlen
C69: Bearbeiter: | D69: TT
C70: Datum: | D70: 2018-08-09
D72: Drehzahl [1/min] als Parameter vorgegeben
F74: Messwerte bzw. eingestellte Parameter Auslegetool | L74: gemessene Leistung | N74: Auslegungstool | W74: Messwerte | X74: Auslegetool
A75: Parametereinsttelung | C75: Zeile | F75: Wassermenge [kg/h] | G75: T Wasser Vorlauf [°C] | H75: T Ansaug mean [°C] | I75: Drehzahl [1/min] | J75: Abweichung Auslegetool | L75: Q Sek [W] | M75: q Sek [W/K] | N75: Q Sek [W] | O75: q Sek [W/K] | W75: Spannung [V] | X75: Spannung [V]
A76: Filter | B76: 3D-Strömung
A77: x | C77: 7 | D77: VKL800; ISH Prototyp; mit Filter, Schlitzelemente umgebaut (Steg & Versperrung untereinander), mit 3-3,5cm Schalldämm. | E77: V53 | F77: 202.2867227 | G77: 13.621 | H77: 21.51 | I77: 493 | J77: 0.001320349373 | L77: -264.866124 | M77: 33.573953 | N77: -265.2146294 | O77: 33.61828235 | P77: Auslegetool: VKL, 4L, mit Filter | W77: 3.5 | X77: 3.459119518
A78: x | C78: 8 | D78: VKL800; ISH Prototyp; mit Filter, Schlitzelemente umgebaut (Steg & Versperrung untereinander), mit 3-3,5cm Schalldämm. | E78: V52 | F78: 202.5344763 | G78: 13.63 | H78: 21.37033333 | I78: 744 | J78: -0.00200367243 | L78: -381.5957537 | M78: 49.29967367 | N78: -380.8313142 | O78: 49.20089327 | P78: Auslegetool: VKL, 4L, mit Filter | W78: 5.6 | X78: 5.661075843
A79: x | C79: 9 | D79: VKL800; ISH Prototyp; mit Filter, Schlitzelemente umgebaut (Steg & Versperrung untereinander), mit 3-3,5cm Schalldämm. | E79: V54 | F79: 202.50096 | G79: 13.638 | H79: 21.460889 | I79: 1038 | J79: 0.003043994023 | L79: -497.9198247 | M79: 63.649177 | N79: -499.4361135 | O79: 63.84292471 | P79: Auslegetool: VKL, 4L, mit Filter | W79: 8 | X79: 8.433601533
A80: x | C80: 10 | D80: VKL800; ISH Prototyp; mit Filter, Schlitzelemente umgebaut (Steg & Versperrung untereinander), mit 3-3,5cm Schalldämm. | E80: V55 | F80: 202.2211897 | G80: 13.63533333 | H80: 21.53177767 | I80: 1146 | J80: -0.001911846982 | L80: -539.5730987 | M80: 68.33108233 | N80: -538.5410077 | O80: 68.20044376 | P80: Auslegetool: VKL, 4L, mit Filter | W80: 10 | X80: 9.49442
A81: x | C81: 11 | D81: VKL800; ISH Prototyp; mit Filter, Schlitzelemente umgebaut (Steg & Versperrung untereinander), mit 3-3,5cm Schalldämm. | E81: V56 | F81: 62.16736767 | G81: 13.83133333 | H81: 21.94088867 | I81: 757 | J81: -0.01493512455 | L81: -283.6306827 | M81: 34.97469567 | N81: -279.3931919 | O81: 34.45234423 | P81: Auslegetool: VKL, 4L, mit Filter | W81: 5.7 | X81: 5.779680993
A82: x | C82: 12 | D82: VKL800; ISH Prototyp; mit Filter, Schlitzelemente umgebaut (Steg & Versperrung untereinander), mit 3-3,5cm Schalldämm. | E82: V57 | F82: 127.5852337 | G82: 13.69933333 | H82: 22.097111 | I82: 757 | J82: -0.01585998454 | L82: -384.083802 | M82: 45.73635067 | N82: -377.9921426 | O82: 45.01097285 | P82: Auslegetool: VKL, 4L, mit Filter | W82: 5.7 | X82: 5.779680993
A83: x | C83: 13 | D83: VKL800; ISH Prototyp; mit Filter, Schlitzelemente umgebaut (Steg & Versperrung untereinander), mit 3-3,5cm Schalldämm. | E83: V58 | F83: 237.2534953 | G83: 13.638 | H83: 22.12377767 | I83: 757 | J83: -0.01648451114 | L83: -438.010526 | M83: 51.616887 | N83: -430.7890556 | O83: 50.76600785 | P83: Auslegetool: VKL, 4L, mit Filter | W83: 5.7 | X83: 5.779680993
A84: x | C84: 14 | D84: VKL800; ISH Prototyp; mit Filter, Schlitzelemente umgebaut (Steg & Versperrung untereinander), mit 3-3,5cm Schalldämm. | E84: V59 | F84: 307.1907027 | G84: 13.63866667 | H84: 22.28411133 | I84: 757 | J84: -0.01621105337 | L84: -456.318844 | M84: 52.78139767 | N84: -448.9212469 | O84: 51.92575561 | P84: Auslegetool: VKL, 4L, mit Filter | W84: 5.7 | X84: 5.779680993
A85: x | C85: 15 | D85: VKL800; ISH Prototyp; mit Filter, Schlitzelemente umgebaut (Steg & Versperrung untereinander), mit 3-3,5cm Schalldämm. | E85: V60 | F85: 51.86594433 | G85: 13.896 | H85: 22.36166667 | I85: 484 | J85: -0.009836425903 | L85: -203.170736 | M85: 23.99926367 | N85: -201.1713021 | O85: 23.76319669 | P85: Auslegetool: VKL, 4L, mit Filter | W85: 3.5 | X85: 3.383668252
A86: x | C86: 16 | D86: VKL800; ISH Prototyp; mit Filter, Schlitzelemente umgebaut (Steg & Versperrung untereinander), mit 3-3,5cm Schalldämm. | E86: V61 | F86: 127.2533103 | G86: 13.722 | H86: 22.321111 | I86: 484 | J86: -0.004481091809 | L86: -265.6647943 | M86: 30.894434 | N86: -264.4741995 | O86: 30.7559932 | P86: Auslegetool: VKL, 4L, mit Filter | W86: 3.5 | X86: 3.383668252
A87: x | C87: 17 | D87: VKL800; ISH Prototyp; mit Filter, Schlitzelemente umgebaut (Steg & Versperrung untereinander), mit 3-3,5cm Schalldämm. | E87: V62 | F87: 237.474217 | G87: 13.66 | H87: 22.335889 | I87: 484 | J87: -0.001371190766 | L87: -289.4283627 | M87: 33.36005 | N87: -289.0312297 | O87: 33.31430701 | P87: Auslegetool: VKL, 4L, mit Filter | W87: 3.5 | X87: 3.383668252
A88: x | C88: 18 | D88: VKL800; ISH Prototyp; mit Filter, Schlitzelemente umgebaut (Steg & Versperrung untereinander), mit 3-3,5cm Schalldämm. | E88: V63 | F88: 307.018671 | G88: 13.65833333 | H88: 22.388 | I88: 484 | J88: -0.001950613387 | L88: -297.794384 | M88: 34.11268933 | N88: -297.2115291 | O88: 34.04614866 | P88: Auslegetool: VKL, 4L, mit Filter | W88: 3.5 | X88: 3.383668252
A89: x | C89: 19 | D89: VKL800; ISH Prototyp; mit Filter, Schlitzelemente umgebaut (Steg & Versperrung untereinander), mit 3-3,5cm Schalldämm. | E89: V64 | F89: 60.093256 | G89: 13.88333333 | H89: 22.52677767 | I89: 1145 | J89: -0.005336068693 | L89: -364.3649143 | M89: 42.15506633 | N89: -362.4206927 | O89: 41.930124 | P89: Auslegetool: VKL, 4L, mit Filter | W89: 10 | X89: 9.484503981
A90: x | C90: 20 | D90: VKL800; ISH Prototyp; mit Filter, Schlitzelemente umgebaut (Steg & Versperrung untereinander), mit 3-3,5cm Schalldämm. | E90: V65 | F90: 127.6208263 | G90: 13.739 | H90: 22.51066667 | I90: 1145 | J90: -0.006082603775 | L90: -527.722793 | M90: 60.16213433 | N90: -524.5122634 | O90: 59.79619191 | P90: Auslegetool: VKL, 4L, mit Filter | W90: 10 | X90: 9.484503981
A91: x | C91: 21 | D91: VKL800; ISH Prototyp; mit Filter, Schlitzelemente umgebaut (Steg & Versperrung untereinander), mit 3-3,5cm Schalldämm. | E91: V66 | F91: 238.6808817 | G91: 13.674 | H91: 22.507111 | I91: 1145 | J91: -0.006431117614 | L91: -621.986769 | M91: 70.41572567 | N91: -617.9898306 | O91: 69.96287385 | P91: Auslegetool: VKL, 4L, mit Filter | W91: 10 | X91: 9.484503981
A92: x | C92: 22 | D92: VKL800; ISH Prototyp; mit Filter, Schlitzelemente umgebaut (Steg & Versperrung untereinander), mit 3-3,5cm Schalldämm. | E92: V67 | F92: 308.2145287 | G92: 13.677 | H92: 22.41044433 | I92: 1145 | J92: -0.006607913754 | L92: -641.89592 | M92: 73.49867267 | N92: -637.6549692 | O92: 73.01299978 | P92: Auslegetool: VKL, 4L, mit Filter | W92: 10 | X92: 9.484503981
A93: x | B93: x | C93: 23 | D93: VKL800; ISH Prototyp; mit Filter, 2MR, mit 3-3,5cm Schalldämm., mit 3D-Strömung | E93: V71 | F93: 201.0265493 | G93: 13.667 | H93: 22.803 | I93: 489 | J93: 0.002217970893 | L93: -292.469918 | M93: 32.01288767 | N93: -293.1184311 | O93: 32.08389132 | P93: Auslegetool: VKL, 4L, mit Filter mit 3D-Strömung | W93: 3.5 | X93: 3.425551824
A94: x | B94: x | C94: 24 | D94: VKL800; ISH Prototyp; mit Filter, 2MR, mit 3-3,5cm Schalldämm., mit 3D-Strömung | E94: V70 | F94: 205.2275413 | G94: 13.67366667 | H94: 22.634 | I94: 734 | J94: -0.02040139788 | L94: -423.2070953 | M94: 47.23117433 | N94: -414.57305 | O94: 46.26759235 | P94: Auslegetool: VKL, 4L, mit Filter mit 3D-Strömung | W94: 5.6 | X94: 5.570118146
A95: x | B95: x | C95: 25 | D95: VKL800; ISH Prototyp; mit Filter, 2MR, mit 3-3,5cm Schalldämm., mit 3D-Strömung | E95: V72 | F95: 201.1336133 | G95: 13.71633333 | H95: 22.78277767 | I95: 1039 | J95: -0.0008527606563 | L95: -548.1921433 | M95: 60.46388567 | N95: -547.7249766 | O95: 60.41232444 | P95: Auslegetool: VKL, 4L, mit Filter mit 3D-Strömung | W95: 8 | X95: 8.443327835
A96: x | B96: x | C96: 26 | D96: VKL800; ISH Prototyp; mit Filter, 2MR, mit 3-3,5cm Schalldämm., mit 3D-Strömung | E96: V73 | F96: 201.1999377 | G96: 13.70433333 | H96: 23.07 | I96: 1146 | J96: -0.01316534139 | L96: -612.7744437 | M96: 65.427913 | N96: -604.7086183 | O96: 64.56653219 | P96: Auslegetool: VKL, 4L, mit Filter mit 3D-Strömung | W96: 10 | X96: 9.49442
C97: 27 | D97: VKL800; ISH Prototyp; 3,2mm Lamellenabstand, ohne Filter, mit Isolierung der Kondensatwanne | E97: V19 | F97: 201.333558 | G97: 13.70833333 | H97: 23.10177767 | I97: 728 | J97: -0.003340254965 | L97: -511.3332423 | M97: 54.43525333 | N97: -509.6265343 | O97: 54.25342571 | P97: Auslegetool: VKL, 4L, ohne Filter
A98: x | C98: 28 | D98: VKL800; ISH Prototyp; 3,2mm Lamellenabstand, mit Filter, mit Isolierung der Kondensatwanne | E98: V20 | F98: 201.6437513 | G98: 13.70966667 | H98: 23.212333 | I98: 728 | J98: -0.005862059505 | L98: -461.3174823 | M98: 48.546077 | N98: -458.6129028 | O98: 48.26149701 | P98: Auslegetool: VKL, 4L, mit Filter
D103: V Sek [m³/h] als Parameter vorgegeben
L104: Messwerte | N104: Auslegungstool | W104: Messwerte | X104: Auslegetool
L105: Messwerte | N105: Auslegungstool | W105: Messwerte | X105: Auslegetool
A106: Parametereinsttelung | C106: Zeile | F106: Wassermenge [kg/h] | G106: T Wasser Vorlauf [°C] | H106: T Ansaug mean [°C] | I106: V Sek [m³/h] | J106: Abweichung Auslegetool | L106: Q Sek [W] | M106: q Sek [W/K] | N106: Q Sek [W] | O106: q Sek [W/K] | W106: Spannung [V] | X106: Spannung [V]
A107: Filter | B107: 3D-Strömung
A108: x | C108: 7 | D108: VKL800; ISH Prototyp; mit Filter, Schlitzelemente umgebaut (Steg & Versperrung untereinander), mit 3-3,5cm Schalldämm. | E108: V53 | F108: 202.2867227 | G108: 13.621 | H108: 21.51 | I108: 131.915397 | J108: 0.001288701516 | L108: -264.866124 | M108: 33.573953 | N108: -265.206247 | O108: 33.6172198 | P108: Auslegetool: VKL, 4L, mit Filter | W108: 3.5 | X108: 3.459029246
A109: x | C109: 8 | D109: VKL800; ISH Prototyp; mit Filter, Schlitzelemente umgebaut (Steg & Versperrung untereinander), mit 3-3,5cm Schalldämm. | E109: V52 | F109: 202.5344763 | G109: 13.63 | H109: 21.37033333 | I109: 214.4287927 | J109: -0.001490648528 | L109: -381.5957537 | M109: 49.29967367 | N109: -381.027082 | O109: 49.22618518 | P109: Auslegetool: VKL, 4L, mit Filter | W109: 5.6 | X109: 5.665155584
A110: x | C110: 9 | D110: VKL800; ISH Prototyp; mit Filter, Schlitzelemente umgebaut (Steg & Versperrung untereinander), mit 3-3,5cm Schalldämm. | E110: V54 | F110: 202.50096 | G110: 13.638 | H110: 21.460889 | I110: 316.4055997 | J110: 0.001401122231 | L110: -497.9198247 | M110: 63.649177 | N110: -498.618094 | O110: 63.73835728 | P110: Auslegetool: VKL, 4L, mit Filter | W110: 8 | X110: 8.409913884
A111: x | C111: 10 | D111: VKL800; ISH Prototyp; mit Filter, Schlitzelemente umgebaut (Steg & Versperrung untereinander), mit 3-3,5cm Schalldämm. | E111: V55 | F111: 202.2211897 | G111: 13.63533333 | H111: 21.53177767 | I111: 357.291802 | J111: -0.0007773919799 | L111: -539.5730987 | M111: 68.33108233 | N111: -539.1531285 | O111: 68.2779623 | P111: Auslegetool: VKL, 4L, mit Filter | W111: 10 | X111: 9.514553973
A112: x | C112: 11 | D112: VKL800; ISH Prototyp; mit Filter, Schlitzelemente umgebaut (Steg & Versperrung untereinander), mit 3-3,5cm Schalldämm. | E112: V56 | F112: 62.16736767 | G112: 13.83133333 | H112: 21.94088867 | I112: 215.5661803 | J112: -0.02209019966 | L112: -283.6306827 | M112: 34.97469567 | N112: -277.3638035 | O112: 34.20209766 | P112: Auslegetool: VKL, 4L, mit Filter | W112: 5.7 | X112: 5.695672059
A113: x | C113: 12 | D113: VKL800; ISH Prototyp; mit Filter, Schlitzelemente umgebaut (Steg & Versperrung untereinander), mit 3-3,5cm Schalldämm. | E113: V57 | F113: 127.5852337 | G113: 13.69933333 | H113: 22.097111 | I113: 220.1936033 | J113: -0.01149264829 | L113: -384.083802 | M113: 45.73635067 | N113: -379.6695653 | O113: 45.21071887 | P113: Auslegetool: VKL, 4L, mit Filter | W113: 5.7 | X113: 5.819852896
A114: x | C114: 13 | D114: VKL800; ISH Prototyp; mit Filter, Schlitzelemente umgebaut (Steg & Versperrung untereinander), mit 3-3,5cm Schalldämm. | E114: V58 | F114: 237.2534953 | G114: 13.638 | H114: 22.12377767 | I114: 220.201253 | J114: -0.01150418757 | L114: -438.010526 | M114: 51.616887 | N114: -432.9704843 | O114: 51.02307665 | P114: Auslegetool: VKL, 4L, mit Filter | W114: 5.7 | X114: 5.820058215
A115: x | C115: 14 | D115: VKL800; ISH Prototyp; mit Filter, Schlitzelemente umgebaut (Steg & Versperrung untereinander), mit 3-3,5cm Schalldämm. | E115: V59 | F115: 307.1907027 | G115: 13.63866667 | H115: 22.28411133 | I115: 219.0876993 | J115: -0.01489447597 | L115: -456.318844 | M115: 52.78139767 | N115: -449.5220257 | O115: 51.99524641 | P115: Auslegetool: VKL, 4L, mit Filter | W115: 5.7 | X115: 5.79017131
A116: x | C116: 15 | D116: VKL800; ISH Prototyp; mit Filter, Schlitzelemente umgebaut (Steg & Versperrung untereinander), mit 3-3,5cm Schalldämm. | E116: V60 | F116: 51.86594433 | G116: 13.896 | H116: 22.36166667 | I116: 124.7774853 | J116: -0.03216384168 | L116: -203.170736 | M116: 23.99926367 | N116: -196.6350462 | O116: 23.22735515 | P116: Auslegetool: VKL, 4L, mit Filter | W116: 3.5 | X116: 3.269042309
A117: x | C117: 16 | D117: VKL800; ISH Prototyp; mit Filter, Schlitzelemente umgebaut (Steg & Versperrung untereinander), mit 3-3,5cm Schalldämm. | E117: V61 | F117: 127.2533103 | G117: 13.722 | H117: 22.321111 | I117: 128.0288493 | J117: -0.01088845711 | L117: -265.6647943 | M117: 30.894434 | N117: -262.7719889 | O117: 30.55804128 | P117: Auslegetool: VKL, 4L, mit Filter | W117: 3.5 | X117: 3.355562236
A118: x | C118: 17 | D118: VKL800; ISH Prototyp; mit Filter, Schlitzelemente umgebaut (Steg & Versperrung untereinander), mit 3-3,5cm Schalldämm. | E118: V62 | F118: 237.474217 | G118: 13.66 | H118: 22.335889 | I118: 129.757027 | J118: 0.003032799382 | L118: -289.4283627 | M118: 33.36005 | N118: -290.3058682 | O118: 33.46122434 | P118: Auslegetool: VKL, 4L, mit Filter | W118: 3.5 | X118: 3.401563564
A119: x | C119: 18 | D119: VKL800; ISH Prototyp; mit Filter, Schlitzelemente umgebaut (Steg & Versperrung untereinander), mit 3-3,5cm Schalldämm. | E119: V63 | F119: 307.018671 | G119: 13.65833333 | H119: 22.388 | I119: 129.6057313 | J119: 0.001440983142 | L119: -297.794384 | M119: 34.11268933 | N119: -298.2215208 | O119: 34.16184514 | P119: Auslegetool: VKL, 4L, mit Filter | W119: 3.5 | X119: 3.397535934
A120: x | C120: 19 | D120: VKL800; ISH Prototyp; mit Filter, Schlitzelemente umgebaut (Steg & Versperrung untereinander), mit 3-3,5cm Schalldämm. | E120: V64 | F120: 60.093256 | G120: 13.88333333 | H120: 22.52677767 | I120: 357.410967 | J120: -0.003864964681 | L120: -364.3649143 | M120: 42.15506633 | N120: -362.9567115 | O120: 41.99213849 | P120: Auslegetool: VKL, 4L, mit Filter | W120: 10 | X120: 9.517776485
A121: x | C121: 20 | D121: VKL800; ISH Prototyp; mit Filter, Schlitzelemente umgebaut (Steg & Versperrung untereinander), mit 3-3,5cm Schalldämm. | E121: V65 | F121: 127.6208263 | G121: 13.739 | H121: 22.51066667 | I121: 355.0783103 | J121: -0.007700462215 | L121: -527.722793 | M121: 60.16213433 | N121: -523.6584836 | O121: 59.69885809 | P121: Auslegetool: VKL, 4L, mit Filter | W121: 10 | X121: 9.454698802
A122: x | C122: 21 | D122: VKL800; ISH Prototyp; mit Filter, Schlitzelemente umgebaut (Steg & Versperrung untereinander), mit 3-3,5cm Schalldämm. | E122: V66 | F122: 238.6808817 | G122: 13.674 | H122: 22.507111 | I122: 351.954835 | J122: -0.01306488939 | L122: -621.986769 | M122: 70.41572567 | N122: -613.8636914 | O122: 69.495752 | P122: Auslegetool: VKL, 4L, mit Filter | W122: 10 | X122: 9.370246549
A123: x | C123: 22 | D123: VKL800; ISH Prototyp; mit Filter, Schlitzelemente umgebaut (Steg & Versperrung untereinander), mit 3-3,5cm Schalldämm. | E123: V67 | F123: 308.2145287 | G123: 13.677 | H123: 22.41044433 | I123: 353.556565 | J123: -0.01136448432 | L123: -641.89592 | M123: 73.49867267 | N123: -634.6017428 | O123: 72.66339815 | P123: Auslegetool: VKL, 4L, mit Filter | W123: 10 | X123: 9.41355254
A124: x | B124: x | C124: 23 | D124: VKL800; ISH Prototyp; mit Filter, 2MR, mit 3-3,5cm Schalldämm., mit 3D-Strömung | E124: V71 | F124: 201.0265493 | G124: 13.667 | H124: 22.803 | I124: 124.165886 | J124: -0.002354466963 | L124: -292.469918 | M124: 32.01288767 | N124: -291.7811314 | O124: 31.93751438 | P124: Auslegetool: VKL, 4L, mit Filter mit 3D-Strömung | W124: 3.5 | X124: 3.40701433
A125: x | B125: x | C125: 24 | D125: VKL800; ISH Prototyp; mit Filter, 2MR, mit 3-3,5cm Schalldämm., mit 3D-Strömung | E125: V70 | F125: 205.2275413 | G125: 13.67366667 | H125: 22.634 | I125: 199.2992107 | J125: -0.01089506708 | L125: -423.2070953 | M125: 47.23117433 | N125: -418.5961964 | O125: 46.71658752 | P125: Auslegetool: VKL, 4L, mit Filter mit 3D-Strömung | W125: 5.6 | X125: 5.64769402
A126: x | B126: x | C126: 25 | D126: VKL800; ISH Prototyp; mit Filter, 2MR, mit 3-3,5cm Schalldämm., mit 3D-Strömung | E126: V72 | F126: 201.1336133 | G126: 13.71633333 | H126: 22.78277767 | I126: 287.061498 | J126: -0.008007046893 | L126: -548.1921433 | M126: 60.46388567 | N126: -543.8030509 | O126: 59.9797485 | P126: Auslegetool: VKL, 4L, mit Filter mit 3D-Strömung | W126: 8 | X126: 8.339338979
A127: x | B127: x | C127: 26 | D127: VKL800; ISH Prototyp; mit Filter, 2MR, mit 3-3,5cm Schalldämm., mit 3D-Strömung | E127: V73 | F127: 201.1999377 | G127: 13.70433333 | H127: 23.07 | I127: 325.3430097 | J127: -0.01087949377 | L127: -612.7744437 | M127: 65.427913 | N127: -606.1093309 | O127: 64.71609043 | P127: Auslegetool: VKL, 4L, mit Filter mit 3D-Strömung | W127: 10 | X127: 9.532356883
C128: 27 | D128: VKL800; ISH Prototyp; 3,2mm Lamellenabstand, ohne Filter, mit Isolierung der Kondensatwanne | E128: V19 | F128: 201.333558 | G128: 13.70833333 | H128: 23.10177767 | I128: 242.4002419 | J128: -0.01447226759 | L128: -511.3332423 | M128: 54.43525333 | N128: -503.9343519 | O128: 53.64745178 | P128: Auslegetool: VKL, 4L, ohne Filter
A129: x | C129: 28 | D129: VKL800; ISH Prototyp; 3,2mm Lamellenabstand, mit Filter, mit Isolierung der Kondensatwanne | E129: V20 | F129: 201.6437513 | G129: 13.70966667 | H129: 23.212333 | I129: 205.4667632 | J129: -0.0177543014 | L129: -461.3174823 | M129: 48.546077 | N129: -453.1268074 | O129: 47.68417532 | P129: Auslegetool: VKL, 4L, mit Filter

Sheet Plau_heizen (hidden)
A1: Heizen | J1: von Zeile | K1: 7 | W1: 4 | X1: Drehzahl [1/min] | XFB1: 1
J2: bis Zeile | K2: 14 | W2: 18 | X2: V Sek [m³/h]
G3: aktuelle Einstellung des Auslegetools | J3: =VKL!A3 -> Auslegetool: VKL-Deckengerät, 4L (3,2mm), mit Filter
B4: 1 | D4: 2 | H4: 12 | J4: 13 | N4: 16 | O4: 17 | R4: 20 | X4: =IF(VKL!AF7=2,Plau_kuehlen!W1,Plau_kuehlen!W2) -> 18 | Y4: 6
A5: Messung | B5: Letzte Zeile Messung | C5: Messung (Tabellenblatt) NAMEN EINFÜGEN !!! | D5: Messpunkt (z.B. Spannung, Wassermenge, Vorlauftemepratur, …) | E5: T Halle [°C] | F5: rF Halle [%] | G5: Hallendruck [Pa] | H5: Wassermenge [kg/h] | I5: dP Wasser [kPa] | J5: T Wasser Vorlauf [°C] | K5: T Wasser Rücklauf [°C] | M5: T Wasser Spreizung [K] | N5: Q Sek [W] | O5: q Sek [W/K] | P5: V Sek [m³/h] | Q5: i [-] | R5: T Ansaug mean [°C] | S5: T Ausblas mean [°C] | T5: T WT in [°C] | U5: T WT out [°C] | V5: dP Luft [Pa] | W5: dP V_Prim [Pa] | X5: =IF(X4=W1,X1,X2) -> V Sek [m³/h] | Y5: Spannung [V] | Z5: Messstrecke | AA5: Wirkdruck | AB5: V Prim [m³/h] | AC5: T Ansaug 1 | AD5: T Ansaug 2 | AE5: T Ansaug 3 | AF5: T Ausblas 1 | AG5: T Ausblas 2 | AH5: T Ausblas 3 | AI5: T Primärluft | AJ5: T frei | AK5: T Ansaug 1 Rot. [°C] | AL5: rF Ansaug 1 Rot. [%] | AM5: T Ansaug 2 Rot. [°C] | AN5: rF Ansaug 2 Rot. [%] | AO5: T Ausblas 1 Rot. [°C] | AP5: rF Ausblas 1 Rot. [%] | AQ5: T Ausblas 2 Rot. [°C] | AR5: rF Ausblas 2 Rot. [%] | AS5: T Primärluft Rot. [°C] | AT5: rF Primärluft Rot. [%] | AU5: T Frei Rot. [°C] | AV5: rF Frei Rot. [%] | AW5: Beharrungszustand [min] | AX5: Beharrungszustand (1=T) | AZ5: ΔΘ (T_Ansaug_mean - T_W_Mittel) [K] | BA5: ΔΘ (T_Ansaugs_mean - T_W_Vorlauf) [K] | BB5: T_W_Mittel [°C] | BD5: q_Sek_Mittel [W/K] | BE5: q_Sek_Vorlauf [W/K] | BG5: Datum | BH5: Start Messwert | BI5: Ende Messwert | BK5: Erste Zeile | BL5: Letzte Zeile | BN5: Diagramm-Überschrift
A6: 1 | B6: 2 | C6: 3 | D6: 4 | E6: 5 | F6: 6 | G6: 7 | H6: 8 | I6: 9 | J6: 10 | K6: 11 | M6: 12 | N6: 13 | O6: 14 | P6: 15 | Q6: 16 | R6: 17 | S6: 18 | T6: 19 | U6: 20 | V6: 21 | W6: 22 | X6: 23 | Y6: 24 | Z6: 25 | AA6: 26 | AB6: 27 | AC6: 28 | AD6: 29 | AE6: 30 | AF6: 31 | AG6: 32 | AH6: 33 | AI6: 34 | AJ6: 35 | AK6: 36 | AL6: 37 | AM6: 38 | AN6: 39 | AO6: 40 | AP6: 41 | AQ6: 42 | AR6: 43 | AS6: 44 | AT6: 45 | AU6: 46 | AV6: 47 | AW6: 48 | AX6: 49 | AY6: 50 | AZ6: 51 | BA6: 52 | BB6: 53 | BC6: 54 | BD6: 55 | BE6: 56 | BF6: 57 | BG6: 58 | BH6: 59 | BI6: 60 | BJ6: 61 | BK6: 62 | BL6: 63 | BM6: 64 | BN6: 65 | BO6: 66 | BP6: 67 | BQ6: 68 | BR6: 69 | BS6: 70 | BT6: 71 | BU6: 72 | BV6: 73 | BW6: 74 | BX6: 75 | BY6: 76 | BZ6: 77 | CA6: 78 | CB6: 79 | CC6: 80 | CD6: 81 | CE6: 82 | CF6: 83 | CG6: 84 | CH6: 85 | CI6: 86 | CJ6: 87 | CK6: 88 | CL6: 89 | CM6: 90 | CN6: 91 | CO6: 92 | CP6: 93 | CQ6: 94 | CR6: 95 | CS6: 96 | CT6: 97 | CU6: 98 | CV6: 99 | CW6: 100 | CX6: 101 | CY6: 102 | CZ6: 103 | DA6: 104 | DB6: 105 | DC6: 106 | DD6: 107 | DE6: 108 | DF6: 109 | DG6: 110 | DH6: 111 | DI6: 112 | DJ6: 113 | DK6: 114 | DL6: 115 | DM6: 116 | DN6: 117 | DO6: 118 | DP6: 119 | DQ6: 120 | DR6: 121 | DS6: 122 | DT6: 123 | DU6: 124 | DV6: 125 | DW6: 126 | DX6: 127 | DY6: 128 | DZ6: 129 | EA6: 130 | EB6: 131 | EC6: 132 | ED6: 133 | EE6: 134 | EF6: 135 | EG6: 136 | EH6: 137 | EI6: 138 | EJ6: 139 | EK6: 140 | EL6: 141 | EM6: 142
A7: V90 | B7: =VLOOKUP($A7,Matrix_Rohdaten,B$4,0) -> V90 | D7: =VLOOKUP($A7,Matrix_Rohdaten,D$4,0) -> VKL800; ISH Prototyp; mit Filter, mit 3-3,5cm Schalldämm. | H7: =VLOOKUP($A7,Matrix_Rohdaten,H$4,0) -> 119.880936 | J7: =VLOOKUP($A7,Matrix_Rohdaten,J$4,0) -> 55.15366667 | N7: =(VLOOKUP($A7,Matrix_Rohdaten,N$4,0)) -> 861.8487747 | O7: =VLOOKUP($A7,Matrix_Rohdaten,O$4,0) -> 28.17972867 | R7: =VLOOKUP($A7,Matrix_Rohdaten,R$4,0) -> 24.56966667 | X7: =VLOOKUP($A7,Matrix_Rohdaten,X$4,0) -> 127.0681653 | Y7: 3.5
A8: V89 | B8: V89 | D8: VKL800; ISH Prototyp; mit Filter, mit 3-3,5cm Schalldämm. | H8: 119.9981133 | J8: 55.20133333 | N8: 1160.449905 | O8: 37.985167 | R8: 24.65122233 | X8: 202.5779663 | Y8: 5.6
A9: V91 | B9: V91 | D9: VKL800; ISH Prototyp; mit Filter, mit 3-3,5cm Schalldämm. | H9: 118.974634 | J9: 55.22133333 | N9: 1387.968292 | O9: 46.449303 | R9: 25.33999967 | X9: 301.9899217 | Y9: 8
A10: V92 | B10: V92 | D10: VKL800; ISH Prototyp; mit Filter, mit 3-3,5cm Schalldämm. | H10: 118.0239337 | J10: 55.23833333 | N10: 1439.135549 | O10: 48.520722 | R10: 25.578111 | X10: 333.390406 | Y10: 10
A11: V82 | B11: V82 | D11: VKL800; ISH Prototyp; mit Filter, mit 3-3,5cm Schalldämm., mit 3D-Strömung | H11: 61.56286733 | J11: 54.92533333 | N11: 839.1483773 | O11: 30.216217 | R11: 27.15388867 | X11: 183.616652 | Y11: 5.6
A12: V83 | B12: V83 | D12: VKL800; ISH Prototyp; mit Filter, mit 3-3,5cm Schalldämm., mit 3D-Strömung | H12: 116.6637383 | J12: 55.30866667 | N12: 1029.632857 | O12: 36.89351567 | R12: 27.40044467 | X12: 188.5698593 | Y12: 5.6
A13: V84 | B13: V84 | D13: VKL800; ISH Prototyp; mit Filter, mit 3-3,5cm Schalldämm., mit 3D-Strömung | H13: 192.128082 | J13: 55.51533333 | N13: 1120.169163 | O13: 40.029869 | R13: 27.532 | X13: 188.1194203 | Y13: 5.6
A14: V85 | B14: V85 | D14: VKL800; ISH Prototyp; mit Filter, mit 3-3,5cm Schalldämm., mit 3D-Strömung | H14: 231.008269 | J14: 55.56866667 | N14: 1139.691001 | O14: 40.703091 | R14: 27.56855533 | X14: 186.5821417 | Y14: 5.6
X24: =VLOOKUP($A24,Matrix_Rohdaten,X$4,0) -> 
C30: Gültig für gemessene Baugröße 800
D33: =CONCATENATE(X5," als Parameter vorgegeben") -> V Sek [m³/h] als Parameter vorgegeben
A34: MIT DOPPELKILICK die richtige Kombination AUSWÄHLEN | L34: Messwerte | N34: Auslegungstool | AC34: Für das Makro "Starten der Plausibilität" notwendig
A35: Parametereinsttelung | C35: Zeile | F35: Wassermenge [kg/h] | G35: T Wasser Vorlauf [°C] | H35: T Ansaug mean [°C] | I35: =X5 -> V Sek [m³/h] | J35: Abweichung Auslegetool | L35: Q Sek [W] | M35: q Sek [W/K] | N35: Q Sek [W] | O35: q Sek [W/K]
A36: Filter | B36: 3D-Strömung | F36: 8 | G36: 10 | H36: 17 | I36: 23 | AC36: Filter | AD36: 3D-Strömung
A37: x | C37: =ROW(A7) -> 7 | D37: =D7 -> VKL800; ISH Prototyp; mit Filter, mit 3-3,5cm Schalldämm. | E37: V90 | F37: 119.880936 | G37: 55.15366667 | H37: 24.56966667 | I37: 504 | J37: =1/M37*O37-1 -> 0.0005603323123 | L37: 861.8487747 | M37: 28.17972867 | N37: 862.3317433 | O37: 28.19551868 | P37: Auslegetool: VKL, 4L, mit Filter | AC37: =IF(A37="x",TRUE,FALSE) -> TRUE | AD37: =IF(B37="x",TRUE,FALSE) -> FALSE
A38: x | C38: =ROW(A8) -> 8 | D38: =D8 -> VKL800; ISH Prototyp; mit Filter, mit 3-3,5cm Schalldämm. | E38: V89 | F38: 119.9981133 | G38: 55.20133333 | H38: 24.65122233 | I38: 749 | J38: =1/M38*O38-1 -> 0.00225084933 | L38: 1160.449905 | M38: 37.985167 | N38: 1163.063069 | O38: 38.07066589 | P38: Auslegetool: VKL, 4L, mit Filter | AC38: =IF(A38="x",TRUE,FALSE) -> TRUE | AD38: FALSE
A39: x | C39: 9 | D39: VKL800; ISH Prototyp; mit Filter, mit 3-3,5cm Schalldämm. | E39: V91 | F39: 118.974634 | G39: 55.22133333 | H39: 25.33999967 | I39: 1050 | J39: -0.001521277691 | L39: 1387.968292 | M39: 46.449303 | N39: 1385.855638 | O39: 46.37864071 | P39: Auslegetool: VKL, 4L, mit Filter | AC39: TRUE | AD39: FALSE
A40: x | C40: 10 | D40: VKL800; ISH Prototyp; mit Filter, mit 3-3,5cm Schalldämm. | E40: V92 | F40: 118.0239337 | G40: 55.23833333 | H40: 25.578111 | I40: 1144 | J40: -0.001550667858 | L40: 1439.135549 | M40: 48.520722 | N40: 1436.903781 | O40: 48.44548248 | P40: Auslegetool: VKL, 4L, mit Filter | AC40: TRUE | AD40: FALSE
A41: x | B41: x | C41: 11 | D41: VKL800; ISH Prototyp; mit Filter, mit 3-3,5cm Schalldämm., mit 3D-Strömung | E41: V82 | F41: 61.56286733 | G41: 54.92533333 | H41: 27.15388867 | I41: 760 | J41: -0.006519923739 | L41: 839.1483773 | M41: 30.216217 | N41: 833.6768175 | O41: 30.01920957 | P41: Auslegetool: VKL, 4L, mit Filter mit 3D-Strömung | AC41: TRUE | AD41: TRUE
A42: x | B42: x | C42: 12 | D42: VKL800; ISH Prototyp; mit Filter, mit 3-3,5cm Schalldämm., mit 3D-Strömung | E42: V83 | F42: 116.6637383 | G42: 55.30866667 | H42: 27.40044467 | I42: 760 | J42: -0.006519923739 | L42: 1029.632857 | M42: 36.89351567 | N42: 1022.919301 | O42: 36.65297276 | P42: Auslegetool: VKL, 4L, mit Filter mit 3D-Strömung | AC42: TRUE | AD42: TRUE
A43: x | B43: x | C43: 13 | D43: VKL800; ISH Prototyp; mit Filter, mit 3-3,5cm Schalldämm., mit 3D-Strömung | E43: V84 | F43: 192.128082 | G43: 55.51533333 | H43: 27.532 | I43: 760 | J43: -0.006519923739 | L43: 1120.169163 | M43: 40.029869 | N43: 1112.86575 | O43: 39.76887731 | P43: Auslegetool: VKL, 4L, mit Filter mit 3D-Strömung | AC43: TRUE | AD43: TRUE
A44: x | B44: x | C44: 14 | D44: VKL800; ISH Prototyp; mit Filter, mit 3-3,5cm Schalldämm., mit 3D-Strömung | E44: V85 | F44: 231.008269 | G44: 55.56866667 | H44: 27.56855533 | I44: 760 | J44: -0.006519923739 | L44: 1139.691001 | M44: 40.703091 | N44: 1132.260381 | O44: 40.43770995 | P44: Auslegetool: VKL, 4L, mit Filter mit 3D-Strömung | AC44: TRUE | AD44: TRUE
C45: 15 | AC45: FALSE | AD45: FALSE
C46: 16 | AC46: FALSE | AD46: FALSE
C47: 17 | AC47: FALSE | AD47: FALSE
C48: 18 | AC48: FALSE | AD48: FALSE
C49: 19 | AC49: FALSE | AD49: FALSE
C50: 20 | AC50: FALSE | AD50: FALSE
C51: 21 | AC51: FALSE | AD51: FALSE
C52: 22 | AC52: FALSE | AD52: FALSE
C53: =ROW(A23) -> 23
C54: 24
C55: 25
C56: 26
A59: Plausibilitätstabelle manuell kopiert
C61: Plausibilitätsbetrachtung des Auslegetools, Vergleich zwischen gemessener und ausgelegter Leistung bei gleichen Randbedingungen
C62: VKL800; 4L; Wandgerät; 3,2mm; Nullseriengerät; heizen
C63: Bearbeiter: | D63: TT
C64: Datum: | D64: 2018-08-09
D66: Drehzahl [1/min] als Parameter vorgegeben
F68: Messwerte bzw. eingestellte Parameter Auslegetool | L68: gemessene Leistung | N68: Auslegungstool
C69: Zeile | F69: Wassermenge [kg/h] | G69: T Wasser Vorlauf [°C] | H69: T Ansaug mean [°C] | I69: Drehzahl [1/min] | J69: Abweichung Auslegetool | L69: Q Sek [W] | M69: q Sek [W/K] | N69: Q Sek [W] | O69: q Sek [W/K]
F70: 8 | G70: 10 | H70: 17 | I70: 23
C71: 7 | D71: VKL800; ISH Prototyp; mit Filter, mit 3-3,5cm Schalldämm. | E71: V90 | F71: 119.880936 | G71: 55.15366667 | H71: 24.56966667 | I71: 504 | J71: 0.0005603323123 | L71: 861.8487747 | M71: 28.17972867 | N71: 862.3317433 | O71: 28.19551868 | P71: Auslegetool: VKL, 4L, mit Filter
C72: 8 | D72: VKL800; ISH Prototyp; mit Filter, mit 3-3,5cm Schalldämm. | E72: V89 | F72: 119.9981133 | G72: 55.20133333 | H72: 24.65122233 | I72: 749 | J72: 0.00225084933 | L72: 1160.449905 | M72: 37.985167 | N72: 1163.063069 | O72: 38.07066589 | P72: Auslegetool: VKL, 4L, mit Filter
C73: 9 | D73: VKL800; ISH Prototyp; mit Filter, mit 3-3,5cm Schalldämm. | E73: V91 | F73: 118.974634 | G73: 55.22133333 | H73: 25.33999967 | I73: 1050 | J73: -0.001521277691 | L73: 1387.968292 | M73: 46.449303 | N73: 1385.855638 | O73: 46.37864071 | P73: Auslegetool: VKL, 4L, mit Filter
C74: 10 | D74: VKL800; ISH Prototyp; mit Filter, mit 3-3,5cm Schalldämm. | E74: V92 | F74: 118.0239337 | G74: 55.23833333 | H74: 25.578111 | I74: 1144 | J74: -0.001550667858 | L74: 1439.135549 | M74: 48.520722 | N74: 1436.903781 | O74: 48.44548248 | P74: Auslegetool: VKL, 4L, mit Filter
C75: 11 | D75: VKL800; ISH Prototyp; mit Filter, mit 3-3,5cm Schalldämm., mit 3D-Strömung | E75: V82 | F75: 61.56286733 | G75: 54.92533333 | H75: 27.15388867 | I75: 760 | J75: -0.006519923739 | L75: 839.1483773 | M75: 30.216217 | N75: 833.6768175 | O75: 30.01920957 | P75: Auslegetool: VKL, 4L, mit Filter mit 3D-Strömung
C76: 12 | D76: VKL800; ISH Prototyp; mit Filter, mit 3-3,5cm Schalldämm., mit 3D-Strömung | E76: V83 | F76: 116.6637383 | G76: 55.30866667 | H76: 27.40044467 | I76: 760 | J76: -0.006519923739 | L76: 1029.632857 | M76: 36.89351567 | N76: 1022.919301 | O76: 36.65297276 | P76: Auslegetool: VKL, 4L, mit Filter mit 3D-Strömung
C77: 13 | D77: VKL800; ISH Prototyp; mit Filter, mit 3-3,5cm Schalldämm., mit 3D-Strömung | E77: V84 | F77: 192.128082 | G77: 55.51533333 | H77: 27.532 | I77: 760 | J77: -0.006519923739 | L77: 1120.169163 | M77: 40.029869 | N77: 1112.86575 | O77: 39.76887731 | P77: Auslegetool: VKL, 4L, mit Filter mit 3D-Strömung
C78: 14 | D78: VKL800; ISH Prototyp; mit Filter, mit 3-3,5cm Schalldämm., mit 3D-Strömung | E78: V85 | F78: 231.008269 | G78: 55.56866667 | H78: 27.56855533 | I78: 760 | J78: -0.006519923739 | L78: 1139.691001 | M78: 40.703091 | N78: 1132.260381 | O78: 40.43770995 | P78: Auslegetool: VKL, 4L, mit Filter mit 3D-Strömung
D94: Volumenstrom als Parameter vorgegeben
F96: Messwerte bzw. eingestellte Parameter Auslegetool | L96: gemessene Leistung | N96: Auslegungstool
C97: Zeile | F97: Wassermenge [kg/h] | G97: T Wasser Vorlauf [°C] | H97: T Ansaug mean [°C] | I97: V Sek [m³/h] | J97: Abweichung Auslegetool | L97: Q Sek [W] | M97: q Sek [W/K] | N97: Q Sek [W] | O97: q Sek [W/K]
F98: 8 | G98: 10 | H98: 17 | I98: 23
C99: 7 | D99: VKL800; ISH Prototyp; mit Filter, mit 3-3,5cm Schalldämm. | E99: V90 | F99: 119.880936 | G99: 55.15366667 | H99: 24.56966667 | I99: 127.0681653 | J99: 0.0008484173272 | L99: 861.8487747 | M99: 28.17972867 | N99: 862.580029 | O99: 28.20363684 | P99: Auslegetool: VKL, 4L, mit Filter
C100: 8 | D100: VKL800; ISH Prototyp; mit Filter, mit 3-3,5cm Schalldämm. | E100: V89 | F100: 119.9981133 | G100: 55.20133333 | H100: 24.65122233 | I100: 202.5779663 | J100: 0.002164808776 | L100: 1160.449905 | M100: 37.985167 | N100: 1162.963223 | O100: 38.06739762 | P100: Auslegetool: VKL, 4L, mit Filter
C101: 9 | D101: VKL800; ISH Prototyp; mit Filter, mit 3-3,5cm Schalldämm. | E101: V91 | F101: 118.974634 | G101: 55.22133333 | H101: 25.33999967 | I101: 301.9899217 | J101: -0.001094209636 | L101: 1387.968292 | M101: 46.449303 | N101: 1386.448395 | O101: 46.39847773 | P101: Auslegetool: VKL, 4L, mit Filter
C102: 10 | D102: VKL800; ISH Prototyp; mit Filter, mit 3-3,5cm Schalldämm. | E102: V92 | F102: 118.0239337 | G102: 55.23833333 | H102: 25.578111 | I102: 333.390406 | J102: -0.002090867953 | L102: 1439.135549 | M102: 48.520722 | N102: 1436.12636 | O102: 48.41927158 | P102: Auslegetool: VKL, 4L, mit Filter
C103: 11 | D103: VKL800; ISH Prototyp; mit Filter, mit 3-3,5cm Schalldämm., mit 3D-Strömung | E103: V82 | F103: 61.56286733 | G103: 54.92533333 | H103: 27.15388867 | I103: 183.616652 | J103: -0.03212269332 | L103: 839.1483773 | M103: 30.216217 | N103: 812.1923046 | O103: 29.24559073 | P103: Auslegetool: VKL, 4L, mit Filter mit 3D-Strömung
C104: 12 | D104: VKL800; ISH Prototyp; mit Filter, mit 3-3,5cm Schalldämm., mit 3D-Strömung | E104: V83 | F104: 116.6637383 | G104: 55.30866667 | H104: 27.40044467 | I104: 188.5698593 | J104: -0.016694395 | L104: 1029.632857 | M104: 36.89351567 | N104: 1012.443335 | O104: 36.27760074 | P104: Auslegetool: VKL, 4L, mit Filter mit 3D-Strömung
C105: 13 | D105: VKL800; ISH Prototyp; mit Filter, mit 3-3,5cm Schalldämm., mit 3D-Strömung | E105: V84 | F105: 192.128082 | G105: 55.51533333 | H105: 27.532 | I105: 188.1194203 | J105: -0.01808068814 | L105: 1120.169163 | M105: 40.029869 | N105: 1099.915738 | O105: 39.30610142 | P105: Auslegetool: VKL, 4L, mit Filter mit 3D-Strömung
C106: 14 | D106: VKL800; ISH Prototyp; mit Filter, mit 3-3,5cm Schalldämm., mit 3D-Strömung | E106: V85 | F106: 231.008269 | G106: 55.56866667 | H106: 27.56855533 | I106: 186.5821417 | J106: -0.02283695704 | L106: 1139.691001 | M106: 40.703091 | N106: 1113.664003 | O106: 39.77355626 | P106: Auslegetool: VKL, 4L, mit Filter mit 3D-Strömung

Sheet Master-Auslegung_V52-V67 (hidden)
B1: VKL800 | C1: ISH-Prototyp | D1: 4L | E1: 3 - 3,5 cm Schalldämmung | F1: mit Filter | G1: 2. Variable | H1: Drehzahl [1/min] | I1: Drehzahl | J1: 1/min | K1: =CONCATENATE(B1,"; ", C1, "; ", D1, "; ", F1) -> VKL800; ISH-Prototyp; 4L; mit Filter | AB1: Bemerkung: | AY1: 1 | AZ1: kühlen
B2: kühlen | AB2: mit 3D Strömung | AH2: Auslegung bei gleichem Volumenstrom | AN2: Auslegung bei gleicher Drehzahl | AY2: 2 | AZ2: heizen
B3: w_soll für Auslegung 1 und 2 | C3: =VKL!I13 -> 200 | D3: kg/h | N3: Messung | O3: Messung - Kontrolle | P3: Drehzahl | Q3: q Sek | R3: Wasser-Massenstrom [kg/h] | S3: =H7 -> Sekundärvolumenstrom - Kalorik [m³/h] | T3: Abweichung zu Auslegung 1 | U3: Vergleichstext 1 | V3: Abweichung zu Auslegung 2 | W3: Vergleichstext 2 | X3: Druckverlust Kasten [Pa] | Y3: Bemerkung | Z3: Bemerkung | AB3: Messung | AC3: Messung - Kontrolle | AD3: Drehzahl | AE3: q Sek | AF3: Wasser-Massenstrom [kg/h] | AG3: =$H$7 -> Sekundärvolumenstrom - Kalorik [m³/h] | AH3: =$H$7 -> Sekundärvolumenstrom - Kalorik [m³/h] | AI3: =AD3 -> Drehzahl | AJ3: =CONCATENATE("Abweichung ", AI3) -> Abweichung Drehzahl | AK3: q_1 (Volumenstrom) | AL3: Abweichung q zu Auslegung 1 | AM3: Vergleichstext 1 | AN3: =AD3 -> Drehzahl | AO3: =AG3 -> Sekundärvolumenstrom - Kalorik [m³/h] | AP3: =CONCATENATE("Abweichung ", AO3) -> Abweichung Sekundärvolumenstrom - Kalorik [m³/h] | AQ3: q_2 (Drehzahl) | AR3: Abweichung q zu Auslegung 2 | AS3: Vergleichstext 2 | AT3: Druckverlust Kasten [Pa] | AU3: Bemerkung | AV3: Bemerkung | AY3: Abfrage | AZ3: =IF(B2="heizen",2,1) -> 1
B4: Nennwassermenge | C4: 200 | D4: kg/h | P4: [1/min] | Q4: [W/K] | Z4: [-] | AD4: [1/min] | AE4: [W/K] | AG4: [m³/h] | AH4: =AG4 -> [m³/h] | AI4: =AD4 -> [1/min] | AN4: [1/min] | AO4: =AG4 -> [m³/h] | AV4: [-]
N5: V72 | O5: =VLOOKUP($N5,Matrix_Rohdaten,1,0) -> V72 | P5: =VLOOKUP($N5,Matrix_Rohdaten,4,0) -> 1039 | Q5: =VLOOKUP($N5,Matrix_Rohdaten,17,0) -> 60.46388567 | R5: =VLOOKUP($N5,Matrix_Rohdaten,12,0) -> 201.1336133 | S5: =VLOOKUP($N5,Matrix_Rohdaten,18,0) -> 287.061498 | T5: =Q5/$D$9-1 -> -0.06468884634 | U5: =IF(T5>0,CONCATENATE("+", ROUND(AVERAGE(T5)*100,0), " % Kühlleistung ", " im Vergleich zur Auslegung 1"), CONCATENATE(ROUND(AVERAGE(T5)*100,0), " % Kühlleistung ", " im Vergleich zur Auslegung 1")) -> -6 % Kühlleistung im Vergleich zur Auslegung 1 | V5: =Q5/$I$9-1 -> -0.1112892773 | W5: =IF(V5>0,CONCATENATE("+", ROUND(AVERAGE(V5)*100,0), " % Kühlleistung ", " im Vergleich zur Auslegung 2"), CONCATENATE(ROUND(AVERAGE(V5)*100,0), " % Kühlleistung ", " im Vergleich zur Auslegung 2")) -> -11 % Kühlleistung im Vergleich zur Auslegung 2 | X5: =VLOOKUP($N5,Matrix_Rohdaten,5,0) -> 12 | Y5: =VLOOKUP($N5,Matrix_Rohdaten,2,0) -> VKL800; ISH Prototyp; mit Filter, 2MR, mit 3-3,5cm Schalldämm., mit 3D-Strömung | Z5: =CONCATENATE(O5, ": ",Y5, "; q Sek bei wok ",ROUND(R5,0), " kg/h; ",ROUND(P5,0), " 1/min; ", ROUND(S5,0), " m³/h") -> V72: VKL800; ISH Prototyp; mit Filter, 2MR, mit 3-3,5cm Schalldämm., mit 3D-Strömung; q Sek bei wok 201 kg/h; 1039 1/min; 287 m³/h | AB5: V71 | AC5: =VLOOKUP($AB5,Matrix_Rohdaten,1,0) -> V71 | AD5: =VLOOKUP($AB5,Matrix_Rohdaten,4,0) -> 489 | AE5: =VLOOKUP($AB5,Matrix_Rohdaten,17,0) -> 32.01288767 | AF5: =VLOOKUP($AB5,Matrix_Rohdaten,12,0) -> 201.0265493 | AG5: =VLOOKUP($AB5,Matrix_Rohdaten,18,0) -> 124.165886 | AH5: =AG5 -> 124.165886 | AI5: 468.3073012 | AJ5: =1/AD5*AI5-1 -> -0.04231635752 | AK5: 31.93751438 | AL5: =AE5/AK5-1 -> 0.00236002356 | AM5: =IF(AL5>0,CONCATENATE("+", ROUND(AVERAGE(AL5)*100,0), " % Kühlleistung ", " im Vergleich zur Auslegung 1"), CONCATENATE(ROUND(AVERAGE(AL5)*100,0), " % Kühlleistung ", " im Vergleich zur Auslegung 1")) -> +0 % Kühlleistung im Vergleich zur Auslegung 1 | AN5: 489 | AO5: 130.6596954 | AP5: =1/AG5*AO5-1 -> 0.05229946529 | AQ5: 33.40293492 | AR5: =AE5/AQ5-1 -> -0.04161452457 | AS5: =IF(AR5>0,CONCATENATE("+", ROUND(AVERAGE(AR5)*100,0), " % Kühlleistung ", " im Vergleich zur Auslegung 2"), CONCATENATE(ROUND(AVERAGE(AR5)*100,0), " % Kühlleistung ", " im Vergleich zur Auslegung 2")) -> -4 % Kühlleistung im Vergleich zur Auslegung 2 | AT5: =VLOOKUP($AB5,Matrix_Rohdaten,5,0) -> 1.9 | AU5: =VLOOKUP($AB5,Matrix_Rohdaten,2,0) -> VKL800; ISH Prototyp; mit Filter, 2MR, mit 3-3,5cm Schalldämm., mit 3D-Strömung | AV5: =CONCATENATE(AC5, ": ",AU5, "; q Sek bei wok ",ROUND(AF5,0), " kg/h; ",ROUND(AD5,0), " 1/min; ", ROUND(AG5,0), " m³/h") -> V71: VKL800; ISH Prototyp; mit Filter, 2MR, mit 3-3,5cm Schalldämm., mit 3D-Strömung; q Sek bei wok 201 kg/h; 489 1/min; 124 m³/h
B6: Auslegung 1 - Volumenstrom einstellbar | D6: =CONCATENATE("Auslegung 2; ", 'Master-Auswertung_V52-V67'!$F$1, " ", ROUND($C$3,0), " kg/h ;",ROUND(B9,0), " ", B8) -> Auslegung 2; ISH-Prototyp 200 kg/h ;325 m³/h | G6: =CONCATENATE("Auslegung 2 - ", 'Master-Auslegung_V52-V67'!C7," einstellbar") -> Auslegung 2 - Drehzahl einstellbar | I6: =CONCATENATE("Auslegung 2; ", 'Master-Auswertung_V52-V67'!$F$1, " ", ROUND($C$3,0), " kg/h ;", G9, " ", G8) -> Auslegung 2; ISH-Prototyp 200 kg/h ;1146 1/min | AB6: V70 | AC6: =VLOOKUP($AB6,Matrix_Rohdaten,1,0) -> V70 | AD6: =VLOOKUP($AB6,Matrix_Rohdaten,4,0) -> 734 | AE6: =VLOOKUP($AB6,Matrix_Rohdaten,17,0) -> 47.23117433 | AF6: =VLOOKUP($AB6,Matrix_Rohdaten,12,0) -> 205.2275413 | AG6: =VLOOKUP($AB6,Matrix_Rohdaten,18,0) -> 199.2992107 | AH6: =AG6 -> 199.2992107 | AI6: 699.6406298 | AJ6: =1/AD6*AI6-1 -> -0.046811131 | AK6: 46.71658752 | AL6: =AE6/AK6-1 -> 0.01101507709 | AM6: =IF(AL6>0,CONCATENATE("+", ROUND(AVERAGE(AL6)*100,0), " % Kühlleistung ", " im Vergleich zur Auslegung 1"), CONCATENATE(ROUND(AVERAGE(AL6)*100,0), " % Kühlleistung ", " im Vergleich zur Auslegung 1")) -> +1 % Kühlleistung im Vergleich zur Auslegung 1 | AN6: 734 | AO6: 210.8865499 | AP6: =1/AG6*AO6-1 -> 0.05814041702 | AQ6: 48.60018764 | AR6: =AE6/AQ6-1 -> -0.02816888937 | AS6: =IF(AR6>0,CONCATENATE("+", ROUND(AVERAGE(AR6)*100,0), " % Kühlleistung ", " im Vergleich zur Auslegung 2"), CONCATENATE(ROUND(AVERAGE(AR6)*100,0), " % Kühlleistung ", " im Vergleich zur Auslegung 2")) -> -3 % Kühlleistung im Vergleich zur Auslegung 2 | AT6: =VLOOKUP($AB6,Matrix_Rohdaten,5,0) -> 5 | AU6: =VLOOKUP($AB6,Matrix_Rohdaten,2,0) -> VKL800; ISH Prototyp; mit Filter, 2MR, mit 3-3,5cm Schalldämm., mit 3D-Strömung | AV6: =CONCATENATE(AC6, ": ",AU6, "; q Sek bei wok ",ROUND(AF6,0), " kg/h; ",ROUND(AD6,0), " 1/min; ", ROUND(AG6,0), " m³/h") -> V70: VKL800; ISH Prototyp; mit Filter, 2MR, mit 3-3,5cm Schalldämm., mit 3D-Strömung; q Sek bei wok 205 kg/h; 734 1/min; 199 m³/h
B7: V_Soll | C7: ='Master-Auswertung_V52-V67'!E2 -> Drehzahl | D7: q Sek | G7: ='Master-Auswertung_V52-V67'!E2 -> Drehzahl | H7: ='Master-Auswertung_V52-V67'!K6 -> Sekundärvolumenstrom - Kalorik [m³/h] | I7: q Sek | AB7: V72 | AC7: =VLOOKUP($AB7,Matrix_Rohdaten,1,0) -> V72 | AD7: =VLOOKUP($AB7,Matrix_Rohdaten,4,0) -> 1039 | AE7: =VLOOKUP($AB7,Matrix_Rohdaten,17,0) -> 60.46388567 | AF7: =VLOOKUP($AB7,Matrix_Rohdaten,12,0) -> 201.1336133 | AG7: =VLOOKUP($AB7,Matrix_Rohdaten,18,0) -> 287.061498 | AH7: =AG7 -> 287.061498 | AI7: 953.4911342 | AJ7: =1/AD7*AI7-1 -> -0.08229919708 | AK7: 59.9797485 | AL7: =AE7/AK7-1 -> 0.008071677191 | AM7: =IF(AL7>0,CONCATENATE("+", ROUND(AVERAGE(AL7)*100,0), " % Kühlleistung ", " im Vergleich zur Auslegung 1"), CONCATENATE(ROUND(AVERAGE(AL7)*100,0), " % Kühlleistung ", " im Vergleich zur Auslegung 1")) -> +1 % Kühlleistung im Vergleich zur Auslegung 1 | AN7: 1039 | AO7: 317.6416034 | AP7: =1/AG7*AO7-1 -> 0.1065280631 | AQ7: 63.88301116 | AR7: =AE7/AQ7-1 -> -0.05352167078 | AS7: =IF(AR7>0,CONCATENATE("+", ROUND(AVERAGE(AR7)*100,0), " % Kühlleistung ", " im Vergleich zur Auslegung 2"), CONCATENATE(ROUND(AVERAGE(AR7)*100,0), " % Kühlleistung ", " im Vergleich zur Auslegung 2")) -> -5 % Kühlleistung im Vergleich zur Auslegung 2 | AT7: =VLOOKUP($AB7,Matrix_Rohdaten,5,0) -> 12 | AU7: =VLOOKUP($AB7,Matrix_Rohdaten,2,0) -> VKL800; ISH Prototyp; mit Filter, 2MR, mit 3-3,5cm Schalldämm., mit 3D-Strömung | AV7: =CONCATENATE(AC7, ": ",AU7, "; q Sek bei wok ",ROUND(AF7,0), " kg/h; ",ROUND(AD7,0), " 1/min; ", ROUND(AG7,0), " m³/h") -> V72: VKL800; ISH Prototyp; mit Filter, 2MR, mit 3-3,5cm Schalldämm., mit 3D-Strömung; q Sek bei wok 201 kg/h; 1039 1/min; 287 m³/h
B8: m³/h | C8: ='Master-Auswertung_V52-V67'!C2 -> 1/min | D8: W/K | G8: ='Master-Auswertung_V52-V67'!C2 -> 1/min | H8: m³/h | I8: W/K | AB8: V73 | AC8: =VLOOKUP($AB8,Matrix_Rohdaten,1,0) -> V73 | AD8: =VLOOKUP($AB8,Matrix_Rohdaten,4,0) -> 1146 | AE8: =VLOOKUP($AB8,Matrix_Rohdaten,17,0) -> 65.427913 | AF8: =VLOOKUP($AB8,Matrix_Rohdaten,12,0) -> 201.1999377 | AG8: =VLOOKUP($AB8,Matrix_Rohdaten,18,0) -> 325.3430097 | AH8: =AG8 -> 325.3430097 | AI8: 1060.32727 | AJ8: =1/AD8*AI8-1 -> -0.0747580543 | AK8: 64.71609043 | AL8: =AE8/AK8-1 -> 0.01099915905 | AM8: =IF(AL8>0,CONCATENATE("+", ROUND(AVERAGE(AL8)*100,0), " % Kühlleistung ", " im Vergleich zur Auslegung 1"), CONCATENATE(ROUND(AVERAGE(AL8)*100,0), " % Kühlleistung ", " im Vergleich zur Auslegung 1")) -> +1 % Kühlleistung im Vergleich zur Auslegung 1 | AN8: 1146 | AO8: 356.5442666 | AP8: =1/AG8*AO8-1 -> 0.09590265046 | AQ8: 68.1122766 | AR8: =AE8/AQ8-1 -> -0.03941086298 | AS8: =IF(AR8>0,CONCATENATE("+", ROUND(AVERAGE(AR8)*100,0), " % Kühlleistung ", " im Vergleich zur Auslegung 2"), CONCATENATE(ROUND(AVERAGE(AR8)*100,0), " % Kühlleistung ", " im Vergleich zur Auslegung 2")) -> -4 % Kühlleistung im Vergleich zur Auslegung 2 | AT8: =VLOOKUP($AB8,Matrix_Rohdaten,5,0) -> 18 | AU8: =VLOOKUP($AB8,Matrix_Rohdaten,2,0) -> VKL800; ISH Prototyp; mit Filter, 2MR, mit 3-3,5cm Schalldämm., mit 3D-Strömung | AV8: =CONCATENATE(AC8, ": ",AU8, "; q Sek bei wok ",ROUND(AF8,0), " kg/h; ",ROUND(AD8,0), " 1/min; ", ROUND(AG8,0), " m³/h") -> V73: VKL800; ISH Prototyp; mit Filter, 2MR, mit 3-3,5cm Schalldämm., mit 3D-Strömung; q Sek bei wok 201 kg/h; 1146 1/min; 325 m³/h
B9: 325.3430097 | C9: ='Master-Auswertung_V52-V67'!I33 -> 1060.32727 | D9: ='Master-Auswertung_V52-V67'!C56 -> 64.64574428 | G9: 1146 | H9: ='Master-Auswertung_V52-V67'!M33 -> 356.5442666 | I9: ='Master-Auswertung_V52-V67'!C77 -> 68.03550821 | L9: =I9*20*0.916 -> 1246.41051
Z12: Text für Diagramme
Z15: =CONCATENATE('Master-Auswertung_V52-V67'!B1, "; ", ROUND($C$3,0), " ", $D$3) -> VKL800; ISH-Prototyp; 4L; 3 - 3,5 cm Schalldämmung; mit Filter; 200 kg/h
Z16: =CONCATENATE("A1; ",'Master-Auswertung_V52-V67'!B1, "; ", ROUND($C$3,0), " ", $D$3, "; ", ROUND(C9,0), " ",C8, "; ",ROUND(B9,0), " ", B8) -> A1; VKL800; ISH-Prototyp; 4L; 3 - 3,5 cm Schalldämmung; mit Filter; 200 kg/h; 1060 1/min; 325 m³/h | AE16: aus Masterauswertung
Z17: =CONCATENATE("A2; ",'Master-Auswertung_V52-V67'!B1, "; ", ROUND($C$3,0), " ", $D$3, "; ", ROUND(G9,0), " ",G8, "; ",ROUND(H9,0), " ", H8) -> A2; VKL800; ISH-Prototyp; 4L; 3 - 3,5 cm Schalldämmung; mit Filter; 200 kg/h; 1146 1/min; 357 m³/h | AE17: y = | AF17: mxb
AE18: =INDEX(LOGEST(AG5:AG8,LN(AD5:AD8),,TRUE),1,2) -> 0.1214359569 | AF18: =LN(INDEX(LOGEST(AG5:AG8,LN(AD5:AD8),,TRUE),1,1)) -> 1.119994274
B33: Basis der Auslegung
C34: 1 | D34: 4 | E34: 18 | F34: 12 | G34: 17 | H34: 3 | I34: 5
B35: =CONCATENATE($C$7,"variation (bei ca. ", ROUND(AVERAGE(F37:F40),0), " kg/h)") -> Drehzahlvariation (bei ca. 202 kg/h) | N35: Grenzen der Auslegung
B36: Messung | C36: Messung - Kontrolle | D36: ='Master-Auswertung_V52-V67'!$B$2 -> Drehzahl [1/min] | E36: Sekundärvolumenstrom [m³/h] | F36: Wasser-Massenstrom [kg/h] | G36: spez. Kühlleistung [W/K] | H36: Druckverlust wassers. [kPa] | I36: Druckverlust Kasten [Pa] | N36: ='Master-Auswertung_V52-V67'!$B$2 -> Drehzahl [1/min] | O36: Volumenstrom [m³/h]
B37: V53 | C37: =VLOOKUP($B37,Matrix_Rohdaten,1,0) -> V53 | D37: =VLOOKUP($B37,Matrix_Rohdaten,4,0) -> 493 | E37: =VLOOKUP($B37,Matrix_Rohdaten,18,0) -> 131.915397 | F37: =VLOOKUP($B37,Matrix_Rohdaten,12,0) -> 202.2867227 | G37: =VLOOKUP($B37,Matrix_Rohdaten,17,0) -> 33.573953 | H37: =VLOOKUP($B37,Matrix_Rohdaten,3,0) -> 25.3 | I37: =VLOOKUP($B37,Matrix_Rohdaten,5,0) -> 2 | N37: =MIN(D37:D40) -> 493 | O37: =MIN(E37:E40) -> 131.915397
B38: V52 | C38: =VLOOKUP($B38,Matrix_Rohdaten,1,0) -> V52 | D38: =VLOOKUP($B38,Matrix_Rohdaten,4,0) -> 744 | E38: =VLOOKUP($B38,Matrix_Rohdaten,18,0) -> 214.4287927 | F38: =VLOOKUP($B38,Matrix_Rohdaten,12,0) -> 202.5344763 | G38: =VLOOKUP($B38,Matrix_Rohdaten,17,0) -> 49.29967367 | H38: =VLOOKUP($B38,Matrix_Rohdaten,3,0) -> 25.3 | I38: =VLOOKUP($B38,Matrix_Rohdaten,5,0) -> 6 | N38: =MAX(D37:D40) -> 1146 | O38: =MAX(E37:E40) -> 357.291802
B39: V54 | C39: =VLOOKUP($B39,Matrix_Rohdaten,1,0) -> V54 | D39: =VLOOKUP($B39,Matrix_Rohdaten,4,0) -> 1038 | E39: =VLOOKUP($B39,Matrix_Rohdaten,18,0) -> 316.4055997 | F39: =VLOOKUP($B39,Matrix_Rohdaten,12,0) -> 202.50096 | G39: =VLOOKUP($B39,Matrix_Rohdaten,17,0) -> 63.649177 | H39: =VLOOKUP($B39,Matrix_Rohdaten,3,0) -> 25.3 | I39: =VLOOKUP($B39,Matrix_Rohdaten,5,0) -> 12
B40: V55 | C40: =VLOOKUP($B40,Matrix_Rohdaten,1,0) -> V55 | D40: =VLOOKUP($B40,Matrix_Rohdaten,4,0) -> 1146 | E40: =VLOOKUP($B40,Matrix_Rohdaten,18,0) -> 357.291802 | F40: =VLOOKUP($B40,Matrix_Rohdaten,12,0) -> 202.2211897 | G40: =VLOOKUP($B40,Matrix_Rohdaten,17,0) -> 68.33108233 | H40: =VLOOKUP($B40,Matrix_Rohdaten,3,0) -> 25.2 | I40: =VLOOKUP($B40,Matrix_Rohdaten,5,0) -> 18
B42: =CONCATENATE("Wassermassenstromvariation (bei Primärdruck von ", ROUND(AVERAGE(D44:D47),0), " Pa)") -> Wassermassenstromvariation (bei Primärdruck von 757 Pa) | N42: Grenzen der Auslegung
B43: Messung | C43: Messung - Kontrolle | D43: ='Master-Auswertung_V52-V67'!$B$2 -> Drehzahl [1/min] | E43: Sekundärvolumenstrom [m³/h] | F43: Wasser-Massenstrom [kg/h] | G43: spez. Kühlleistung [W/K] | H43: Druckverlust wassers. [kPa] | N43: Wasser-Massenstrom [kg/h]
B44: V56 | C44: =VLOOKUP($B44,Matrix_Rohdaten,1,0) -> V56 | D44: =VLOOKUP($B44,Matrix_Rohdaten,4,0) -> 757 | E44: =VLOOKUP($B44,Matrix_Rohdaten,18,0) -> 215.5661803 | F44: =VLOOKUP($B44,Matrix_Rohdaten,12,0) -> 62.16736767 | G44: =VLOOKUP($B44,Matrix_Rohdaten,17,0) -> 34.97469567 | H44: =VLOOKUP($B44,Matrix_Rohdaten,3,0) -> 2.8 | N44: =MIN(F44:F47) -> 62.16736767
B45: V57 | C45: =VLOOKUP($B45,Matrix_Rohdaten,1,0) -> V57 | D45: =VLOOKUP($B45,Matrix_Rohdaten,4,0) -> 757 | E45: =VLOOKUP($B45,Matrix_Rohdaten,18,0) -> 220.1936033 | F45: =VLOOKUP($B45,Matrix_Rohdaten,12,0) -> 127.5852337 | G45: =VLOOKUP($B45,Matrix_Rohdaten,17,0) -> 45.73635067 | H45: =VLOOKUP($B45,Matrix_Rohdaten,3,0) -> 11 | N45: =MAX(F44:F47) -> 307.1907027
B46: V58 | C46: =VLOOKUP($B46,Matrix_Rohdaten,1,0) -> V58 | D46: =VLOOKUP($B46,Matrix_Rohdaten,4,0) -> 757 | E46: =VLOOKUP($B46,Matrix_Rohdaten,18,0) -> 220.201253 | F46: =VLOOKUP($B46,Matrix_Rohdaten,12,0) -> 237.2534953 | G46: =VLOOKUP($B46,Matrix_Rohdaten,17,0) -> 51.616887 | H46: =VLOOKUP($B46,Matrix_Rohdaten,3,0) -> 32.9
B47: V59 | C47: =VLOOKUP($B47,Matrix_Rohdaten,1,0) -> V59 | D47: =VLOOKUP($B47,Matrix_Rohdaten,4,0) -> 757 | E47: =VLOOKUP($B47,Matrix_Rohdaten,18,0) -> 219.0876993 | F47: =VLOOKUP($B47,Matrix_Rohdaten,12,0) -> 307.1907027 | G47: =VLOOKUP($B47,Matrix_Rohdaten,17,0) -> 52.78139767 | H47: =VLOOKUP($B47,Matrix_Rohdaten,3,0) -> 52.3
B52: =CONCATENATE("Wassermassenstromvariation (bei ",$C$7, " von ", ROUND(AVERAGE(D54:D57),0), " Pa)") -> Wassermassenstromvariation (bei Drehzahl von 484 Pa)
B53: Messung | C53: Messung - Kontrolle | D53: ='Master-Auswertung_V52-V67'!$B$2 -> Drehzahl [1/min] | E53: Sekundärvolumenstrom [m³/h] | F53: Wasser-Massenstrom [kg/h] | G53: spez. Kühlleistung [W/K] | H53: Druckverlust wassers. [kPa]
B54: V60 | C54: =VLOOKUP($B54,Matrix_Rohdaten,1,0) -> V60 | D54: =VLOOKUP($B54,Matrix_Rohdaten,4,0) -> 484 | E54: =VLOOKUP($B54,Matrix_Rohdaten,18,0) -> 124.7774853 | F54: =VLOOKUP($B54,Matrix_Rohdaten,12,0) -> 51.86594433 | G54: =VLOOKUP($B54,Matrix_Rohdaten,17,0) -> 23.99926367 | H54: =VLOOKUP($B54,Matrix_Rohdaten,3,0) -> 2.1
B55: V61 | C55: =VLOOKUP($B55,Matrix_Rohdaten,1,0) -> V61 | D55: =VLOOKUP($B55,Matrix_Rohdaten,4,0) -> 484 | E55: =VLOOKUP($B55,Matrix_Rohdaten,18,0) -> 128.0288493 | F55: =VLOOKUP($B55,Matrix_Rohdaten,12,0) -> 127.2533103 | G55: =VLOOKUP($B55,Matrix_Rohdaten,17,0) -> 30.894434 | H55: =VLOOKUP($B55,Matrix_Rohdaten,3,0) -> 10.7
B56: V62 | C56: =VLOOKUP($B56,Matrix_Rohdaten,1,0) -> V62 | D56: =VLOOKUP($B56,Matrix_Rohdaten,4,0) -> 484 | E56: =VLOOKUP($B56,Matrix_Rohdaten,18,0) -> 129.757027 | F56: =VLOOKUP($B56,Matrix_Rohdaten,12,0) -> 237.474217 | G56: =VLOOKUP($B56,Matrix_Rohdaten,17,0) -> 33.36005 | H56: =VLOOKUP($B56,Matrix_Rohdaten,3,0) -> 33.6
B57: V63 | C57: =VLOOKUP($B57,Matrix_Rohdaten,1,0) -> V63 | D57: =VLOOKUP($B57,Matrix_Rohdaten,4,0) -> 484 | E57: =VLOOKUP($B57,Matrix_Rohdaten,18,0) -> 129.6057313 | F57: =VLOOKUP($B57,Matrix_Rohdaten,12,0) -> 307.018671 | G57: =VLOOKUP($B57,Matrix_Rohdaten,17,0) -> 34.11268933 | H57: =VLOOKUP($B57,Matrix_Rohdaten,3,0) -> 53.6
B60: =CONCATENATE("Wassermassenstromvariation (bei ",$C$7, " von ", ROUND(AVERAGE(D62:D65),0), " Pa)") -> Wassermassenstromvariation (bei Drehzahl von 1145 Pa)
B61: Messung | C61: Messung - Kontrolle | D61: ='Master-Auswertung_V52-V67'!$B$2 -> Drehzahl [1/min] | E61: Sekundärvolumenstrom [m³/h] | F61: Wasser-Massenstrom [kg/h] | G61: spez. Kühlleistung [W/K] | H61: Druckverlust wassers. [kPa]
B62: V64 | C62: =VLOOKUP($B62,Matrix_Rohdaten,1,0) -> V64 | D62: =VLOOKUP($B62,Matrix_Rohdaten,4,0) -> 1145 | E62: =VLOOKUP($B62,Matrix_Rohdaten,18,0) -> 357.410967 | F62: =VLOOKUP($B62,Matrix_Rohdaten,12,0) -> 60.093256 | G62: =VLOOKUP($B62,Matrix_Rohdaten,17,0) -> 42.15506633 | H62: =VLOOKUP($B62,Matrix_Rohdaten,3,0) -> 2.6
B63: V65 | C63: =VLOOKUP($B63,Matrix_Rohdaten,1,0) -> V65 | D63: =VLOOKUP($B63,Matrix_Rohdaten,4,0) -> 1145 | E63: =VLOOKUP($B63,Matrix_Rohdaten,18,0) -> 355.0783103 | F63: =VLOOKUP($B63,Matrix_Rohdaten,12,0) -> 127.6208263 | G63: =VLOOKUP($B63,Matrix_Rohdaten,17,0) -> 60.16213433 | H63: =VLOOKUP($B63,Matrix_Rohdaten,3,0) -> 11
B64: V66 | C64: =VLOOKUP($B64,Matrix_Rohdaten,1,0) -> V66 | D64: =VLOOKUP($B64,Matrix_Rohdaten,4,0) -> 1145 | E64: =VLOOKUP($B64,Matrix_Rohdaten,18,0) -> 351.954835 | F64: =VLOOKUP($B64,Matrix_Rohdaten,12,0) -> 238.6808817 | G64: =VLOOKUP($B64,Matrix_Rohdaten,17,0) -> 70.41572567 | H64: =VLOOKUP($B64,Matrix_Rohdaten,3,0) -> 34.1
B65: V67 | C65: =VLOOKUP($B65,Matrix_Rohdaten,1,0) -> V67 | D65: =VLOOKUP($B65,Matrix_Rohdaten,4,0) -> 1145 | E65: =VLOOKUP($B65,Matrix_Rohdaten,18,0) -> 353.556565 | F65: =VLOOKUP($B65,Matrix_Rohdaten,12,0) -> 308.2145287 | G65: =VLOOKUP($B65,Matrix_Rohdaten,17,0) -> 73.49867267 | H65: =VLOOKUP($B65,Matrix_Rohdaten,3,0) -> 53.5
Q68: y = | R68: mxb
Q69: =INDEX(LOGEST(I37:I40,LN(D37:D40),,TRUE),1,2) -> 3.392427675e-07 | R69: =LN(INDEX(LOGEST(I37:I40,LN(D37:D40),,TRUE),1,1)) -> 2.51650269
Q70: =G7 -> Drehzahl | R70: =I36 -> Druckverlust Kasten [Pa]
Q71: =P5 -> 1039 | R71: =Q69*Q71^R69 -> 13.23828535
I78: Bei L_WA 45dB(A)
H79: Sek Vol | I79: 215 | J79: m³/h
H80: Drehzahl | I80: 750 | J80: 1/min
H81: spez. Leistung trocken | I81: 48.40324573 | J81: W/K
H83: sens. Leistung bei dT 20 K, 50 %rF | I83: =20*I81*I87 -> 874.0780297 | J83: Watt | K83: mit Filter
H84: sens. Leistung bei dT 20 K, 50 %rF | I84: =I83*1.1 -> 961.4858327 | J84: Watt | K84: ohne Filter
H87: Sens Faktor | I87: =J96/J95 -> 0.9029126214
H88: Total Faktor | I88: =I96/I95 -> 1.349514563
B90: 2017-02-20
B91: Auslegung euCalc
B93: QA | C93: VA | D93: DPA | E93: TAI | F93: RH | G93: TAO | H93: RH | I93: QTOT | J93: QSEN | K93: QW | L93: VW | M93: TWI | N93: TWO | O93: GLI | P93: DPW
B94: m3/h | C94: m/s | D94: Pa | E94: °C | F94: % | G94: °C | H94: % | I94: kW | J94: kW | K94: l/h | L94: m/s | M94: °C | N94: °C | O94: % | P94: kPa
B95: 214 | C95: 0.42 | D95: 1 | E95: 26 | F95: 1 | G95: 11 | H95: 2 | I95: 1.03 | J95: 1.03 | K95: 200 | L95: 0.8 | M95: 6 | N95: 10.4 | O95: 0 | P95: 20
B96: 214 | C96: 0.42 | D96: 1 | E96: 26 | F96: 50 | G96: 12 | H96: 87 | I96: 1.39 | J96: 0.93 | K96: 200 | L96: 0.8 | M96: 6 | N96: 12 | O96: 0 | P96: 20
I145: Bei L_WA 40dB(A)
H146: Sek Vol | I146: 175 | J146: m³/h
H147: Drehzahl | I147: 622 | J147: 1/min
H148: spez. Leistung trocken | I148: 41.05129901 | J148: W/K
H150: sens. Leistung bei dT 20 K, 50 %rF | I150: =20*I148*I154 -> 748.8478721 | J150: Watt | K150: mit Filter
H151: sens. Leistung bei dT 20 K, 50 %rF | I151: =I150*1.1 -> 823.7326593 | J151: Watt | K151: ohne Filter
H154: Sens Faktor | I154: =J163/J162 -> 0.9120879121
H155: Total Faktor | I155: =I163/I162 -> 1.384615385
B157: 2017-02-20
B158: Auslegung euCalc
B160: QA | C160: VA | D160: DPA | E160: TAI | F160: RH | G160: TAO | H160: RH | I160: QTOT | J160: QSEN | K160: QW | L160: VW | M160: TWI | N160: TWO | O160: GLI | P160: DPW
B161: m3/h | C161: m/s | D161: Pa | E161: °C | F161: % | G161: °C | H161: % | I161: kW | J161: kW | K161: l/h | L161: m/s | M161: °C | N161: °C | O161: % | P161: kPa
B162: 175 | C162: 0.35 | D162: 1 | E162: 26 | F162: 1 | G162: 10 | H162: 2 | I162: 0.91 | J162: 0.91 | K162: 200 | L162: 0.8 | M162: 6 | N162: 9.9 | O162: 0 | P162: 20
B163: 175 | C163: 0.35 | D163: 1 | E163: 26 | F163: 50 | G163: 11 | H163: 90 | I163: 1.26 | J163: 0.83 | K163: 200 | L163: 0.8 | M163: 6 | N163: 11.4 | O163: 0 | P163: 20
B167: QA | C167: VA | D167: DPA | E167: TAI | F167: RH | G167: TAO | H167: RH | I167: QTOT | J167: QSEN | K167: QW | L167: VW | M167: TWI | N167: TWO | O167: GLI | P167: DPW
B168: m3/h | C168: m/s | D168: Pa | E168: °C | F168: % | G168: °C | H168: % | I168: kW | J168: kW | K168: l/h | L168: m/s | M168: °C | N168: °C | O168: % | P168: kPa
B169: 175 | C169: 0.35 | D169: 1 | E169: 26 | F169: 50 | G169: 11 | H169: 90 | I169: 1.26 | J169: 0.83 | K169: 200 | L169: 0.8 | M169: 6 | N169: 11.4 | O169: 0 | P169: 20

Sheet Master-Auswertung_V52-V67 (hidden)
B1: =CONCATENATE('Master-Auslegung_V52-V67'!B1, "; ", 'Master-Auslegung_V52-V67'!C1, "; ", 'Master-Auslegung_V52-V67'!D1, "; ",'Master-Auslegung_V52-V67'!E1, "; ", 'Master-Auslegung_V52-V67'!F1) -> VKL800; ISH-Prototyp; 4L; 3 - 3,5 cm Schalldämmung; mit Filter | D1: 4L; 3D-Strömung | E1: 3 - 3,5 cm Schalldämmung | F1: ='Master-Auslegung_V52-V67'!C1 -> ISH-Prototyp | I1: 1 | J1: 4 | K1: 26 | L1: 12 | M1: 17 | N1: 3 | O1: 6
B2: ='Master-Auslegung_V52-V67'!H1 -> Drehzahl [1/min] | C2: ='Master-Auslegung_V52-V67'!J1 -> 1/min | D2: -> 2. Variable | E2: ='Master-Auslegung_V52-V67'!I1 -> Drehzahl
H3: Aus Kalorikmessung vom | J3: =VLOOKUP($H8,Matrix_Rohdaten,8,0) -> 2017-02-22
B4: w_soll (Kühlwasser) | C4: Volumenstrom Auslegung 1 | D4: q Auslegung 1 | E4: =CONCATENATE(B2, "; Auslegung 2") -> Drehzahl [1/min]; Auslegung 2 | F4: q Auslegung 2 | H4: Gemessen von | J4: =VLOOKUP($H8,Matrix_Rohdaten,10,0) -> TT
B5: [kg/h] | C5: [m³/h] | D5: [W/K] | E5: [Pa] | F5: [W/K] | H5: =CONCATENATE(E2,"variation (bei ca. ", ROUND(AVERAGE(L7:L10),0), " kg/h)") -> Drehzahlvariation (bei ca. 202 kg/h) | Q5: =I144 -> Baugröße 800 3D-Strömung | R5: =J144 -> Baugröße 800 3D-Strömung | S5: =K144 -> Baugröße 800 3D-Strömung
B6: ='Master-Auslegung_V52-V67'!C3 -> 200 | C6: ='Master-Auslegung_V52-V67'!B9 -> 325.3430097 | D6: =C56 -> 64.64574428 | E6: ='Master-Auslegung_V52-V67'!G9 -> 1146 | F6: =C77 -> 68.03550821 | H6: Messung | I6: Messung | J6: =B2 -> Drehzahl [1/min] | K6: Sekundärvolumenstrom - Kalorik [m³/h] | L6: Wasser-Massenstrom | M6: spez. Kühlleistung [W/K] | N6: Druckverlust wassers. | O6: Steuerspannung [V] | Q6: =I145 -> Drehzahl [1/min] | R6: Sekundärvolumenstrom - Kalorik [m³/h] | S6: Steuerspannung [V]
J7: =C2 -> 1/min | K7: m³/h | L7: kg/h | M7: W/K | N7: kPa | O7: V | Q7: 1/min | R7: m³/h | S7: V
B8: =CONCATENATE("w_soll = ", ROUND(B11,0)," kg/h") -> w_soll = 200 kg/h | H8: ='Master-Auslegung_V52-V67'!B37 -> V53 | I8: =VLOOKUP($H8,Matrix_Rohdaten,1,0) -> V53 | J8: =VLOOKUP($H8,Matrix_Rohdaten,4,0) -> 493 | K8: =VLOOKUP($H8,Matrix_Rohdaten,18,0) -> 131.915397 | L8: =VLOOKUP($H8,Matrix_Rohdaten,12,0) -> 202.2867227 | M8: =VLOOKUP($H8,Matrix_Rohdaten,17,0) -> 33.573953 | N8: =VLOOKUP($H8,Matrix_Rohdaten,3,0) -> 25.3 | O8: =VLOOKUP($H8,Matrix_Rohdaten,6,0) -> 3.5 | Q8: 489 | R8: 124.165886 | S8: 3.5
B9: wsoll | C9: Faktor: Wassermenge zu Nennwassermenge | D9: Kühlleistung Korrekturfaktor für w_soll ≠ w_ok | E9: =B2 -> Drehzahl [1/min] | F9: =$N$88 -> Sekundärvolumenstrom - Kalorik | H9: ='Master-Auslegung_V52-V67'!B38 -> V52 | I9: =VLOOKUP($H9,Matrix_Rohdaten,1,0) -> V52 | J9: =VLOOKUP($H9,Matrix_Rohdaten,4,0) -> 744 | K9: =VLOOKUP($H9,Matrix_Rohdaten,18,0) -> 214.4287927 | L9: =VLOOKUP($H9,Matrix_Rohdaten,12,0) -> 202.5344763 | M9: =VLOOKUP($H9,Matrix_Rohdaten,17,0) -> 49.29967367 | N9: =VLOOKUP($H9,Matrix_Rohdaten,3,0) -> 25.3 | O9: =VLOOKUP($H9,Matrix_Rohdaten,6,0) -> 5.6 | Q9: 734 | R9: 199.2992107 | S9: 5.6
B10: [kg/h] | C10: [-] | D10: [-] | H10: ='Master-Auslegung_V52-V67'!B39 -> V54 | I10: =VLOOKUP($H10,Matrix_Rohdaten,1,0) -> V54 | J10: =VLOOKUP($H10,Matrix_Rohdaten,4,0) -> 1038 | K10: =VLOOKUP($H10,Matrix_Rohdaten,18,0) -> 316.4055997 | L10: =VLOOKUP($H10,Matrix_Rohdaten,12,0) -> 202.50096 | M10: =VLOOKUP($H10,Matrix_Rohdaten,17,0) -> 63.649177 | N10: =VLOOKUP($H10,Matrix_Rohdaten,3,0) -> 25.3 | O10: =VLOOKUP($H10,Matrix_Rohdaten,6,0) -> 8 | Q10: 1039 | R10: 287.061498 | S10: 8
B11: =$B$6 -> 200 | C11: =B11/$H$84 -> 1 | D11: =$H$123*C11^$H$122+$I$123*C11^$I$122+$J$123*C11^$J$122+$K$123*C11^$K$122+$L$123 -> 1 | E11: =$M$90 -> 757 | F11: =AVERAGE($N$90:$N$93) -> 218.762184 | G11: =$L$31*E11^$M$31 -> 218.6971998 | H11: ='Master-Auslegung_V52-V67'!B40 -> V55 | I11: =VLOOKUP($H11,Matrix_Rohdaten,1,0) -> V55 | J11: =VLOOKUP($H11,Matrix_Rohdaten,4,0) -> 1146 | K11: =VLOOKUP($H11,Matrix_Rohdaten,18,0) -> 357.291802 | L11: =VLOOKUP($H11,Matrix_Rohdaten,12,0) -> 202.2211897 | M11: =VLOOKUP($H11,Matrix_Rohdaten,17,0) -> 68.33108233 | N11: =VLOOKUP($H11,Matrix_Rohdaten,3,0) -> 25.2 | O11: =VLOOKUP($H11,Matrix_Rohdaten,6,0) -> 10 | Q11: 1146 | R11: 325.3430097 | S11: 10 | T11: y = | U11: mxb
B12: =$B$6 -> 200 | C12: =B12/$H$84 -> 1 | D12: =IFERROR($Q$123*C12^$Q$122+$R$123*C12^$R$122+$S$123*C12^$S$122+$T$123*C12^$T$122+$U$123,D11) -> 1 | E12: =IFERROR(IF($V$90=0,E11,$V$90),E11) -> 484 | F12: =IFERROR(IF($W$90=0,F11,$W$90),F11) -> 124.7774853 | G12: =$L$31*E12^$M$31 -> 129.0864109 | T12: =INDEX(LOGEST(J8:J11,LN(O8:O11),,TRUE),1,2) -> 177.2777105 | U12: =LN(INDEX(LOGEST(J8:J11,LN(O8:O11),,TRUE),1,1)) -> 0.8278243546
B13: =$B$6 -> 200 | C13: =B13/$H$84 -> 1 | D13: =IFERROR($Z$123*C13^$Z$122+$AA$123*C13^$AA$122+$AB$123*C13^$AB$122+$AC$123*C13^$AC$122+$AD$123,D11) -> 1 | E13: =IFERROR(IF($AE$90=0,E11,$AE$90),E11) -> 1145 | F13: =IFERROR(IF($AF$90=0,F11,$AF$90),F11) -> 357.410967 | G13: =$L$31*E13^$M$31 -> 356.1775779 | T13: x = Drehzahl | U13: y = Steuerspannung
T14: 2 | U14: =T12*T14^U12 -> 314.6690987
B15: y = | C15: axn+bx(n-1)+...+nx+m | F15: Korrektur Wassermenge | T15: 10 | U15: =T12*T15^U12 -> 1192.555196
B16: Polynom | C16: 3 | D16: Ordnung | E16: Auslegung 1 | F16: =B19*H33^2+C19*H33+D19 -> 1
B17: a = | C17: b = | D17: m = | E17: Auslegung 2 | F17: =B19*M33^2+C19*M33+D19 -> 1
B18: 2 | C18: 1 | D18: 0
B19: =LINEST(D11:D13,F11:F13^{0,1,2},0,0) -> 0 | C19: 0 | D19: 1
Q28: Makro Zielwertsuche - für Grenzwerte
Q29: Aus Drehzahl
H30: y = | I30: mxb | L30: y = | M30: mxb | Q30: y = | R30: mxb | T30: y = | U30: mxb
H31: =INDEX(LOGEST('Master-Auswertung_V52-V67'!J8:J11,LN('Master-Auswertung_V52-V67'!K8:K11),,TRUE),1,2) -> 7.83482435 | I31: =LN(INDEX(LOGEST(J8:J11,LN(K8:K11),,TRUE),1,1)) -> 0.8483761795 | L31: =INDEX(LOGEST('Master-Auswertung_V52-V67'!K8:K11,LN('Master-Auswertung_V52-V67'!J8:J11),,TRUE),1,2) -> 0.08836060412 | M31: =LN(INDEX(LOGEST(K8:K11,LN(J8:J11),,TRUE),1,1)) -> 1.178697997 | Q31: =INDEX(LOGEST(O8:O11,LN(J8:J11),,TRUE),1,2) -> 0.002068485374 | R31: =LN(INDEX(LOGEST(O8:O11,LN(J8:J11),,TRUE),1,1)) -> 1.196990847 | T31: =INDEX(LOGEST(K8:K11,LN(O8:O11),,TRUE),1,2) -> 39.48483179 | U31: =LN(INDEX(LOGEST(O8:O11,LN(M8:M11),,TRUE),1,1)) -> 1.414213478
H32: V soll [m³/h] | I32: =B2 -> Drehzahl [1/min] | L32: =B76 -> Drehzahl Soll 1/min | M32: Volumenstrom [m³/h] | Q32: x = Drehzahl | R32: y = Steuerspannung | T32: x = Volumenstrom | U32: y = Steuerspannung
H33: ='Master-Auslegung_V52-V67'!B9 -> 325.3430097 | I33: =H31*H33^I31 -> 1060.32727 | L33: ='Master-Auslegung_V52-V67'!G9 -> 1146 | M33: =L31*L33^M31 -> 356.5442666 | Q33: 304.104786 | R33: =Q31*Q33^R31 -> 1.940030521 | T33: 2 | U33: =T31*T33^U31 -> 105.2327621
Q34: 1205.754442 | R34: =Q31*Q34^R31 -> 10.08999889 | T34: 10 | U34: =T31*T34^U31 -> 1024.810982
Q35: Aus Volumenstrom
H36: =CONCATENATE("w_mess = ", ROUND(H39,0)," kg/h") -> w_mess = 202 kg/h | Q36: y = | R36: mxb
H37: wsoll | I37: Faktor: Wassermenge zu Nennwassermenge | J37: Kühlleistung Korrekturfaktor für w_soll ≠ w_ok | K37: =B2 -> Drehzahl [1/min] | L37: =$N$88 -> Sekundärvolumenstrom - Kalorik | Q37: =INDEX(LOGEST(O8:O11,LN(K8:K11),,TRUE),1,2) -> 0.02425659596 | R37: =LN(INDEX(LOGEST(O8:O11,LN(K8:K11),,TRUE),1,1)) -> 1.015905659
H38: [kg/h] | I38: [-] | J38: [-] | Q38: x = Volumenstrom | R38: y = Steuerspannung
H39: =AVERAGE($L$8:$L$11) -> 202.3858372 | I39: =H39/$H$84 -> 1.011929186 | J39: =$H$123*I39^$H$122+$I$123*I39^$I$122+$J$123*I39^$J$122+$K$123*I39^$K$122+$L$123 -> 1.001615718 | K39: =$M$90 -> 757 | L39: =AVERAGE($N$90:$N$93) -> 218.762184 | Q39: 74.69627457 | R39: =Q37*Q39^R37 -> 1.940550063
H40: =AVERAGE($L$8:$L$11) -> 202.3858372 | I40: =H40/$H$84 -> 1.011929186 | J40: =IFERROR($Q$123*I40^$Q$122+$R$123*I40^$R$122+$S$123*I40^$S$122+$T$123*I40^$T$122+$U$123,J39) -> 1.000859294 | K40: =IFERROR(IF($V$90=0,K39,$V$90),K39) -> 484 | L40: =IFERROR(IF($W$90=0,L39,$W$90),L39) -> 124.7774853 | Q40: 378.4926894 | R40: =Q37*Q40^R37 -> 10.09004386
H41: =AVERAGE($L$8:$L$11) -> 202.3858372 | I41: =H41/$H$84 -> 1.011929186 | J41: =IFERROR($Z$123*I41^$Z$122+$AA$123*I41^$AA$122+$AB$123*I41^$AB$122+$AC$123*I41^$AC$122+$AD$123,J39) -> 1.002223041 | K41: =IFERROR(IF($AE$90=0,K39,$AE$90),K39) -> 1145 | L41: =IFERROR(IF($AF$90=0,L39,$AF$90),L39) -> 357.410967
H43: y = | I43: axn+bx(n-1)+...+nx+m
H44: Polynom | I44: 3 | J44: Ordnung
H45: a = | I45: b = | J45: m =
H46: 2 | I46: 1 | J46: 0
H47: =LINEST(J39:J41,L39:L41^{0,1,2},0,0) -> -1.576759192e-08 | I47: 1.346516445e-05 | J47: 0.9994246372
K49: =H47*J52^2+I47*J52^1+J47*J52^0 -> 1.000926517
B50: y = | C50: axn+bx(n-1)+...+nx+m | L50: =CONCATENATE($B$1, " ; ",L51) -> VKL800; ISH-Prototyp; 4L; 3 - 3,5 cm Schalldämmung; mit Filter ; q Sek [W/K] bei wok 200 kg/h | N50: =CONCATENATE($B$1, " ; ",N51) -> VKL800; ISH-Prototyp; 4L; 3 - 3,5 cm Schalldämmung; mit Filter ; q Sek [W/K] bei w_soll 200 kg/h | O50: =CONCATENATE("im Mittel ", ROUND(AVERAGE(O52:O55)*100,0), " % Kühlleistung bei ", ROUND(H$87,0), " kg/h") -> im Mittel 0 % Kühlleistung bei 200 kg/h
B51: Polynom | C51: 2 | D51: Ordnung | H51: Wasser- menge [kg/h] | I51: q Sek [W/K] | J51: =K6 -> Sekundärvolumenstrom - Kalorik [m³/h] | K51: =CONCATENATE("Korrektur bei ", ROUND(AVERAGE(H52:H55),0), " kg/h (Mittelwert)") -> Korrektur bei 202 kg/h (Mittelwert) | L51: =CONCATENATE("q Sek [W/K] bei wok ", H$84, " kg/h") -> q Sek [W/K] bei wok 200 kg/h | M51: =CONCATENATE("Korrektur bei ", ROUND(AVERAGE(B6),0), " kg/h (Mittelwert)") -> Korrektur bei 200 kg/h (Mittelwert) | N51: =CONCATENATE("q Sek [W/K] bei w_soll ", ROUND(H$87,0), " kg/h") -> q Sek [W/K] bei w_soll 200 kg/h | O51: =CONCATENATE("q Sek Abweichung von Nennwassermenge bei ", H$87, " kg/h") -> q Sek Abweichung von Nennwassermenge bei 200 kg/h
B52: a = | C52: b = | D52: c = | E52: m = | H52: =L8 -> 202.2867227 | I52: 33.573953 | J52: =K8 -> 131.915397 | K52: =IF($J$39=$J$40,$J$39,$H$47*J52^$H$46+$I$47*J52^$I$46+$J$47*J52^$J$46) -> 1.000926517 | L52: =I52/K52 -> 33.54287495 | M52: =IF($D$11=$D$12,$D$11,$B$19*J52^$B$18+$C$19*J52^$C$18+$D$19*J52^$D$18) -> 1 | N52: =L52*M52 -> 33.54287495 | O52: =1/L52*N52-1 -> 0
B53: 3 | C53: 2 | D53: 1 | E53: 0 | H53: 202.5344763 | I53: 49.29967367 | J53: =K9 -> 214.4287927 | K53: =IF($J$39=$J$40,$J$39,$H$47*J53^$H$46+$I$47*J53^$I$46+$J$47*J53^$J$46) -> 1.001586967 | L53: =I53/K53 -> 49.22156068 | M53: =IF($D$11=$D$12,$D$11,$B$19*J53^$B$18+$C$19*J53^$C$18+$D$19*J53^$D$18) -> 1 | N53: =L53*M53 -> 49.22156068 | O53: =1/L53*N53-1 -> 0
B54: =LINEST(N52:N55,K8:K11^{1,2,3},0,0) -> 1.720267414e-07 | C54: -0.0003677106573 | D54: 0.300123664 | E54: 0 | H54: 202.50096 | I54: 63.649177 | J54: =K10 -> 316.4055997 | K54: =IF($J$39=$J$40,$J$39,$H$47*J54^$H$46+$I$47*J54^$I$46+$J$47*J54^$J$46) -> 1.002106558 | L54: =I54/K54 -> 63.5153782 | M54: =IF($D$11=$D$12,$D$11,$B$19*J54^$B$18+$C$19*J54^$C$18+$D$19*J54^$D$18) -> 1 | N54: =L54*M54 -> 63.5153782 | O54: =1/L54*N54-1 -> 0
B55: V soll [m³/h] | C55: q sek [W/K] | H55: 202.2211897 | I55: 68.33108233 | J55: =K11 -> 357.291802 | K55: =IF($J$39=$J$40,$J$39,$H$47*J55^$H$46+$I$47*J55^$I$46+$J$47*J55^$J$46) -> 1.00222278 | L55: =I55/K55 -> 68.17953424 | M55: =IF($D$11=$D$12,$D$11,$B$19*J55^$B$18+$C$19*J55^$C$18+$D$19*J55^$D$18) -> 1 | N55: =L55*M55 -> 68.17953424 | O55: =1/L55*N55-1 -> 0
B56: =C6 -> 325.3430097 | C56: =B54*B56^B53+C54*B56^C53+D54*B56^D53+E54*B56^E53 -> 64.64574428
M57: Auslegung 1
L58: Sekundärvolumenstrom [m³/h] | M58: =H33 -> 325.3430097
L59: Abweichung | M59: =L68*M58^L67+M68*M58^M67+N68*M58^N67 -> 0 | N59: =IF(M59>=0, CONCATENATE("+", ROUND(AVERAGE(M59)*100,0), " % Kühlleistung bei ", ROUND(H$87,0), " kg/h"),CONCATENATE(ROUND(AVERAGE(M59)*100,0), " % Kühlleistung bei ", ROUND(H$87,0), " kg/h")) -> +0 % Kühlleistung bei 200 kg/h
M60: Auslegung 2
L61: Sekundärvolumenstrom [m³/h] | M61: =M33 -> 356.5442666
L62: Abweichung | M62: =L68*M61^L67+M68*M61^M67+N68*M61^N67 -> 0 | N62: =IF(M62>=0, CONCATENATE("+", ROUND(AVERAGE(M62)*100,0), " % Kühlleistung bei ", ROUND(H$87,0), " kg/h"),CONCATENATE(ROUND(AVERAGE(M62)*100,0), " % Kühlleistung bei ", ROUND(H$87,0), " kg/h")) -> +0 % Kühlleistung bei 200 kg/h
L64: y = | M64: axn+bx(n-1)+...+nx+m
L65: Polynom | M65: 3 | N65: Ordnung
L66: a = | M66: b = | N66: m =
L67: 2 | M67: 1 | N67: 0
L68: =LINEST(O52:O55,J52:J55^{0,1,2},0,0) -> 0 | M68: 0 | N68: 0
B71: y = | C71: axn+bx(n-1)+...+nx+m | H71: =CONCATENATE("Wassermassenstromvariation (bei ",$E$2, " von ", ROUND(AVERAGE(J74:J77),0), " Pa)") -> Wassermassenstromvariation (bei Drehzahl von 757 Pa) | Q71: =CONCATENATE("Wassermassenstromvariation (bei ",$E$2, " von ", ROUND(AVERAGE(S74:S77),0), " Pa)") -> Wassermassenstromvariation (bei Drehzahl von 484 Pa) | Z71: =CONCATENATE("Wassermassenstromvariation (bei ",$E$2, " von ", ROUND(AVERAGE(AB74:AB77),0), " Pa)") -> Wassermassenstromvariation (bei Drehzahl von 1145 Pa)
B72: Polynom | C72: 2 | D72: Ordnung | H72: Messung | I72: Messung | J72: =B2 -> Drehzahl [1/min] | K72: Sekundärvolumenstrom - Kalorik | L72: Wasser-Massenstrom | M72: spez. Kühlleistung | N72: Druckverlust wassers. | Q72: Messung | R72: Messung | S72: =L4 -> 0 | T72: Sekundärvolumenstrom - Kalorik | U72: Wasser-Massenstrom | V72: spez. Kühlleistung | W72: Druckverlust wassers. | Z72: Messung | AA72: Messung | AB72: =U4 -> 0 | AC72: Sekundärvolumenstrom - Kalorik | AD72: Wasser-Massenstrom | AE72: spez. Kühlleistung | AF72: Druckverlust wassers.
B73: a = | C73: b = | D73: c = | E73: m = | J73: Pa | K73: m³/h | L73: kg/h | M73: W/K | N73: kPa | S73: Pa | T73: m³/h | U73: kg/h | V73: W/K | W73: kPa | AB73: Pa | AC73: m³/h | AD73: kg/h | AE73: W/K | AF73: kPa
B74: 3 | C74: 2 | D74: 1 | E74: 0 | H74: ='Master-Auslegung_V52-V67'!B44 -> V56 | I74: =VLOOKUP($H74,Matrix_Rohdaten,1,0) -> V56 | J74: =VLOOKUP($H74,Matrix_Rohdaten,4,0) -> 757 | K74: =VLOOKUP($H74,Matrix_Rohdaten,18,0) -> 215.5661803 | L74: =VLOOKUP($H74,Matrix_Rohdaten,12,0) -> 62.16736767 | M74: =VLOOKUP($H74,Matrix_Rohdaten,17,0) -> 34.97469567 | N74: =VLOOKUP($H74,Matrix_Rohdaten,3,0) -> 2.8 | Q74: ='Master-Auslegung_V52-V67'!B54 -> V60 | R74: =VLOOKUP($Q74,Matrix_Rohdaten,1,0) -> V60 | S74: =VLOOKUP($Q74,Matrix_Rohdaten,4,0) -> 484 | T74: =VLOOKUP($Q74,Matrix_Rohdaten,18,0) -> 124.7774853 | U74: =VLOOKUP($Q74,Matrix_Rohdaten,12,0) -> 51.86594433 | V74: =VLOOKUP($Q74,Matrix_Rohdaten,17,0) -> 23.99926367 | W74: =VLOOKUP($Q74,Matrix_Rohdaten,3,0) -> 2.1 | Z74: ='Master-Auslegung_V52-V67'!B62 -> V64 | AA74: =VLOOKUP($Z74,Matrix_Rohdaten,1,0) -> V64 | AB74: =VLOOKUP($Z74,Matrix_Rohdaten,4,0) -> 1145 | AC74: =VLOOKUP($Z74,Matrix_Rohdaten,18,0) -> 357.410967 | AD74: =VLOOKUP($Z74,Matrix_Rohdaten,12,0) -> 60.093256 | AE74: =VLOOKUP($Z74,Matrix_Rohdaten,17,0) -> 42.15506633 | AF74: =VLOOKUP($Z74,Matrix_Rohdaten,3,0) -> 2.6
B75: =LINEST(N52:N55,J8:J11^{1,2,3},0,0) -> -1.025577979e-08 | C75: 3.2012453e-06 | D75: 0.06916826079 | E75: 0 | H75: ='Master-Auslegung_V52-V67'!B45 -> V57 | I75: =VLOOKUP($H75,Matrix_Rohdaten,1,0) -> V57 | J75: =VLOOKUP($H75,Matrix_Rohdaten,4,0) -> 757 | K75: =VLOOKUP($H75,Matrix_Rohdaten,18,0) -> 220.1936033 | L75: =VLOOKUP($H75,Matrix_Rohdaten,12,0) -> 127.5852337 | M75: =VLOOKUP($H75,Matrix_Rohdaten,17,0) -> 45.73635067 | N75: =VLOOKUP($H75,Matrix_Rohdaten,3,0) -> 11 | Q75: ='Master-Auslegung_V52-V67'!B55 -> V61 | R75: =VLOOKUP($Q75,Matrix_Rohdaten,1,0) -> V61 | S75: =VLOOKUP($Q75,Matrix_Rohdaten,4,0) -> 484 | T75: =VLOOKUP($Q75,Matrix_Rohdaten,18,0) -> 128.0288493 | U75: =VLOOKUP($Q75,Matrix_Rohdaten,12,0) -> 127.2533103 | V75: =VLOOKUP($Q75,Matrix_Rohdaten,17,0) -> 30.894434 | W75: =VLOOKUP($Q75,Matrix_Rohdaten,3,0) -> 10.7 | Z75: ='Master-Auslegung_V52-V67'!B63 -> V65 | AA75: =VLOOKUP($Z75,Matrix_Rohdaten,1,0) -> V65 | AB75: =VLOOKUP($Z75,Matrix_Rohdaten,4,0) -> 1145 | AC75: =VLOOKUP($Z75,Matrix_Rohdaten,18,0) -> 355.0783103 | AD75: =VLOOKUP($Z75,Matrix_Rohdaten,12,0) -> 127.6208263 | AE75: =VLOOKUP($Z75,Matrix_Rohdaten,17,0) -> 60.16213433 | AF75: =VLOOKUP($Z75,Matrix_Rohdaten,3,0) -> 11
B76: =CONCATENATE(E2," Soll ",C2) -> Drehzahl Soll 1/min | C76: q sek [W/K] | H76: ='Master-Auslegung_V52-V67'!B46 -> V58 | I76: =VLOOKUP($H76,Matrix_Rohdaten,1,0) -> V58 | J76: =VLOOKUP($H76,Matrix_Rohdaten,4,0) -> 757 | K76: =VLOOKUP($H76,Matrix_Rohdaten,18,0) -> 220.201253 | L76: =VLOOKUP($H76,Matrix_Rohdaten,12,0) -> 237.2534953 | M76: =VLOOKUP($H76,Matrix_Rohdaten,17,0) -> 51.616887 | N76: =VLOOKUP($H76,Matrix_Rohdaten,3,0) -> 32.9 | Q76: ='Master-Auslegung_V52-V67'!B56 -> V62 | R76: =VLOOKUP($Q76,Matrix_Rohdaten,1,0) -> V62 | S76: =VLOOKUP($Q76,Matrix_Rohdaten,4,0) -> 484 | T76: =VLOOKUP($Q76,Matrix_Rohdaten,18,0) -> 129.757027 | U76: =VLOOKUP($Q76,Matrix_Rohdaten,12,0) -> 237.474217 | V76: =VLOOKUP($Q76,Matrix_Rohdaten,17,0) -> 33.36005 | W76: =VLOOKUP($Q76,Matrix_Rohdaten,3,0) -> 33.6 | Z76: ='Master-Auslegung_V52-V67'!B64 -> V66 | AA76: =VLOOKUP($Z76,Matrix_Rohdaten,1,0) -> V66 | AB76: =VLOOKUP($Z76,Matrix_Rohdaten,4,0) -> 1145 | AC76: =VLOOKUP($Z76,Matrix_Rohdaten,18,0) -> 351.954835 | AD76: =VLOOKUP($Z76,Matrix_Rohdaten,12,0) -> 238.6808817 | AE76: =VLOOKUP($Z76,Matrix_Rohdaten,17,0) -> 70.41572567 | AF76: =VLOOKUP($Z76,Matrix_Rohdaten,3,0) -> 34.1
B77: =E6 -> 1146 | C77: =B75*B77^B74+C75*B77^C74+D75*B77^D74+E75*B77^E74 -> 68.03550821 | H77: ='Master-Auslegung_V52-V67'!B47 -> V59 | I77: =VLOOKUP($H77,Matrix_Rohdaten,1,0) -> V59 | J77: =VLOOKUP($H77,Matrix_Rohdaten,4,0) -> 757 | K77: =VLOOKUP($H77,Matrix_Rohdaten,18,0) -> 219.0876993 | L77: =VLOOKUP($H77,Matrix_Rohdaten,12,0) -> 307.1907027 | M77: =VLOOKUP($H77,Matrix_Rohdaten,17,0) -> 52.78139767 | N77: =VLOOKUP($H77,Matrix_Rohdaten,3,0) -> 52.3 | Q77: ='Master-Auslegung_V52-V67'!B57 -> V63 | R77: =VLOOKUP($Q77,Matrix_Rohdaten,1,0) -> V63 | S77: =VLOOKUP($Q77,Matrix_Rohdaten,4,0) -> 484 | T77: =VLOOKUP($Q77,Matrix_Rohdaten,18,0) -> 129.6057313 | U77: =VLOOKUP($Q77,Matrix_Rohdaten,12,0) -> 307.018671 | V77: =VLOOKUP($Q77,Matrix_Rohdaten,17,0) -> 34.11268933 | W77: =VLOOKUP($Q77,Matrix_Rohdaten,3,0) -> 53.6 | Z77: ='Master-Auslegung_V52-V67'!B65 -> V67 | AA77: =VLOOKUP($Z77,Matrix_Rohdaten,1,0) -> V67 | AB77: =VLOOKUP($Z77,Matrix_Rohdaten,4,0) -> 1145 | AC77: =VLOOKUP($Z77,Matrix_Rohdaten,18,0) -> 353.556565 | AD77: =VLOOKUP($Z77,Matrix_Rohdaten,12,0) -> 308.2145287 | AE77: =VLOOKUP($Z77,Matrix_Rohdaten,17,0) -> 73.49867267 | AF77: =VLOOKUP($Z77,Matrix_Rohdaten,3,0) -> 53.5
H80: Wassermengenvariation | Q80: Wassermengenvariation | Z80: Wassermengenvariation
H81: =CONCATENATE($B$1,"; ", $E$2, " = ",M90, " ", M89,"; m_w=", ROUND(H87,0), " kg/h") -> VKL800; ISH-Prototyp; 4L; 3 - 3,5 cm Schalldämmung; mit Filter; Drehzahl = 757 1/min; m_w=200 kg/h | Q81: =CONCATENATE($B$1,"; ", $E$2, " = ",V90, " ", V89,"; m_w=", ROUND(Q87,0), " kg/h") -> VKL800; ISH-Prototyp; 4L; 3 - 3,5 cm Schalldämmung; mit Filter; Drehzahl = 484 1/min; m_w=200 kg/h | Z81: =CONCATENATE($B$1,"; ", $E$2, " = ",AE90, " ", AE89,"; m_w=", ROUND(Z87,0), " kg/h") -> VKL800; ISH-Prototyp; 4L; 3 - 3,5 cm Schalldämmung; mit Filter; Drehzahl = 1145 1/min; m_w=200 kg/h
H83: wok | I83: spez. Leistung bei wok | L83: Druckverlust bei wok | Q83: wok | R83: spez. Leistung bei wok | U83: Druckverlust bei wok | Z83: wok | AA83: spez. Leistung bei wok | AD83: Druckverlust bei wok
H84: ='Master-Auslegung_V52-V67'!C4 -> 200 | I84: =H106*H84^H105+I106*H84^I105+J106*H84^J105+K106*H84^K105+L106 -> 50.67910656 | L84: =I$114*H84^J$114 -> 24.16450138 | Q84: =H84 -> 200 | R84: =Q106*Q84^Q105+R106*Q84^R105+S106*Q84^S105+T106*Q84^T105+U106 -> 33.04906888 | U84: =R$114*Q84^S$114 -> 24.5203314 | Z84: =H84 -> 200 | AA84: =Z106*Z84^Z105+AA106*Z84^AA105+AB106*Z84^AB105+AC106*Z84^AC105+AD106 -> 68.45598702 | AD84: =AA$114*Z84^AB$114 -> 24.47693253
H86: w_soll | Q86: w_soll | Z86: w_soll
H87: =$B$6 -> 200 | J87: =H87/H84 -> 1 | K87: =H$123*J87^H$122+I$123*J87^I$122+J$123*J87^J$122+K$123*J87^K$122+L$123 -> 1 | L87: =I$114*H87^J$114 -> 24.16450138 | Q87: =$B$6 -> 200 | S87: =Q87/Q84 -> 1 | T87: =Q$123*S87^Q$122+R$123*S87^R$122+S$123*S87^S$122+T$123*S87^T$122+U$123 -> 1 | U87: =R$114*Q87^S$114 -> 24.5203314 | Z87: =$B$6 -> 200 | AB87: =Z87/Z84 -> 1 | AC87: =Z$123*AB87^Z$122+AA$123*AB87^AA$122+AB$123*AB87^AB$122+AC$123*AB87^AC$122+AD$123 -> 1 | AD87: =AA$114*Z87^AB$114 -> 24.47693253
H88: Wassermenge | I88: spez. Leistung | J88: Faktor: Wassermenge zu Nennwassermenge | K88: Kühlleistung Korrekturfaktor für w_soll ≠ w_ok | L88: wasserseit. Druckverlust - kühlen | M88: =$B$2 -> Drehzahl [1/min] | N88: =K72 -> Sekundärvolumenstrom - Kalorik | Q88: Wassermenge | R88: spez. Leistung | S88: Faktor: Wassermenge zu Nennwassermenge | T88: Kühlleistung Korrekturfaktor für w_soll ≠ w_ok | U88: wasserseit. Druckverlust - kühlen | V88: =$B$2 -> Drehzahl [1/min] | W88: =T72 -> Sekundärvolumenstrom - Kalorik | Z88: Wassermenge | AA88: spez. Leistung | AB88: Faktor: Wassermenge zu Nennwassermenge | AC88: Kühlleistung Korrekturfaktor für w_soll ≠ w_ok | AD88: wasserseit. Druckverlust - kühlen | AE88: =$B$2 -> Drehzahl [1/min] | AF88: =AC72 -> Sekundärvolumenstrom - Kalorik
H89: [kg/h] | I89: [W/K] | J89: [-] | K89: [-] | L89: [kPa] | M89: =$C$2 -> 1/min | N89: m³/h | Q89: [kg/h] | R89: [W/K] | S89: [-] | T89: [-] | U89: [kPa] | V89: =$C$2 -> 1/min | W89: m³/h | Z89: [kg/h] | AA89: [W/K] | AB89: [-] | AC89: [-] | AD89: [kPa] | AE89: =$C$2 -> 1/min | AF89: m³/h
H90: =L74 -> 62.16736767 | I90: 34.97469567 | J90: =H90/H$84 -> 0.3108368383 | K90: 0.6901206047 | L90: =N74 -> 2.8 | M90: =J74 -> 757 | N90: 215.5661803 | Q90: =U74 -> 51.86594433 | R90: 23.99926367 | S90: =Q90/Q$84 -> 0.2593297217 | T90: 0.7261706451 | U90: =W74 -> 2.1 | V90: =S74 -> 484 | W90: 124.7774853 | Z90: =AD74 -> 60.093256 | AA90: 42.15506633 | AB90: =Z90/Z$84 -> 0.30046628 | AC90: 0.615798094 | AD90: =AF74 -> 2.6 | AE90: =AB74 -> 1145 | AF90: 357.410967
H91: 127.5852337 | I91: 45.73635067 | J91: 0.6379261683 | K91: 0.9024695535 | L91: =N75 -> 11 | M91: =J75 -> 757 | N91: 220.1936033 | Q91: 127.2533103 | R91: 30.894434 | S91: 0.6362665517 | T91: 0.9348049749 | U91: =W75 -> 10.7 | V91: =S75 -> 484 | W91: 128.0288493 | Z91: 127.6208263 | AA91: 60.16213433 | AB91: 0.6381041317 | AC91: 0.8788440128 | AD91: =AF75 -> 11 | AE91: =AB75 -> 1145 | AF91: 355.0783103
H92: 237.2534953 | I92: 51.616887 | J92: 1.186267477 | K92: 1.018504281 | L92: =N76 -> 32.9 | M92: =J76 -> 757 | N92: 220.201253 | Q92: 237.474217 | R92: 33.36005 | S92: 1.187371085 | T92: 1.009409679 | U92: =W76 -> 33.6 | V92: =S76 -> 484 | W92: 129.757027 | Z92: 238.6808817 | AA92: 70.41572567 | AB92: 1.193404408 | AC92: 1.028627717 | AD92: =AF76 -> 34.1 | AE92: =AB76 -> 1145 | AF92: 351.954835
H93: 307.1907027 | I93: 52.78139767 | J93: 1.535953513 | K93: 1.041482403 | L93: =N77 -> 52.3 | M93: =J77 -> 757 | N93: 219.0876993 | Q93: 307.018671 | R93: 34.11268933 | S93: 1.535093355 | T93: 1.032183069 | U93: =W77 -> 53.6 | V93: =S77 -> 484 | W93: 129.6057313 | Z93: 308.2145287 | AA93: 73.49867267 | AB93: 1.541072643 | AC93: 1.073663179 | AD93: =AF77 -> 53.5 | AE93: =AB77 -> 1145 | AF93: 353.556565
H100: y = qk x = wk | Q100: y = qk x = wk | Z100: y = qk x = wk
H102: y = | I102: axn+bx(n-1)+...+nx+m | Q102: y = | R102: axn+bx(n-1)+...+nx+m | Z102: y = | AA102: axn+bx(n-1)+...+nx+m
H103: Polynom | I103: =H105 -> 3 | J103: Ordnung | Q103: Polynom | R103: =Q105 -> 3 | S103: Ordnung | Z103: Polynom | AA103: =Z105 -> 3 | AB103: Ordnung
H104: a = | I104: b = | J104: c = | K104: m = | Q104: a = | R104: b = | S104: c = | T104: m = | Z104: a = | AA104: b = | AB104: c = | AC104: m =
H105: 3 | I105: 2 | J105: 1 | K105: 0 | Q105: 3 | R105: 2 | S105: 1 | T105: 0 | Z105: 3 | AA105: 2 | AB105: 1 | AC105: 0
H106: =LINEST(I90:I93,H90:H93^{0,1,2,3},0,0) -> 1.744635024e-06 | I106: -0.001378287972 | J106: 0.3770604862 | K106: 16.44144802 | Q106: =LINEST(R90:R93,Q90:Q93^{0,1,2,3},0,0) -> 1.207192444e-06 | R106: -0.0008751625937 | S106: 0.217458077 | T106: 14.90641768 | Z106: =LINEST(AA90:AA93,Z90:Z93^{0,1,2,3},0,0) -> 2.863451361e-06 | AA106: -0.002197163894 | AB106: 0.6001630812 | AC106: 13.40231568
H110: y = Druck dp [kPa] x = Wasserm. wk | Q110: y = Druck dp [kPa] x = Wasserm. wk | Z110: y = Druck dp [kPa] x = Wasserm. wk
H112: y = | I112: mxb | Q112: y = | R112: mxb | Z112: y = | AA112: mxb
I113: m | J113: b | K113: R2 | M113: y= | R113: m | S113: b | T113: R2 | AA113: m | AB113: b | AC113: R2
I114: =INDEX(LOGEST(L90:L93,LN(H90:H93),,TRUE),1,2) -> 0.001498504047 | J114: =LN(INDEX(LOGEST(L90:L93,LN(H90:H93),,TRUE),1,1)) -> 1.828537623 | K114: =INDEX(LOGEST(L90:L93,LN(H90:H93),,TRUE),3,1) -> 0.9996570599 | M114: =I114*B6^J114 -> 24.16450138 | R114: =INDEX(LOGEST(U90:U93,LN(Q90:Q93),,TRUE),1,2) -> 0.001569348709 | S114: =LN(INDEX(LOGEST(U90:U93,LN(Q90:Q93),,TRUE),1,1)) -> 1.822578102 | T114: =INDEX(LOGEST(U90:U93,LN(Q90:Q93),,TRUE),3,1) -> 0.9999940446 | AA114: =INDEX(LOGEST(AD90:AD93,LN(Z90:Z93),,TRUE),1,2) -> 0.001353851914 | AB114: =LN(INDEX(LOGEST(AD90:AD93,LN(Z90:Z93),,TRUE),1,1)) -> 1.85012183 | AC114: =INDEX(LOGEST(AD90:AD93,LN(Z90:Z93),,TRUE),3,1) -> 0.9996991494
H117: y = qk in % x = wk in % | Q117: y = qk in % x = wk in % | Z117: y = qk in % x = wk in %
H119: y = | I119: axn+bx(n-1)+...+nx+m | Q119: y = | R119: axn+bx(n-1)+...+nx+m | Z119: y = | AA119: axn+bx(n-1)+...+nx+m
H120: Polynom | I120: =H122 -> 3 | J120: Ordnung | Q120: Polynom | R120: =Q122 -> 3 | S120: Ordnung | Z120: Polynom | AA120: =Z122 -> 3 | AB120: Ordnung
H121: a = | I121: b = | J121: c = | K121: m = | Q121: a = | R121: b = | S121: c = | T121: m = | Z121: a = | AA121: b = | AB121: c = | AC121: m =
H122: 3 | I122: 2 | J122: 1 | K122: 0 | Q122: 3 | R122: 2 | S122: 1 | T122: 0 | Z122: 3 | AA122: 2 | AB122: 1 | AC122: 0
H123: =LINEST(K90:K93,J90:J93^{0,1,2,3},0,0) -> 0.2754010704 | I123: -1.087854989 | J123: 1.488031308 | K123: 0.32442261 | Q123: =LINEST(T90:T93,S90:S93^{0,1,2,3},0,0) -> 0.292218204 | R123: -1.05922814 | S123: 1.315970975 | T123: 0.4510389606 | Z123: =LINEST(AC90:AC93,AB90:AB93^{0,1,2,3},0,0) -> 0.3346326871 | AA123: -1.283840313 | AB123: 1.753427588 | AC123: 0.1957800372
A136: BG | B136: WT bzw. Laufradlänge | C136: Verhältnis
A137: Baugröße 800 | B137: =VLOOKUP(A137,A139:C142,2,0) -> 820 | C137: =VLOOKUP(A137,A139:C142,3,0) -> 1 | G137: ='Master-Auslegung_V52-V67'!AB1 -> Bemerkung: | H137: Abfrage | I137: Korrektur
G138: 3D-Strömung | H138: =IF(VKL!AB9=TRUE,"Ja","Nein") -> Nein
A139: Baugröße 630 | B139: 590 | C139: =B139/$B$137 -> 0.7195121951 | G139: Filter | H139: =IF(VKL!AB8=TRUE,"Ja","Nein") -> Ja | I139: =IF(H139="Ja",1,O149) -> 1
A140: Baugröße 800 | B140: 820 | C140: =B140/$B$137 -> 1
A141: Baugröße 1000 | B141: 1020 | C141: =B141/$B$137 -> 1.243902439
A142: Baugröße 1200 | B142: 1200 | C142: =B142/$B$137 -> 1.463414634
I143: gemessen | J143: gemessen | K143: gemessen
A144: =A137 -> Baugröße 800 | B144: =$A$137 -> Baugröße 800 | C144: =A139 -> Baugröße 630 | D144: =A140 -> Baugröße 800 | E144: =A141 -> Baugröße 1000 | F144: =A142 -> Baugröße 1200 | G144: =CONCATENATE($A$137," ",$G$138) -> Baugröße 800 3D-Strömung | H144: =CONCATENATE($A$137," ",$G$138) -> Baugröße 800 3D-Strömung | I144: =CONCATENATE($A$137," ",$G$138) -> Baugröße 800 3D-Strömung | J144: =CONCATENATE($A$137," ",$G$138) -> Baugröße 800 3D-Strömung | K144: =CONCATENATE($A$137," ",$G$138) -> Baugröße 800 3D-Strömung | L144: =CONCATENATE($A$137," mit ",$G$139) -> Baugröße 800 mit Filter | M144: =CONCATENATE($A$137," mit ",$G$139) -> Baugröße 800 mit Filter | N144: =CONCATENATE($A$137," mit ",$G$139) -> Baugröße 800 mit Filter | O144: =CONCATENATE($A$137," mit ",$G$139) -> Baugröße 800 mit Filter
A145: =$J$6 -> Drehzahl [1/min] | B145: =$K$6 -> Sekundärvolumenstrom - Kalorik [m³/h] | C145: =$K$6 -> Sekundärvolumenstrom - Kalorik [m³/h] | D145: =$K$6 -> Sekundärvolumenstrom - Kalorik [m³/h] | E145: =$K$6 -> Sekundärvolumenstrom - Kalorik [m³/h] | F145: =$K$6 -> Sekundärvolumenstrom - Kalorik [m³/h] | G145: Messung | H145: Messung | I145: =$J$6 -> Drehzahl [1/min] | J145: =$K$6 -> Sekundärvolumenstrom - Kalorik [m³/h] | K145: =O6 -> Steuerspannung [V] | L145: Messung | M145: Messung | N145: =$J$6 -> Drehzahl [1/min] | O145: =$K$6 -> Sekundärvolumenstrom - Kalorik [m³/h]
A146: =$J$7 -> 1/min | B146: =$K$7 -> m³/h | C146: =$K$7 -> m³/h | D146: =$K$7 -> m³/h | E146: =$K$7 -> m³/h | F146: =$K$7 -> m³/h | H146: Kontrolle | I146: =$J$7 -> 1/min | J146: =$K$7 -> m³/h | K146: =O7 -> V | M146: Kontrolle | N146: =$J$7 -> 1/min | O146: =$K$7 -> m³/h
A147: =IF($H$138="Ja",I147,J8) -> 493 | B147: =IF($H$138="Ja",J147*$I$139,K8*$I$139) -> 131.915397 | C147: =B147*$C$139 -> 94.91473687 | D147: =B147*$C$140 -> 131.915397 | E147: =B147*$C$141 -> 164.0898841 | F147: =B147*$C$142 -> 193.0469224 | G147: V71 | H147: =VLOOKUP($G147,Matrix_Rohdaten,1,0) -> V71 | I147: =VLOOKUP($G147,Matrix_Rohdaten,4,0) -> 489 | J147: =VLOOKUP($G147,Matrix_Rohdaten,18,0) -> 124.165886 | K147: =VLOOKUP($G147,Matrix_Rohdaten,6,0) -> 3.5 | L147: V19 | M147: =VLOOKUP($L147,Matrix_Rohdaten,1,0) -> V19 | N147: =VLOOKUP($L147,Matrix_Rohdaten,4,0) -> 728 | O147: =VLOOKUP($L147,Matrix_Rohdaten,18,0) -> 242.4002419
A148: =IF($H$138="Ja",I148,J9) -> 744 | B148: =IF($H$138="Ja",J148*$I$139,K9*$I$139) -> 214.4287927 | C148: =B148*$C$139 -> 154.2841313 | D148: =B148*$C$140 -> 214.4287927 | E148: =B148*$C$141 -> 266.7284982 | F148: =B148*$C$142 -> 313.7982332 | G148: V70 | H148: =VLOOKUP($G148,Matrix_Rohdaten,1,0) -> V70 | I148: =VLOOKUP($G148,Matrix_Rohdaten,4,0) -> 734 | J148: =VLOOKUP($G148,Matrix_Rohdaten,18,0) -> 199.2992107 | K148: =VLOOKUP($G148,Matrix_Rohdaten,6,0) -> 5.6 | L148: V20 | M148: =VLOOKUP($L148,Matrix_Rohdaten,1,0) -> V20 | N148: =VLOOKUP($L148,Matrix_Rohdaten,4,0) -> 728 | O148: =VLOOKUP($L148,Matrix_Rohdaten,18,0) -> 205.4667632
A149: =IF($H$138="Ja",I149,J10) -> 1038 | B149: =IF($H$138="Ja",J149*$I$139,K10*$I$139) -> 316.4055997 | C149: =B149*$C$139 -> 227.6576876 | D149: =B149*$C$140 -> 316.4055997 | E149: =B149*$C$141 -> 393.5776971 | F149: =B149*$C$142 -> 463.0325849 | G149: V72 | H149: =VLOOKUP($G149,Matrix_Rohdaten,1,0) -> V72 | I149: =VLOOKUP($G149,Matrix_Rohdaten,4,0) -> 1039 | J149: =VLOOKUP($G149,Matrix_Rohdaten,18,0) -> 287.061498 | K149: =VLOOKUP($G149,Matrix_Rohdaten,6,0) -> 8 | N149: ohne Filter | O149: =1/O148*O147 -> 1.17975403
A150: =IF($H$138="Ja",I150,J11) -> 1146 | B150: =IF($H$138="Ja",J150*$I$139,K11*$I$139) -> 357.291802 | C150: =B150*$C$139 -> 257.0758088 | D150: =B150*$C$140 -> 357.291802 | E150: =B150*$C$141 -> 444.436144 | F150: =B150*$C$142 -> 522.8660517 | G150: V73 | H150: =VLOOKUP($G150,Matrix_Rohdaten,1,0) -> V73 | I150: =VLOOKUP($G150,Matrix_Rohdaten,4,0) -> 1146 | J150: =VLOOKUP($G150,Matrix_Rohdaten,18,0) -> 325.3430097 | K150: =VLOOKUP($G150,Matrix_Rohdaten,6,0) -> 10
A152: Abfrage | B152: =VKL!AF7 -> 1
A154: Drehzahl/Volumenstrom
C155: y = | D155: mxb
A156: =A137 -> Baugröße 800
A157: Volumenstrom vorgegeben | B157: 1 | C157: =INDEX(LOGEST(A147:A150,LN(B147:B150),,TRUE),1,2) -> 7.83482435 | D157: =LN(INDEX(LOGEST(A147:A150,LN(B147:B150),,TRUE),1,1)) -> 0.8483761795
A158: Drehzahl vorgegeben | B158: 2 | C158: =INDEX(LOGEST(B147:B150,LN(A147:A150),,TRUE),1,2) -> 0.08836060412 | D158: =LN(INDEX(LOGEST(B147:B150,LN(A147:A150),,TRUE),1,1)) -> 1.178697997
A159: aus Abfrage | B159: =$B$152 -> 1 | C159: =IF(B159=1,C157,C158) -> 7.83482435 | D159: =IF(B159=1,D157,D158) -> 0.8483761795
A161: =A139 -> Baugröße 630
A162: Volumenstrom vorgegeben | B162: 1 | C162: =INDEX(LOGEST(A147:A150,LN(C147:C150),,TRUE),1,2) -> 10.3589249 | D162: =LN(INDEX(LOGEST(A147:A150,LN(C147:C150),,TRUE),1,1)) -> 0.8483761795
A163: Drehzahl vorgegeben | B163: 2 | C163: =INDEX(LOGEST(C147:C150,LN(A147:A150),,TRUE),1,2) -> 0.06357653223 | D163: =LN(INDEX(LOGEST(C147:C150,LN(A147:A150),,TRUE),1,1)) -> 1.178697997
A164: aus Abfrage | B164: =$B$152 -> 1 | C164: =IF(B164=1,C162,C163) -> 10.3589249 | D164: =IF(B164=1,D162,D163) -> 0.8483761795
A166: =A140 -> Baugröße 800
A167: Volumenstrom vorgegeben | B167: 1 | C167: =INDEX(LOGEST(A147:A150,LN(D147:D150),,TRUE),1,2) -> 7.83482435 | D167: =LN(INDEX(LOGEST(A147:A150,LN(D147:D150),,TRUE),1,1)) -> 0.8483761795
A168: Drehzahl vorgegeben | B168: 2 | C168: =INDEX(LOGEST(D147:D150,LN(A147:A150),,TRUE),1,2) -> 0.08836060412 | D168: =LN(INDEX(LOGEST(D147:D150,LN(A147:A150),,TRUE),1,1)) -> 1.178697997
A169: aus Abfrage | B169: =$B$152 -> 1 | C169: =IF(B169=1,C167,C168) -> 7.83482435 | D169: =IF(B169=1,D167,D168) -> 0.8483761795
A171: =A141 -> Baugröße 1000
A172: Volumenstrom vorgegeben | B172: 1 | C172: =INDEX(LOGEST(A147:A150,LN(E147:E150),,TRUE),1,2) -> 6.510506981 | D172: =LN(INDEX(LOGEST(A147:A150,LN(E147:E150),,TRUE),1,1)) -> 0.8483761795
A173: Drehzahl vorgegeben | B173: 2 | C173: =INDEX(LOGEST(E147:E150,LN(A147:A150),,TRUE),1,2) -> 0.109911971 | D173: =LN(INDEX(LOGEST(E147:E150,LN(A147:A150),,TRUE),1,1)) -> 1.178697997
A174: aus Abfrage | B174: =$B$152 -> 1 | C174: =IF(B174=1,C172,C173) -> 6.510506981 | D174: =IF(B174=1,D172,D173) -> 0.8483761795
A176: =A142 -> Baugröße 1200
A177: Volumenstrom vorgegeben | B177: 1 | C177: =INDEX(LOGEST(A147:A150,LN(F147:F150),,TRUE),1,2) -> 5.671990657 | D177: =LN(INDEX(LOGEST(A147:A150,LN(F147:F150),,TRUE),1,1)) -> 0.8483761795
A178: Drehzahl vorgegeben | B178: 2 | C178: =INDEX(LOGEST(F147:F150,LN(A147:A150),,TRUE),1,2) -> 0.1293082011 | D178: =LN(INDEX(LOGEST(F147:F150,LN(A147:A150),,TRUE),1,1)) -> 1.178697997
A179: aus Abfrage | B179: =$B$152 -> 1 | C179: =IF(B179=1,C177,C178) -> 5.671990657 | D179: =IF(B179=1,D177,D178) -> 0.8483761795
A183: =CONCATENATE("Leistung - ", A137) -> Leistung - Baugröße 800 | C183: a = | D183: b = | E183: c = | F183: m =
A184: Volumenstrom vorgegeben | B184: 1 | C184: =B53 -> 3 | D184: 2 | E184: 1 | F184: 0
B185: 1 | C185: 1.720267414e-07 | D185: -0.0003677106573 | E185: 0.300123664 | F185: 0
A186: =A158 -> Drehzahl vorgegeben | B186: 2 | C186: =B74 -> 3 | D186: 2 | E186: 1 | F186: 0
B187: 2 | C187: -1.025577979e-08 | D187: 3.2012453e-06 | E187: 0.06916826079 | F187: 0
B188: =$B$152 -> 1 | C188: =IF($B$188=1,C184,C186) -> 3 | D188: =IF($B$188=1,D184,D186) -> 2 | E188: =IF($B$188=1,E184,E186) -> 1 | F188: =IF($B$188=1,F184,F186) -> 0
A189: aus Abfrage | B189: =$B$152 -> 1 | C189: =IF($B$189=1,C185,C187) -> 1.720267414e-07 | D189: =IF($B$189=1,D185,D187) -> -0.0003677106573 | E189: =IF($B$189=1,E185,E187) -> 0.300123664 | F189: =IF($B$189=1,F185,F187) -> 0
A191: Einheiten
B192: 1 | C192: Volumenstrom | D192: [m³/h]
B193: 2 | C193: Drehzahl | D193: [1/min]
B194: =B152 -> 1 | C194: =IF($B$152=1,C192,C193) -> Volumenstrom | D194: =IF($B$152=1,D192,D193) -> [m³/h]
B195: =IF(B152=1,2,1) -> 2 | C195: =IF($B$152=2,C192,C193) -> Drehzahl | D195: =IF($B$152=2,D192,D193) -> [1/min]
A201: Grenzwerte für Auslegung
A206: Grenzen der Messung | D206: Grenzenerweiterung der Auslegung (bei 2 bzw. 10 V)
A207: ='Master-Auslegung_V52-V67'!B2 -> kühlen | D207: kühlen
A208: ='Master-Auslegung_V52-V67'!N36 -> Drehzahl [1/min] | B208: ='Master-Auslegung_V52-V67'!O36 -> Volumenstrom [m³/h] | C208: ='Master-Auslegung_V52-V67'!N43 -> Wasser-Massenstrom [kg/h] | D208: =$J$6 -> Drehzahl [1/min] | E208: =$K$6 -> Sekundärvolumenstrom - Kalorik [m³/h]
A209: ='Master-Auslegung_V52-V67'!N37 -> 493 | B209: ='Master-Auslegung_V52-V67'!O37 -> 131.915397 | C209: ='Master-Auslegung_V52-V67'!N44 -> 62.16736767 | D209: =Q33 -> 304.104786 | E209: =Q39 -> 74.69627457 | H209: Polynom 6 Ordnung | I209: ='BG;WT3,2;k'!J1 -> 6 | J209: ='BG;WT3,2;k'!K1 -> 5 | K209: ='BG;WT3,2;k'!L1 -> 4 | L209: ='BG;WT3,2;k'!M1 -> 3 | M209: ='BG;WT3,2;k'!N1 -> 2 | N209: ='BG;WT3,2;k'!O1 -> 1 | O209: ='BG;WT3,2;k'!P1 -> 0
A210: ='Master-Auslegung_V52-V67'!N38 -> 1146 | B210: ='Master-Auslegung_V52-V67'!O38 -> 357.291802 | C210: ='Master-Auslegung_V52-V67'!N45 -> 307.1907027 | D210: =Q34 -> 1205.754442 | E210: =Q40 -> 378.4926894 | H210: ='BG;WT3,2;k'!I3 -> BG 630 | I210: ='BG;WT3,2;k'!J3 -> -1.813500638e-16 | J210: ='BG;WT3,2;k'!K3 -> 8.467540226e-13 | K210: ='BG;WT3,2;k'!L3 -> -1.604675141e-09 | L210: ='BG;WT3,2;k'!M3 -> 1.607098867e-06 | M210: ='BG;WT3,2;k'!N3 -> -0.0009415311809 | N210: ='BG;WT3,2;k'!O3 -> 0.3608830048 | O210: ='BG;WT3,2;k'!P3 -> 0
H211: ='BG;WT3,2;k'!I4 -> BG 800 | I211: ='BG;WT3,2;k'!J4 -> 1.421521965e-16 | J211: ='BG;WT3,2;k'!K4 -> -2.563199796e-13 | K211: ='BG;WT3,2;k'!L4 -> -1.488735081e-10 | L211: ='BG;WT3,2;k'!M4 -> 6.916011335e-07 | M211: ='BG;WT3,2;k'!N4 -> -0.0006883251388 | N211: ='BG;WT3,2;k'!O4 -> 0.362075463 | O211: ='BG;WT3,2;k'!P4 -> 0
A212: ='Heizen_Auslegung_V78-V85'!B2 -> heizen | H212: ='BG;WT3,2;k'!I5 -> BG 1000 | I212: ='BG;WT3,2;k'!J5 -> 3.400255507e-16 | J212: ='BG;WT3,2;k'!K5 -> -9.30746935e-13 | K212: ='BG;WT3,2;k'!L5 -> 7.644562872e-10 | L212: ='BG;WT3,2;k'!M5 -> 7.881751686e-08 | M212: ='BG;WT3,2;k'!N5 -> -0.000494961288 | N212: ='BG;WT3,2;k'!O5 -> 0.3555561781 | O212: ='BG;WT3,2;k'!P5 -> 0
A213: ='Heizen_Auslegung_V78-V85'!N36 -> Drehzahl [1/min] | B213: ='Heizen_Auslegung_V78-V85'!O36 -> Volumenstrom [m³/h] | C213: ='Heizen_Auslegung_V78-V85'!N43 -> Wasser-Massenstrom [kg/h] | H213: ='BG;WT3,2;k'!I6 -> BG 1200 | I213: ='BG;WT3,2;k'!J6 -> 4.133531772e-16 | J213: ='BG;WT3,2;k'!K6 -> -1.235714175e-12 | K213: ='BG;WT3,2;k'!L6 -> 1.254596415e-09 | L213: ='BG;WT3,2;k'!M6 -> -2.970767384e-07 | M213: ='BG;WT3,2;k'!N6 -> -0.0003669610189 | N213: ='BG;WT3,2;k'!O6 -> 0.3538392348 | O213: ='BG;WT3,2;k'!P6 -> 0
A214: ='Heizen_Auslegung_V78-V85'!N37 -> 504 | B214: ='Heizen_Auslegung_V78-V85'!O37 -> 127.0681653 | C214: ='Heizen_Auslegung_V78-V85'!N44 -> 61.56286733
A215: ='Heizen_Auslegung_V78-V85'!N38 -> 1144 | B215: ='Heizen_Auslegung_V78-V85'!O38 -> 333.390406 | C215: ='Heizen_Auslegung_V78-V85'!N45 -> 231.008269 | H215: Korrekturfaktoren | I215: ='BG;WT3,2;k'!J8 -> 6 | J215: ='BG;WT3,2;k'!K8 -> 5 | K215: ='BG;WT3,2;k'!L8 -> 4 | L215: ='BG;WT3,2;k'!M8 -> 3 | M215: ='BG;WT3,2;k'!N8 -> 2 | N215: ='BG;WT3,2;k'!O8 -> 1 | O215: ='BG;WT3,2;k'!P8 -> 0
H216: ='BG;WT3,2;k'!I9 -> BG 630 | I216: ='BG;WT3,2;k'!J9 -> 1.943156147e-12 | J216: ='BG;WT3,2;k'!K9 -> -5.796651366e-10 | K216: ='BG;WT3,2;k'!L9 -> 6.427162232e-08 | L216: ='BG;WT3,2;k'!M9 -> -3.27963132e-06 | M216: ='BG;WT3,2;k'!N9 -> 8.347171511e-05 | N216: ='BG;WT3,2;k'!O9 -> -0.0008104209558 | O216: ='BG;WT3,2;k'!P9 -> 0.7230737345
A217: gesamt | H217: ='BG;WT3,2;k'!I10 -> BG 800 | I217: ='BG;WT3,2;k'!J10 -> -4.506518282e-26 | J217: ='BG;WT3,2;k'!K10 -> 8.220154121e-24 | K217: ='BG;WT3,2;k'!L10 -> 0 | L217: ='BG;WT3,2;k'!M10 -> -7.565180035e-20 | M217: ='BG;WT3,2;k'!N10 -> 4.820647131e-18 | N217: ='BG;WT3,2;k'!O10 -> -9.775324264e-17 | O217: ='BG;WT3,2;k'!P10 -> 1
A218: =A208 -> Drehzahl [1/min] | B218: =B208 -> Volumenstrom [m³/h] | C218: =CONCATENATE(C208, " ", A207) -> Wasser-Massenstrom [kg/h] kühlen | D218: =CONCATENATE(C213, " ", A212) -> Wasser-Massenstrom [kg/h] heizen | H218: ='BG;WT3,2;k'!I11 -> BG 1000 | I218: ='BG;WT3,2;k'!J11 -> -2.342548128e-12 | J218: ='BG;WT3,2;k'!K11 -> 5.787659422e-10 | K218: ='BG;WT3,2;k'!L11 -> -5.043168556e-08 | L218: ='BG;WT3,2;k'!M11 -> 1.873393153e-06 | M218: ='BG;WT3,2;k'!N11 -> -4.098859455e-05 | N218: ='BG;WT3,2;k'!O11 -> 0.0007886752862 | O218: ='BG;WT3,2;k'!P11 -> 1.218313429
A219: =D209 -> 304.104786 | B219: =E209 -> 74.69627457 | C219: =C209 -> 62.16736767 | D219: =C214 -> 61.56286733 | H219: ='BG;WT3,2;k'!I12 -> BG 1200 | I219: ='BG;WT3,2;k'!J12 -> -6.562698073e-12 | J219: ='BG;WT3,2;k'!K12 -> 1.637379032e-09 | K219: ='BG;WT3,2;k'!L12 -> -1.475890306e-07 | L219: ='BG;WT3,2;k'!M12 -> 6.019449386e-06 | M219: ='BG;WT3,2;k'!N12 -> -0.0001488960152 | N219: ='BG;WT3,2;k'!O12 -> 0.002504042068 | O219: ='BG;WT3,2;k'!P12 -> 1.445508757
A220: =D210 -> 1205.754442 | B220: =E210 -> 378.4926894 | C220: =C210 -> 307.1907027 | D220: =C215 -> 231.008269
A228: ='Master-Auslegung_V52-V67'!B2 -> kühlen
A232: Gemessene Baugröße
A233: =A137 -> Baugröße 800 | C233: DpK = | D233: =M114 -> 24.16450138 | E233: [kPa]
A235: =IF($A$233=$A$247,A249,IF($A$233=$A$261,A263,IF($A$233=$A$275,A277,IF($A$233=$A$289,A291,"-")))) -> bei 200 kg/h Kühlwassermassenstrom | F235: =IF($A$233=$A$247,F249,IF($A$233=$A$261,F263,IF($A$233=$A$275,F277,IF($A$233=$A$289,F291,"-")))) -> für kondensierende Auslegung
A236: =IF($A$233=$A$247,A250,IF($A$233=$A$261,A264,IF($A$233=$A$275,A278,IF($A$233=$A$289,A292,"-")))) -> Auslegung | B236: =IF($A$233=$A$247,B250,IF($A$233=$A$261,B264,IF($A$233=$A$275,B278,IF($A$233=$A$289,B292,"-")))) -> Volumenstrom | C236: Drehzahl | E236: Volumenstrom - Baugröße 800 | F236: Volumenstrom - Baugröße 800 | G236: Drehzahl | H236: Korrektur Total bei Sollwassermenge | I236: Korrektur Sensibel bei Sollwassermenge | J236: qSK1) - aus Volumenstrom der gemessenen Baugröße | K236: qSK1) - aus Drehzahl | L236: Korrektur Baugröße | M236: qSK1) - aus Volumenstrom | N236: qSK2) - aus Volumenstrom | O236: qtotal2) - aus Volumenstrom | Q236: Steuerspannung [V] | R236: Steuerspannung [V]
B237: =IF($A$233=$A$247,B251,IF($A$233=$A$261,B265,IF($A$233=$A$275,B279,IF($A$233=$A$289,B293,"-")))) -> [m³/h] | C237: [1/min] | E237: [m³/h] | F237: [m³/h] | G237: [1/min] | H237: [-] | I237: [-] | J237: [W/K] | K237: 0 | L237: [-] | M237: [W/K] | N237: [W/K] | O237: [W/K] | Q237: [V] | R237: [V]
A238: 1 | B238: =IF($A$233=$A$247,B252,IF($A$233=$A$261,B266,IF($A$233=$A$275,B280,IF($A$233=$A$289,B294,"-")))) -> 139.6940228 | C238: 517.5437059 | E238: 139.6940228 | F238: 139.6940228 | G238: 517.5437059 | H238: 1.435711059 | I238: 0.9339212511 | J238: 35.21877488 | K238: 35.23335038 | L238: 1 | M238: 35.21877488 | N238: 32.8915623 | O238: 50.56398458 | Q238: 3.666251121 | R238: 3.665457144
A239: 2 | B239: =IF($A$233=$A$247,B253,IF($A$233=$A$261,B267,IF($A$233=$A$275,B281,IF($A$233=$A$289,B295,"-")))) -> 174.7395212 | C239: 625.7782926 | E239: 174.7395212 | F239: 174.7395212 | G239: 625.7782926 | H239: 1.390501442 | I239: 0.9212897001 | J239: 42.13366989 | K239: 42.02438086 | L239: 1 | M239: 42.13366989 | N239: 38.8173161 | O239: 58.58692875 | Q239: 4.601953103 | R239: 4.601375813
A240: 3 | B240: =IF($A$233=$A$247,B254,IF($A$233=$A$261,B268,IF($A$233=$A$275,B282,IF($A$233=$A$289,B296,"-")))) -> 218.5752724 | C240: 756.6430487 | E240: 218.5752724 | F240: 218.5752724 | G240: 756.6430487 | H240: 1.347494767 | I240: 0.9108365201 | J240: 49.82856338 | K240: 49.72577731 | L240: 1 | M240: 49.82856338 | N240: 45.38567527 | O240: 67.14372838 | Q240: 5.776418965 | R240: 5.776220715
A241: 4 | B241: =IF($A$233=$A$247,B255,IF($A$233=$A$261,B269,IF($A$233=$A$275,B283,IF($A$233=$A$289,B297,"-")))) -> 273.4084508 | C241: 914.8764813 | E241: 273.4084508 | F241: 273.4084508 | G241: 914.8764813 | H241: 1.308374156 | I241: 0.9038619357 | J241: 58.08503397 | K241: 58.10648376 | L241: 1 | M241: 58.08503397 | N241: 52.50085124 | O241: 75.99695732 | Q241: 7.250637889 | R241: 7.251049818
A247: =A139 -> Baugröße 630 | C247: DpK = | D247: =D233*J325 -> 19.53333204 | E247: [kPa]
A249: =CONCATENATE("bei ", ROUND($B$6,0), " kg/h Kühlwassermassenstrom") -> bei 200 kg/h Kühlwassermassenstrom | F249: für kondensierende Auslegung
A250: Auslegung | B250: =$C$194 -> Volumenstrom | C250: =$C$195 -> Drehzahl | E250: =CONCATENATE("Volumenstrom - ",A247) -> Volumenstrom - Baugröße 630 | F250: =CONCATENATE("Volumenstrom - ",$A$233) -> Volumenstrom - Baugröße 800 | G250: Drehzahl | H250: Korrektur Total bei Sollwassermenge | I250: Korrektur Sensibel bei Sollwassermenge | J250: qSK1) - aus Volumenstrom der gemessenen Baugröße | K250: qSK1) - aus Drehzahl | L250: Korrektur Baugröße | M250: qSK1) - aus Volumenstrom | N250: qSK2) - aus Volumenstrom | O250: qtotal2) - aus Volumenstrom | Q250: Steuerspannung [V] | R250: Steuerspannung [V]
B251: =$D$194 -> [m³/h] | C251: =$D$195 -> [1/min] | E251: [m³/h] | F251: [m³/h] | G251: [1/min] | H251: [-] | I251: [-] | J251: [W/K] | L251: [-] | M251: [W/K] | N251: [W/K] | O251: [W/K] | Q251: [V] | R251: [V]
A252: =VKL!A22 -> 1 | B252: =VKL!B22 -> 107.1530558 | C252: =$C$164*B252^$D$164 -> 546.4144784 | E252: =IF($B$152=1,B252,C252) -> 107.1530558 | F252: =E252/$C$139 -> 148.924586 | G252: =IF($B$152=2,B252,C252) -> 546.4144784 | H252: =Auslegung_BG800_kondensierend!AH32 -> 1.422720692 | I252: =Auslegung_BG800_kondensierend!AL32 -> 0.9301738458 | J252: =$C$185*F252^$C$184+$D$185*F252^$D$184+$E$185*F252^$E$184+$F$185*F252^$F$184 -> 37.10870178 | K252: =$C$187*G252^$C$186+$D$187*G252^$D$186+$E$187*G252^$E$186+$F$187*G252^$F$186 -> 37.07717949 | L252: =$I$216*J252^$I$215+$J$216*J252^$J$215+$K$216*J252^$K$215+$L$216*J252^$L$215+$M$216*J252^$M$215+$N$216*J252^$N$215+$O$216*J252^$O$215 -> 0.7265147247 | M252: =IF($A$247=$A$233,J252,J252*L252) -> 26.96001826 | N252: =M252*I252 -> 25.07750386 | O252: =M252*H252 -> 38.35657584 | Q252: =$Q$31*G252^$R$31 -> 3.912383944 | R252: =$Q$37*F252^$R$37 -> 3.911638564
A253: =VKL!A23 -> 2 | B253: =VKL!B23 -> 134.0351798 | C253: =$C$164*B253^$D$164 -> 660.6880387 | E253: =IF($B$152=1,B253,C253) -> 134.0351798 | F253: =E253/$C$139 -> 186.2861821 | G253: =IF($B$152=2,B253,C253) -> 660.6880387 | H253: =Auslegung_BG800_kondensierend!AH33 -> 1.377869383 | I253: =Auslegung_BG800_kondensierend!AL33 -> 0.9180141422 | J253: =$C$185*F253^$C$184+$D$185*F253^$D$184+$E$185*F253^$E$184+$F$185*F253^$F$184 -> 44.26048188 | K253: =$C$187*G253^$C$186+$D$187*G253^$D$186+$E$187*G253^$E$186+$F$187*G253^$F$186 -> 44.13828738 | L253: =$I$216*J253^$I$215+$J$216*J253^$J$215+$K$216*J253^$K$215+$L$216*J253^$L$215+$M$216*J253^$M$215+$N$216*J253^$N$215+$O$216*J253^$O$215 -> 0.7291615966 | M253: =IF($A$247=$A$233,J253,J253*L253) -> 32.27304363 | N253: =M253*I253 -> 29.62711046 | O253: =M253*H253 -> 44.46803871 | Q253: =$Q$31*G253^$R$31 -> 4.910914639 | R253: =$Q$37*F253^$R$37 -> 4.910426515
A254: =VKL!A24 -> 3 | B254: =VKL!B24 -> 167.6607084 | C254: =$C$164*B254^$D$164 -> 798.8573033 | E254: =IF($B$152=1,B254,C254) -> 167.6607084 | F254: =E254/$C$139 -> 233.0199676 | G254: =IF($B$152=2,B254,C254) -> 798.8573033 | H254: =Auslegung_BG800_kondensierend!AH34 -> 1.33591292 | I254: =Auslegung_BG800_kondensierend!AL34 -> 0.9084477616 | J254: =$C$185*F254^$C$184+$D$185*F254^$D$184+$E$185*F254^$E$184+$F$185*F254^$F$184 -> 52.14532464 | K254: =$C$187*G254^$C$186+$D$187*G254^$D$186+$E$187*G254^$E$186+$F$187*G254^$F$186 -> 52.07002815 | L254: =$I$216*J254^$I$215+$J$216*J254^$J$215+$K$216*J254^$K$215+$L$216*J254^$L$215+$M$216*J254^$M$215+$N$216*J254^$N$215+$O$216*J254^$O$215 -> 0.7335483455 | M254: =IF($A$247=$A$233,J254,J254*L254) -> 38.25111661 | N254: =M254*I254 -> 34.74914127 | O254: =M254*H254 -> 51.10016089 | Q254: =$Q$31*G254^$R$31 -> 6.164268269 | R254: =$Q$37*F254^$R$37 -> 6.164217309
A255: =VKL!A25 -> 4 | B255: =VKL!B25 -> 209.7212936 | C255: =$C$164*B255^$D$164 -> 965.9194312 | E255: =IF($B$152=1,B255,C255) -> 209.7212936 | F255: =E255/$C$139 -> 291.4770522 | G255: =IF($B$152=2,B255,C255) -> 965.9194312 | H255: =Auslegung_BG800_kondensierend!AH35 -> 1.297671527 | I255: =Auslegung_BG800_kondensierend!AL35 -> 0.9025677101 | J255: =$C$185*F255^$C$184+$D$185*F255^$D$184+$E$185*F255^$E$184+$F$185*F255^$F$184 -> 60.49887302 | K255: =$C$187*G255^$C$186+$D$187*G255^$D$186+$E$187*G255^$E$186+$F$187*G255^$F$186 -> 60.55518889 | L255: =$I$216*J255^$I$215+$J$216*J255^$J$215+$K$216*J255^$K$215+$L$216*J255^$L$215+$M$216*J255^$M$215+$N$216*J255^$N$215+$O$216*J255^$O$215 -> 0.7398298588 | M255: =IF($A$247=$A$233,J255,J255*L255) -> 44.75887268 | N255: =M255*I255 -> 40.39791322 | O255: =M255*H255 -> 58.08231467 | Q255: =$Q$31*G255^$R$31 -> 7.73747738 | R255: =$Q$37*F255^$R$37 -> 7.738118578
A261: =A140 -> Baugröße 800 | C261: DpK = | D261: =D233*K325 -> 24.16450138 | E261: [kPa]
A263: =CONCATENATE("bei ", ROUND($B$6,0), " kg/h Kühlwassermassenstrom") -> bei 200 kg/h Kühlwassermassenstrom | F263: für kondensierende Auslegung
A264: Auslegung | B264: =$C$194 -> Volumenstrom | C264: =$C$195 -> Drehzahl | E264: =CONCATENATE("Volumenstrom - ",A261) -> Volumenstrom - Baugröße 800 | F264: =CONCATENATE("Volumenstrom - ",$A$233) -> Volumenstrom - Baugröße 800 | G264: Drehzahl | H264: Korrektur Total bei Sollwassermenge | I264: Korrektur Sensibel bei Sollwassermenge | J264: qSK1) - aus Volumenstrom der gemessenen Baugröße | K264: qSK1) - aus Drehzahl | L264: Korrektur Baugröße | M264: qSK1) - aus Volumenstrom | N264: qSK2) - aus Volumenstrom | O264: qtotal2) - aus Volumenstrom | Q264: Steuerspannung [V] | R264: Steuerspannung [V]
B265: =$D$194 -> [m³/h] | C265: =$D$195 -> [1/min] | E265: [m³/h] | F265: [m³/h] | G265: [1/min] | H265: [-] | I265: [-] | J265: [W/K] | L265: [-] | M265: [W/K] | N265: [W/K] | O265: [W/K] | Q265: [V] | R265: [V]
A266: =VKL!A36 -> 1 | B266: =VKL!B36 -> 139.6940228 | C266: =$C$169*B266^$D$169 -> 517.5437059 | E266: =IF($B$152=1,B266,C266) -> 139.6940228 | F266: =E266/$C$140 -> 139.6940228 | G266: =IF($B$152=2,B266,C266) -> 517.5437059 | H266: =Auslegung_BG800_kondensierend!AH36 -> 1.435711059 | I266: =Auslegung_BG800_kondensierend!AL36 -> 0.9339212511 | J266: =$C$185*F266^$C$184+$D$185*F266^$D$184+$E$185*F266^$E$184+$F$185*F266^$F$184 -> 35.21877488 | K266: =$C$187*G266^$C$186+$D$187*G266^$D$186+$E$187*G266^$E$186+$F$187*G266^$F$186 -> 35.23335038 | L266: =$I$217*J266^$I$215+$J$217*J266^$J$215+$K$217*J266^$K$215+$L$217*J266^$L$215+$M$217*J266^$M$215+$N$217*J266^$N$215+$O$217*J266^$O$215 -> 1 | M266: =IF($A$261=$A$233,J266,J266*L266) -> 35.21877488 | N266: =M266*I266 -> 32.8915623 | O266: =M266*H266 -> 50.56398458 | Q266: =$Q$31*G266^$R$31 -> 3.666251121 | R266: =$Q$37*F266^$R$37 -> 3.665457144
A267: =VKL!A37 -> 2 | B267: =VKL!B37 -> 174.7395212 | C267: =$C$169*B267^$D$169 -> 625.7782926 | E267: =IF($B$152=1,B267,C267) -> 174.7395212 | F267: =E267/$C$140 -> 174.7395212 | G267: =IF($B$152=2,B267,C267) -> 625.7782926 | H267: =Auslegung_BG800_kondensierend!AH37 -> 1.390501442 | I267: =Auslegung_BG800_kondensierend!AL37 -> 0.9212897001 | J267: =$C$185*F267^$C$184+$D$185*F267^$D$184+$E$185*F267^$E$184+$F$185*F267^$F$184 -> 42.13366989 | K267: =$C$187*G267^$C$186+$D$187*G267^$D$186+$E$187*G267^$E$186+$F$187*G267^$F$186 -> 42.02438086 | L267: =$I$217*J267^$I$215+$J$217*J267^$J$215+$K$217*J267^$K$215+$L$217*J267^$L$215+$M$217*J267^$M$215+$N$217*J267^$N$215+$O$217*J267^$O$215 -> 1 | M267: =IF($A$261=$A$233,J267,J267*L267) -> 42.13366989 | N267: =M267*I267 -> 38.8173161 | O267: =M267*H267 -> 58.58692875 | Q267: =$Q$31*G267^$R$31 -> 4.601953103 | R267: =$Q$37*F267^$R$37 -> 4.601375813
A268: =VKL!A38 -> 3 | B268: =VKL!B38 -> 218.5752724 | C268: =$C$169*B268^$D$169 -> 756.6430487 | E268: =IF($B$152=1,B268,C268) -> 218.5752724 | F268: =E268/$C$140 -> 218.5752724 | G268: =IF($B$152=2,B268,C268) -> 756.6430487 | H268: =Auslegung_BG800_kondensierend!AH38 -> 1.347494767 | I268: =Auslegung_BG800_kondensierend!AL38 -> 0.9108365201 | J268: =$C$185*F268^$C$184+$D$185*F268^$D$184+$E$185*F268^$E$184+$F$185*F268^$F$184 -> 49.82856338 | K268: =$C$187*G268^$C$186+$D$187*G268^$D$186+$E$187*G268^$E$186+$F$187*G268^$F$186 -> 49.72577731 | L268: =$I$217*J268^$I$215+$J$217*J268^$J$215+$K$217*J268^$K$215+$L$217*J268^$L$215+$M$217*J268^$M$215+$N$217*J268^$N$215+$O$217*J268^$O$215 -> 1 | M268: =IF($A$261=$A$233,J268,J268*L268) -> 49.82856338 | N268: =M268*I268 -> 45.38567527 | O268: =M268*H268 -> 67.14372838 | Q268: =$Q$31*G268^$R$31 -> 5.776418965 | R268: =$Q$37*F268^$R$37 -> 5.776220715
A269: =VKL!A39 -> 4 | B269: =VKL!B39 -> 273.4084508 | C269: =$C$169*B269^$D$169 -> 914.8764813 | E269: =IF($B$152=1,B269,C269) -> 273.4084508 | F269: =E269/$C$140 -> 273.4084508 | G269: =IF($B$152=2,B269,C269) -> 914.8764813 | H269: =Auslegung_BG800_kondensierend!AH39 -> 1.308374156 | I269: =Auslegung_BG800_kondensierend!AL39 -> 0.9038619357 | J269: =$C$185*F269^$C$184+$D$185*F269^$D$184+$E$185*F269^$E$184+$F$185*F269^$F$184 -> 58.08503397 | K269: =$C$187*G269^$C$186+$D$187*G269^$D$186+$E$187*G269^$E$186+$F$187*G269^$F$186 -> 58.10648376 | L269: =$I$217*J269^$I$215+$J$217*J269^$J$215+$K$217*J269^$K$215+$L$217*J269^$L$215+$M$217*J269^$M$215+$N$217*J269^$N$215+$O$217*J269^$O$215 -> 1 | M269: =IF($A$261=$A$233,J269,J269*L269) -> 58.08503397 | N269: =M269*I269 -> 52.50085124 | O269: =M269*H269 -> 75.99695732 | Q269: =$Q$31*G269^$R$31 -> 7.250637889 | R269: =$Q$37*F269^$R$37 -> 7.251049818
A275: =A141 -> Baugröße 1000 | C275: DpK = | D275: =D233*L325 -> 28.31758797 | E275: [kPa]
A277: =CONCATENATE("bei ", ROUND($B$6,0), " kg/h Kühlwassermassenstrom") -> bei 200 kg/h Kühlwassermassenstrom | F277: für kondensierende Auslegung
A278: Auslegung | B278: =$C$194 -> Volumenstrom | C278: =$C$195 -> Drehzahl | E278: =CONCATENATE("Volumenstrom - ",A275) -> Volumenstrom - Baugröße 1000 | F278: =CONCATENATE("Volumenstrom - ",$A$233) -> Volumenstrom - Baugröße 800 | G278: Drehzahl | H278: Korrektur Total bei Sollwassermenge | I278: Korrektur Sensibel bei Sollwassermenge | J278: qSK1) - aus Volumenstrom der gemessenen Baugröße | K278: qSK1) - aus Drehzahl | L278: Korrektur Baugröße | M278: qSK1) - aus Volumenstrom | N278: qSK2) - aus Volumenstrom | O278: qtotal2) - aus Volumenstrom | Q278: Steuerspannung [V] | R278: Steuerspannung [V]
B279: =$D$194 -> [m³/h] | C279: =$D$195 -> [1/min] | E279: [m³/h] | F279: [m³/h] | G279: [1/min] | H279: [-] | I279: [-] | J279: [W/K] | L279: [-] | M279: [W/K] | N279: [W/K] | O279: [W/K] | Q279: [V] | R279: [V]
A280: =VKL!A50 -> 1 | B280: =VKL!B50 -> 166.543386 | C280: =$C$174*B280^$D$174 -> 499.2358091 | E280: =IF($B$152=1,B280,C280) -> 166.543386 | F280: =E280/$C$141 -> 133.8878201 | G280: =IF($B$152=2,B280,C280) -> 499.2358091 | H280: =Auslegung_BG800_kondensierend!AH40 -> 1.444311059 | I280: =Auslegung_BG800_kondensierend!AL40 -> 0.9364436408 | J280: =$C$185*F280^$C$184+$D$185*F280^$D$184+$E$185*F280^$E$184+$F$185*F280^$F$184 -> 34.00421643 | K280: =$C$187*G280^$C$186+$D$187*G280^$D$186+$E$187*G280^$E$186+$F$187*G280^$F$186 -> 34.05303605 | L280: =$I$218*J280^$I$215+$J$218*J280^$J$215+$K$218*J280^$K$215+$L$218*J280^$L$215+$M$218*J280^$M$215+$N$218*J280^$N$215+$O$218*J280^$O$215 -> 1.226660587 | M280: =IF($A$275=$A$233,J280,J280*L280) -> 41.71163211 | N280: =M280*I280 -> 39.06059263 | O280: =M280*H280 -> 60.24457153 | Q280: =$Q$31*G280^$R$31 -> 3.511556923 | R280: =$Q$37*F280^$R$37 -> 3.510735768
A281: =VKL!A51 -> 2 | B281: =VKL!B51 -> 208.3250206 | C281: =$C$174*B281^$D$174 -> 603.642498 | E281: =IF($B$152=1,B281,C281) -> 208.3250206 | F281: =E281/$C$141 -> 167.4769774 | G281: =IF($B$152=2,B281,C281) -> 603.642498 | H281: =Auslegung_BG800_kondensierend!AH41 -> 1.398987222 | I281: =Auslegung_BG800_kondensierend!AL41 -> 0.9235630886 | J281: =$C$185*F281^$C$184+$D$185*F281^$D$184+$E$185*F281^$E$184+$F$185*F281^$F$184 -> 40.75815068 | K281: =$C$187*G281^$C$186+$D$187*G281^$D$186+$E$187*G281^$E$186+$F$187*G281^$F$186 -> 40.66354609 | L281: =$I$218*J281^$I$215+$J$218*J281^$J$215+$K$218*J281^$K$215+$L$218*J281^$L$215+$M$218*J281^$M$215+$N$218*J281^$N$215+$O$218*J281^$O$215 -> 1.224396548 | M281: =IF($A$275=$A$233,J281,J281*L281) -> 49.90413901 | N281: =M281*I281 -> 46.08962076 | O281: =M281*H281 -> 69.8152528 | Q281: =$Q$31*G281^$R$31 -> 4.40778528 | R281: =$Q$37*F281^$R$37 -> 4.407156177
A282: =VKL!A52 -> 3 | B282: =VKL!B52 -> 260.5886916 | C282: =$C$174*B282^$D$174 -> 729.8841983 | E282: =IF($B$152=1,B282,C282) -> 260.5886916 | F282: =E282/$C$141 -> 209.4928697 | G282: =IF($B$152=2,B282,C282) -> 729.8841983 | H282: =Auslegung_BG800_kondensierend!AH42 -> 1.355367549 | I282: =Auslegung_BG800_kondensierend!AL42 -> 0.9125832346 | J282: =$C$185*F282^$C$184+$D$185*F282^$D$184+$E$185*F282^$E$184+$F$185*F282^$F$184 -> 48.31757917 | K282: =$C$187*G282^$C$186+$D$187*G282^$D$186+$E$187*G282^$E$186+$F$187*G282^$F$186 -> 48.20244868 | L282: =$I$218*J282^$I$215+$J$218*J282^$J$215+$K$218*J282^$K$215+$L$218*J282^$L$215+$M$218*J282^$M$215+$N$218*J282^$N$215+$O$218*J282^$O$215 -> 1.219790989 | M282: =IF($A$275=$A$233,J282,J282*L282) -> 58.93734768 | N282: =M282*I282 -> 53.78523538 | O282: =M282*H282 -> 79.88176848 | Q282: =$Q$31*G282^$R$31 -> 5.532752428 | R282: =$Q$37*F282^$R$37 -> 5.532466943
A283: =VKL!A53 -> 4 | B283: =VKL!B53 -> 325.9639044 | C283: =$C$174*B283^$D$174 -> 882.5269111 | E283: =IF($B$152=1,B283,C283) -> 325.9639044 | F283: =E283/$C$141 -> 262.0494133 | G283: =IF($B$152=2,B283,C283) -> 882.5269111 | H283: =Auslegung_BG800_kondensierend!AH43 -> 1.315526973 | I283: =Auslegung_BG800_kondensierend!AL43 -> 0.9048848647 | J283: =$C$185*F283^$C$184+$D$185*F283^$D$184+$E$185*F283^$E$184+$F$185*F283^$F$184 -> 56.49218282 | K283: =$C$187*G283^$C$186+$D$187*G283^$D$186+$E$187*G283^$E$186+$F$187*G283^$F$186 -> 56.48674687 | L283: =$I$218*J283^$I$215+$J$218*J283^$J$215+$K$218*J283^$K$215+$L$218*J283^$L$215+$M$218*J283^$M$215+$N$218*J283^$N$215+$O$218*J283^$O$215 -> 1.213028384 | M283: =IF($A$275=$A$233,J283,J283*L283) -> 68.52662125 | N283: =M283*I283 -> 62.0087024 | O283: =M283*H283 -> 90.14861859 | Q283: =$Q$31*G283^$R$31 -> 6.944833778 | R283: =$Q$37*F283^$R$37 -> 6.945108346
A289: =A142 -> Baugröße 1200 | C289: DpK = | D289: =D233*M325 -> 32.44439597 | E289: [kPa]
A291: =CONCATENATE("bei ", ROUND($B$6,0), " kg/h Kühlwassermassenstrom") -> bei 200 kg/h Kühlwassermassenstrom | F291: für kondensierende Auslegung
A292: Auslegung | B292: =$C$194 -> Volumenstrom | C292: =$C$195 -> Drehzahl | E292: =CONCATENATE("Volumenstrom - ",A289) -> Volumenstrom - Baugröße 1200 | F292: =CONCATENATE("Volumenstrom - ",$A$233) -> Volumenstrom - Baugröße 800 | G292: Drehzahl | H292: Korrektur Total bei Sollwassermenge | I292: Korrektur Sensibel bei Sollwassermenge | J292: qSK1) - aus Volumenstrom der gemessenen Baugröße | K292: qSK1) - aus Drehzahl | L292: Korrektur Baugröße | M292: qSK1) - aus Volumenstrom | N292: qSK2) - aus Volumenstrom | O292: qtotal2) - aus Volumenstrom | Q292: Steuerspannung [V] | R292: Steuerspannung [V]
B293: =$D$194 -> [m³/h] | C293: =$D$195 -> [1/min] | E293: [m³/h] | F293: [m³/h] | G293: [1/min] | H293: [-] | I293: [-] | J293: [W/K] | L293: [-] | M293: [W/K] | N293: [W/K] | O293: [W/K] | Q293: [V] | R293: [V]
A294: =VKL!A78 -> 0 | B294: =VKL!B64 -> 161.3632361 | C294: =$C$174*B294^$D$174 -> 486.0306263 | E294: =IF($B$152=1,B294,C294) -> 161.3632361 | F294: =E294/$C$141 -> 129.7233859 | G294: =IF($B$152=2,B294,C294) -> 486.0306263 | H294: =Auslegung_BG800_kondensierend!AH44 -> 1.450690428 | I294: =Auslegung_BG800_kondensierend!AL44 -> 0.9383338594 | J294: =$C$185*F294^$C$184+$D$185*F294^$D$184+$E$185*F294^$E$184+$F$185*F294^$F$184 -> 33.12070058 | K294: =$C$187*G294^$C$186+$D$187*G294^$D$186+$E$187*G294^$E$186+$F$187*G294^$F$186 -> 33.19661332 | L294: =$I$219*J294^$I$215+$J$219*J294^$J$215+$K$219*J294^$K$215+$L$219*J294^$L$215+$M$219*J294^$M$215+$N$219*J294^$N$215+$O$219*J294^$O$215 -> 1.462804583 | M294: =IF($A$289=$A$233,J294,J294*L294) -> 48.44911261 | N294: =M294*I294 -> 45.46144283 | O294: =M294*H294 -> 70.28466393 | Q294: =$Q$31*G294^$R$31 -> 3.400668 | R294: =$Q$37*F294^$R$37 -> 3.399829037
A295: =VKL!A79 -> 0 | B295: =VKL!B65 -> 201.8451914 | C295: =$C$174*B295^$D$174 -> 587.6754105 | E295: =IF($B$152=1,B295,C295) -> 201.8451914 | F295: =E295/$C$141 -> 162.2677029 | G295: =IF($B$152=2,B295,C295) -> 587.6754105 | H295: =Auslegung_BG800_kondensierend!AH45 -> 1.405345038 | I295: =Auslegung_BG800_kondensierend!AL45 -> 0.925300004 | J295: =$C$185*F295^$C$184+$D$185*F295^$D$184+$E$185*F295^$E$184+$F$185*F295^$F$184 -> 39.75326732 | K295: =$C$187*G295^$C$186+$D$187*G295^$D$186+$E$187*G295^$E$186+$F$187*G295^$F$186 -> 39.67255263 | L295: =$I$219*J295^$I$215+$J$219*J295^$J$215+$K$219*J295^$K$215+$L$219*J295^$L$215+$M$219*J295^$M$215+$N$219*J295^$N$215+$O$219*J295^$O$215 -> 1.455975771 | M295: =IF($A$289=$A$233,J295,J295*L295) -> 57.87979405 | N295: =M295*I295 -> 53.55617367 | O295: =M295*H295 -> 81.34108139 | Q295: =$Q$31*G295^$R$31 -> 4.268592704 | R295: =$Q$37*F295^$R$37 -> 4.26792856
A296: =VKL!A80 -> 0 | B296: =VKL!B66 -> 252.4831901 | C296: =$C$174*B296^$D$174 -> 710.5777642 | E296: =IF($B$152=1,B296,C296) -> 252.4831901 | F296: =E296/$C$141 -> 202.9766822 | G296: =IF($B$152=2,B296,C296) -> 710.5777642 | H296: =Auslegung_BG800_kondensierend!AH46 -> 1.361324254 | I296: =Auslegung_BG800_kondensierend!AL46 -> 0.9139623909 | J296: =$C$185*F296^$C$184+$D$185*F296^$D$184+$E$185*F296^$E$184+$F$185*F296^$F$184 -> 47.20717932 | K296: =$C$187*G296^$C$186+$D$187*G296^$D$186+$E$187*G296^$E$186+$F$187*G296^$F$186 -> 47.0861786 | L296: =$I$219*J296^$I$215+$J$219*J296^$J$215+$K$219*J296^$K$215+$L$219*J296^$L$215+$M$219*J296^$M$215+$N$219*J296^$N$215+$O$219*J296^$O$215 -> 1.443430538 | M296: =IF($A$289=$A$233,J296,J296*L296) -> 68.14028422 | N296: =M296*I296 -> 62.27765708 | O296: =M296*H296 -> 92.76102157 | Q296: =$Q$31*G296^$R$31 -> 5.358033852 | R296: =$Q$37*F296^$R$37 -> 5.357688455
A297: =VKL!A81 -> 0 | B297: =VKL!B67 -> 315.8252828 | C297: =$C$174*B297^$D$174 -> 859.1836731 | E297: =IF($B$152=1,B297,C297) -> 315.8252828 | F297: =E297/$C$141 -> 253.8987568 | G297: =IF($B$152=2,B297,C297) -> 859.1836731 | H297: =Auslegung_BG800_kondensierend!AH47 -> 1.320915202 | I297: =Auslegung_BG800_kondensierend!AL47 -> 0.9057371382 | J297: =$C$185*F297^$C$184+$D$185*F297^$D$184+$E$185*F297^$E$184+$F$185*F297^$F$184 -> 55.31235619 | K297: =$C$187*G297^$C$186+$D$187*G297^$D$186+$E$187*G297^$E$186+$F$187*G297^$F$186 -> 55.28669676 | L297: =$I$219*J297^$I$215+$J$219*J297^$J$215+$K$219*J297^$K$215+$L$219*J297^$L$215+$M$219*J297^$M$215+$N$219*J297^$N$215+$O$219*J297^$O$215 -> 1.425440688 | M297: =IF($A$289=$A$233,J297,J297*L297) -> 78.84448307 | N297: =M297*I297 -> 71.41237646 | O297: =M297*H297 -> 104.1468763 | Q297: =$Q$31*G297^$R$31 -> 6.725530676 | R297: =$Q$37*F297^$R$37 -> 6.72571005
... 56 more rows

Sheet BG;WT3,2;k (hidden)
A1: TT | D1: Master auswählen -> | E1: BG | F1: WT | G1: Verhältnis | I1: Polynom 6 Ordnung | J1: 6 | K1: 5 | L1: 4 | M1: 3 | N1: 2 | O1: 1 | P1: 0
A2: 2017-03-03 | E2: BG 800 | F2: =VLOOKUP(E2,E3:G6,2,0) -> 830 | G2: =VLOOKUP(E2,E3:G6,3,0) -> 1 | I2: =E2 -> BG 800 | J2: =VLOOKUP($I2,$I$3:$P$6,2,0) -> 1.421521965e-16 | K2: =VLOOKUP($I2,$I$3:$P$6,3,0) -> -2.563199796e-13 | L2: =VLOOKUP($I2,$I$3:$P$6,4,0) -> -1.488735081e-10 | M2: =VLOOKUP($I2,$I$3:$P$6,5,0) -> 6.916011335e-07 | N2: =VLOOKUP($I2,$I$3:$P$6,6,0) -> -0.0006883251388 | O2: =VLOOKUP($I2,$I$3:$P$6,7,0) -> 0.362075463 | P2: =VLOOKUP($I2,$I$3:$P$6,8,0) -> 0 | AR2: Datentabelle aus Eurocoil entnehmen
E3: BG 630 | F3: 600 | G3: =F3/$F$2 -> 0.7228915663 | I3: =E3 -> BG 630 | J3: =LINEST(AR18:AR117,AV18:AV117^{1,2,3,4,5,6},0,0) -> -1.813500638e-16 | K3: 8.467540226e-13 | L3: -1.604675141e-09 | M3: 1.607098867e-06 | N3: -0.0009415311809 | O3: 0.3608830048 | P3: 0
E4: BG 800 | F4: 830 | G4: =F4/$F$2 -> 1 | I4: =E4 -> BG 800 | J4: =LINEST(BI18:BI117,BM18:BM117^{1,2,3,4,5,6},0,0) -> 1.421521965e-16 | K4: -2.563199796e-13 | L4: -1.488735081e-10 | M4: 6.916011335e-07 | N4: -0.0006883251388 | O4: 0.362075463 | P4: 0
A5: WT 4L | B5: 3.2 | C5: mm | E5: BG 1000 | F5: 1030 | G5: =F5/$F$2 -> 1.240963855 | I5: =E5 -> BG 1000 | J5: =LINEST(BZ18:BZ117,CD18:CD117^{1,2,3,4,5,6},0,0) -> 3.400255507e-16 | K5: -9.30746935e-13 | L5: 7.644562872e-10 | M5: 7.881751686e-08 | N5: -0.000494961288 | O5: 0.3555561781 | P5: 0
A6: Länge | B6: 830 | C6: mm | E6: BG 1200 | F6: 1230 | G6: =F6/$F$2 -> 1.481927711 | I6: =E6 -> BG 1200 | J6: =LINEST(CQ18:CQ116,CU18:CU116^{1,2,3,4,5,6},0,0) -> 4.133531772e-16 | K6: -1.235714175e-12 | L6: 1.254596415e-09 | M6: -2.970767384e-07 | N6: -0.0003669610189 | O6: 0.3538392348 | P6: 0
A7: Rohrreihen | B7: 3
I8: Korrekturfaktoren | J8: 6 | K8: 5 | L8: 4 | M8: 3 | N8: 2 | O8: 1 | P8: 0
I9: =E3 -> BG 630 | J9: =LINEST(G18:G117,C18:C117^{0,1,2,3,4,5,6},0,0) -> 1.943156147e-12 | K9: -5.796651366e-10 | L9: 6.427162232e-08 | M9: -3.27963132e-06 | N9: 8.347171511e-05 | O9: -0.0008104209558 | P9: 0.7230737345
A10: Grenzen | I10: =E4 -> BG 800 | J10: =LINEST(J18:J117,C18:C117^{0,1,2,3,4,5,6},0,0) -> -4.506518282e-26 | K10: 8.220154121e-24 | L10: 0 | M10: -7.565180035e-20 | N10: 4.820647131e-18 | O10: -9.775324264e-17 | P10: 1
A11: Maximum | B11: =MAX(B18:B117) -> 1000 | C11: m³/h | I11: =E5 -> BG 1000 | J11: =LINEST(M18:M97,C18:C97^{0,1,2,3,4,5,6},0,0) -> -2.342548128e-12 | K11: 5.787659422e-10 | L11: -5.043168556e-08 | M11: 1.873393153e-06 | N11: -4.098859455e-05 | O11: 0.0007886752862 | P11: 1.218313429
I12: =E6 -> BG 1200 | J12: =LINEST(P18:P84,C18:C84^{0,1,2,3,4,5,6},0,0) -> -6.562698073e-12 | K12: 1.637379032e-09 | L12: -1.475890306e-07 | M12: 6.019449386e-06 | N12: -0.0001488960152 | O12: 0.002504042068 | P12: 1.445508757
B13: =CONCATENATE("Master - ",AA13) -> Master - BG 800 | E13: =AR13 -> BG630 | H13: =BI13 -> BG 800 | K13: =BZ13 -> BG1000 | N13: =CQ13 -> BG1200 | AA13: =E2 -> BG 800 | AR13: BG630 | BI13: BG 800 | BZ13: BG1000 | CQ13: BG1200
B14: Volumen-nstrom | C14: spez. Leistung | D14: Korrektur-faktor | E14: Volumen-nstrom | F14: spez. Leistung | G14: Korrektur-faktor | H14: Volumen-nstrom | I14: spez. Leistung | J14: Korrektur-faktor | K14: Volumen-nstrom | L14: spez. Leistung | M14: Korrektur-faktor | N14: Volumen-nstrom | O14: spez. Leistung | P14: Korrektur-faktor | AA14: =IF($AA$13=$AR$13,AR14,IF($AA$13=$BI$13,BI14,IF($AA$13=$BZ$13,BZ14,IF($AA$13=$CQ$13,CQ14,"-")))) -> q sensibel | AB14: =IF($AA$13=$AR$13,AS14,IF($AA$13=$BI$13,BJ14,IF($AA$13=$BZ$13,CA14,IF($AA$13=$CQ$13,CR14,"-")))) -> S | AC14: TWI | AD14: TWO | AE14: QA | AF14: VA | AG14: TAI | AH14: UR | AI14: PT | AJ14: PS | AK14: TAO | AL14: UR | AM14: QW | AN14: VW | AO14: DPW | AP14: DPA | AR14: q sensibel | AS14: S | AT14: TWI | AU14: TWO | AV14: QA | AW14: VA | AX14: TAI | AY14: UR | AZ14: PT | BA14: PS | BB14: TAO | BC14: UR | BD14: QW | BE14: VW | BF14: DPW | BG14: DPA | BI14: q sensibel | BJ14: S | BK14: TWI | BL14: TWO | BM14: QA | BN14: VA | BO14: TAI | BP14: UR | BQ14: PT | BR14: PS | BS14: TAO | BT14: UR | BU14: QW | BV14: VW | BW14: DPW | BX14: DPA | BZ14: q sensibel | CA14: S | CB14: TWI | CC14: TWO | CD14: QA | CE14: VA | CF14: TAI | CG14: UR | CH14: PT | CI14: PS | CJ14: TAO | CK14: UR | CL14: QW | CM14: VW | CN14: DPW | CO14: DPA | CQ14: q sensibel | CR14: S | CS14: TWI | CT14: TWO | CU14: QA | CV14: VA | CW14: TAI | CX14: UR | CY14: PT | CZ14: PS | DA14: TAO | DB14: UR | DC14: QW | DD14: VW | DE14: DPW | DF14: DPA
B15: [m³/h] | C15: [W/K] | D15: [-] | E15: [m³/h] | F15: [W/K] | G15: [-] | H15: [m³/h] | I15: [W/K] | J15: [-] | K15: [m³/h] | L15: [W/K] | M15: [-] | N15: [m³/h] | O15: [W/K] | P15: [-] | AA15: =IF($AA$13=$AR$13,AR15,IF($AA$13=$BI$13,BI15,IF($AA$13=$BZ$13,BZ15,IF($AA$13=$CQ$13,CQ15,"-")))) -> W/K | AB15: =IF($AA$13=$AR$13,AS15,IF($AA$13=$BI$13,BJ15,IF($AA$13=$BZ$13,CA15,IF($AA$13=$CQ$13,CR15,"-")))) -> 0 | AC15: =IF($AA$13=$AR$13,AT15,IF($AA$13=$BI$13,BK15,IF($AA$13=$BZ$13,CB15,IF($AA$13=$CQ$13,CS15,"-")))) -> °C | AD15: =IF($AA$13=$AR$13,AU15,IF($AA$13=$BI$13,BL15,IF($AA$13=$BZ$13,CC15,IF($AA$13=$CQ$13,CT15,"-")))) -> °C | AE15: =IF($AA$13=$AR$13,AV15,IF($AA$13=$BI$13,BM15,IF($AA$13=$BZ$13,CD15,IF($AA$13=$CQ$13,CU15,"-")))) -> m3/h | AF15: =IF($AA$13=$AR$13,AW15,IF($AA$13=$BI$13,BN15,IF($AA$13=$BZ$13,CE15,IF($AA$13=$CQ$13,CV15,"-")))) -> m/s | AG15: =IF($AA$13=$AR$13,AX15,IF($AA$13=$BI$13,BO15,IF($AA$13=$BZ$13,CF15,IF($AA$13=$CQ$13,CW15,"-")))) -> °C | AH15: =IF($AA$13=$AR$13,AY15,IF($AA$13=$BI$13,BP15,IF($AA$13=$BZ$13,CG15,IF($AA$13=$CQ$13,CX15,"-")))) -> % | AI15: =IF($AA$13=$AR$13,AZ15,IF($AA$13=$BI$13,BQ15,IF($AA$13=$BZ$13,CH15,IF($AA$13=$CQ$13,CY15,"-")))) -> kW | AJ15: =IF($AA$13=$AR$13,BA15,IF($AA$13=$BI$13,BR15,IF($AA$13=$BZ$13,CI15,IF($AA$13=$CQ$13,CZ15,"-")))) -> kW | AK15: =IF($AA$13=$AR$13,BB15,IF($AA$13=$BI$13,BS15,IF($AA$13=$BZ$13,CJ15,IF($AA$13=$CQ$13,DA15,"-")))) -> °C | AL15: =IF($AA$13=$AR$13,BC15,IF($AA$13=$BI$13,BT15,IF($AA$13=$BZ$13,CK15,IF($AA$13=$CQ$13,DB15,"-")))) -> % | AM15: =IF($AA$13=$AR$13,BD15,IF($AA$13=$BI$13,BU15,IF($AA$13=$BZ$13,CL15,IF($AA$13=$CQ$13,DC15,"-")))) -> l/h | AN15: =IF($AA$13=$AR$13,BE15,IF($AA$13=$BI$13,BV15,IF($AA$13=$BZ$13,CM15,IF($AA$13=$CQ$13,DD15,"-")))) -> m/s | AO15: =IF($AA$13=$AR$13,BF15,IF($AA$13=$BI$13,BW15,IF($AA$13=$BZ$13,CN15,IF($AA$13=$CQ$13,DE15,"-")))) -> kPa | AP15: =IF($AA$13=$AR$13,BG15,IF($AA$13=$BI$13,BX15,IF($AA$13=$BZ$13,CO15,IF($AA$13=$CQ$13,DF15,"-")))) -> Pa | AR15: W/K | AT15: °C | AU15: °C | AV15: m3/h | AW15: m/s | AX15: °C | AY15: % | AZ15: kW | BA15: kW | BB15: °C | BC15: % | BD15: l/h | BE15: m/s | BF15: kPa | BG15: Pa | BI15: W/K | BK15: °C | BL15: °C | BM15: m3/h | BN15: m/s | BO15: °C | BP15: % | BQ15: kW | BR15: kW | BS15: °C | BT15: % | BU15: l/h | BV15: m/s | BW15: kPa | BX15: Pa | BZ15: W/K | CB15: °C | CC15: °C | CD15: m3/h | CE15: m/s | CF15: °C | CG15: % | CH15: kW | CI15: kW | CJ15: °C | CK15: % | CL15: l/h | CM15: m/s | CN15: kPa | CO15: Pa | CQ15: W/K | CS15: °C | CT15: °C | CU15: m3/h | CV15: m/s | CW15: °C | CX15: % | CY15: kW | CZ15: kW | DA15: °C | DB15: % | DC15: l/h | DD15: m/s | DE15: kPa | DF15: Pa
AA16: 0 | AB16: S | AC16: TWI | AD16: TWO | AE16: QA | AF16: VA | AG16: TAI | AH16: UR | AI16: PT | AJ16: PS | AK16: TAO | AL16: UR | AM16: QW | AN16: VW | AO16: DPW | AP16: DPA | AS16: S | AT16: TWI | AU16: TWO | AV16: QA | AW16: VA | AX16: TAI | AY16: UR | AZ16: PT | BA16: PS | BB16: TAO | BC16: UR | BD16: QW | BE16: VW | BF16: DPW | BG16: DPA | BJ16: S | BK16: TWI | BL16: TWO | BM16: QA | BN16: VA | BO16: TAI | BP16: UR | BQ16: PT | BR16: PS | BS16: TAO | BT16: UR | BU16: QW | BV16: VW | BW16: DPW | BX16: DPA | CA16: S | CB16: TWI | CC16: TWO | CD16: QA | CE16: VA | CF16: TAI | CG16: UR | CH16: PT | CI16: PS | CJ16: TAO | CK16: UR | CL16: QW | CM16: VW | CN16: DPW | CO16: DPA | CR16: S | CS16: TWI | CT16: TWO | CU16: QA | CV16: VA | CW16: TAI | CX16: UR | CY16: PT | CZ16: PS | DA16: TAO | DB16: UR | DC16: QW | DD16: VW | DE16: DPW | DF16: DPA
AA17: 0 | AB17: 0 | AC17: °C | AD17: °C | AE17: m3/h | AF17: m/s | AG17: °C | AH17: % | AI17: kW | AJ17: kW | AK17: °C | AL17: % | AM17: l/h | AN17: m/s | AO17: kPa | AP17: Pa | AT17: °C | AU17: °C | AV17: m3/h | AW17: m/s | AX17: °C | AY17: % | AZ17: kW | BA17: kW | BB17: °C | BC17: % | BD17: l/h | BE17: m/s | BF17: kPa | BG17: Pa | BK17: °C | BL17: °C | BM17: m3/h | BN17: m/s | BO17: °C | BP17: % | BQ17: kW | BR17: kW | BS17: °C | BT17: % | BU17: l/h | BV17: m/s | BW17: kPa | BX17: Pa | CB17: °C | CC17: °C | CD17: m3/h | CE17: m/s | CF17: °C | CG17: % | CH17: kW | CI17: kW | CJ17: °C | CK17: % | CL17: l/h | CM17: m/s | CN17: kPa | CO17: Pa | CS17: °C | CT17: °C | CU17: m3/h | CV17: m/s | CW17: °C | CX17: % | CY17: kW | CZ17: kW | DA17: °C | DB17: % | DC17: l/h | DD17: m/s | DE17: kPa | DF17: Pa
B18: =AE18 -> 10 | C18: =$J$4*B18^6+$K$4*B18^5+$L$4*B18^4+$M$4*B18^3+$N$4*B18^2+$O$4*B18 -> 3.552612203 | D18: =1/C18*C18 -> 1 | E18: =IF($B18*$G$3>$B$11,"",$B18*$G$3) -> 7.228915663 | F18: =IF(E18>$B$11,"",$J$3*E18^6+$K$3*E18^5+$L$3*E18^4+$M$3*E18^3+$N$3*E18^2+$O$3*E18) -> 2.560193739 | G18: =IF(E18>$B$11,"",1/$C18*F18) -> 0.7206510569 | H18: =IF($B18*$G$4>$B$11,"",$B18*$G$4) -> 10 | I18: =IF(H18>$B$11,"",$J$4*H18^6+$K$4*H18^5+$L$4*H18^4+$M$4*H18^3+$N$4*H18^2+$O$4*H18) -> 3.552612203 | J18: =IF(H18>$B$11,"",1/$C18*I18) -> 1 | K18: =IF($B18*$G$5>$B$11,"",$B18*$G$5) -> 12.40963855 | L18: =IF(K18>$B$11,"",$J$5*K18^6+$K$5*K18^5+$L$5*K18^4+$M$5*K18^3+$N$5*K18^2+$O$5*K18) -> 4.336268532 | M18: =IF(K18>$B$11,"",1/$C18*L18) -> 1.220585947 | N18: =IF($B18*$G$6>$B$11,"",$B18*$G$6) -> 14.81927711 | O18: =IF(N18>$B$11,"",$J$6*N18^6+$K$6*N18^5+$L$6*N18^4+$M$6*N18^3+$N$6*N18^2+$O$6*N18) -> 5.162145806 | P18: =IF(N18>$B$11,"",1/$C18*O18) -> 1.453056374 | AA18: 3 | AB18: 0 | AC18: 16 | AD18: 16.2 | AE18: 10 | AF18: 0 | AG18: 26 | AH18: 45 | AI18: 0.04 | AJ18: 0.03 | AK18: 15.99 | AL18: 100 | AM18: 200 | AN18: 0.8 | AO18: 19.7 | AP18: 0 | AR18: =BA18/(AX18-AT18)*1000 -> 3 | AT18: 16 | AU18: 16.2 | AV18: 10 | AW18: 0 | AX18: 26 | AY18: 45 | AZ18: 0.03 | BA18: 0.03 | BB18: 16.01 | BC18: 83.3 | BD18: 200 | BE18: 0.8 | BF18: 15.8 | BG18: 0 | BI18: =BR18/(BO18-BK18)*1000 -> 3 | BK18: 16 | BL18: 16.2 | BM18: 10 | BN18: 0 | BO18: 26 | BP18: 45 | BQ18: 0.04 | BR18: 0.03 | BS18: 15.99 | BT18: 100 | BU18: 200 | BV18: 0.8 | BW18: 19.7 | BX18: 0 | BZ18: =CI18/(CF18-CB18)*1000 -> 3 | CB18: 16 | CC18: 16.2 | CD18: 10 | CE18: 0 | CF18: 26 | CG18: 45 | CH18: 0.04 | CI18: 0.03 | CJ18: 15.99 | CK18: 100 | CL18: 200 | CM18: 0.8 | CN18: 23 | CO18: 0 | CQ18: =CZ18/(CW18-CS18)*1000 -> 3 | CS18: 16 | CT18: 16.2 | CU18: 10 | CV18: 0 | CW18: 26 | CX18: 45 | CY18: 0.05 | CZ18: 0.03 | DA18: 15.99 | DB18: 100 | DC18: 200 | DD18: 0.8 | DE18: 26.3 | DF18: 0
B19: 20 | C19: 6.971687384 | D19: =1/C19*C19 -> 1 | E19: =IF($B19*$G$3>$B$11,"",$B19*$G$3) -> 14.45783133 | F19: =IF(E19>$B$11,"",$J$3*E19^6+$K$3*E19^5+$L$3*E19^4+$M$3*E19^3+$N$3*E19^2+$O$3*E19) -> 5.025565637 | G19: =IF(E19>$B$11,"",1/$C19*F19) -> 0.7208535553 | H19: =IF($B19*$G$4>$B$11,"",$B19*$G$4) -> 20 | I19: =IF(H19>$B$11,"",$J$4*H19^6+$K$4*H19^5+$L$4*H19^4+$M$4*H19^3+$N$4*H19^2+$O$4*H19) -> 6.971687384 | J19: =IF(H19>$B$11,"",1/$C19*I19) -> 1 | K19: 24.81927711 | L19: 8.52123928 | M19: 1.222263537 | N19: =IF($B19*$G$6>$B$11,"",$B19*$G$6) -> 29.63855422 | O19: =IF(N19>$B$11,"",$J$6*N19^6+$K$6*N19^5+$L$6*N19^4+$M$6*N19^3+$N$6*N19^2+$O$6*N19) -> 10.15813419 | P19: 1.45705532 | AA19: 6 | AB19: 0 | AC19: 16 | AD19: 16.4 | AE19: 20 | AF19: 0 | AG19: 26 | AH19: 45 | AI19: 0.06 | AJ19: 0.06 | AK19: 16.01 | AL19: 83.3 | AM19: 200 | AN19: 0.8 | AO19: 19.7 | AP19: 0 | AR19: 6 | AT19: 16 | AU19: 16.3 | AV19: 20 | AW19: 0.1 | AX19: 26 | AY19: 45 | AZ19: 0.06 | BA19: 0.06 | BB19: 16.01 | BC19: 83.3 | BD19: 200 | BE19: 0.8 | BF19: 15.8 | BG19: 0 | BI19: 6 | BK19: 16 | BL19: 16.4 | BM19: 20 | BN19: 0 | BO19: 26 | BP19: 45 | BQ19: 0.06 | BR19: 0.06 | BS19: 16.01 | BT19: 83.3 | BU19: 200 | BV19: 0.8 | BW19: 19.7 | BX19: 0 | BZ19: 6 | CB19: 16 | CC19: 16.4 | CD19: 20 | CE19: 0 | CF19: 26 | CG19: 45 | CH19: 0.06 | CI19: 0.06 | CJ19: 16.01 | CK19: 83.3 | CL19: 200 | CM19: 0.8 | CN19: 23 | CO19: 0 | CQ19: 7 | CS19: 16 | CT19: 16.5 | CU19: 20 | CV19: 0 | CW19: 26 | CX19: 45 | CY19: 0.07 | CZ19: 0.07 | DA19: 16.01 | DB19: 83.3 | DC19: 200 | DD19: 0.8 | DE19: 26.3 | DF19: 0
B20: 30 | C20: 10.26131778 | D20: 1 | E20: 21.68674699 | F20: 7.399603048 | G20: 0.7211162546 | H20: 30 | I20: 10.26131778 | J20: 1 | K20: 37.22891566 | L20: 12.55642825 | M20: 1.22366625 | N20: 44.45783133 | O20: 14.98421235 | P20: 1.460261992 | AA20: 10 | AB20: 0 | AC20: 16 | AD20: 16.4 | AE20: 30 | AF20: 0.1 | AG20: 26 | AH20: 45 | AI20: 0.1 | AJ20: 0.1 | AK20: 16.01 | AL20: 83.3 | AM20: 200 | AN20: 0.8 | AO20: 19.7 | AP20: 0 | AR20: 10 | AT20: 16 | AU20: 16.4 | AV20: 30 | AW20: 0.1 | AX20: 26 | AY20: 45 | AZ20: 0.1 | BA20: 0.1 | BB20: 16.05 | BC20: 83 | BD20: 200 | BE20: 0.8 | BF20: 15.8 | BG20: 0 | BI20: 10 | BK20: 16 | BL20: 16.4 | BM20: 30 | BN20: 0.1 | BO20: 26 | BP20: 45 | BQ20: 0.1 | BR20: 0.1 | BS20: 16.01 | BT20: 83.3 | BU20: 200 | BV20: 0.8 | BW20: 19.7 | BX20: 0 | BZ20: 10 | CB20: 16 | CC20: 16.5 | CD20: 30 | CE20: 0 | CF20: 26 | CG20: 45 | CH20: 0.1 | CI20: 0.1 | CJ20: 16.01 | CK20: 83.3 | CL20: 200 | CM20: 0.8 | CN20: 23 | CO20: 0 | CQ20: 10 | CS20: 16 | CT20: 16.5 | CU20: 30 | CV20: 0 | CW20: 26 | CX20: 45 | CY20: 0.1 | CZ20: 0.1 | DA20: 16.01 | DB20: 83.3 | DC20: 200 | DD20: 0.8 | DE20: 26.3 | DF20: 0
B21: 40 | C21: 13.42555399 | D21: 1 | E21: 28.91566265 | F21: 9.685692128 | G21: 0.7214370546 | H21: 40 | I21: 13.42555399 | J21: 1 | K21: 49.63855422 | L21: 16.44372275 | M21: 1.224807763 | N21: 59.27710843 | O21: 19.63787453 | P21: 1.46272359 | AA21: 13 | AB21: 0 | AC21: 16 | AD21: 16.6 | AE21: 40 | AF21: 0.1 | AG21: 26 | AH21: 45 | AI21: 0.13 | AJ21: 0.13 | AK21: 16.04 | AL21: 83 | AM21: 200 | AN21: 0.8 | AO21: 19.7 | AP21: 0 | AR21: 13 | AT21: 16 | AU21: 16.5 | AV21: 40 | AW21: 0.1 | AX21: 26 | AY21: 45 | AZ21: 0.13 | BA21: 0.13 | BB21: 16.14 | BC21: 82.6 | BD21: 200 | BE21: 0.8 | BF21: 15.8 | BG21: 0 | BI21: 13 | BK21: 16 | BL21: 16.6 | BM21: 40 | BN21: 0.1 | BO21: 26 | BP21: 45 | BQ21: 0.13 | BR21: 0.13 | BS21: 16.04 | BT21: 83 | BU21: 200 | BV21: 0.8 | BW21: 19.7 | BX21: 0 | BZ21: 13 | CB21: 16 | CC21: 16.6 | CD21: 40 | CE21: 0.1 | CF21: 26 | CG21: 45 | CH21: 0.13 | CI21: 0.13 | CJ21: 16.02 | CK21: 83.2 | CL21: 200 | CM21: 0.8 | CN21: 23 | CO21: 0 | CQ21: 13 | CS21: 16 | CT21: 16.6 | CU21: 40 | CV21: 0.1 | CW21: 26 | CX21: 45 | CY21: 0.13 | CZ21: 0.13 | DA21: 16.01 | DB21: 83.3 | DC21: 200 | DD21: 0.8 | DE21: 26.3 | DF21: 0
